Workbook

Sheet Reference Guide
C3: PRICE TIER EXPLANATION:
C4: Frito-Lay classifies products in the Salty Snack category into three Price Segments - Premium, Value, and Mainstream. The price ranges of these segments are determined for each subcategory using statistical methodology. All Frito-Lay and competitive line extensions are put into the price tiers based on whether the average price per pound falls into the high, low, or mid range. Note: There are some products that are unclassified because they are new and there has not been enough history to determine a true average price. Therefore, the sum of the three price tiers will not exactly total to Salty Snacks. To see a more detailed description of the Price Tier aggregates and what is included, please click here to visit the Share Portal ------>
G5: FLNA Share Reports
C6: REPORT MEASURES | F6: ILD INFORMATION
C7: Column Heading | D7: Explanation of the Measure | F7: ILD Measure Name | G7: ILD Location
C8: GROWTH - Salty % PY | D8: Salty Snack Category Growth. The percent increase (decrease) of the Salty Snack category dollar sales, versus the same time frame last year. | F8: Dollar Sales | G8: Measures ->Sales: FOLER
C9: GROWTH - FL % PY | D9: Frito-Lay Growth. The percent increase (decrease) of FL dollar sales, versus the same time frame last year | F9: Dollar Sales | G9: Measures ->Sales: FOLER
C10: GROWTH - AO % PY | D10: All-Other Growth. The percent increase (decrease) of AO dollar sales, versus the same time frame last year | F10: Dollar Sales | G10: Measures ->Sales: FOLER
C11: FL SHARE - Current | D11: Frito-Lay Share. FL Salty Snack dollar sales as a percent of total Salty Snack dollar sales. | F11: Dollar Share of Salty Snacks | G11: Measures -> Product Share: FOLDER
C12: FL SHARE - Chg. | D12: Frito-Lay Share Change. The increase (decrease) of FL dollar share, versus the same time frame last year. | F12: Dollar Share of Salty Snacks | G12: Measures -> Product Share: FOLDER
C13: $ SHARE CHG DECOMPOSITION - Frito-Lay | D13: Frito-Lay Dollar Share Change Decomposition. FL total dollar share change broken out by price segment. The sum of the segments of the decomp equals the total share change. This is calculated by using the Premium, Value, and Mid-Tier segmentation. For example, FL Premium product dollar sales divided by Total Salty Snack dollars. Calculate for Current Year & Year Ago, subtract to get the change. | F13: Calculation | G13: Measures -> Sales: FOLDER -> Dollar Sales Products -> Custom Aggregates -> FLNA Certified -> Price Tier Aggregates
C14: $ SHARE CHANGE DECOMPOSITION - All Other | D14: All Other (competitive) Dollar Share Change Decomposition. This is All Other (competitive) dollar share change broken out by price segment. The sum of the segments of the decomp equals the total share change. This is calculated by using the Premium, Value, and Mid-Tier segmentation. For example, All Other Premium product dollar sales divided by Total Salty Snack dollars. Calculate for Current Year & Year Ago, subtract to get the change. | F14: Calculation | G14: Measures -> Sales: FOLDER -> Dollar Sales Products -> Custom Aggregates -> FLNA Certified -> Price Tier Aggregates
C15: VALUE - FL $/Lb. | D15: Frito-Lay average price per pound scanned. | F15: Avg Prc/Vol | G15: Measures -> Pricing: FOLDER
C16: VALUE - AO $/Lb. | D16: All-Other average price per pound scanned. All-Other is all Salty Snack manufacturers excluding Frito-Lay. | F16: Avg Prc/Vol | G16: Measures -> Pricing: FOLDER
C17: VALUE - FL Price Gap Current | D17: Frito-Lay Price Gap. The difference between FL average price per pound and total competitive average price per pound. A positive number indicates that FL price is higher than the average competitive price. | F17: Avg Prc/Vol, Gap to Salty X Frito-Lay | G17: Measures -> Custom Calculations -> 2014 2015 FLNA Certified
C18: VALUE - FL Price Gap Chg. | D18: Frito-Lay Price Gap Change. The difference between FL average price per pound and total competitive average price per pound, this year versus same time frame last year. A negative price gap change indicates that the price gap between FL and total competition is less than it was a year ago. | F18: Avg Prc/Vol, Gap to Salty X Frito-Lay | G18: Measures -> Custom Calculations -> 2014 2015 FLNA Certified
C19: VARIETY - Share SKU's | D19: Share of SKU's. Frito-Lay Share of Salty Snack SKU's. Based on a weekly average per store. | F19: Avg Wkly Items/Store Selling | G19: Measures -> Distribution : FOLDER
C20: VALUE - Share SKU's Chg. | D20: Share of SKU's Change. Frito-Lay Share of Salty Snack SKU's, versus the same time frame last year. This is based on a weekly average per store. | F20: Avg Wkly Items/Store Selling | G20: Measures -> Distribution : FOLDER
C21: VISIBILITY - FL Perim Lb./Str Current | D21: Frito-Lay Perimeter Pounds per Store. The weekly display audit is conducted in the Grocery Channel, & Mass Merch Channels. The audit captures product capacity (in pounds) on the perimeter displays. This measure is an average per store of the weeks reported. | F21: D_Aud - Capacity Volume Average Weekly Per Store Display | G21: Measures -> Custom Calculations -> 2014 2015 FLNA Certified
C22: VISIBILITY - Perim Lbs./Str % PY | D22: The percent increase (decrease) of Frito-Lay perimeter pound capacity versus the same time frame last year. This measure is an average per store of the weeks reported. | F22: D_Aud - Capacity Volume Average Weekly Per Store Display | G22: Measures -> Display Audit : FOLDER
C23: VISIBILITY - Perim LB Share Current | D23: Perimeter Pound Share. Frito-Lay share of total Salty Snack display perimeter pounds. | F23: D_Aud - Perimeter Lb. Share | G23: Measures -> Custom Calculations -> 2014 2015 FLNA Certified
C24: VISIBILITY - Perim LB Share Chg. | D24: Perimeter Pound Share Change. The increase (decrease) of Frito-Lay share of Salty Snack Display Perimeter Pounds, versus the same time frame last year. | F24: D_Aud - Perimeter Lb. Share | G24: Measures -> Custom Calculations -> 2014 2015 FLNA Certified
C25: PRICE TIER SECTIONS (PREMIUM EXAMPLE) | F25: PREMIUM
C26: CATEGORY MIX - TTL % of Salty Current | D26: The percent of the Salty Snack category that is Premium. | F26: Dollar Sales | G26: Measures ->Sales: FOLDER Product -> Custom Aggregates -> FLNA Certified -> Price Tier Aggregates
C27: CATEGORY MIX - TTL % of Salty Chg. | D27: The increase (decrease) of the percent of the Salty Snack category that is Premium. | F27: Dollar Sales | G27: Measures -> Sales: FOLDER Product -> Custom Aggregates -> FLNA Certified -> Price Tier Aggregates
C28: GROWTH - Salty $ % vs. PY | D28: The percent increase (decrease) of Salty Snack premium dollar sales, versus the same time frame last year | F28: Dollar Sales | G28: Measures ->Sales: FOLER
C29: GROWTH - FL $ % vs. PY | D29: The percent increase (decrease) of Frito Lay premium dollar sales, versus the same time frame last year | F29: Dollar Sales | G29: Measures ->Sales: FOLER
C30: GROWTH - AO $ % vs. PY | D30: The percent increase (decrease) of All-Other premium dollar sales, versus the same time frame last year | F30: Dollar Sales | G30: Measures ->Sales: FOLER
C31: FL SHARE - $ Share Current | D31: Frito-Lay Share of the Premium segment. This is FL Premium product dollar sales as a percent of total Salty Snack Premium products dollar sales | F31: Share of Premium Price Tier | G31: Measures -> Custom Calculations ->2014 2015 FLNA Certified Product -> Custom Aggregates -> FLNA Certified -> Price Tier Aggregates
C32: FLSHARE - $ Share Chg. | D32: Frito-Lay Share Change. The increase (decrease) in FL Share of Premium, versus the same time frame last year. | F32: Share of Premium Price Tier | G32: Measures -> Custom Calculations ->2014 2015 FLNA Certified Product -> Custom Aggregates -> FLNA Certified -> Price Tier Aggregates
C33: VALUE - $/Lb. FL | D33: Frito-Lay average price per pound of Premium products . | F33: Avg Prc/Vol | G33: Measures -> Pricing: FOLDER Product -> Custom Aggregates -> FLNA Certified -> Price Tier Aggregates
C34: VALUE - $/Lb. AO | D34: All-Other average price per pound of Premium products. All Other is all Salty Snack manufacturers excluding FL. | F34: Avg Prc/Vol | G34: Measures -> Pricing: FOLDER Product -> Custom Aggregates -> FLNA Certified -> Price Tier Aggregates
C35: VALUE - Price Gap Current | D35: The difference between Frito-Lay and All Other average price per pound of Premium products. A positive number indicates that Frito-Lay's price is higher than All-Other. | F35: Calculation | G35: Measures -> Custom Calculations -> 2014 2015 FLNA Certified Product -> Custom Aggregates -> FLNA Certified -> Price Tier Aggregates
C36: VALUE - Price Gap Chg. | D36: The difference between Frito-Lay and All Other average price per pound of Premium products, versus the same time frame a year ago. A negative price gap change indicates that the price gap between FL and All-Other is less than it was a year ago. | F36: Calculation | G36: Measures -> Custom Calculations -> 2014 2015 FLNA Certified Product -> Custom Aggregates -> FLNA Certified -> Price Tier Aggregates
C37: VARIETY - Share SKU's Current | D37: Share of SKU's. Frito-Lay share of the number of Premium SKU's. This is calculated by taking the FL Premium SKU's and dividing it by total Salty Snack Premium SKU's. Based on a weekly average per store. | F37: Avg Wkly Items/Store Selling | G37: Measures -> Distribution : FOLDER Product -> Custom Aggregates -> FLNA Certified -> Price Tier Aggregates
C38: VARIETY - Share SKU's Chg. | D38: Share of SKU's Change. Frito-Lay share of the number of Premium SKU's, versus the same time-frame a year ago. This is calculated by taking the FL Premium SKU's and dividing it by total Salty Snack Premium SKU's for Current Year. Repeat the process for Year Ago. Subtract to get the difference | F38: Avg Wkly Items/Store Selling | G38: Measures -> Distribution : FOLDER Product -> Custom Aggregates -> FLNA Certified -> Price Tier Aggregates
C39: VISIBILITY - Perim Lbs./Str Current | D39: Perimeter Pounds Per Store. Frito-Lay Premium product perimeter pounds - weekly average per store. The weekly display audit is conducted in the Grocery Channel, & Mass Merch Channels. The audit captures product capacity (in pounds) on perimeter displays. | F39: D_Aud - Capacity Volume Average Weekly Per Store Display | G39: Measures ->Display Audit : FOLDER Product -> Custom Aggregates -> FLNA Certified -> Price Tier Aggregates
C40: VISIBILITY - Perim Lbs./Str % PY | D40: Perimeter Pounds Per Store % Change. The percent increase (decrease) of Frito-Lay Premium product perimeter pounds, vs. the same time frame last year. | F40: D_Aud - Capacity Volume Average Weekly Per Store Display | G40: Measures ->Display Audit : FOLDER Product -> Custom Aggregates -> FLNA Certified -> Price Tier Aggregates
C41: VISIBILITY - Perim LB Share Current | D41: Perimeter Pound Share. Frito-Lay share of Premium product perimeter pounds for the current year. | F41: D_Aud - Perimeter Lb. Share | G41: Measures ->Custom Calculations -> 2014 2015 FLNA Certified Product -> Custom Aggregates -> FLNA Certified -> Price Tier Aggregates
C42: VISIBILITY - Perim LB Share Chg. | D42: Perimeter Pound Share Change. The increase (decrease) of Frito-Lay share of Premium product perimeter pounds, versus the same time frame last year. | F42: D_Aud - Perimeter Lb. Share | G42: Measures ->Custom Calculations -> 2014 2015 FLNA Certified Product -> Custom Aggregates -> FLNA Certified -> Price Tier Aggregates.
C43: COMPETITIVE THREATS - TOP MULOC SHARE GAINERS | F43: ILD INFORMATION
C44: These are the top 15 competitive share gainers for MULOC. Super Threats are highlighted in red -- they are top share gainers and have gained significant DISTRIBUTION and VELOCITY for the 4 wks. vs. last year (20%+ growth in ACV dist & 20%+ growth USW for the current 4 weeks).
C45: $ Share Current | D45: "X" Competitor's dollar sales as a percent of total Salty Snack dollar sales | F45: Dollar Share of Salty Snacks | G45: Measures -> Product Share: FOLDER
C46: $ Share Chg. | D46: The increase (decrease) of "X" Competitor's dollar share, versus the same time frame last year. | F46: Dollar Share of Salty Snacks | G46: Measures -> Product Share: FOLDER
C47: MULOC Mix | D47: The percentage of the competitor's MULOC (Multi-Outlet plus Convenience) dollar sales in each geography. Example: 50% of Skinny-pop dollar sales are in Total US Groc. | F47: Dollar Sales | G47: Measures ->Sales: FOLER
C48: Num SKUs | D48: Number of SKU's. "X" Competitor's average number of SKU's being sold. Based on a weekly average per store. | F48: Avg Weekly Items/Store Selling | G48: Measures -> Distribution: FOLDER
C49: Dist. | D49: Distribution. "X" Competitor's percent distribution weighted by the total retailers dollar sales. | F49: Average Weekly Distribution When Selling | G49: Measures -> Distribution : FOLDER
C50: Dist. Chg. | D50: Distribution Change. The increase (decrease) of "X" Competitor's percent distribution weighted by the total retailers dollar sales, versus the same time frame last year. | F50: Average Weekly Distribution When Selling | G50: Measures -> Distribution : FOLDER
C51: Perim Lbs./Str | D51: Perimeter Pounds Per Store. "X" Competitor's weekly average perimeter pounds per store. The weekly display audit is conducted in the Grocery Channel, & Mass Merch Channels. The audit captures product capacity (in pounds) on perimeter displays. | F51: D_Aud - Capacity Volume Average Weekly Per Store Display | G51: Measures ->Custom Calculations-> 2014 2015 FLNA Certified
C52: $/Lb. | D52: Price Per Pound. "X" Competitor's average price per pound scanned. | F52: Avg Prc/Vol | G52: Measures -> Pricing: FOLDER
C53: USW | D53: Units Per Store Per Week. "X" Competitor's average unit sales per store, per week. This is calculated only for the period of time that the item is selling. | F53: Units/Store/Week | G53: Measures -> Sales Rate: FOLDER
C54: Wks. In Dist. | D54: Weeks in Distribution. Number of weeks "X" Competitor has been selling product. This is based on the time frame selected. | F54: Weeks in Distribution | G54: Measures -> Distribution: FOLDER
C58: Dollar Share | D58: (Sales) / (Total Category Sales)
C59: Pound Share | D59: (Pounds) / (Total Category Pounds)
C60: Price Per Pound | D60: (Dollar Sales) / (Pound Sales)
C61: Perimeter | D61: Displays (perimeter locations) that are not in the home area of the product & are part of the weekly display audit performed by IRI
C62: All Other | D62: All Other is all Salty Snack manufacturer's excluding Frito-Lay

Sheet Atlas
A1: =RIGHT(VLOOKUP($T$4&$A9,dataset,79, FALSE),12) -> May 01, 2016 | E1: =IFERROR("ATLAS - " & INDEX(Timeframes,B4) & " Ending " & VLOOKUP(A1, avail_dates, 2, FALSE) & " (" & A1 & ")", "ATLAS - Please Select a Week Ending Date") -> ATLAS - Latest Week Ending 2016 P5W2 (May 01, 2016)
E2: 0 | F2: 0 | G2: 0 | H2: 0 | I2: 0 | J2: 0 | K2: 0 | L2: 0 | M2: 0 | N2: 0 | O2: 0 | P2: 0 | Q2: 0 | R2: 0 | S2: 0 | T2: 0 | U2: 0 | V2: 0 | W2: 0 | X2: 1 | Y2: 1 | Z2: 1 | AA2: 1 | AB2: 1 | AC2: 1 | AD2: 1 | AE2: 0 | AF2: 0 | AG2: 0 | AH2: 1 | AI2: 1 | AJ2: 1 | AK2: 1 | AL2: 1 | AM2: 1 | AN2: 1 | AO2: 0 | AP2: 0 | AQ2: 0 | AR2: 1 | AS2: 1 | AT2: 1 | AU2: 1 | AV2: 1 | AW2: 1 | AX2: 1 | AY2: 1 | AZ2: 1 | BA2: 1 | BB2: 1 | BC2: 1 | BD2: 1 | BE2: 1 | BF2: 1 | BG2: 1 | BH2: 1 | BI2: 1 | BJ2: 1 | BK2: 1 | BL2: 1 | BM2: 1 | BN2: 1 | BO2: 1 | BP2: 1 | BQ2: 1 | BR2: 1 | BS2: 1 | BT2: 1 | BU2: 1 | BV2: 1 | BW2: 1 | BX2: 1 | BY2: 1 | BZ2: 1 | CA2: 1 | CB2: 1 | CC2: 1 | CD2: 1 | CE2: 1 | CF2: 1 | CG2: 1 | CH2: 1 | CI2: 1 | CJ2: 1 | CK2: 1 | CL2: 1 | CM2: 1 | CN2: 1 | CO2: 1 | CP2: 1 | CQ2: 1 | CR2: 1 | CS2: 1 | CT2: 1 | CU2: 1 | CV2: 1 | CW2: 1 | CX2: 1 | CY2: 1 | CZ2: 1 | DA2: 1 | DB2: 1 | DC2: 1 | DD2: 1 | DE2: 1 | DF2: 1 | DG2: 1 | DH2: 1 | DI2: 1 | DJ2: 1 | DK2: 1 | DL2: 1 | DM2: 1 | DN2: 1 | DO2: 1 | DP2: 1 | DQ2: 1 | DR2: 1 | DS2: 1 | DT2: 1 | DU2: 1 | DV2: 1 | DW2: 1 | DX2: 1 | DY2: 1 | DZ2: 1 | EA2: 1 | EB2: 1 | EC2: 1 | ED2: 1 | EE2: 1 | EF2: 1 | EG2: 1 | EH2: 1 | EI2: 1 | EJ2: 1 | EK2: 1 | EL2: 1 | EM2: 1 | EN2: 1 | EO2: 1 | EP2: 1 | EQ2: 1 | ER2: 1 | ES2: 1 | ET2: 1 | EU2: 1 | EV2: 1 | EW2: 1 | EX2: 1 | EY2: 1 | EZ2: 1 | FA2: 1 | FB2: 1 | FC2: 1 | FD2: 1 | FE2: 1 | FF2: 1 | FG2: 1 | FH2: 1 | FI2: 1 | FJ2: 1 | FK2: 1 | FL2: 1 | FM2: 1 | FN2: 1 | FO2: 1
E3: 6 | F3: 8 | U3: 1 | V3: =IFERROR(VLOOKUP("ST" & VLOOKUP(U$3 & Loookups!$E$9, vendors, 12, FALSE), supers, 2, FALSE), "") ->  | AE3: 2 | AF3: =IFERROR(VLOOKUP("ST" & VLOOKUP(AE$3 & Loookups!$E$9, vendors, 12, FALSE), supers, 2, FALSE), "") ->  | AO3: 3 | AP3: =IFERROR(VLOOKUP("ST" & VLOOKUP(AO$3 & Loookups!$E$9, vendors, 12, FALSE), supers, 2, FALSE), "") ->  | AY3: =AO3+1 -> 4 | AZ3: =IFERROR(VLOOKUP("ST" & VLOOKUP(AY$3 & Loookups!$E$9, vendors, 12, FALSE), supers, 2, FALSE), "") ->  | BI3: =AY3+1 -> 5 | BJ3: =IFERROR(VLOOKUP("ST" & VLOOKUP(BI$3 & Loookups!$E$9, vendors, 12, FALSE), supers, 2, FALSE), "") ->  | BS3: =BI3+1 -> 6 | BT3: =IFERROR(VLOOKUP("ST" & VLOOKUP(BS$3 & Loookups!$E$9, vendors, 12, FALSE), supers, 2, FALSE), "") ->  | CC3: =BS3+1 -> 7 | CD3: =IFERROR(VLOOKUP("ST" & VLOOKUP(CC$3 & Loookups!$E$9, vendors, 12, FALSE), supers, 2, FALSE), "") ->  | CM3: =CC3+1 -> 8 | CN3: =IFERROR(VLOOKUP("ST" & VLOOKUP(CM$3 & Loookups!$E$9, vendors, 12, FALSE), supers, 2, FALSE), "") ->  | CW3: =CM3+1 -> 9 | CX3: =IFERROR(VLOOKUP("ST" & VLOOKUP(CW$3 & Loookups!$E$9, vendors, 12, FALSE), supers, 2, FALSE), "") ->  | DG3: =CW3+1 -> 10 | DH3: =IFERROR(VLOOKUP("ST" & VLOOKUP(DG$3 & Loookups!$E$9, vendors, 12, FALSE), supers, 2, FALSE), "") ->  | DQ3: =DG3+1 -> 11 | DR3: =IFERROR(VLOOKUP("ST" & VLOOKUP(DQ$3 & Loookups!$E$9, vendors, 12, FALSE), supers, 2, FALSE), "") ->  | EA3: =DQ3+1 -> 12 | EB3: =IFERROR(VLOOKUP("ST" & VLOOKUP(EA$3 & Loookups!$E$9, vendors, 12, FALSE), supers, 2, FALSE), "") ->  | EK3: =EA3+1 -> 13 | EL3: =IFERROR(VLOOKUP("ST" & VLOOKUP(EK$3 & Loookups!$E$9, vendors, 12, FALSE), supers, 2, FALSE), "") ->  | EU3: =EK3+1 -> 14 | EV3: =IFERROR(VLOOKUP("ST" & VLOOKUP(EU$3 & Loookups!$E$9, vendors, 12, FALSE), supers, 2, FALSE), "") ->  | FE3: =EU3+1 -> 15 | FF3: =IFERROR(VLOOKUP("ST" & VLOOKUP(FE$3 & Loookups!$E$9, vendors, 12, FALSE), supers, 2, FALSE), "") -> 
B4: 1 | C4: 4 | D4: 5 | E4: 7 | F4: 9 | H4: 24 | I4: =H4+1 -> 25 | J4: =I4+1 -> 26 | K4: =J4+1 -> 27 | L4: 28 | M4: 29 | N4: 30 | O4: 31 | P4: 32 | Q4: 33 | R4: 34 | S4: 35 | T4: =VLOOKUP(B4, TimeframeLU, 2, FALSE) -> Latest Week | U4: 81 | V4: =U4+1 -> 82 | W4: =V4+1 -> 83 | X4: =W4+1 -> 84 | Y4: 85 | Z4: 86 | AA4: 87 | AB4: 88 | AC4: 89 | AD4: 90 | AE4: =AD4+1 -> 91 | AF4: =V4+10 -> 92 | AG4: =W4+10 -> 93 | AH4: =X4+10 -> 94 | AI4: 95 | AJ4: 96 | AK4: 97 | AL4: 98 | AM4: 99 | AN4: 100 | AO4: 101 | AP4: 102 | AQ4: 103 | AR4: 104 | AS4: 105 | AT4: 106 | AU4: 107 | AV4: 108 | AW4: 109 | AX4: 110 | AY4: 111 | AZ4: 112 | BA4: 113 | BB4: 114 | BC4: 115 | BD4: 116 | BE4: 117 | BF4: 118 | BG4: 119 | BH4: 120 | BI4: 121 | BJ4: 122 | BK4: 123 | BL4: 124 | BM4: 125 | BN4: 126 | BO4: 127 | BP4: 128 | BQ4: 129 | BR4: 130 | BS4: 131 | BT4: 132 | BU4: 133 | BV4: 134 | BW4: 135 | BX4: 136 | BY4: 137 | BZ4: 138 | CA4: 139 | CB4: 140 | CC4: 141 | CD4: 142 | CE4: 143 | CF4: 144 | CG4: 145 | CH4: 146 | CI4: 147 | CJ4: 148 | CK4: 149 | CL4: 150 | CM4: 151 | CN4: 152 | CO4: 153 | CP4: 154 | CQ4: 155 | CR4: 156 | CS4: 157 | CT4: =CJ4+10 -> 158 | CU4: 159 | CV4: 160 | CW4: 161 | CX4: 162 | CY4: 163 | CZ4: 164 | DA4: 165 | DB4: 166 | DC4: 167 | DD4: 168 | DE4: 169 | DF4: 170 | DG4: 171 | DH4: 172 | DI4: 173 | DJ4: 174 | DK4: 175 | DL4: 176 | DM4: 177 | DN4: 178 | DO4: 179 | DP4: 180 | DQ4: 181 | DR4: 182 | DS4: 183 | DT4: 184 | DU4: 185 | DV4: 186 | DW4: 187 | DX4: 188 | DY4: 189 | DZ4: 190 | EA4: 191 | EB4: 192 | EC4: 193 | ED4: 194 | EE4: 195 | EF4: 196 | EG4: 197 | EH4: 198 | EI4: 199 | EJ4: 200 | EK4: 201 | EL4: 202 | EM4: 203 | EN4: 204 | EO4: 205 | EP4: 206 | EQ4: 207 | ER4: 208 | ES4: 209 | ET4: 210 | EU4: 211 | EV4: 212 | EW4: 213 | EX4: 214 | EY4: 215 | EZ4: 216 | FA4: 217 | FB4: 218 | FC4: 219 | FD4: 220 | FE4: 221 | FF4: =EV4+10 -> 222 | FG4: 223 | FH4: 224 | FI4: 225 | FJ4: 226 | FK4: 227 | FL4: 228 | FM4: 229 | FN4: 230
E5: Total | U5: Competitive Threats - Top MULOC Share Gainers
E6: GROWTH | H6: FL SHARE | J6: VALUE (Pricing) | N6: VARIETY | P6: VISIBILITY | U6: ="#" & U3 & " - " & VLOOKUP(U$3 & Loookups!$E$9, vendors, 12, FALSE) -> #1 - Skinnypop Popcorn | AE6: ="#" & AE3 & " - " & VLOOKUP(AE$3 & Loookups!$E$9, vendors, 12, FALSE) -> #2 - Bimbo Bakeries Usa | AO6: ="#" & AO3 & " - " & VLOOKUP(AO$3 & Loookups!$E$9, vendors, 12, FALSE) -> #3 - Truco | AY6: ="#" & AY3 & " - " & VLOOKUP(AY$3 & Loookups!$E$9, vendors, 12, FALSE) -> #4 - Mondelez International | BI6: ="#" & BI3 & " - " & VLOOKUP(BI$3 & Loookups!$E$9, vendors, 12, FALSE) -> #5 - Calbee North America | BS6: ="#" & BS3 & " - " & VLOOKUP(BS$3 & Loookups!$E$9, vendors, 12, FALSE) -> #6 - Demets Candy Company | CC6: ="#" & CC3 & " - " & VLOOKUP(CC$3 & Loookups!$E$9, vendors, 12, FALSE) -> #7 - Angies Artisan Treats | CM6: ="#" & CM3 & " - " & VLOOKUP(CM$3 & Loookups!$E$9, vendors, 12, FALSE) -> #8 - Utz Quality Foods | CW6: ="#" & CW3 & " - " & VLOOKUP(CW$3 & Loookups!$E$9, vendors, 12, FALSE) -> #9 - Cornfields | DG6: ="#" & DG3 & " - " & VLOOKUP(DG$3 & Loookups!$E$9, vendors, 12, FALSE) -> #10 - Milk Shake Factory | DQ6: ="#" & DQ3 & " - " & VLOOKUP(DQ$3 & Loookups!$E$9, vendors, 12, FALSE) -> #11 - Inventure Foods | EA6: ="#" & EA3 & " - " & VLOOKUP(EA$3 & Loookups!$E$9, vendors, 12, FALSE) -> #12 - Popcornopolis | EK6: ="#" & EK3 & " - " & VLOOKUP(EK$3 & Loookups!$E$9, vendors, 12, FALSE) -> #13 - Old Lyme Gourmet Company | EU6: ="#" & EU3 & " - " & VLOOKUP(EU$3 & Loookups!$E$9, vendors, 12, FALSE) -> #14 - B&G Foods | FE6: ="#" & FE3 & " - " & VLOOKUP(FE$3 & Loookups!$E$9, vendors, 12, FALSE) -> #15 - Small Planet Foods
E7: % PY | H7: $ Share | J7: $/Lb | L7: FL Price Gap | N7: Share SKUs | P7: Perim Lbs/Str | R7: Perim LB Share | U7: $ Share | W7: MULOC | X7: Num | Y7: Dist | Z7: Dist | AA7: Perim | AB7: $/Lb | AC7: USW | AD7: Wks | AE7: $ Share | AG7: MULOC | AH7: Num | AI7: Dist | AJ7: Dist | AK7: Perim | AL7: $/Lb | AM7: USW | AN7: Wks | AO7: $ Share | AQ7: MULOC | AR7: Num | AS7: Dist | AT7: Dist | AU7: Perim | AV7: $/Lb | AW7: USW | AX7: Wks | AY7: $ Share | BA7: MULOC | BB7: Num | BC7: Dist | BD7: Dist | BE7: Perim | BF7: $/Lb | BG7: USW | BH7: Wks | BI7: $ Share | BK7: MULOC | BL7: Num | BM7: Dist | BN7: Dist | BO7: Perim | BP7: $/Lb | BQ7: USW | BR7: Wks | BS7: $ Share | BU7: MULOC | BV7: Num | BW7: Dist | BX7: Dist | BY7: Perim | BZ7: $/Lb | CA7: USW | CB7: Wks | CC7: $ Share | CE7: MULOC | CF7: Num | CG7: Dist | CH7: Dist | CI7: Perim | CJ7: $/Lb | CK7: USW | CL7: Wks | CM7: $ Share | CO7: MULOC | CP7: Num | CQ7: Dist | CR7: Dist | CS7: Perim | CT7: $/Lb | CU7: USW | CV7: Wks | CW7: $ Share | CY7: MULOC | CZ7: Num | DA7: Dist | DB7: Dist | DC7: Perim | DD7: $/Lb | DE7: USW | DF7: Wks | DG7: $ Share | DI7: MULOC | DJ7: Num | DK7: Dist | DL7: Dist | DM7: Perim | DN7: $/Lb | DO7: USW | DP7: Wks | DQ7: $ Share | DS7: MULOC | DT7: Num | DU7: Dist | DV7: Dist | DW7: Perim | DX7: $/Lb | DY7: USW | DZ7: Wks | EA7: $ Share | EC7: MULOC | ED7: Num | EE7: Dist | EF7: Dist | EG7: Perim | EH7: $/Lb | EI7: USW | EJ7: Wks | EK7: $ Share | EM7: MULOC | EN7: Num | EO7: Dist | EP7: Dist | EQ7: Perim | ER7: $/Lb | ES7: USW | ET7: Wks | EU7: $ Share | EW7: MULOC | EX7: Num | EY7: Dist | EZ7: Dist | FA7: Perim | FB7: $/Lb | FC7: USW | FD7: Wks | FE7: $ Share | FG7: MULOC | FH7: Num | FI7: Dist | FJ7: Dist | FK7: Perim | FL7: $/Lb | FM7: USW | FN7: Wks
E8: Salty | F8: FL | G8: AO | H8: Current | I8: Chg | J8: FL | K8: AO | L8: Current | M8: Chg | N8: Current | O8: Chg | P8: Current | Q8: % PY | R8: Current | S8: Chg | U8: Current | V8: Chg | W8: Mix | X8: SKUs | Z8: Chg | AA8: Lbs/Str | AD8: In Dist | AE8: Current | AF8: Chg | AG8: Mix | AH8: SKUs | AJ8: Chg | AK8: Lbs/Str | AN8: In Dist | AO8: Current | AP8: Chg | AQ8: Mix | AR8: SKUs | AT8: Chg | AU8: Lbs/Str | AX8: In Dist | AY8: Current | AZ8: Chg | BA8: Mix | BB8: SKUs | BD8: Chg | BE8: Lbs/Str | BH8: In Dist | BI8: Current | BJ8: Chg | BK8: Mix | BL8: SKUs | BN8: Chg | BO8: Lbs/Str | BR8: In Dist | BS8: Current | BT8: Chg | BU8: Mix | BV8: SKUs | BX8: Chg | BY8: Lbs/Str | CB8: In Dist | CC8: Current | CD8: Chg | CE8: Mix | CF8: SKUs | CH8: Chg | CI8: Lbs/Str | CL8: In Dist | CM8: Current | CN8: Chg | CO8: Mix | CP8: SKUs | CR8: Chg | CS8: Lbs/Str | CV8: In Dist | CW8: Current | CX8: Chg | CY8: Mix | CZ8: SKUs | DB8: Chg | DC8: Lbs/Str | DF8: In Dist | DG8: Current | DH8: Chg | DI8: Mix | DJ8: SKUs | DL8: Chg | DM8: Lbs/Str | DP8: In Dist | DQ8: Current | DR8: Chg | DS8: Mix | DT8: SKUs | DV8: Chg | DW8: Lbs/Str | DZ8: In Dist | EA8: Current | EB8: Chg | EC8: Mix | ED8: SKUs | EF8: Chg | EG8: Lbs/Str | EJ8: In Dist | EK8: Current | EL8: Chg | EM8: Mix | EN8: SKUs | EP8: Chg | EQ8: Lbs/Str | ET8: In Dist | EU8: Current | EV8: Chg | EW8: Mix | EX8: SKUs | EZ8: Chg | FA8: Lbs/Str | FD8: In Dist | FE8: Current | FF8: Chg | FG8: Mix | FH8: SKUs | FJ8: Chg | FK8: Lbs/Str | FN8: In Dist
A9: 1 | C9: =IFERROR(VLOOKUP($T$4&$A9,dataset,C$4, FALSE), "") -> Total US MULO C | D9: =IFERROR(VLOOKUP($T$4&$A9,dataset,D$4, FALSE), "") -> 1 | E9: =IFERROR(VLOOKUP($T$4&$A9,dataset,E$3, FALSE)/VLOOKUP($T$4&$A9,dataset,E$4, FALSE)-1, "") -> -0.00526762551 | F9: =IFERROR(VLOOKUP($T$4&$A9,dataset,F$3, FALSE)/VLOOKUP($T$4&$A9,dataset,F$4, FALSE)-1, "") -> -0.003372864462 | G9: =IFERROR((VLOOKUP($T$4&$A9,dataset,E$3, FALSE)-VLOOKUP($T$4&$A9,dataset,F$3, FALSE))/(VLOOKUP($T$4&$A9,dataset,E$4, FALSE)-VLOOKUP($T$4&$A9,dataset,F$4, FALSE))-1, "") -> -0.008149333376 | H9: =IFERROR(VLOOKUP($T$4&$A9,dataset,H$4, FALSE),"") -> 60.4462623 | I9: =IFERROR(VLOOKUP($T$4&$A9,dataset,I$4, FALSE), "") -> 0.1149188289 | J9: =IFERROR(VLOOKUP($T$4&$A9,dataset,J$4, FALSE), "") -> 5.261019934 | K9: =IFERROR(VLOOKUP($T$4&$A9,dataset,K$4, FALSE), "") -> 4.692994465 | L9: =IFERROR(VLOOKUP($T$4&$A9,dataset,L$4, FALSE), "") -> 0.5680254694 | M9: =IFERROR(VLOOKUP($T$4&$A9,dataset,M$4, FALSE), "") -> -0.05540155823 | N9: =IFERROR(VLOOKUP($T$4&$A9,dataset,N$4, FALSE), "") -> 36.19104836 | O9: =IFERROR(VLOOKUP($T$4&$A9,dataset,O$4, FALSE), "") -> 0.2048575378 | P9: =IFERROR(VLOOKUP($T$4&$A9,dataset,P$4, FALSE), "") -> 0 | Q9: =IFERROR(VLOOKUP($T$4&$A9,dataset,Q$4, FALSE), "") -> - | R9: =IFERROR(VLOOKUP($T$4&$A9,dataset,R$4, FALSE), "") -> 0 | S9: =IFERROR(VLOOKUP($T$4&$A9,dataset,S$4, FALSE), "") -> 0 | U9: =IFERROR(VLOOKUP($T$4&$A9,dataset,U$4, FALSE), "") -> 1.283272546 | V9: =IFERROR(VLOOKUP($T$4&$A9,dataset,V$4, FALSE), "") -> 0.2864628863 | W9: =IFERROR(VLOOKUP($T$4&$A9,dataset,W$4, FALSE), "") -> 1 | X9: =IFERROR(VLOOKUP($T$4&$A9,dataset,X$4, FALSE), "") -> 4.612060611 | Y9: =IFERROR(VLOOKUP($T$4&$A9,dataset,Y$4, FALSE), "") -> 51.37524842 | Z9: =IFERROR(VLOOKUP($T$4&$A9,dataset,Z$4, FALSE), "") -> 11.41122581 | AA9: =IFERROR(VLOOKUP($T$4&$A9,dataset,AA$4, FALSE), "") -> 0 | AB9: =IFERROR(VLOOKUP($T$4&$A9,dataset,AB$4, FALSE), "") -> 4.939974139 | AC9: =IFERROR(VLOOKUP($T$4&$A9,dataset,AC$4, FALSE), "") -> 28.88134126 | AD9: =IFERROR(VLOOKUP($T$4&$A9,dataset,AD$4, FALSE), "") -> 1 | AE9: =IFERROR(VLOOKUP($T$4&$A9,dataset,AE$4, FALSE), "") -> 1.064207889 | AF9: =IFERROR(VLOOKUP($T$4&$A9,dataset,AF$4, FALSE), "") -> 0.2550944616 | AG9: =IFERROR(VLOOKUP($T$4&$A9,dataset,AG$4, FALSE), "") -> 1 | AH9: =IFERROR(VLOOKUP($T$4&$A9,dataset,AH$4, FALSE), "") -> 3.430458515 | AI9: =IFERROR(VLOOKUP($T$4&$A9,dataset,AI$4, FALSE), "") -> 69.03297108 | AJ9: =IFERROR(VLOOKUP($T$4&$A9,dataset,AJ$4, FALSE), "") -> 9.31568356 | AK9: =IFERROR(VLOOKUP($T$4&$A9,dataset,AK$4, FALSE), "") -> 0 | AL9: =IFERROR(VLOOKUP($T$4&$A9,dataset,AL$4, FALSE), "") -> 11.04420596 | AM9: =IFERROR(VLOOKUP($T$4&$A9,dataset,AM$4, FALSE), "") -> 20.24140503 | AN9: =IFERROR(VLOOKUP($T$4&$A9,dataset,AN$4, FALSE), "") -> 1 | AO9: =IFERROR(VLOOKUP($T$4&$A9,dataset,AO$4, FALSE), "") -> 1.359971065 | AP9: =IFERROR(VLOOKUP($T$4&$A9,dataset,AP$4, FALSE), "") -> 0.1186444584 | AQ9: =IFERROR(VLOOKUP($T$4&$A9,dataset,AQ$4, FALSE), "") -> 1 | AR9: =IFERROR(VLOOKUP($T$4&$A9,dataset,AR$4, FALSE), "") -> 9.48017019 | AS9: =IFERROR(VLOOKUP($T$4&$A9,dataset,AS$4, FALSE), "") -> 66.09385261 | AT9: =IFERROR(VLOOKUP($T$4&$A9,dataset,AT$4, FALSE), "") -> 2.548609629 | AU9: =IFERROR(VLOOKUP($T$4&$A9,dataset,AU$4, FALSE), "") -> 0 | AV9: =IFERROR(VLOOKUP($T$4&$A9,dataset,AV$4, FALSE), "") -> 6.415907654 | AW9: =IFERROR(VLOOKUP($T$4&$A9,dataset,AW$4, FALSE), "") -> 36.03436469 | AX9: =IFERROR(VLOOKUP($T$4&$A9,dataset,AX$4, FALSE), "") -> 1 | AY9: =IFERROR(VLOOKUP($T$4&$A9,dataset,AY$4, FALSE), "") -> 0.755320924 | AZ9: =IFERROR(VLOOKUP($T$4&$A9,dataset,AZ$4, FALSE), "") -> 0.09564251112 | BA9: =IFERROR(VLOOKUP($T$4&$A9,dataset,BA$4, FALSE), "") -> 1 | BB9: =IFERROR(VLOOKUP($T$4&$A9,dataset,BB$4, FALSE), "") -> 2.999854131 | BC9: =IFERROR(VLOOKUP($T$4&$A9,dataset,BC$4, FALSE), "") -> 48.37526562 | BD9: =IFERROR(VLOOKUP($T$4&$A9,dataset,BD$4, FALSE), "") -> 9.53901581 | BE9: =IFERROR(VLOOKUP($T$4&$A9,dataset,BE$4, FALSE), "") -> 0 | BF9: =IFERROR(VLOOKUP($T$4&$A9,dataset,BF$4, FALSE), "") -> 2.954200296 | BG9: =IFERROR(VLOOKUP($T$4&$A9,dataset,BG$4, FALSE), "") -> 56.36100756 | BH9: =IFERROR(VLOOKUP($T$4&$A9,dataset,BH$4, FALSE), "") -> 1 | BI9: =IFERROR(VLOOKUP($T$4&$A9,dataset,BI$4, FALSE), "") -> 0.2373296472 | BJ9: =IFERROR(VLOOKUP($T$4&$A9,dataset,BJ$4, FALSE), "") -> 0.07656195087 | BK9: =IFERROR(VLOOKUP($T$4&$A9,dataset,BK$4, FALSE), "") -> 1 | BL9: =IFERROR(VLOOKUP($T$4&$A9,dataset,BL$4, FALSE), "") -> 3.018249438 | BM9: =IFERROR(VLOOKUP($T$4&$A9,dataset,BM$4, FALSE), "") -> 28.81707722 | BN9: =IFERROR(VLOOKUP($T$4&$A9,dataset,BN$4, FALSE), "") -> 0.3840266765 | BO9: =IFERROR(VLOOKUP($T$4&$A9,dataset,BO$4, FALSE), "") -> 0 | BP9: =IFERROR(VLOOKUP($T$4&$A9,dataset,BP$4, FALSE), "") -> 6.258026939 | BQ9: =IFERROR(VLOOKUP($T$4&$A9,dataset,BQ$4, FALSE), "") -> 18.79733405 | BR9: =IFERROR(VLOOKUP($T$4&$A9,dataset,BR$4, FALSE), "") -> 1 | BS9: =IFERROR(VLOOKUP($T$4&$A9,dataset,BS$4, FALSE), "") -> 0.2434553571 | BT9: =IFERROR(VLOOKUP($T$4&$A9,dataset,BT$4, FALSE), "") -> 0.07625176807 | BU9: =IFERROR(VLOOKUP($T$4&$A9,dataset,BU$4, FALSE), "") -> 1 | BV9: =IFERROR(VLOOKUP($T$4&$A9,dataset,BV$4, FALSE), "") -> 2.261827959 | BW9: =IFERROR(VLOOKUP($T$4&$A9,dataset,BW$4, FALSE), "") -> 64.87632837 | BX9: =IFERROR(VLOOKUP($T$4&$A9,dataset,BX$4, FALSE), "") -> 2.741613692 | BY9: =IFERROR(VLOOKUP($T$4&$A9,dataset,BY$4, FALSE), "") -> 0 | BZ9: =IFERROR(VLOOKUP($T$4&$A9,dataset,BZ$4, FALSE), "") -> 6.373608987 | CA9: =IFERROR(VLOOKUP($T$4&$A9,dataset,CA$4, FALSE), "") -> 5.824036773 | CB9: =IFERROR(VLOOKUP($T$4&$A9,dataset,CB$4, FALSE), "") -> 1 | CC9: =IFERROR(VLOOKUP($T$4&$A9,dataset,CC$4, FALSE), "") -> 0.3997842815 | CD9: =IFERROR(VLOOKUP($T$4&$A9,dataset,CD$4, FALSE), "") -> 0.06758224122 | CE9: =IFERROR(VLOOKUP($T$4&$A9,dataset,CE$4, FALSE), "") -> 1 | CF9: =IFERROR(VLOOKUP($T$4&$A9,dataset,CF$4, FALSE), "") -> 3.652360187 | CG9: =IFERROR(VLOOKUP($T$4&$A9,dataset,CG$4, FALSE), "") -> 64.67248599 | CH9: =IFERROR(VLOOKUP($T$4&$A9,dataset,CH$4, FALSE), "") -> 13.71617737 | CI9: =IFERROR(VLOOKUP($T$4&$A9,dataset,CI$4, FALSE), "") -> 0 | CJ9: =IFERROR(VLOOKUP($T$4&$A9,dataset,CJ$4, FALSE), "") -> 8.275592572 | CK9: =IFERROR(VLOOKUP($T$4&$A9,dataset,CK$4, FALSE), "") -> 19.20200981 | CL9: =IFERROR(VLOOKUP($T$4&$A9,dataset,CL$4, FALSE), "") -> 1 | CM9: =IFERROR(VLOOKUP($T$4&$A9,dataset,CM$4, FALSE), "") -> 0.08278727056 | CN9: =IFERROR(VLOOKUP($T$4&$A9,dataset,CN$4, FALSE), "") -> 0.05373252954 | CO9: =IFERROR(VLOOKUP($T$4&$A9,dataset,CO$4, FALSE), "") -> 1 | CP9: =IFERROR(VLOOKUP($T$4&$A9,dataset,CP$4, FALSE), "") -> 0.9603320828 | CQ9: =IFERROR(VLOOKUP($T$4&$A9,dataset,CQ$4, FALSE), "") -> 22.63428451 | CR9: =IFERROR(VLOOKUP($T$4&$A9,dataset,CR$4, FALSE), "") -> -2.962765052 | CS9: =IFERROR(VLOOKUP($T$4&$A9,dataset,CS$4, FALSE), "") -> 0 | CT9: =IFERROR(VLOOKUP($T$4&$A9,dataset,CT$4, FALSE), "") -> 8.314932852 | CU9: =IFERROR(VLOOKUP($T$4&$A9,dataset,CU$4, FALSE), "") -> 7.128515352 | CV9: =IFERROR(VLOOKUP($T$4&$A9,dataset,CV$4, FALSE), "") -> 1 | CW9: =IFERROR(VLOOKUP($T$4&$A9,dataset,CW$4, FALSE), "") -> 0.4500001635 | CX9: =IFERROR(VLOOKUP($T$4&$A9,dataset,CX$4, FALSE), "") -> 0.04078107389 | CY9: =IFERROR(VLOOKUP($T$4&$A9,dataset,CY$4, FALSE), "") -> 1 | CZ9: =IFERROR(VLOOKUP($T$4&$A9,dataset,CZ$4, FALSE), "") -> 2.435053134 | DA9: =IFERROR(VLOOKUP($T$4&$A9,dataset,DA$4, FALSE), "") -> 51.61435226 | DB9: =IFERROR(VLOOKUP($T$4&$A9,dataset,DB$4, FALSE), "") -> 5.590714218 | DC9: =IFERROR(VLOOKUP($T$4&$A9,dataset,DC$4, FALSE), "") -> 0 | DD9: =IFERROR(VLOOKUP($T$4&$A9,dataset,DD$4, FALSE), "") -> 10.78821527 | DE9: =IFERROR(VLOOKUP($T$4&$A9,dataset,DE$4, FALSE), "") -> 12.81833409 | DF9: =IFERROR(VLOOKUP($T$4&$A9,dataset,DF$4, FALSE), "") -> 1 | DG9: =IFERROR(VLOOKUP($T$4&$A9,dataset,DG$4, FALSE), "") -> 0.06222442542 | DH9: =IFERROR(VLOOKUP($T$4&$A9,dataset,DH$4, FALSE), "") -> 0.03707873639 | DI9: =IFERROR(VLOOKUP($T$4&$A9,dataset,DI$4, FALSE), "") -> 1 | DJ9: =IFERROR(VLOOKUP($T$4&$A9,dataset,DJ$4, FALSE), "") -> 1.489755241 | DK9: =IFERROR(VLOOKUP($T$4&$A9,dataset,DK$4, FALSE), "") -> 22.42665308 | DL9: =IFERROR(VLOOKUP($T$4&$A9,dataset,DL$4, FALSE), "") -> 10.17920427 | DM9: =IFERROR(VLOOKUP($T$4&$A9,dataset,DM$4, FALSE), "") -> 0 | DN9: =IFERROR(VLOOKUP($T$4&$A9,dataset,DN$4, FALSE), "") -> 9.567718664 | DO9: =IFERROR(VLOOKUP($T$4&$A9,dataset,DO$4, FALSE), "") -> 2.732817436 | DP9: =IFERROR(VLOOKUP($T$4&$A9,dataset,DP$4, FALSE), "") -> 1 | DQ9: =IFERROR(VLOOKUP($T$4&$A9,dataset,DQ$4, FALSE), "") -> 0.0363913236 | DR9: =IFERROR(VLOOKUP($T$4&$A9,dataset,DR$4, FALSE), "") -> 0.0363913236 | DS9: =IFERROR(VLOOKUP($T$4&$A9,dataset,DS$4, FALSE), "") -> 1 | DT9: =IFERROR(VLOOKUP($T$4&$A9,dataset,DT$4, FALSE), "") -> 0.9167508443 | DU9: =IFERROR(VLOOKUP($T$4&$A9,dataset,DU$4, FALSE), "") -> 35.32071261 | DV9: =IFERROR(VLOOKUP($T$4&$A9,dataset,DV$4, FALSE), "") -> 35.32071261 | DW9: =IFERROR(VLOOKUP($T$4&$A9,dataset,DW$4, FALSE), "") -> 0 | DX9: =IFERROR(VLOOKUP($T$4&$A9,dataset,DX$4, FALSE), "") -> 8.385011364 | DY9: =IFERROR(VLOOKUP($T$4&$A9,dataset,DY$4, FALSE), "") -> 3.580433523 | DZ9: =IFERROR(VLOOKUP($T$4&$A9,dataset,DZ$4, FALSE), "") -> 1 | EA9: =IFERROR(VLOOKUP($T$4&$A9,dataset,EA$4, FALSE), "") -> 0.09368812457 | EB9: =IFERROR(VLOOKUP($T$4&$A9,dataset,EB$4, FALSE), "") -> 0.03584348543 | EC9: =IFERROR(VLOOKUP($T$4&$A9,dataset,EC$4, FALSE), "") -> 1 | ED9: =IFERROR(VLOOKUP($T$4&$A9,dataset,ED$4, FALSE), "") -> 1.68622226 | EE9: =IFERROR(VLOOKUP($T$4&$A9,dataset,EE$4, FALSE), "") -> 19.25972949 | EF9: =IFERROR(VLOOKUP($T$4&$A9,dataset,EF$4, FALSE), "") -> 5.163506316 | EG9: =IFERROR(VLOOKUP($T$4&$A9,dataset,EG$4, FALSE), "") -> 0 | EH9: =IFERROR(VLOOKUP($T$4&$A9,dataset,EH$4, FALSE), "") -> 5.825793549 | EI9: =IFERROR(VLOOKUP($T$4&$A9,dataset,EI$4, FALSE), "") -> 8.619721956 | EJ9: =IFERROR(VLOOKUP($T$4&$A9,dataset,EJ$4, FALSE), "") -> 1 | EK9: =IFERROR(VLOOKUP($T$4&$A9,dataset,EK$4, FALSE), "") -> 5.524113942 | EL9: =IFERROR(VLOOKUP($T$4&$A9,dataset,EL$4, FALSE), "") -> 0.03489050477 | EM9: =IFERROR(VLOOKUP($T$4&$A9,dataset,EM$4, FALSE), "") -> 1 | EN9: =IFERROR(VLOOKUP($T$4&$A9,dataset,EN$4, FALSE), "") -> 29.20170816 | EO9: =IFERROR(VLOOKUP($T$4&$A9,dataset,EO$4, FALSE), "") -> 81.41697223 | EP9: =IFERROR(VLOOKUP($T$4&$A9,dataset,EP$4, FALSE), "") -> 0.665544217 | EQ9: =IFERROR(VLOOKUP($T$4&$A9,dataset,EQ$4, FALSE), "") -> 0 | ER9: =IFERROR(VLOOKUP($T$4&$A9,dataset,ER$4, FALSE), "") -> 3.099502559 | ES9: =IFERROR(VLOOKUP($T$4&$A9,dataset,ES$4, FALSE), "") -> 112.0123931 | ET9: =IFERROR(VLOOKUP($T$4&$A9,dataset,ET$4, FALSE), "") -> 1 | EU9: =IFERROR(VLOOKUP($T$4&$A9,dataset,EU$4, FALSE), "") -> 2.757021795 | EV9: =IFERROR(VLOOKUP($T$4&$A9,dataset,EV$4, FALSE), "") -> 0.03328483459 | EW9: =IFERROR(VLOOKUP($T$4&$A9,dataset,EW$4, FALSE), "") -> 1 | EX9: =IFERROR(VLOOKUP($T$4&$A9,dataset,EX$4, FALSE), "") -> 18.02128708 | EY9: =IFERROR(VLOOKUP($T$4&$A9,dataset,EY$4, FALSE), "") -> 62.28938817 | EZ9: =IFERROR(VLOOKUP($T$4&$A9,dataset,EZ$4, FALSE), "") -> 2.723415846 | FA9: =IFERROR(VLOOKUP($T$4&$A9,dataset,FA$4, FALSE), "") -> 0 | FB9: =IFERROR(VLOOKUP($T$4&$A9,dataset,FB$4, FALSE), "") -> 4.47830136 | FC9: =IFERROR(VLOOKUP($T$4&$A9,dataset,FC$4, FALSE), "") -> 96.94595719 | FD9: =IFERROR(VLOOKUP($T$4&$A9,dataset,FD$4, FALSE), "") -> 1 | FE9: =IFERROR(VLOOKUP($T$4&$A9,dataset,FE$4, FALSE), "") -> 0.8700755009 | FF9: =IFERROR(VLOOKUP($T$4&$A9,dataset,FF$4, FALSE), "") -> 0.03270561652 | FG9: =IFERROR(VLOOKUP($T$4&$A9,dataset,FG$4, FALSE), "") -> 1 | FH9: =IFERROR(VLOOKUP($T$4&$A9,dataset,FH$4, FALSE), "") -> 7.802531986 | FI9: =IFERROR(VLOOKUP($T$4&$A9,dataset,FI$4, FALSE), "") -> 65.65789216 | FJ9: =IFERROR(VLOOKUP($T$4&$A9,dataset,FJ$4, FALSE), "") -> 2.773874012 | FK9: =IFERROR(VLOOKUP($T$4&$A9,dataset,FK$4, FALSE), "") -> 0 | FL9: =IFERROR(VLOOKUP($T$4&$A9,dataset,FL$4, FALSE), "") -> 6.183632939 | FM9: =IFERROR(VLOOKUP($T$4&$A9,dataset,FM$4, FALSE), "") -> 19.28744739 | FN9: =IFERROR(VLOOKUP($T$4&$A9,dataset,FN$4, FALSE), "") -> 1
A10: =A9+1 -> 2 | C10: =IFERROR(VLOOKUP($T$4&$A10,dataset,C$4, FALSE), "") -> Total US MULO | D10: =IFERROR(VLOOKUP($T$4&$A10,dataset,D$4, FALSE), "") -> 1 | E10: =IFERROR(VLOOKUP($T$4&$A10,dataset,E$3, FALSE)/VLOOKUP($T$4&$A10,dataset,E$4, FALSE)-1, "") -> -0.00983917909 | F10: =IFERROR(VLOOKUP($T$4&$A10,dataset,F$3, FALSE)/VLOOKUP($T$4&$A10,dataset,F$4, FALSE)-1, "") -> -0.008448967353 | G10: =IFERROR((VLOOKUP($T$4&$A10,dataset,E$3, FALSE)-VLOOKUP($T$4&$A10,dataset,F$3, FALSE))/(VLOOKUP($T$4&$A10,dataset,E$4, FALSE)-VLOOKUP($T$4&$A10,dataset,F$4, FALSE))-1, "") -> -0.01182730669 | H10: =IFERROR(VLOOKUP($T$4&$A10,dataset,H$4, FALSE),"") -> 58.93188288 | I10: =IFERROR(VLOOKUP($T$4&$A10,dataset,I$4, FALSE), "") -> 0.08262589881 | J10: =IFERROR(VLOOKUP($T$4&$A10,dataset,J$4, FALSE), "") -> 4.825772931 | K10: =IFERROR(VLOOKUP($T$4&$A10,dataset,K$4, FALSE), "") -> 4.316194481 | L10: =IFERROR(VLOOKUP($T$4&$A10,dataset,L$4, FALSE), "") -> 0.5095784498 | M10: =IFERROR(VLOOKUP($T$4&$A10,dataset,M$4, FALSE), "") -> -0.05948898918 | N10: =IFERROR(VLOOKUP($T$4&$A10,dataset,N$4, FALSE), "") -> 35.13385529 | O10: =IFERROR(VLOOKUP($T$4&$A10,dataset,O$4, FALSE), "") -> 0.2266041474 | P10: =IFERROR(VLOOKUP($T$4&$A10,dataset,P$4, FALSE), "") -> 0 | Q10: =IFERROR(VLOOKUP($T$4&$A10,dataset,Q$4, FALSE), "") -> - | R10: =IFERROR(VLOOKUP($T$4&$A10,dataset,R$4, FALSE), "") -> 0 | S10: =IFERROR(VLOOKUP($T$4&$A10,dataset,S$4, FALSE), "") -> 0 | U10: =IFERROR(VLOOKUP($T$4&$A10,dataset,U$4, FALSE), "") -> 0.9673466999 | V10: =IFERROR(VLOOKUP($T$4&$A10,dataset,V$4, FALSE), "") -> 0.2398038209 | W10: =IFERROR(VLOOKUP($T$4&$A10,dataset,W$4, FALSE), "") -> 0.58147808 | X10: =IFERROR(VLOOKUP($T$4&$A10,dataset,X$4, FALSE), "") -> 4.778544261 | Y10: =IFERROR(VLOOKUP($T$4&$A10,dataset,Y$4, FALSE), "") -> 54.97373615 | Z10: =IFERROR(VLOOKUP($T$4&$A10,dataset,Z$4, FALSE), "") -> 13.53445537 | AA10: =IFERROR(VLOOKUP($T$4&$A10,dataset,AA$4, FALSE), "") -> 0 | AB10: =IFERROR(VLOOKUP($T$4&$A10,dataset,AB$4, FALSE), "") -> 4.375719904 | AC10: =IFERROR(VLOOKUP($T$4&$A10,dataset,AC$4, FALSE), "") -> 35.73094364 | AD10: =IFERROR(VLOOKUP($T$4&$A10,dataset,AD$4, FALSE), "") -> 1 | AE10: =IFERROR(VLOOKUP($T$4&$A10,dataset,AE$4, FALSE), "") -> 1.347813938 | AF10: =IFERROR(VLOOKUP($T$4&$A10,dataset,AF$4, FALSE), "") -> 0.3185088747 | AG10: =IFERROR(VLOOKUP($T$4&$A10,dataset,AG$4, FALSE), "") -> 0.9769527632 | AH10: =IFERROR(VLOOKUP($T$4&$A10,dataset,AH$4, FALSE), "") -> 4.014675693 | AI10: =IFERROR(VLOOKUP($T$4&$A10,dataset,AI$4, FALSE), "") -> 83.39769354 | AJ10: =IFERROR(VLOOKUP($T$4&$A10,dataset,AJ$4, FALSE), "") -> 9.928607815 | AK10: =IFERROR(VLOOKUP($T$4&$A10,dataset,AK$4, FALSE), "") -> 0 | AL10: =IFERROR(VLOOKUP($T$4&$A10,dataset,AL$4, FALSE), "") -> 10.91372715 | AM10: =IFERROR(VLOOKUP($T$4&$A10,dataset,AM$4, FALSE), "") -> 25.75793693 | AN10: =IFERROR(VLOOKUP($T$4&$A10,dataset,AN$4, FALSE), "") -> 1 | AO10: =IFERROR(VLOOKUP($T$4&$A10,dataset,AO$4, FALSE), "") -> 1.742282323 | AP10: =IFERROR(VLOOKUP($T$4&$A10,dataset,AP$4, FALSE), "") -> 0.1563984338 | AQ10: =IFERROR(VLOOKUP($T$4&$A10,dataset,AQ$4, FALSE), "") -> 0.988232104 | AR10: =IFERROR(VLOOKUP($T$4&$A10,dataset,AR$4, FALSE), "") -> 11.67398751 | AS10: =IFERROR(VLOOKUP($T$4&$A10,dataset,AS$4, FALSE), "") -> 81.88104363 | AT10: =IFERROR(VLOOKUP($T$4&$A10,dataset,AT$4, FALSE), "") -> 2.63250281 | AU10: =IFERROR(VLOOKUP($T$4&$A10,dataset,AU$4, FALSE), "") -> 0 | AV10: =IFERROR(VLOOKUP($T$4&$A10,dataset,AV$4, FALSE), "") -> 6.37291305 | AW10: =IFERROR(VLOOKUP($T$4&$A10,dataset,AW$4, FALSE), "") -> 43.48650285 | AX10: =IFERROR(VLOOKUP($T$4&$A10,dataset,AX$4, FALSE), "") -> 1 | AY10: =IFERROR(VLOOKUP($T$4&$A10,dataset,AY$4, FALSE), "") -> 0.9789991547 | AZ10: =IFERROR(VLOOKUP($T$4&$A10,dataset,AZ$4, FALSE), "") -> 0.1282573395 | BA10: =IFERROR(VLOOKUP($T$4&$A10,dataset,BA$4, FALSE), "") -> 0.9998178764 | BB10: =IFERROR(VLOOKUP($T$4&$A10,dataset,BB$4, FALSE), "") -> 3.43958197 | BC10: =IFERROR(VLOOKUP($T$4&$A10,dataset,BC$4, FALSE), "") -> 61.52059918 | BD10: =IFERROR(VLOOKUP($T$4&$A10,dataset,BD$4, FALSE), "") -> 12.06721806 | BE10: =IFERROR(VLOOKUP($T$4&$A10,dataset,BE$4, FALSE), "") -> 0 | BF10: =IFERROR(VLOOKUP($T$4&$A10,dataset,BF$4, FALSE), "") -> 2.953997383 | BG10: =IFERROR(VLOOKUP($T$4&$A10,dataset,BG$4, FALSE), "") -> 54.62866234 | BH10: =IFERROR(VLOOKUP($T$4&$A10,dataset,BH$4, FALSE), "") -> 1 | BI10: =IFERROR(VLOOKUP($T$4&$A10,dataset,BI$4, FALSE), "") -> 0.2976629791 | BJ10: =IFERROR(VLOOKUP($T$4&$A10,dataset,BJ$4, FALSE), "") -> 0.1004824052 | BK10: =IFERROR(VLOOKUP($T$4&$A10,dataset,BK$4, FALSE), "") -> 0.967482074 | BL10: =IFERROR(VLOOKUP($T$4&$A10,dataset,BL$4, FALSE), "") -> 3.188165253 | BM10: =IFERROR(VLOOKUP($T$4&$A10,dataset,BM$4, FALSE), "") -> 36.06904619 | BN10: =IFERROR(VLOOKUP($T$4&$A10,dataset,BN$4, FALSE), "") -> 0.3993696651 | BO10: =IFERROR(VLOOKUP($T$4&$A10,dataset,BO$4, FALSE), "") -> 0 | BP10: =IFERROR(VLOOKUP($T$4&$A10,dataset,BP$4, FALSE), "") -> 6.187234291 | BQ10: =IFERROR(VLOOKUP($T$4&$A10,dataset,BQ$4, FALSE), "") -> 19.30463233 | BR10: =IFERROR(VLOOKUP($T$4&$A10,dataset,BR$4, FALSE), "") -> 1 | BS10: =IFERROR(VLOOKUP($T$4&$A10,dataset,BS$4, FALSE), "") -> 0.2021584766 | BT10: =IFERROR(VLOOKUP($T$4&$A10,dataset,BT$4, FALSE), "") -> 0.08074255185 | BU10: =IFERROR(VLOOKUP($T$4&$A10,dataset,BU$4, FALSE), "") -> 0.6405347816 | BV10: =IFERROR(VLOOKUP($T$4&$A10,dataset,BV$4, FALSE), "") -> 2.419417657 | BW10: =IFERROR(VLOOKUP($T$4&$A10,dataset,BW$4, FALSE), "") -> 74.05500905 | BX10: =IFERROR(VLOOKUP($T$4&$A10,dataset,BX$4, FALSE), "") -> 3.056347536 | BY10: =IFERROR(VLOOKUP($T$4&$A10,dataset,BY$4, FALSE), "") -> 0 | BZ10: =IFERROR(VLOOKUP($T$4&$A10,dataset,BZ$4, FALSE), "") -> 5.274978165 | CA10: =IFERROR(VLOOKUP($T$4&$A10,dataset,CA$4, FALSE), "") -> 8.674340708 | CB10: =IFERROR(VLOOKUP($T$4&$A10,dataset,CB$4, FALSE), "") -> 1 | CC10: =IFERROR(VLOOKUP($T$4&$A10,dataset,CC$4, FALSE), "") -> 0.4733315363 | CD10: =IFERROR(VLOOKUP($T$4&$A10,dataset,CD$4, FALSE), "") -> 0.07926469125 | CE10: =IFERROR(VLOOKUP($T$4&$A10,dataset,CE$4, FALSE), "") -> 0.9132923557 | CF10: =IFERROR(VLOOKUP($T$4&$A10,dataset,CF$4, FALSE), "") -> 4.113330724 | CG10: =IFERROR(VLOOKUP($T$4&$A10,dataset,CG$4, FALSE), "") -> 78.30046816 | CH10: =IFERROR(VLOOKUP($T$4&$A10,dataset,CH$4, FALSE), "") -> 16.01352413 | CI10: =IFERROR(VLOOKUP($T$4&$A10,dataset,CI$4, FALSE), "") -> 0 | CJ10: =IFERROR(VLOOKUP($T$4&$A10,dataset,CJ$4, FALSE), "") -> 8.07450148 | CK10: =IFERROR(VLOOKUP($T$4&$A10,dataset,CK$4, FALSE), "") -> 25.99408402 | CL10: =IFERROR(VLOOKUP($T$4&$A10,dataset,CL$4, FALSE), "") -> 1 | CM10: =IFERROR(VLOOKUP($T$4&$A10,dataset,CM$4, FALSE), "") -> 0.1064352453 | CN10: =IFERROR(VLOOKUP($T$4&$A10,dataset,CN$4, FALSE), "") -> 0.07192604577 | CO10: =IFERROR(VLOOKUP($T$4&$A10,dataset,CO$4, FALSE), "") -> 0.9917266808 | CP10: =IFERROR(VLOOKUP($T$4&$A10,dataset,CP$4, FALSE), "") -> 0.9495380592 | CQ10: =IFERROR(VLOOKUP($T$4&$A10,dataset,CQ$4, FALSE), "") -> 28.58233143 | CR10: =IFERROR(VLOOKUP($T$4&$A10,dataset,CR$4, FALSE), "") -> -3.165337037 | CS10: =IFERROR(VLOOKUP($T$4&$A10,dataset,CS$4, FALSE), "") -> 0 | CT10: =IFERROR(VLOOKUP($T$4&$A10,dataset,CT$4, FALSE), "") -> 8.28373243 | CU10: =IFERROR(VLOOKUP($T$4&$A10,dataset,CU$4, FALSE), "") -> 7.46464956 | CV10: =IFERROR(VLOOKUP($T$4&$A10,dataset,CV$4, FALSE), "") -> 1 | CW10: =IFERROR(VLOOKUP($T$4&$A10,dataset,CW$4, FALSE), "") -> 0.5711699842 | CX10: =IFERROR(VLOOKUP($T$4&$A10,dataset,CX$4, FALSE), "") -> 0.05504800449 | CY10: =IFERROR(VLOOKUP($T$4&$A10,dataset,CY$4, FALSE), "") -> 0.9790904207 | CZ10: =IFERROR(VLOOKUP($T$4&$A10,dataset,CZ$4, FALSE), "") -> 2.810162323 | DA10: =IFERROR(VLOOKUP($T$4&$A10,dataset,DA$4, FALSE), "") -> 63.8407784 | DB10: =IFERROR(VLOOKUP($T$4&$A10,dataset,DB$4, FALSE), "") -> 6.898137613 | DC10: =IFERROR(VLOOKUP($T$4&$A10,dataset,DC$4, FALSE), "") -> 0 | DD10: =IFERROR(VLOOKUP($T$4&$A10,dataset,DD$4, FALSE), "") -> 10.73564324 | DE10: =IFERROR(VLOOKUP($T$4&$A10,dataset,DE$4, FALSE), "") -> 14.42524461 | DF10: =IFERROR(VLOOKUP($T$4&$A10,dataset,DF$4, FALSE), "") -> 1 | DG10: =IFERROR(VLOOKUP($T$4&$A10,dataset,DG$4, FALSE), "") -> 0.06833778367 | DH10: =IFERROR(VLOOKUP($T$4&$A10,dataset,DH$4, FALSE), "") -> 0.03620507771 | DI10: =IFERROR(VLOOKUP($T$4&$A10,dataset,DI$4, FALSE), "") -> 0.8471690694 | DJ10: =IFERROR(VLOOKUP($T$4&$A10,dataset,DJ$4, FALSE), "") -> 1.48142109 | DK10: =IFERROR(VLOOKUP($T$4&$A10,dataset,DK$4, FALSE), "") -> 27.15900223 | DL10: =IFERROR(VLOOKUP($T$4&$A10,dataset,DL$4, FALSE), "") -> 11.55398964 | DM10: =IFERROR(VLOOKUP($T$4&$A10,dataset,DM$4, FALSE), "") -> 0 | DN10: =IFERROR(VLOOKUP($T$4&$A10,dataset,DN$4, FALSE), "") -> 9.104077953 | DO10: =IFERROR(VLOOKUP($T$4&$A10,dataset,DO$4, FALSE), "") -> 2.750590171 | DP10: =IFERROR(VLOOKUP($T$4&$A10,dataset,DP$4, FALSE), "") -> 1 | DQ10: =IFERROR(VLOOKUP($T$4&$A10,dataset,DQ$4, FALSE), "") -> 0.04385579895 | DR10: =IFERROR(VLOOKUP($T$4&$A10,dataset,DR$4, FALSE), "") -> 0.04385579895 | DS10: =IFERROR(VLOOKUP($T$4&$A10,dataset,DS$4, FALSE), "") -> 0.9296067573 | DT10: =IFERROR(VLOOKUP($T$4&$A10,dataset,DT$4, FALSE), "") -> 0.8940979445 | DU10: =IFERROR(VLOOKUP($T$4&$A10,dataset,DU$4, FALSE), "") -> 44.51730522 | DV10: =IFERROR(VLOOKUP($T$4&$A10,dataset,DV$4, FALSE), "") -> 44.51730522 | DW10: =IFERROR(VLOOKUP($T$4&$A10,dataset,DW$4, FALSE), "") -> 0 | DX10: =IFERROR(VLOOKUP($T$4&$A10,dataset,DX$4, FALSE), "") -> 8.283154774 | DY10: =IFERROR(VLOOKUP($T$4&$A10,dataset,DY$4, FALSE), "") -> 3.704737756 | DZ10: =IFERROR(VLOOKUP($T$4&$A10,dataset,DZ$4, FALSE), "") -> 1 | EA10: =IFERROR(VLOOKUP($T$4&$A10,dataset,EA$4, FALSE), "") -> 0.1212533745 | EB10: =IFERROR(VLOOKUP($T$4&$A10,dataset,EB$4, FALSE), "") -> 0.04700309253 | EC10: =IFERROR(VLOOKUP($T$4&$A10,dataset,EC$4, FALSE), "") -> 0.9983420983 | ED10: =IFERROR(VLOOKUP($T$4&$A10,dataset,ED$4, FALSE), "") -> 1.80539079 | EE10: =IFERROR(VLOOKUP($T$4&$A10,dataset,EE$4, FALSE), "") -> 24.47938274 | EF10: =IFERROR(VLOOKUP($T$4&$A10,dataset,EF$4, FALSE), "") -> 6.593124128 | EG10: =IFERROR(VLOOKUP($T$4&$A10,dataset,EG$4, FALSE), "") -> 0 | EH10: =IFERROR(VLOOKUP($T$4&$A10,dataset,EH$4, FALSE), "") -> 5.822878587 | EI10: =IFERROR(VLOOKUP($T$4&$A10,dataset,EI$4, FALSE), "") -> 8.338590168 | EJ10: =IFERROR(VLOOKUP($T$4&$A10,dataset,EJ$4, FALSE), "") -> 1 | EK10: =IFERROR(VLOOKUP($T$4&$A10,dataset,EK$4, FALSE), "") -> 6.419299683 | EL10: =IFERROR(VLOOKUP($T$4&$A10,dataset,EL$4, FALSE), "") -> 0.0508922322 | EM10: =IFERROR(VLOOKUP($T$4&$A10,dataset,EM$4, FALSE), "") -> 0.8963861128 | EN10: =IFERROR(VLOOKUP($T$4&$A10,dataset,EN$4, FALSE), "") -> 34.27131147 | EO10: =IFERROR(VLOOKUP($T$4&$A10,dataset,EO$4, FALSE), "") -> 96.31961593 | EP10: =IFERROR(VLOOKUP($T$4&$A10,dataset,EP$4, FALSE), "") -> -0.5081142028 | EQ10: =IFERROR(VLOOKUP($T$4&$A10,dataset,EQ$4, FALSE), "") -> 0 | ER10: =IFERROR(VLOOKUP($T$4&$A10,dataset,ER$4, FALSE), "") -> 2.96507203 | ES10: =IFERROR(VLOOKUP($T$4&$A10,dataset,ES$4, FALSE), "") -> 125.2913578 | ET10: =IFERROR(VLOOKUP($T$4&$A10,dataset,ET$4, FALSE), "") -> 1 | EU10: =IFERROR(VLOOKUP($T$4&$A10,dataset,EU$4, FALSE), "") -> 3.059696672 | EV10: =IFERROR(VLOOKUP($T$4&$A10,dataset,EV$4, FALSE), "") -> 0.09597013876 | EW10: =IFERROR(VLOOKUP($T$4&$A10,dataset,EW$4, FALSE), "") -> 0.8560680155 | EX10: =IFERROR(VLOOKUP($T$4&$A10,dataset,EX$4, FALSE), "") -> 18.44707334 | EY10: =IFERROR(VLOOKUP($T$4&$A10,dataset,EY$4, FALSE), "") -> 74.5401987 | EZ10: =IFERROR(VLOOKUP($T$4&$A10,dataset,EZ$4, FALSE), "") -> 3.756823068 | FA10: =IFERROR(VLOOKUP($T$4&$A10,dataset,FA$4, FALSE), "") -> 0 | FB10: =IFERROR(VLOOKUP($T$4&$A10,dataset,FB$4, FALSE), "") -> 4.226099629 | FC10: =IFERROR(VLOOKUP($T$4&$A10,dataset,FC$4, FALSE), "") -> 118.6798663 | FD10: =IFERROR(VLOOKUP($T$4&$A10,dataset,FD$4, FALSE), "") -> 1 | FE10: =IFERROR(VLOOKUP($T$4&$A10,dataset,FE$4, FALSE), "") -> 0.934479199 | FF10: =IFERROR(VLOOKUP($T$4&$A10,dataset,FF$4, FALSE), "") -> 0.03782064625 | FG10: =IFERROR(VLOOKUP($T$4&$A10,dataset,FG$4, FALSE), "") -> 0.8284814616 | FH10: =IFERROR(VLOOKUP($T$4&$A10,dataset,FH$4, FALSE), "") -> 8.843127993 | FI10: =IFERROR(VLOOKUP($T$4&$A10,dataset,FI$4, FALSE), "") -> 74.65406455 | FJ10: =IFERROR(VLOOKUP($T$4&$A10,dataset,FJ$4, FALSE), "") -> 3.015852936 | FK10: =IFERROR(VLOOKUP($T$4&$A10,dataset,FK$4, FALSE), "") -> 0 | FL10: =IFERROR(VLOOKUP($T$4&$A10,dataset,FL$4, FALSE), "") -> 5.618957942 | FM10: =IFERROR(VLOOKUP($T$4&$A10,dataset,FM$4, FALSE), "") -> 35.81487824 | FN10: =IFERROR(VLOOKUP($T$4&$A10,dataset,FN$4, FALSE), "") -> 1
A11: =A10+1 -> 3 | C11: =IFERROR(VLOOKUP($T$4&$A11,dataset,C$4, FALSE), "") -> Total US Groc | D11: =IFERROR(VLOOKUP($T$4&$A11,dataset,D$4, FALSE), "") -> 1 | E11: =IFERROR(VLOOKUP($T$4&$A11,dataset,E$3, FALSE)/VLOOKUP($T$4&$A11,dataset,E$4, FALSE)-1, "") -> -0.02455389899 | F11: =IFERROR(VLOOKUP($T$4&$A11,dataset,F$3, FALSE)/VLOOKUP($T$4&$A11,dataset,F$4, FALSE)-1, "") -> -0.04004746765 | G11: =IFERROR((VLOOKUP($T$4&$A11,dataset,E$3, FALSE)-VLOOKUP($T$4&$A11,dataset,F$3, FALSE))/(VLOOKUP($T$4&$A11,dataset,E$4, FALSE)-VLOOKUP($T$4&$A11,dataset,F$4, FALSE))-1, "") -> -0.00437192097 | H11: =IFERROR(VLOOKUP($T$4&$A11,dataset,H$4, FALSE),"") -> 55.67235253 | I11: =IFERROR(VLOOKUP($T$4&$A11,dataset,I$4, FALSE), "") -> -0.8985479877 | J11: =IFERROR(VLOOKUP($T$4&$A11,dataset,J$4, FALSE), "") -> 4.935764012 | K11: =IFERROR(VLOOKUP($T$4&$A11,dataset,K$4, FALSE), "") -> 4.526401506 | L11: =IFERROR(VLOOKUP($T$4&$A11,dataset,L$4, FALSE), "") -> 0.4093625066 | M11: =IFERROR(VLOOKUP($T$4&$A11,dataset,M$4, FALSE), "") -> -0.1137142084 | N11: =IFERROR(VLOOKUP($T$4&$A11,dataset,N$4, FALSE), "") -> 32.90305611 | O11: =IFERROR(VLOOKUP($T$4&$A11,dataset,O$4, FALSE), "") -> -0.6692810906 | P11: =IFERROR(VLOOKUP($T$4&$A11,dataset,P$4, FALSE), "") -> 0 | Q11: =IFERROR(VLOOKUP($T$4&$A11,dataset,Q$4, FALSE), "") -> -1 | R11: =IFERROR(VLOOKUP($T$4&$A11,dataset,R$4, FALSE), "") -> 0 | S11: =IFERROR(VLOOKUP($T$4&$A11,dataset,S$4, FALSE), "") -> -48.39502058 | U11: =IFERROR(VLOOKUP($T$4&$A11,dataset,U$4, FALSE), "") -> 0.8469292332 | V11: =IFERROR(VLOOKUP($T$4&$A11,dataset,V$4, FALSE), "") -> 0.2144717612 | W11: =IFERROR(VLOOKUP($T$4&$A11,dataset,W$4, FALSE), "") -> 0.2984240446 | X11: =IFERROR(VLOOKUP($T$4&$A11,dataset,X$4, FALSE), "") -> 5.041421485 | Y11: =IFERROR(VLOOKUP($T$4&$A11,dataset,Y$4, FALSE), "") -> 52.38188088 | Z11: =IFERROR(VLOOKUP($T$4&$A11,dataset,Z$4, FALSE), "") -> 13.25619783 | AA11: =IFERROR(VLOOKUP($T$4&$A11,dataset,AA$4, FALSE), "") -> 0 | AB11: =IFERROR(VLOOKUP($T$4&$A11,dataset,AB$4, FALSE), "") -> 4.347785387 | AC11: =IFERROR(VLOOKUP($T$4&$A11,dataset,AC$4, FALSE), "") -> 54.95968769 | AD11: =IFERROR(VLOOKUP($T$4&$A11,dataset,AD$4, FALSE), "") -> 1 | AE11: =IFERROR(VLOOKUP($T$4&$A11,dataset,AE$4, FALSE), "") -> 1.155094958 | AF11: =IFERROR(VLOOKUP($T$4&$A11,dataset,AF$4, FALSE), "") -> 0.3285619803 | AG11: =IFERROR(VLOOKUP($T$4&$A11,dataset,AG$4, FALSE), "") -> 0.4907912435 | AH11: =IFERROR(VLOOKUP($T$4&$A11,dataset,AH$4, FALSE), "") -> 4.462480601 | AI11: =IFERROR(VLOOKUP($T$4&$A11,dataset,AI$4, FALSE), "") -> 79.94755268 | AJ11: =IFERROR(VLOOKUP($T$4&$A11,dataset,AJ$4, FALSE), "") -> 7.393299122 | AK11: =IFERROR(VLOOKUP($T$4&$A11,dataset,AK$4, FALSE), "") -> 0 | AL11: =IFERROR(VLOOKUP($T$4&$A11,dataset,AL$4, FALSE), "") -> 11.87502768 | AM11: =IFERROR(VLOOKUP($T$4&$A11,dataset,AM$4, FALSE), "") -> 37.48358365 | AN11: =IFERROR(VLOOKUP($T$4&$A11,dataset,AN$4, FALSE), "") -> 1 | AO11: =IFERROR(VLOOKUP($T$4&$A11,dataset,AO$4, FALSE), "") -> 1.368832156 | AP11: =IFERROR(VLOOKUP($T$4&$A11,dataset,AP$4, FALSE), "") -> 0.1363668164 | AQ11: =IFERROR(VLOOKUP($T$4&$A11,dataset,AQ$4, FALSE), "") -> 0.4551202111 | AR11: =IFERROR(VLOOKUP($T$4&$A11,dataset,AR$4, FALSE), "") -> 12.10584449 | AS11: =IFERROR(VLOOKUP($T$4&$A11,dataset,AS$4, FALSE), "") -> 81.22077654 | AT11: =IFERROR(VLOOKUP($T$4&$A11,dataset,AT$4, FALSE), "") -> 2.520656897 | AU11: =IFERROR(VLOOKUP($T$4&$A11,dataset,AU$4, FALSE), "") -> 0 | AV11: =IFERROR(VLOOKUP($T$4&$A11,dataset,AV$4, FALSE), "") -> 7.188241386 | AW11: =IFERROR(VLOOKUP($T$4&$A11,dataset,AW$4, FALSE), "") -> 37.12220214 | AX11: =IFERROR(VLOOKUP($T$4&$A11,dataset,AX$4, FALSE), "") -> 1 | AY11: =IFERROR(VLOOKUP($T$4&$A11,dataset,AY$4, FALSE), "") -> 0.6090061942 | AZ11: =IFERROR(VLOOKUP($T$4&$A11,dataset,AZ$4, FALSE), "") -> 0.02613406278 | BA11: =IFERROR(VLOOKUP($T$4&$A11,dataset,BA$4, FALSE), "") -> 0.3645824725 | BB11: =IFERROR(VLOOKUP($T$4&$A11,dataset,BB$4, FALSE), "") -> 3.646290236 | BC11: =IFERROR(VLOOKUP($T$4&$A11,dataset,BC$4, FALSE), "") -> 55.10822689 | BD11: =IFERROR(VLOOKUP($T$4&$A11,dataset,BD$4, FALSE), "") -> 5.287155144 | BE11: =IFERROR(VLOOKUP($T$4&$A11,dataset,BE$4, FALSE), "") -> 0 | BF11: =IFERROR(VLOOKUP($T$4&$A11,dataset,BF$4, FALSE), "") -> 3.671303329 | BG11: =IFERROR(VLOOKUP($T$4&$A11,dataset,BG$4, FALSE), "") -> 30.97530918 | BH11: =IFERROR(VLOOKUP($T$4&$A11,dataset,BH$4, FALSE), "") -> 1 | BI11: =IFERROR(VLOOKUP($T$4&$A11,dataset,BI$4, FALSE), "") -> 0.05915975538 | BJ11: =IFERROR(VLOOKUP($T$4&$A11,dataset,BJ$4, FALSE), "") -> 0.000454431995 | BK11: =IFERROR(VLOOKUP($T$4&$A11,dataset,BK$4, FALSE), "") -> 0.1127145464 | BL11: =IFERROR(VLOOKUP($T$4&$A11,dataset,BL$4, FALSE), "") -> 2.316848782 | BM11: =IFERROR(VLOOKUP($T$4&$A11,dataset,BM$4, FALSE), "") -> 14.13696501 | BN11: =IFERROR(VLOOKUP($T$4&$A11,dataset,BN$4, FALSE), "") -> -1.071994345 | BO11: =IFERROR(VLOOKUP($T$4&$A11,dataset,BO$4, FALSE), "") -> 0 | BP11: =IFERROR(VLOOKUP($T$4&$A11,dataset,BP$4, FALSE), "") -> 7.404008749 | BQ11: =IFERROR(VLOOKUP($T$4&$A11,dataset,BQ$4, FALSE), "") -> 14.44116179 | BR11: =IFERROR(VLOOKUP($T$4&$A11,dataset,BR$4, FALSE), "") -> 1 | BS11: =IFERROR(VLOOKUP($T$4&$A11,dataset,BS$4, FALSE), "") -> 0.1685167388 | BT11: =IFERROR(VLOOKUP($T$4&$A11,dataset,BT$4, FALSE), "") -> 0.06914767922 | BU11: =IFERROR(VLOOKUP($T$4&$A11,dataset,BU$4, FALSE), "") -> 0.312989164 | BV11: =IFERROR(VLOOKUP($T$4&$A11,dataset,BV$4, FALSE), "") -> 2.063246736 | BW11: =IFERROR(VLOOKUP($T$4&$A11,dataset,BW$4, FALSE), "") -> 75.68326798 | BX11: =IFERROR(VLOOKUP($T$4&$A11,dataset,BX$4, FALSE), "") -> 1.243876397 | BY11: =IFERROR(VLOOKUP($T$4&$A11,dataset,BY$4, FALSE), "") -> 0 | BZ11: =IFERROR(VLOOKUP($T$4&$A11,dataset,BZ$4, FALSE), "") -> 4.66047014 | CA11: =IFERROR(VLOOKUP($T$4&$A11,dataset,CA$4, FALSE), "") -> 13.47474749 | CB11: =IFERROR(VLOOKUP($T$4&$A11,dataset,CB$4, FALSE), "") -> 1 | CC11: =IFERROR(VLOOKUP($T$4&$A11,dataset,CC$4, FALSE), "") -> 0.4002958501 | CD11: =IFERROR(VLOOKUP($T$4&$A11,dataset,CD$4, FALSE), "") -> 0.02715710956 | CE11: =IFERROR(VLOOKUP($T$4&$A11,dataset,CE$4, FALSE), "") -> 0.4527526123 | CF11: =IFERROR(VLOOKUP($T$4&$A11,dataset,CF$4, FALSE), "") -> 4.218054968 | CG11: =IFERROR(VLOOKUP($T$4&$A11,dataset,CG$4, FALSE), "") -> 78.6327879 | CH11: =IFERROR(VLOOKUP($T$4&$A11,dataset,CH$4, FALSE), "") -> 14.79789875 | CI11: =IFERROR(VLOOKUP($T$4&$A11,dataset,CI$4, FALSE), "") -> 0 | CJ11: =IFERROR(VLOOKUP($T$4&$A11,dataset,CJ$4, FALSE), "") -> 9.143023916 | CK11: =IFERROR(VLOOKUP($T$4&$A11,dataset,CK$4, FALSE), "") -> 22.15849996 | CL11: =IFERROR(VLOOKUP($T$4&$A11,dataset,CL$4, FALSE), "") -> 1 | CM11: =IFERROR(VLOOKUP($T$4&$A11,dataset,CM$4, FALSE), "") -> 0.03285810431 | CN11: =IFERROR(VLOOKUP($T$4&$A11,dataset,CN$4, FALSE), "") -> 0.002619604421 | CO11: =IFERROR(VLOOKUP($T$4&$A11,dataset,CO$4, FALSE), "") -> 0.1794669703 | CP11: =IFERROR(VLOOKUP($T$4&$A11,dataset,CP$4, FALSE), "") -> 1.31743929 | CQ11: =IFERROR(VLOOKUP($T$4&$A11,dataset,CQ$4, FALSE), "") -> 35.0656977 | CR11: =IFERROR(VLOOKUP($T$4&$A11,dataset,CR$4, FALSE), "") -> 8.652116251 | CS11: =IFERROR(VLOOKUP($T$4&$A11,dataset,CS$4, FALSE), "") -> 0 | CT11: =IFERROR(VLOOKUP($T$4&$A11,dataset,CT$4, FALSE), "") -> 7.9311935 | CU11: =IFERROR(VLOOKUP($T$4&$A11,dataset,CU$4, FALSE), "") -> 2.837884657 | CV11: =IFERROR(VLOOKUP($T$4&$A11,dataset,CV$4, FALSE), "") -> 1 | CW11: =IFERROR(VLOOKUP($T$4&$A11,dataset,CW$4, FALSE), "") -> 0.6567617142 | CX11: =IFERROR(VLOOKUP($T$4&$A11,dataset,CX$4, FALSE), "") -> 0.04674871869 | CY11: =IFERROR(VLOOKUP($T$4&$A11,dataset,CY$4, FALSE), "") -> 0.6599343708 | CZ11: =IFERROR(VLOOKUP($T$4&$A11,dataset,CZ$4, FALSE), "") -> 3.717691393 | DA11: =IFERROR(VLOOKUP($T$4&$A11,dataset,DA$4, FALSE), "") -> 75.62883688 | DB11: =IFERROR(VLOOKUP($T$4&$A11,dataset,DB$4, FALSE), "") -> 0.6862308029 | DC11: =IFERROR(VLOOKUP($T$4&$A11,dataset,DC$4, FALSE), "") -> 0 | DD11: =IFERROR(VLOOKUP($T$4&$A11,dataset,DD$4, FALSE), "") -> 11.36077431 | DE11: =IFERROR(VLOOKUP($T$4&$A11,dataset,DE$4, FALSE), "") -> 19.90090522 | DF11: =IFERROR(VLOOKUP($T$4&$A11,dataset,DF$4, FALSE), "") -> 1 | DG11: =IFERROR(VLOOKUP($T$4&$A11,dataset,DG$4, FALSE), "") -> 0.05531289874 | DH11: =IFERROR(VLOOKUP($T$4&$A11,dataset,DH$4, FALSE), "") -> 0.01992917868 | DI11: =IFERROR(VLOOKUP($T$4&$A11,dataset,DI$4, FALSE), "") -> 0.4019491508 | DJ11: =IFERROR(VLOOKUP($T$4&$A11,dataset,DJ$4, FALSE), "") -> 1.892606724 | DK11: =IFERROR(VLOOKUP($T$4&$A11,dataset,DK$4, FALSE), "") -> 37.64331365 | DL11: =IFERROR(VLOOKUP($T$4&$A11,dataset,DL$4, FALSE), "") -> 15.32739647 | DM11: =IFERROR(VLOOKUP($T$4&$A11,dataset,DM$4, FALSE), "") -> 0 | DN11: =IFERROR(VLOOKUP($T$4&$A11,dataset,DN$4, FALSE), "") -> 9.691014911 | DO11: =IFERROR(VLOOKUP($T$4&$A11,dataset,DO$4, FALSE), "") -> 4.140585246 | DP11: =IFERROR(VLOOKUP($T$4&$A11,dataset,DP$4, FALSE), "") -> 1 | DQ11: =IFERROR(VLOOKUP($T$4&$A11,dataset,DQ$4, FALSE), "") -> 0.03542264372 | DR11: =IFERROR(VLOOKUP($T$4&$A11,dataset,DR$4, FALSE), "") -> 0.03542264372 | DS11: =IFERROR(VLOOKUP($T$4&$A11,dataset,DS$4, FALSE), "") -> 0.4401378432 | DT11: =IFERROR(VLOOKUP($T$4&$A11,dataset,DT$4, FALSE), "") -> 1 | DU11: =IFERROR(VLOOKUP($T$4&$A11,dataset,DU$4, FALSE), "") -> 38.59300429 | DV11: =IFERROR(VLOOKUP($T$4&$A11,dataset,DV$4, FALSE), "") -> 38.59300429 | DW11: =IFERROR(VLOOKUP($T$4&$A11,dataset,DW$4, FALSE), "") -> 0 | DX11: =IFERROR(VLOOKUP($T$4&$A11,dataset,DX$4, FALSE), "") -> 8.973690534 | DY11: =IFERROR(VLOOKUP($T$4&$A11,dataset,DY$4, FALSE), "") -> 2.829243152 | DZ11: =IFERROR(VLOOKUP($T$4&$A11,dataset,DZ$4, FALSE), "") -> 1 | EA11: =IFERROR(VLOOKUP($T$4&$A11,dataset,EA$4, FALSE), "") -> 0.1312840454 | EB11: =IFERROR(VLOOKUP($T$4&$A11,dataset,EB$4, FALSE), "") -> 0.03541673168 | EC11: =IFERROR(VLOOKUP($T$4&$A11,dataset,EC$4, FALSE), "") -> 0.6336260108 | ED11: =IFERROR(VLOOKUP($T$4&$A11,dataset,ED$4, FALSE), "") -> 2.862382435 | EE11: =IFERROR(VLOOKUP($T$4&$A11,dataset,EE$4, FALSE), "") -> 32.89765491 | EF11: =IFERROR(VLOOKUP($T$4&$A11,dataset,EF$4, FALSE), "") -> 3.110707058 | EG11: =IFERROR(VLOOKUP($T$4&$A11,dataset,EG$4, FALSE), "") -> 0 | EH11: =IFERROR(VLOOKUP($T$4&$A11,dataset,EH$4, FALSE), "") -> 7.141908482 | EI11: =IFERROR(VLOOKUP($T$4&$A11,dataset,EI$4, FALSE), "") -> 9.005568617 | EJ11: =IFERROR(VLOOKUP($T$4&$A11,dataset,EJ$4, FALSE), "") -> 1 | EK11: =IFERROR(VLOOKUP($T$4&$A11,dataset,EK$4, FALSE), "") -> 6.602075214 | EL11: =IFERROR(VLOOKUP($T$4&$A11,dataset,EL$4, FALSE), "") -> -0.1738614505 | EM11: =IFERROR(VLOOKUP($T$4&$A11,dataset,EM$4, FALSE), "") -> 0.5404100682 | EN11: =IFERROR(VLOOKUP($T$4&$A11,dataset,EN$4, FALSE), "") -> 40.0505558 | EO11: =IFERROR(VLOOKUP($T$4&$A11,dataset,EO$4, FALSE), "") -> 94.81968039 | EP11: =IFERROR(VLOOKUP($T$4&$A11,dataset,EP$4, FALSE), "") -> -0.8754197157 | EQ11: =IFERROR(VLOOKUP($T$4&$A11,dataset,EQ$4, FALSE), "") -> 0 | ER11: =IFERROR(VLOOKUP($T$4&$A11,dataset,ER$4, FALSE), "") -> 3.118350242 | ES11: =IFERROR(VLOOKUP($T$4&$A11,dataset,ES$4, FALSE), "") -> 235.8049443 | ET11: =IFERROR(VLOOKUP($T$4&$A11,dataset,ET$4, FALSE), "") -> 1 | EU11: =IFERROR(VLOOKUP($T$4&$A11,dataset,EU$4, FALSE), "") -> 3.682550745 | EV11: =IFERROR(VLOOKUP($T$4&$A11,dataset,EV$4, FALSE), "") -> 0.3039896018 | EW11: =IFERROR(VLOOKUP($T$4&$A11,dataset,EW$4, FALSE), "") -> 0.6039682828 | EX11: =IFERROR(VLOOKUP($T$4&$A11,dataset,EX$4, FALSE), "") -> 25.53080964 | EY11: =IFERROR(VLOOKUP($T$4&$A11,dataset,EY$4, FALSE), "") -> 69.20305484 | EZ11: =IFERROR(VLOOKUP($T$4&$A11,dataset,EZ$4, FALSE), "") -> 2.257520195 | FA11: =IFERROR(VLOOKUP($T$4&$A11,dataset,FA$4, FALSE), "") -> 0 | FB11: =IFERROR(VLOOKUP($T$4&$A11,dataset,FB$4, FALSE), "") -> 4.551129367 | FC11: =IFERROR(VLOOKUP($T$4&$A11,dataset,FC$4, FALSE), "") -> 174.1405124 | FD11: =IFERROR(VLOOKUP($T$4&$A11,dataset,FD$4, FALSE), "") -> 1 | FE11: =IFERROR(VLOOKUP($T$4&$A11,dataset,FE$4, FALSE), "") -> 1.346259174 | FF11: =IFERROR(VLOOKUP($T$4&$A11,dataset,FF$4, FALSE), "") -> 0.03959911952 | FG11: =IFERROR(VLOOKUP($T$4&$A11,dataset,FG$4, FALSE), "") -> 0.6996443435 | FH11: =IFERROR(VLOOKUP($T$4&$A11,dataset,FH$4, FALSE), "") -> 12.31060611 | FI11: =IFERROR(VLOOKUP($T$4&$A11,dataset,FI$4, FALSE), "") -> 78.29191412 | FJ11: =IFERROR(VLOOKUP($T$4&$A11,dataset,FJ$4, FALSE), "") -> 1.758917827 | FK11: =IFERROR(VLOOKUP($T$4&$A11,dataset,FK$4, FALSE), "") -> 0 | FL11: =IFERROR(VLOOKUP($T$4&$A11,dataset,FL$4, FALSE), "") -> 5.578172461 | FM11: =IFERROR(VLOOKUP($T$4&$A11,dataset,FM$4, FALSE), "") -> 56.14445391 | FN11: =IFERROR(VLOOKUP($T$4&$A11,dataset,FN$4, FALSE), "") -> 1
A12: 4 | C12: =IFERROR(VLOOKUP($T$4&$A12,dataset,C$4, FALSE), "") -> Total US Conv | D12: =IFERROR(VLOOKUP($T$4&$A12,dataset,D$4, FALSE), "") -> 1 | E12: =IFERROR(VLOOKUP($T$4&$A12,dataset,E$3, FALSE)/VLOOKUP($T$4&$A12,dataset,E$4, FALSE)-1, "") -> 0.01047382803 | F12: =IFERROR(VLOOKUP($T$4&$A12,dataset,F$3, FALSE)/VLOOKUP($T$4&$A12,dataset,F$4, FALSE)-1, "") -> 0.01234684111 | G12: =IFERROR((VLOOKUP($T$4&$A12,dataset,E$3, FALSE)-VLOOKUP($T$4&$A12,dataset,F$3, FALSE))/(VLOOKUP($T$4&$A12,dataset,E$4, FALSE)-VLOOKUP($T$4&$A12,dataset,F$4, FALSE))-1, "") -> 0.006928076567 | H12: =IFERROR(VLOOKUP($T$4&$A12,dataset,H$4, FALSE),"") -> 65.55597384 | I12: =IFERROR(VLOOKUP($T$4&$A12,dataset,I$4, FALSE), "") -> 0.1212896521 | J12: =IFERROR(VLOOKUP($T$4&$A12,dataset,J$4, FALSE), "") -> 7.242295461 | K12: =IFERROR(VLOOKUP($T$4&$A12,dataset,K$4, FALSE), "") -> 7.233416854 | L12: =IFERROR(VLOOKUP($T$4&$A12,dataset,L$4, FALSE), "") -> 0.008878607029 | M12: =IFERROR(VLOOKUP($T$4&$A12,dataset,M$4, FALSE), "") -> -0.01502893002 | N12: =IFERROR(VLOOKUP($T$4&$A12,dataset,N$4, FALSE), "") -> 49.10975 | O12: =IFERROR(VLOOKUP($T$4&$A12,dataset,O$4, FALSE), "") -> 0.2502439241 | P12: =IFERROR(VLOOKUP($T$4&$A12,dataset,P$4, FALSE), "") -> 0 | Q12: =IFERROR(VLOOKUP($T$4&$A12,dataset,Q$4, FALSE), "") -> - | R12: =IFERROR(VLOOKUP($T$4&$A12,dataset,R$4, FALSE), "") -> 0 | S12: =IFERROR(VLOOKUP($T$4&$A12,dataset,S$4, FALSE), "") -> 0 | U12: =IFERROR(VLOOKUP($T$4&$A12,dataset,U$4, FALSE), "") -> 2.349247113 | V12: =IFERROR(VLOOKUP($T$4&$A12,dataset,V$4, FALSE), "") -> 0.4252580082 | W12: =IFERROR(VLOOKUP($T$4&$A12,dataset,W$4, FALSE), "") -> 0.41852192 | X12: =IFERROR(VLOOKUP($T$4&$A12,dataset,X$4, FALSE), "") -> 4.00023504 | Y12: =IFERROR(VLOOKUP($T$4&$A12,dataset,Y$4, FALSE), "") -> 38.15084587 | Z12: =IFERROR(VLOOKUP($T$4&$A12,dataset,Z$4, FALSE), "") -> 3.560353044 | AA12: =IFERROR(VLOOKUP($T$4&$A12,dataset,AA$4, FALSE), "") -> 0 | AB12: =IFERROR(VLOOKUP($T$4&$A12,dataset,AB$4, FALSE), "") -> 6.018191907 | AC12: =IFERROR(VLOOKUP($T$4&$A12,dataset,AC$4, FALSE), "") -> 23.36584931 | AD12: =IFERROR(VLOOKUP($T$4&$A12,dataset,AD$4, FALSE), "") -> 1 | AE12: =IFERROR(VLOOKUP($T$4&$A12,dataset,AE$4, FALSE), "") -> 0.1072844867 | AF12: =IFERROR(VLOOKUP($T$4&$A12,dataset,AF$4, FALSE), "") -> 0.05636766464 | AG12: =IFERROR(VLOOKUP($T$4&$A12,dataset,AG$4, FALSE), "") -> 0.0230472368 | AH12: =IFERROR(VLOOKUP($T$4&$A12,dataset,AH$4, FALSE), "") -> 1.283466857 | AI12: =IFERROR(VLOOKUP($T$4&$A12,dataset,AI$4, FALSE), "") -> 16.24277515 | AJ12: =IFERROR(VLOOKUP($T$4&$A12,dataset,AJ$4, FALSE), "") -> 6.615498166 | AK12: =IFERROR(VLOOKUP($T$4&$A12,dataset,AK$4, FALSE), "") -> 0 | AL12: =IFERROR(VLOOKUP($T$4&$A12,dataset,AL$4, FALSE), "") -> 22.39216054 | AM12: =IFERROR(VLOOKUP($T$4&$A12,dataset,AM$4, FALSE), "") -> 3.653766932 | AN12: =IFERROR(VLOOKUP($T$4&$A12,dataset,AN$4, FALSE), "") -> 1 | AO12: =IFERROR(VLOOKUP($T$4&$A12,dataset,AO$4, FALSE), "") -> 0.07000355245 | AP12: =IFERROR(VLOOKUP($T$4&$A12,dataset,AP$4, FALSE), "") -> 0.01510785085 | AQ12: =IFERROR(VLOOKUP($T$4&$A12,dataset,AQ$4, FALSE), "") -> 0.011767896 | AR12: =IFERROR(VLOOKUP($T$4&$A12,dataset,AR$4, FALSE), "") -> 1.417915832 | AS12: =IFERROR(VLOOKUP($T$4&$A12,dataset,AS$4, FALSE), "") -> 8.076100514 | AT12: =IFERROR(VLOOKUP($T$4&$A12,dataset,AT$4, FALSE), "") -> 1.72907569 | AU12: =IFERROR(VLOOKUP($T$4&$A12,dataset,AU$4, FALSE), "") -> 0 | AV12: =IFERROR(VLOOKUP($T$4&$A12,dataset,AV$4, FALSE), "") -> 14.80185999 | AW12: =IFERROR(VLOOKUP($T$4&$A12,dataset,AW$4, FALSE), "") -> 3.610968106 | AX12: =IFERROR(VLOOKUP($T$4&$A12,dataset,AX$4, FALSE), "") -> 1 | AY12: =IFERROR(VLOOKUP($T$4&$A12,dataset,AY$4, FALSE), "") -> 0.0006017127537 | AZ12: =IFERROR(VLOOKUP($T$4&$A12,dataset,AZ$4, FALSE), "") -> -0.001178762604 | BA12: =IFERROR(VLOOKUP($T$4&$A12,dataset,BA$4, FALSE), "") -> 0.0001821235518 | BB12: =IFERROR(VLOOKUP($T$4&$A12,dataset,BB$4, FALSE), "") -> 1.383859195 | BC12: =IFERROR(VLOOKUP($T$4&$A12,dataset,BC$4, FALSE), "") -> 0.06631040299 | BD12: =IFERROR(VLOOKUP($T$4&$A12,dataset,BD$4, FALSE), "") -> -0.09774462021 | BE12: =IFERROR(VLOOKUP($T$4&$A12,dataset,BE$4, FALSE), "") -> 0 | BF12: =IFERROR(VLOOKUP($T$4&$A12,dataset,BF$4, FALSE), "") -> 4.742651442 | BG12: =IFERROR(VLOOKUP($T$4&$A12,dataset,BG$4, FALSE), "") -> 1.843141361 | BH12: =IFERROR(VLOOKUP($T$4&$A12,dataset,BH$4, FALSE), "") -> 1 | BI12: =IFERROR(VLOOKUP($T$4&$A12,dataset,BI$4, FALSE), "") -> 0.03375720042 | BJ12: =IFERROR(VLOOKUP($T$4&$A12,dataset,BJ$4, FALSE), "") -> -0.001628257256 | BK12: =IFERROR(VLOOKUP($T$4&$A12,dataset,BK$4, FALSE), "") -> 0.03251792604 | BL12: =IFERROR(VLOOKUP($T$4&$A12,dataset,BL$4, FALSE), "") -> 2.3938107 | BM12: =IFERROR(VLOOKUP($T$4&$A12,dataset,BM$4, FALSE), "") -> 2.166171596 | BN12: =IFERROR(VLOOKUP($T$4&$A12,dataset,BN$4, FALSE), "") -> 0.09204997765 | BO12: =IFERROR(VLOOKUP($T$4&$A12,dataset,BO$4, FALSE), "") -> 0 | BP12: =IFERROR(VLOOKUP($T$4&$A12,dataset,BP$4, FALSE), "") -> 9.487858572 | BQ12: =IFERROR(VLOOKUP($T$4&$A12,dataset,BQ$4, FALSE), "") -> 7.233015876 | BR12: =IFERROR(VLOOKUP($T$4&$A12,dataset,BR$4, FALSE), "") -> 1 | BS12: =IFERROR(VLOOKUP($T$4&$A12,dataset,BS$4, FALSE), "") -> 0.3827963603 | BT12: =IFERROR(VLOOKUP($T$4&$A12,dataset,BT$4, FALSE), "") -> 0.05792987246 | BU12: =IFERROR(VLOOKUP($T$4&$A12,dataset,BU$4, FALSE), "") -> 0.3594652184 | BV12: =IFERROR(VLOOKUP($T$4&$A12,dataset,BV$4, FALSE), "") -> 1.682687566 | BW12: =IFERROR(VLOOKUP($T$4&$A12,dataset,BW$4, FALSE), "") -> 31.14477857 | BX12: =IFERROR(VLOOKUP($T$4&$A12,dataset,BX$4, FALSE), "") -> 1.296400803 | BY12: =IFERROR(VLOOKUP($T$4&$A12,dataset,BY$4, FALSE), "") -> 0 | BZ12: =IFERROR(VLOOKUP($T$4&$A12,dataset,BZ$4, FALSE), "") -> 10.13489293 | CA12: =IFERROR(VLOOKUP($T$4&$A12,dataset,CA$4, FALSE), "") -> 2.800488098 | CB12: =IFERROR(VLOOKUP($T$4&$A12,dataset,CB$4, FALSE), "") -> 1 | CC12: =IFERROR(VLOOKUP($T$4&$A12,dataset,CC$4, FALSE), "") -> 0.1516263539 | CD12: =IFERROR(VLOOKUP($T$4&$A12,dataset,CD$4, FALSE), "") -> 0.03244641517 | CE12: =IFERROR(VLOOKUP($T$4&$A12,dataset,CE$4, FALSE), "") -> 0.08670764432 | CF12: =IFERROR(VLOOKUP($T$4&$A12,dataset,CF$4, FALSE), "") -> 1.958298568 | CG12: =IFERROR(VLOOKUP($T$4&$A12,dataset,CG$4, FALSE), "") -> 14.58980249 | CH12: =IFERROR(VLOOKUP($T$4&$A12,dataset,CH$4, FALSE), "") -> 4.904579902 | CI12: =IFERROR(VLOOKUP($T$4&$A12,dataset,CI$4, FALSE), "") -> 0 | CJ12: =IFERROR(VLOOKUP($T$4&$A12,dataset,CJ$4, FALSE), "") -> 11.21838738 | CK12: =IFERROR(VLOOKUP($T$4&$A12,dataset,CK$4, FALSE), "") -> 4.700273063 | CL12: =IFERROR(VLOOKUP($T$4&$A12,dataset,CL$4, FALSE), "") -> 1 | CM12: =IFERROR(VLOOKUP($T$4&$A12,dataset,CM$4, FALSE), "") -> 0.002995952585 | CN12: =IFERROR(VLOOKUP($T$4&$A12,dataset,CN$4, FALSE), "") -> -0.007277185316 | CO12: =IFERROR(VLOOKUP($T$4&$A12,dataset,CO$4, FALSE), "") -> 0.00827331922 | CP12: =IFERROR(VLOOKUP($T$4&$A12,dataset,CP$4, FALSE), "") -> 1 | CQ12: =IFERROR(VLOOKUP($T$4&$A12,dataset,CQ$4, FALSE), "") -> 0.7752779432 | CR12: =IFERROR(VLOOKUP($T$4&$A12,dataset,CR$4, FALSE), "") -> -2.418551224 | CS12: =IFERROR(VLOOKUP($T$4&$A12,dataset,CS$4, FALSE), "") -> 0 | CT12: =IFERROR(VLOOKUP($T$4&$A12,dataset,CT$4, FALSE), "") -> 15.15908388 | CU12: =IFERROR(VLOOKUP($T$4&$A12,dataset,CU$4, FALSE), "") -> 1.486129641 | CV12: =IFERROR(VLOOKUP($T$4&$A12,dataset,CV$4, FALSE), "") -> 1 | CW12: =IFERROR(VLOOKUP($T$4&$A12,dataset,CW$4, FALSE), "") -> 0.04115755404 | CX12: =IFERROR(VLOOKUP($T$4&$A12,dataset,CX$4, FALSE), "") -> 4.240297245e-05 | CY12: =IFERROR(VLOOKUP($T$4&$A12,dataset,CY$4, FALSE), "") -> 0.02090957935 | CZ12: =IFERROR(VLOOKUP($T$4&$A12,dataset,CZ$4, FALSE), "") -> 1.056531018 | DA12: =IFERROR(VLOOKUP($T$4&$A12,dataset,DA$4, FALSE), "") -> 6.682371608 | DB12: =IFERROR(VLOOKUP($T$4&$A12,dataset,DB$4, FALSE), "") -> 0.4304750208 | DC12: =IFERROR(VLOOKUP($T$4&$A12,dataset,DC$4, FALSE), "") -> 0 | DD12: =IFERROR(VLOOKUP($T$4&$A12,dataset,DD$4, FALSE), "") -> 13.99794495 | DE12: =IFERROR(VLOOKUP($T$4&$A12,dataset,DE$4, FALSE), "") -> 2.738034035 | DF12: =IFERROR(VLOOKUP($T$4&$A12,dataset,DF$4, FALSE), "") -> 1 | DG12: =IFERROR(VLOOKUP($T$4&$A12,dataset,DG$4, FALSE), "") -> 0.0415971659 | DH12: =IFERROR(VLOOKUP($T$4&$A12,dataset,DH$4, FALSE), "") -> 0.04051021321 | DI12: =IFERROR(VLOOKUP($T$4&$A12,dataset,DI$4, FALSE), "") -> 0.1528309306 | DJ12: =IFERROR(VLOOKUP($T$4&$A12,dataset,DJ$4, FALSE), "") -> 1.520383155 | DK12: =IFERROR(VLOOKUP($T$4&$A12,dataset,DK$4, FALSE), "") -> 5.035322395 | DL12: =IFERROR(VLOOKUP($T$4&$A12,dataset,DL$4, FALSE), "") -> 5.017576372 | DM12: =IFERROR(VLOOKUP($T$4&$A12,dataset,DM$4, FALSE), "") -> 0 | DN12: =IFERROR(VLOOKUP($T$4&$A12,dataset,DN$4, FALSE), "") -> 13.33100569 | DO12: =IFERROR(VLOOKUP($T$4&$A12,dataset,DO$4, FALSE), "") -> 2.112280172 | DP12: =IFERROR(VLOOKUP($T$4&$A12,dataset,DP$4, FALSE), "") -> 1 | DQ12: =IFERROR(VLOOKUP($T$4&$A12,dataset,DQ$4, FALSE), "") -> 0.01120522065 | DR12: =IFERROR(VLOOKUP($T$4&$A12,dataset,DR$4, FALSE), "") -> 0.01120522065 | DS12: =IFERROR(VLOOKUP($T$4&$A12,dataset,DS$4, FALSE), "") -> 0.07039324269 | DT12: =IFERROR(VLOOKUP($T$4&$A12,dataset,DT$4, FALSE), "") -> 1 | DU12: =IFERROR(VLOOKUP($T$4&$A12,dataset,DU$4, FALSE), "") -> 1.523336641 | DV12: =IFERROR(VLOOKUP($T$4&$A12,dataset,DV$4, FALSE), "") -> 1.523336641 | DW12: =IFERROR(VLOOKUP($T$4&$A12,dataset,DW$4, FALSE), "") -> 0 | DX12: =IFERROR(VLOOKUP($T$4&$A12,dataset,DX$4, FALSE), "") -> 10.01064964 | DY12: =IFERROR(VLOOKUP($T$4&$A12,dataset,DY$4, FALSE), "") -> 1.757377732 | DZ12: =IFERROR(VLOOKUP($T$4&$A12,dataset,DZ$4, FALSE), "") -> 1 | EA12: =IFERROR(VLOOKUP($T$4&$A12,dataset,EA$4, FALSE), "") -> 0.0006794146576 | EB12: =IFERROR(VLOOKUP($T$4&$A12,dataset,EB$4, FALSE), "") -> -0.000674873952 | EC12: =IFERROR(VLOOKUP($T$4&$A12,dataset,EC$4, FALSE), "") -> 0.0016579017 | ED12: =IFERROR(VLOOKUP($T$4&$A12,dataset,ED$4, FALSE), "") -> 1.248279231 | EE12: =IFERROR(VLOOKUP($T$4&$A12,dataset,EE$4, FALSE), "") -> 0.07756163194 | EF12: =IFERROR(VLOOKUP($T$4&$A12,dataset,EF$4, FALSE), "") -> -0.2137094983 | EG12: =IFERROR(VLOOKUP($T$4&$A12,dataset,EG$4, FALSE), "") -> 0 | EH12: =IFERROR(VLOOKUP($T$4&$A12,dataset,EH$4, FALSE), "") -> 8.339840639 | EI12: =IFERROR(VLOOKUP($T$4&$A12,dataset,EI$4, FALSE), "") -> 3.467347416 | EJ12: =IFERROR(VLOOKUP($T$4&$A12,dataset,EJ$4, FALSE), "") -> 1 | EK12: =IFERROR(VLOOKUP($T$4&$A12,dataset,EK$4, FALSE), "") -> 2.503641748 | EL12: =IFERROR(VLOOKUP($T$4&$A12,dataset,EL$4, FALSE), "") -> 0.04175552937 | EM12: =IFERROR(VLOOKUP($T$4&$A12,dataset,EM$4, FALSE), "") -> 0.1036138872 | EN12: =IFERROR(VLOOKUP($T$4&$A12,dataset,EN$4, FALSE), "") -> 10.57097213 | EO12: =IFERROR(VLOOKUP($T$4&$A12,dataset,EO$4, FALSE), "") -> 26.64992169 | EP12: =IFERROR(VLOOKUP($T$4&$A12,dataset,EP$4, FALSE), "") -> 4.45535517 | EQ12: =IFERROR(VLOOKUP($T$4&$A12,dataset,EQ$4, FALSE), "") -> 0 | ER12: =IFERROR(VLOOKUP($T$4&$A12,dataset,ER$4, FALSE), "") -> 5.099787724 | ES12: =IFERROR(VLOOKUP($T$4&$A12,dataset,ES$4, FALSE), "") -> 64.4902994 | ET12: =IFERROR(VLOOKUP($T$4&$A12,dataset,ET$4, FALSE), "") -> 1 | EU12: =IFERROR(VLOOKUP($T$4&$A12,dataset,EU$4, FALSE), "") -> 1.735757707 | EV12: =IFERROR(VLOOKUP($T$4&$A12,dataset,EV$4, FALSE), "") -> -0.1616114462 | EW12: =IFERROR(VLOOKUP($T$4&$A12,dataset,EW$4, FALSE), "") -> 0.1439319845 | EX12: =IFERROR(VLOOKUP($T$4&$A12,dataset,EX$4, FALSE), "") -> 16.45652725 | EY12: =IFERROR(VLOOKUP($T$4&$A12,dataset,EY$4, FALSE), "") -> 17.26779515 | EZ12: =IFERROR(VLOOKUP($T$4&$A12,dataset,EZ$4, FALSE), "") -> -1.439531505 | FA12: =IFERROR(VLOOKUP($T$4&$A12,dataset,FA$4, FALSE), "") -> 0 | FB12: =IFERROR(VLOOKUP($T$4&$A12,dataset,FB$4, FALSE), "") -> 6.942495298 | FC12: =IFERROR(VLOOKUP($T$4&$A12,dataset,FC$4, FALSE), "") -> 54.79753514 | FD12: =IFERROR(VLOOKUP($T$4&$A12,dataset,FD$4, FALSE), "") -> 1 | FE12: =IFERROR(VLOOKUP($T$4&$A12,dataset,FE$4, FALSE), "") -> 0.6527691133 | FF12: =IFERROR(VLOOKUP($T$4&$A12,dataset,FF$4, FALSE), "") -> 0.01955079439 | FG12: =IFERROR(VLOOKUP($T$4&$A12,dataset,FG$4, FALSE), "") -> 0.1715185384 | FH12: =IFERROR(VLOOKUP($T$4&$A12,dataset,FH$4, FALSE), "") -> 3.978353188 | FI12: =IFERROR(VLOOKUP($T$4&$A12,dataset,FI$4, FALSE), "") -> 32.59705827 | FJ12: =IFERROR(VLOOKUP($T$4&$A12,dataset,FJ$4, FALSE), "") -> 1.599607716 | FK12: =IFERROR(VLOOKUP($T$4&$A12,dataset,FK$4, FALSE), "") -> 0 | FL12: =IFERROR(VLOOKUP($T$4&$A12,dataset,FL$4, FALSE), "") -> 12.01677191 | FM12: =IFERROR(VLOOKUP($T$4&$A12,dataset,FM$4, FALSE), "") -> 7.933781538 | FN12: =IFERROR(VLOOKUP($T$4&$A12,dataset,FN$4, FALSE), "") -> 1
A13: 5 | C13: =IFERROR(VLOOKUP($T$4&$A13,dataset,C$4, FALSE), "") -> Total US Drug | D13: =IFERROR(VLOOKUP($T$4&$A13,dataset,D$4, FALSE), "") -> 1 | E13: =IFERROR(VLOOKUP($T$4&$A13,dataset,E$3, FALSE)/VLOOKUP($T$4&$A13,dataset,E$4, FALSE)-1, "") -> 0.0009369140271 | F13: =IFERROR(VLOOKUP($T$4&$A13,dataset,F$3, FALSE)/VLOOKUP($T$4&$A13,dataset,F$4, FALSE)-1, "") -> 0.01808700203 | G13: =IFERROR((VLOOKUP($T$4&$A13,dataset,E$3, FALSE)-VLOOKUP($T$4&$A13,dataset,F$3, FALSE))/(VLOOKUP($T$4&$A13,dataset,E$4, FALSE)-VLOOKUP($T$4&$A13,dataset,F$4, FALSE))-1, "") -> -0.01822474844 | H13: =IFERROR(VLOOKUP($T$4&$A13,dataset,H$4, FALSE),"") -> 53.67402786 | I13: =IFERROR(VLOOKUP($T$4&$A13,dataset,I$4, FALSE), "") -> 0.9041607439 | J13: =IFERROR(VLOOKUP($T$4&$A13,dataset,J$4, FALSE), "") -> 6.279702018 | K13: =IFERROR(VLOOKUP($T$4&$A13,dataset,K$4, FALSE), "") -> 5.604750462 | L13: =IFERROR(VLOOKUP($T$4&$A13,dataset,L$4, FALSE), "") -> 0.6749515556 | M13: =IFERROR(VLOOKUP($T$4&$A13,dataset,M$4, FALSE), "") -> 0.01273718526 | N13: =IFERROR(VLOOKUP($T$4&$A13,dataset,N$4, FALSE), "") -> 45.85706578 | O13: =IFERROR(VLOOKUP($T$4&$A13,dataset,O$4, FALSE), "") -> -0.3680316165 | P13: =IFERROR(VLOOKUP($T$4&$A13,dataset,P$4, FALSE), "") -> 0 | Q13: =IFERROR(VLOOKUP($T$4&$A13,dataset,Q$4, FALSE), "") -> - | R13: =IFERROR(VLOOKUP($T$4&$A13,dataset,R$4, FALSE), "") -> 0 | S13: =IFERROR(VLOOKUP($T$4&$A13,dataset,S$4, FALSE), "") -> 0 | U13: =IFERROR(VLOOKUP($T$4&$A13,dataset,U$4, FALSE), "") -> 1.943088735 | V13: =IFERROR(VLOOKUP($T$4&$A13,dataset,V$4, FALSE), "") -> 0.6532363437 | W13: =IFERROR(VLOOKUP($T$4&$A13,dataset,W$4, FALSE), "") -> 0.04408922327 | X13: =IFERROR(VLOOKUP($T$4&$A13,dataset,X$4, FALSE), "") -> 2.051730553 | Y13: =IFERROR(VLOOKUP($T$4&$A13,dataset,Y$4, FALSE), "") -> 61.51944249 | Z13: =IFERROR(VLOOKUP($T$4&$A13,dataset,Z$4, FALSE), "") -> 11.6367966 | AA13: =IFERROR(VLOOKUP($T$4&$A13,dataset,AA$4, FALSE), "") -> 0 | AB13: =IFERROR(VLOOKUP($T$4&$A13,dataset,AB$4, FALSE), "") -> 5.118970158 | AC13: =IFERROR(VLOOKUP($T$4&$A13,dataset,AC$4, FALSE), "") -> 7.211559133 | AD13: =IFERROR(VLOOKUP($T$4&$A13,dataset,AD$4, FALSE), "") -> 1 | AE13: =IFERROR(VLOOKUP($T$4&$A13,dataset,AE$4, FALSE), "") -> 3.099019886 | AF13: =IFERROR(VLOOKUP($T$4&$A13,dataset,AF$4, FALSE), "") -> -0.08113560536 | AG13: =IFERROR(VLOOKUP($T$4&$A13,dataset,AG$4, FALSE), "") -> 0.08479233715 | AH13: =IFERROR(VLOOKUP($T$4&$A13,dataset,AH$4, FALSE), "") -> 2.579657609 | AI13: =IFERROR(VLOOKUP($T$4&$A13,dataset,AI$4, FALSE), "") -> 67.51161723 | AJ13: =IFERROR(VLOOKUP($T$4&$A13,dataset,AJ$4, FALSE), "") -> 9.460751261 | AK13: =IFERROR(VLOOKUP($T$4&$A13,dataset,AK$4, FALSE), "") -> 0 | AL13: =IFERROR(VLOOKUP($T$4&$A13,dataset,AL$4, FALSE), "") -> 14.46521142 | AM13: =IFERROR(VLOOKUP($T$4&$A13,dataset,AM$4, FALSE), "") -> 6.032707077 | AN13: =IFERROR(VLOOKUP($T$4&$A13,dataset,AN$4, FALSE), "") -> 1 | AO13: =IFERROR(VLOOKUP($T$4&$A13,dataset,AO$4, FALSE), "") -> 0.472617285 | AP13: =IFERROR(VLOOKUP($T$4&$A13,dataset,AP$4, FALSE), "") -> 0.1123190077 | AQ13: =IFERROR(VLOOKUP($T$4&$A13,dataset,AQ$4, FALSE), "") -> 0.01011902455 | AR13: =IFERROR(VLOOKUP($T$4&$A13,dataset,AR$4, FALSE), "") -> 2.270596486 | AS13: =IFERROR(VLOOKUP($T$4&$A13,dataset,AS$4, FALSE), "") -> 23.57298406 | AT13: =IFERROR(VLOOKUP($T$4&$A13,dataset,AT$4, FALSE), "") -> 7.909710497 | AU13: =IFERROR(VLOOKUP($T$4&$A13,dataset,AU$4, FALSE), "") -> 0 | AV13: =IFERROR(VLOOKUP($T$4&$A13,dataset,AV$4, FALSE), "") -> 9.61159826 | AW13: =IFERROR(VLOOKUP($T$4&$A13,dataset,AW$4, FALSE), "") -> 2.709233897 | AX13: =IFERROR(VLOOKUP($T$4&$A13,dataset,AX$4, FALSE), "") -> 1 | AY13: =IFERROR(VLOOKUP($T$4&$A13,dataset,AY$4, FALSE), "") -> 9.771350385e-05 | AZ13: =IFERROR(VLOOKUP($T$4&$A13,dataset,AZ$4, FALSE), "") -> -0.002909783281 | BA13: =IFERROR(VLOOKUP($T$4&$A13,dataset,BA$4, FALSE), "") -> 3.766880023e-06 | BB13: =IFERROR(VLOOKUP($T$4&$A13,dataset,BB$4, FALSE), "") -> 1 | BC13: =IFERROR(VLOOKUP($T$4&$A13,dataset,BC$4, FALSE), "") -> 0.01898205171 | BD13: =IFERROR(VLOOKUP($T$4&$A13,dataset,BD$4, FALSE), "") -> -0.1087751941 | BE13: =IFERROR(VLOOKUP($T$4&$A13,dataset,BE$4, FALSE), "") -> 0 | BF13: =IFERROR(VLOOKUP($T$4&$A13,dataset,BF$4, FALSE), "") -> 4.120006186 | BG13: =IFERROR(VLOOKUP($T$4&$A13,dataset,BG$4, FALSE), "") -> 1.551805585 | BH13: =IFERROR(VLOOKUP($T$4&$A13,dataset,BH$4, FALSE), "") -> 1 | BI13: =IFERROR(VLOOKUP($T$4&$A13,dataset,BI$4, FALSE), "") -> 0.005218906755 | BJ13: =IFERROR(VLOOKUP($T$4&$A13,dataset,BJ$4, FALSE), "") -> -0.0007946031711 | BK13: =IFERROR(VLOOKUP($T$4&$A13,dataset,BK$4, FALSE), "") -> 0.0006403040678 | BL13: =IFERROR(VLOOKUP($T$4&$A13,dataset,BL$4, FALSE), "") -> 4.099411247 | BM13: =IFERROR(VLOOKUP($T$4&$A13,dataset,BM$4, FALSE), "") -> 0.1684348195 | BN13: =IFERROR(VLOOKUP($T$4&$A13,dataset,BN$4, FALSE), "") -> -0.01504305793 | BO13: =IFERROR(VLOOKUP($T$4&$A13,dataset,BO$4, FALSE), "") -> 0 | BP13: =IFERROR(VLOOKUP($T$4&$A13,dataset,BP$4, FALSE), "") -> 8.777853274 | BQ13: =IFERROR(VLOOKUP($T$4&$A13,dataset,BQ$4, FALSE), "") -> 14.33959291 | BR13: =IFERROR(VLOOKUP($T$4&$A13,dataset,BR$4, FALSE), "") -> 1 | BS13: =IFERROR(VLOOKUP($T$4&$A13,dataset,BS$4, FALSE), "") -> 0.3192422497 | BT13: =IFERROR(VLOOKUP($T$4&$A13,dataset,BT$4, FALSE), "") -> 0.03663954665 | BU13: =IFERROR(VLOOKUP($T$4&$A13,dataset,BU$4, FALSE), "") -> 0.03818209415 | BV13: =IFERROR(VLOOKUP($T$4&$A13,dataset,BV$4, FALSE), "") -> 1.393858272 | BW13: =IFERROR(VLOOKUP($T$4&$A13,dataset,BW$4, FALSE), "") -> 32.4500533 | BX13: =IFERROR(VLOOKUP($T$4&$A13,dataset,BX$4, FALSE), "") -> 1.680251708 | BY13: =IFERROR(VLOOKUP($T$4&$A13,dataset,BY$4, FALSE), "") -> 0 | BZ13: =IFERROR(VLOOKUP($T$4&$A13,dataset,BZ$4, FALSE), "") -> 7.017430549 | CA13: =IFERROR(VLOOKUP($T$4&$A13,dataset,CA$4, FALSE), "") -> 1.743277083 | CB13: =IFERROR(VLOOKUP($T$4&$A13,dataset,CB$4, FALSE), "") -> 1 | CC13: =IFERROR(VLOOKUP($T$4&$A13,dataset,CC$4, FALSE), "") -> 0.339266047 | CD13: =IFERROR(VLOOKUP($T$4&$A13,dataset,CD$4, FALSE), "") -> 0.2849061053 | CE13: =IFERROR(VLOOKUP($T$4&$A13,dataset,CE$4, FALSE), "") -> 0.02471003729 | CF13: =IFERROR(VLOOKUP($T$4&$A13,dataset,CF$4, FALSE), "") -> 1.372213149 | CG13: =IFERROR(VLOOKUP($T$4&$A13,dataset,CG$4, FALSE), "") -> 35.52726014 | CH13: =IFERROR(VLOOKUP($T$4&$A13,dataset,CH$4, FALSE), "") -> 34.47605306 | CI13: =IFERROR(VLOOKUP($T$4&$A13,dataset,CI$4, FALSE), "") -> 0 | CJ13: =IFERROR(VLOOKUP($T$4&$A13,dataset,CJ$4, FALSE), "") -> 9.392480056 | CK13: =IFERROR(VLOOKUP($T$4&$A13,dataset,CK$4, FALSE), "") -> 2.949745079 | CL13: =IFERROR(VLOOKUP($T$4&$A13,dataset,CL$4, FALSE), "") -> 1 | CM13: =IFERROR(VLOOKUP($T$4&$A13,dataset,CM$4, FALSE), "") -> 0 | CN13: =IFERROR(VLOOKUP($T$4&$A13,dataset,CN$4, FALSE), "") -> -9.0610176e-05 | CO13: =IFERROR(VLOOKUP($T$4&$A13,dataset,CO$4, FALSE), "") -> 0 | CP13: =IFERROR(VLOOKUP($T$4&$A13,dataset,CP$4, FALSE), "") -> 0 | CQ13: =IFERROR(VLOOKUP($T$4&$A13,dataset,CQ$4, FALSE), "") -> 0 | CR13: =IFERROR(VLOOKUP($T$4&$A13,dataset,CR$4, FALSE), "") -> -0.02583527449 | CS13: =IFERROR(VLOOKUP($T$4&$A13,dataset,CS$4, FALSE), "") -> 0 | CT13: =IFERROR(VLOOKUP($T$4&$A13,dataset,CT$4, FALSE), "") -> 0 | CU13: =IFERROR(VLOOKUP($T$4&$A13,dataset,CU$4, FALSE), "") -> 0 | CV13: =IFERROR(VLOOKUP($T$4&$A13,dataset,CV$4, FALSE), "") -> 0 | CW13: =IFERROR(VLOOKUP($T$4&$A13,dataset,CW$4, FALSE), "") -> 0.5479818331 | CX13: =IFERROR(VLOOKUP($T$4&$A13,dataset,CX$4, FALSE), "") -> 0.02489829841 | CY13: =IFERROR(VLOOKUP($T$4&$A13,dataset,CY$4, FALSE), "") -> 0.03545783431 | CZ13: =IFERROR(VLOOKUP($T$4&$A13,dataset,CZ$4, FALSE), "") -> 1.061246711 | DA13: =IFERROR(VLOOKUP($T$4&$A13,dataset,DA$4, FALSE), "") -> 52.9687964 | DB13: =IFERROR(VLOOKUP($T$4&$A13,dataset,DB$4, FALSE), "") -> 5.008081794 | DC13: =IFERROR(VLOOKUP($T$4&$A13,dataset,DC$4, FALSE), "") -> 0 | DD13: =IFERROR(VLOOKUP($T$4&$A13,dataset,DD$4, FALSE), "") -> 10.74435005 | DE13: =IFERROR(VLOOKUP($T$4&$A13,dataset,DE$4, FALSE), "") -> 2.054259196 | DF13: =IFERROR(VLOOKUP($T$4&$A13,dataset,DF$4, FALSE), "") -> 1 | DG13: =IFERROR(VLOOKUP($T$4&$A13,dataset,DG$4, FALSE), "") -> 0.3091955142 | DH13: =IFERROR(VLOOKUP($T$4&$A13,dataset,DH$4, FALSE), "") -> 0.1135039905 | DI13: =IFERROR(VLOOKUP($T$4&$A13,dataset,DI$4, FALSE), "") -> 0.1446874979 | DJ13: =IFERROR(VLOOKUP($T$4&$A13,dataset,DJ$4, FALSE), "") -> 1.129672381 | DK13: =IFERROR(VLOOKUP($T$4&$A13,dataset,DK$4, FALSE), "") -> 34.55809566 | DL13: =IFERROR(VLOOKUP($T$4&$A13,dataset,DL$4, FALSE), "") -> 15.24778919 | DM13: =IFERROR(VLOOKUP($T$4&$A13,dataset,DM$4, FALSE), "") -> 0 | DN13: =IFERROR(VLOOKUP($T$4&$A13,dataset,DN$4, FALSE), "") -> 8.00720681 | DO13: =IFERROR(VLOOKUP($T$4&$A13,dataset,DO$4, FALSE), "") -> 1.608578786 | DP13: =IFERROR(VLOOKUP($T$4&$A13,dataset,DP$4, FALSE), "") -> 1 | DQ13: =IFERROR(VLOOKUP($T$4&$A13,dataset,DQ$4, FALSE), "") -> 0.003299792064 | DR13: =IFERROR(VLOOKUP($T$4&$A13,dataset,DR$4, FALSE), "") -> 0.003299792064 | DS13: =IFERROR(VLOOKUP($T$4&$A13,dataset,DS$4, FALSE), "") -> 0.002640264516 | DT13: =IFERROR(VLOOKUP($T$4&$A13,dataset,DT$4, FALSE), "") -> 1 | DU13: =IFERROR(VLOOKUP($T$4&$A13,dataset,DU$4, FALSE), "") -> 0.3664527841 | DV13: =IFERROR(VLOOKUP($T$4&$A13,dataset,DV$4, FALSE), "") -> 0.3664527841 | DW13: =IFERROR(VLOOKUP($T$4&$A13,dataset,DW$4, FALSE), "") -> 0 | DX13: =IFERROR(VLOOKUP($T$4&$A13,dataset,DX$4, FALSE), "") -> 10.90698632 | DY13: =IFERROR(VLOOKUP($T$4&$A13,dataset,DY$4, FALSE), "") -> 1.193576855 | DZ13: =IFERROR(VLOOKUP($T$4&$A13,dataset,DZ$4, FALSE), "") -> 1 | EA13: =IFERROR(VLOOKUP($T$4&$A13,dataset,EA$4, FALSE), "") -> 0.1474950566 | EB13: =IFERROR(VLOOKUP($T$4&$A13,dataset,EB$4, FALSE), "") -> 0.1099115466 | EC13: =IFERROR(VLOOKUP($T$4&$A13,dataset,EC$4, FALSE), "") -> 0.04584074177 | ED13: =IFERROR(VLOOKUP($T$4&$A13,dataset,ED$4, FALSE), "") -> 1.46497519 | EE13: =IFERROR(VLOOKUP($T$4&$A13,dataset,EE$4, FALSE), "") -> 15.45702804 | EF13: =IFERROR(VLOOKUP($T$4&$A13,dataset,EF$4, FALSE), "") -> 11.21339619 | EG13: =IFERROR(VLOOKUP($T$4&$A13,dataset,EG$4, FALSE), "") -> 0 | EH13: =IFERROR(VLOOKUP($T$4&$A13,dataset,EH$4, FALSE), "") -> 8.06810587 | EI13: =IFERROR(VLOOKUP($T$4&$A13,dataset,EI$4, FALSE), "") -> 1.55976458 | EJ13: =IFERROR(VLOOKUP($T$4&$A13,dataset,EJ$4, FALSE), "") -> 1 | EK13: =IFERROR(VLOOKUP($T$4&$A13,dataset,EK$4, FALSE), "") -> 9.515235577 | EL13: =IFERROR(VLOOKUP($T$4&$A13,dataset,EL$4, FALSE), "") -> -0.6305212159 | EM13: =IFERROR(VLOOKUP($T$4&$A13,dataset,EM$4, FALSE), "") -> 0.0501551616 | EN13: =IFERROR(VLOOKUP($T$4&$A13,dataset,EN$4, FALSE), "") -> 13.61955606 | EO13: =IFERROR(VLOOKUP($T$4&$A13,dataset,EO$4, FALSE), "") -> 94.40923545 | EP13: =IFERROR(VLOOKUP($T$4&$A13,dataset,EP$4, FALSE), "") -> -0.1726756924 | EQ13: =IFERROR(VLOOKUP($T$4&$A13,dataset,EQ$4, FALSE), "") -> 0 | ER13: =IFERROR(VLOOKUP($T$4&$A13,dataset,ER$4, FALSE), "") -> 4.581191434 | ES13: =IFERROR(VLOOKUP($T$4&$A13,dataset,ES$4, FALSE), "") -> 23.20049355 | ET13: =IFERROR(VLOOKUP($T$4&$A13,dataset,ET$4, FALSE), "") -> 1 | EU13: =IFERROR(VLOOKUP($T$4&$A13,dataset,EU$4, FALSE), "") -> 3.013631729 | EV13: =IFERROR(VLOOKUP($T$4&$A13,dataset,EV$4, FALSE), "") -> 0.07366353486 | EW13: =IFERROR(VLOOKUP($T$4&$A13,dataset,EW$4, FALSE), "") -> 0.03182795221 | EX13: =IFERROR(VLOOKUP($T$4&$A13,dataset,EX$4, FALSE), "") -> 14.77015465 | EY13: =IFERROR(VLOOKUP($T$4&$A13,dataset,EY$4, FALSE), "") -> 23.34114224 | EZ13: =IFERROR(VLOOKUP($T$4&$A13,dataset,EZ$4, FALSE), "") -> 1.35485369 | FA13: =IFERROR(VLOOKUP($T$4&$A13,dataset,FA$4, FALSE), "") -> 0 | FB13: =IFERROR(VLOOKUP($T$4&$A13,dataset,FB$4, FALSE), "") -> 4.83511019 | FC13: =IFERROR(VLOOKUP($T$4&$A13,dataset,FC$4, FALSE), "") -> 34.88943344 | FD13: =IFERROR(VLOOKUP($T$4&$A13,dataset,FD$4, FALSE), "") -> 1 | FE13: =IFERROR(VLOOKUP($T$4&$A13,dataset,FE$4, FALSE), "") -> 0.8442907818 | FF13: =IFERROR(VLOOKUP($T$4&$A13,dataset,FF$4, FALSE), "") -> 0.1025709545 | FG13: =IFERROR(VLOOKUP($T$4&$A13,dataset,FG$4, FALSE), "") -> 0.02825490323 | FH13: =IFERROR(VLOOKUP($T$4&$A13,dataset,FH$4, FALSE), "") -> 2.281424232 | FI13: =IFERROR(VLOOKUP($T$4&$A13,dataset,FI$4, FALSE), "") -> 38.31395302 | FJ13: =IFERROR(VLOOKUP($T$4&$A13,dataset,FJ$4, FALSE), "") -> -0.5264335882 | FK13: =IFERROR(VLOOKUP($T$4&$A13,dataset,FK$4, FALSE), "") -> 0 | FL13: =IFERROR(VLOOKUP($T$4&$A13,dataset,FL$4, FALSE), "") -> 7.221988054 | FM13: =IFERROR(VLOOKUP($T$4&$A13,dataset,FM$4, FALSE), "") -> 3.722422095 | FN13: =IFERROR(VLOOKUP($T$4&$A13,dataset,FN$4, FALSE), "") -> 1
A14: 6 | C14: =IFERROR(VLOOKUP($T$4&$A14,dataset,C$4, FALSE), "") -> Walmart | D14: =IFERROR(VLOOKUP($T$4&$A14,dataset,D$4, FALSE), "") -> 1 | E14: =IFERROR(VLOOKUP($T$4&$A14,dataset,E$3, FALSE)/VLOOKUP($T$4&$A14,dataset,E$4, FALSE)-1, "") -> 0.02665274686 | F14: =IFERROR(VLOOKUP($T$4&$A14,dataset,F$3, FALSE)/VLOOKUP($T$4&$A14,dataset,F$4, FALSE)-1, "") -> 0.0694892086 | G14: =IFERROR((VLOOKUP($T$4&$A14,dataset,E$3, FALSE)-VLOOKUP($T$4&$A14,dataset,F$3, FALSE))/(VLOOKUP($T$4&$A14,dataset,E$4, FALSE)-VLOOKUP($T$4&$A14,dataset,F$4, FALSE))-1, "") -> -0.04940318293 | H14: =IFERROR(VLOOKUP($T$4&$A14,dataset,H$4, FALSE),"") -> 66.63951848 | I14: =IFERROR(VLOOKUP($T$4&$A14,dataset,I$4, FALSE), "") -> 2.669125748 | J14: =IFERROR(VLOOKUP($T$4&$A14,dataset,J$4, FALSE), "") -> 4.613197171 | K14: =IFERROR(VLOOKUP($T$4&$A14,dataset,K$4, FALSE), "") -> 3.865883155 | L14: =IFERROR(VLOOKUP($T$4&$A14,dataset,L$4, FALSE), "") -> 0.7473140159 | M14: =IFERROR(VLOOKUP($T$4&$A14,dataset,M$4, FALSE), "") -> 0.008584557573 | N14: =IFERROR(VLOOKUP($T$4&$A14,dataset,N$4, FALSE), "") -> 38.1736876 | O14: =IFERROR(VLOOKUP($T$4&$A14,dataset,O$4, FALSE), "") -> 2.518593033 | P14: =IFERROR(VLOOKUP($T$4&$A14,dataset,P$4, FALSE), "") -> 0 | Q14: =IFERROR(VLOOKUP($T$4&$A14,dataset,Q$4, FALSE), "") -> -1 | R14: =IFERROR(VLOOKUP($T$4&$A14,dataset,R$4, FALSE), "") -> 0 | S14: =IFERROR(VLOOKUP($T$4&$A14,dataset,S$4, FALSE), "") -> -47.5419457 | U14: =IFERROR(VLOOKUP($T$4&$A14,dataset,U$4, FALSE), "") -> 1.482128976 | V14: =IFERROR(VLOOKUP($T$4&$A14,dataset,V$4, FALSE), "") -> 0.2923155763 | W14: =IFERROR(VLOOKUP($T$4&$A14,dataset,W$4, FALSE), "") -> 0.194941619 | X14: =IFERROR(VLOOKUP($T$4&$A14,dataset,X$4, FALSE), "") -> 6.235855583 | Y14: =IFERROR(VLOOKUP($T$4&$A14,dataset,Y$4, FALSE), "") -> 79.0018294 | Z14: =IFERROR(VLOOKUP($T$4&$A14,dataset,Z$4, FALSE), "") -> 19.9473482 | AA14: =IFERROR(VLOOKUP($T$4&$A14,dataset,AA$4, FALSE), "") -> 0 | AB14: =IFERROR(VLOOKUP($T$4&$A14,dataset,AB$4, FALSE), "") -> 4.298714311 | AC14: =IFERROR(VLOOKUP($T$4&$A14,dataset,AC$4, FALSE), "") -> 131.9382516 | AD14: =IFERROR(VLOOKUP($T$4&$A14,dataset,AD$4, FALSE), "") -> 1 | AE14: =IFERROR(VLOOKUP($T$4&$A14,dataset,AE$4, FALSE), "") -> 0.6116539506 | AF14: =IFERROR(VLOOKUP($T$4&$A14,dataset,AF$4, FALSE), "") -> 0.4180569227 | AG14: =IFERROR(VLOOKUP($T$4&$A14,dataset,AG$4, FALSE), "") -> 0.09701006259 | AH14: =IFERROR(VLOOKUP($T$4&$A14,dataset,AH$4, FALSE), "") -> 4.437017031 | AI14: =IFERROR(VLOOKUP($T$4&$A14,dataset,AI$4, FALSE), "") -> 99.17034869 | AJ14: =IFERROR(VLOOKUP($T$4&$A14,dataset,AJ$4, FALSE), "") -> 18.01082725 | AK14: =IFERROR(VLOOKUP($T$4&$A14,dataset,AK$4, FALSE), "") -> 0 | AL14: =IFERROR(VLOOKUP($T$4&$A14,dataset,AL$4, FALSE), "") -> 11.01959238 | AM14: =IFERROR(VLOOKUP($T$4&$A14,dataset,AM$4, FALSE), "") -> 32.09222499 | AN14: =IFERROR(VLOOKUP($T$4&$A14,dataset,AN$4, FALSE), "") -> 1 | AO14: =IFERROR(VLOOKUP($T$4&$A14,dataset,AO$4, FALSE), "") -> 2.354193589 | AP14: =IFERROR(VLOOKUP($T$4&$A14,dataset,AP$4, FALSE), "") -> -0.1222625564 | AQ14: =IFERROR(VLOOKUP($T$4&$A14,dataset,AQ$4, FALSE), "") -> 0.2921796592 | AR14: =IFERROR(VLOOKUP($T$4&$A14,dataset,AR$4, FALSE), "") -> 16.8203234 | AS14: =IFERROR(VLOOKUP($T$4&$A14,dataset,AS$4, FALSE), "") -> 99.92495772 | AT14: =IFERROR(VLOOKUP($T$4&$A14,dataset,AT$4, FALSE), "") -> 1.554423687 | AU14: =IFERROR(VLOOKUP($T$4&$A14,dataset,AU$4, FALSE), "") -> 0 | AV14: =IFERROR(VLOOKUP($T$4&$A14,dataset,AV$4, FALSE), "") -> 6.147675088 | AW14: =IFERROR(VLOOKUP($T$4&$A14,dataset,AW$4, FALSE), "") -> 113.5878725 | AX14: =IFERROR(VLOOKUP($T$4&$A14,dataset,AX$4, FALSE), "") -> 1 | AY14: =IFERROR(VLOOKUP($T$4&$A14,dataset,AY$4, FALSE), "") -> 2.021247162 | AZ14: =IFERROR(VLOOKUP($T$4&$A14,dataset,AZ$4, FALSE), "") -> 0.5640342102 | BA14: =IFERROR(VLOOKUP($T$4&$A14,dataset,BA$4, FALSE), "") -> 0.451674301 | BB14: =IFERROR(VLOOKUP($T$4&$A14,dataset,BB$4, FALSE), "") -> 4.700483951 | BC14: =IFERROR(VLOOKUP($T$4&$A14,dataset,BC$4, FALSE), "") -> 99.35534626 | BD14: =IFERROR(VLOOKUP($T$4&$A14,dataset,BD$4, FALSE), "") -> 37.46091324 | BE14: =IFERROR(VLOOKUP($T$4&$A14,dataset,BE$4, FALSE), "") -> 0 | BF14: =IFERROR(VLOOKUP($T$4&$A14,dataset,BF$4, FALSE), "") -> 2.869669749 | BG14: =IFERROR(VLOOKUP($T$4&$A14,dataset,BG$4, FALSE), "") -> 111.436068 | BH14: =IFERROR(VLOOKUP($T$4&$A14,dataset,BH$4, FALSE), "") -> 1 | BI14: =IFERROR(VLOOKUP($T$4&$A14,dataset,BI$4, FALSE), "") -> 0.8800993746 | BJ14: =IFERROR(VLOOKUP($T$4&$A14,dataset,BJ$4, FALSE), "") -> 0.4597790947 | BK14: =IFERROR(VLOOKUP($T$4&$A14,dataset,BK$4, FALSE), "") -> 0.6259176418 | BL14: =IFERROR(VLOOKUP($T$4&$A14,dataset,BL$4, FALSE), "") -> 6.131855788 | BM14: =IFERROR(VLOOKUP($T$4&$A14,dataset,BM$4, FALSE), "") -> 99.90751595 | BN14: =IFERROR(VLOOKUP($T$4&$A14,dataset,BN$4, FALSE), "") -> 1.038733381 | BO14: =IFERROR(VLOOKUP($T$4&$A14,dataset,BO$4, FALSE), "") -> 0 | BP14: =IFERROR(VLOOKUP($T$4&$A14,dataset,BP$4, FALSE), "") -> 6.012961988 | BQ14: =IFERROR(VLOOKUP($T$4&$A14,dataset,BQ$4, FALSE), "") -> 82.03968427 | BR14: =IFERROR(VLOOKUP($T$4&$A14,dataset,BR$4, FALSE), "") -> 1 | BS14: =IFERROR(VLOOKUP($T$4&$A14,dataset,BS$4, FALSE), "") -> 0.2677647177 | BT14: =IFERROR(VLOOKUP($T$4&$A14,dataset,BT$4, FALSE), "") -> 0.1658674495 | BU14: =IFERROR(VLOOKUP($T$4&$A14,dataset,BU$4, FALSE), "") -> 0.18563997 | BV14: =IFERROR(VLOOKUP($T$4&$A14,dataset,BV$4, FALSE), "") -> 4.458057345 | BW14: =IFERROR(VLOOKUP($T$4&$A14,dataset,BW$4, FALSE), "") -> 99.77068085 | BX14: =IFERROR(VLOOKUP($T$4&$A14,dataset,BX$4, FALSE), "") -> 6.974889579 | BY14: =IFERROR(VLOOKUP($T$4&$A14,dataset,BY$4, FALSE), "") -> 0 | BZ14: =IFERROR(VLOOKUP($T$4&$A14,dataset,BZ$4, FALSE), "") -> 5.793951921 | CA14: =IFERROR(VLOOKUP($T$4&$A14,dataset,CA$4, FALSE), "") -> 24.45659581 | CB14: =IFERROR(VLOOKUP($T$4&$A14,dataset,CB$4, FALSE), "") -> 1 | CC14: =IFERROR(VLOOKUP($T$4&$A14,dataset,CC$4, FALSE), "") -> 0.5962398368 | CD14: =IFERROR(VLOOKUP($T$4&$A14,dataset,CD$4, FALSE), "") -> 0.01688088141 | CE14: =IFERROR(VLOOKUP($T$4&$A14,dataset,CE$4, FALSE), "") -> 0.2517287089 | CF14: =IFERROR(VLOOKUP($T$4&$A14,dataset,CF$4, FALSE), "") -> 5.836649626 | CG14: =IFERROR(VLOOKUP($T$4&$A14,dataset,CG$4, FALSE), "") -> 92.84968096 | CH14: =IFERROR(VLOOKUP($T$4&$A14,dataset,CH$4, FALSE), "") -> 0.7863389361 | CI14: =IFERROR(VLOOKUP($T$4&$A14,dataset,CI$4, FALSE), "") -> 0 | CJ14: =IFERROR(VLOOKUP($T$4&$A14,dataset,CJ$4, FALSE), "") -> 7.410680113 | CK14: =IFERROR(VLOOKUP($T$4&$A14,dataset,CK$4, FALSE), "") -> 71.70743088 | CL14: =IFERROR(VLOOKUP($T$4&$A14,dataset,CL$4, FALSE), "") -> 1 | CM14: =IFERROR(VLOOKUP($T$4&$A14,dataset,CM$4, FALSE), "") -> 0 | CN14: =IFERROR(VLOOKUP($T$4&$A14,dataset,CN$4, FALSE), "") -> -0.03064667589 | CO14: =IFERROR(VLOOKUP($T$4&$A14,dataset,CO$4, FALSE), "") -> 0 | CP14: =IFERROR(VLOOKUP($T$4&$A14,dataset,CP$4, FALSE), "") -> 0 | CQ14: =IFERROR(VLOOKUP($T$4&$A14,dataset,CQ$4, FALSE), "") -> 0 | CR14: =IFERROR(VLOOKUP($T$4&$A14,dataset,CR$4, FALSE), "") -> -58.52389403 | CS14: =IFERROR(VLOOKUP($T$4&$A14,dataset,CS$4, FALSE), "") -> 0 | CT14: =IFERROR(VLOOKUP($T$4&$A14,dataset,CT$4, FALSE), "") -> 0 | CU14: =IFERROR(VLOOKUP($T$4&$A14,dataset,CU$4, FALSE), "") -> 0 | CV14: =IFERROR(VLOOKUP($T$4&$A14,dataset,CV$4, FALSE), "") -> 0 | CW14: =IFERROR(VLOOKUP($T$4&$A14,dataset,CW$4, FALSE), "") -> 0.08781281954 | CX14: =IFERROR(VLOOKUP($T$4&$A14,dataset,CX$4, FALSE), "") -> 0.03798122598 | CY14: =IFERROR(VLOOKUP($T$4&$A14,dataset,CY$4, FALSE), "") -> 0.03293690022 | CZ14: =IFERROR(VLOOKUP($T$4&$A14,dataset,CZ$4, FALSE), "") -> 1.625113585 | DA14: =IFERROR(VLOOKUP($T$4&$A14,dataset,DA$4, FALSE), "") -> 51.84225604 | DB14: =IFERROR(VLOOKUP($T$4&$A14,dataset,DB$4, FALSE), "") -> 27.06124731 | DC14: =IFERROR(VLOOKUP($T$4&$A14,dataset,DC$4, FALSE), "") -> 0 | DD14: =IFERROR(VLOOKUP($T$4&$A14,dataset,DD$4, FALSE), "") -> 12.82250724 | DE14: =IFERROR(VLOOKUP($T$4&$A14,dataset,DE$4, FALSE), "") -> 7.432351896 | DF14: =IFERROR(VLOOKUP($T$4&$A14,dataset,DF$4, FALSE), "") -> 1 | DG14: =IFERROR(VLOOKUP($T$4&$A14,dataset,DG$4, FALSE), "") -> 3.168517881e-05 | DH14: =IFERROR(VLOOKUP($T$4&$A14,dataset,DH$4, FALSE), "") -> 2.605376124e-05 | DI14: =IFERROR(VLOOKUP($T$4&$A14,dataset,DI$4, FALSE), "") -> 8.594739954e-05 | DJ14: =IFERROR(VLOOKUP($T$4&$A14,dataset,DJ$4, FALSE), "") -> 1 | DK14: =IFERROR(VLOOKUP($T$4&$A14,dataset,DK$4, FALSE), "") -> 0.05038324613 | DL14: =IFERROR(VLOOKUP($T$4&$A14,dataset,DL$4, FALSE), "") -> 0.02682360679 | DM14: =IFERROR(VLOOKUP($T$4&$A14,dataset,DM$4, FALSE), "") -> 0 | DN14: =IFERROR(VLOOKUP($T$4&$A14,dataset,DN$4, FALSE), "") -> 5.643636364 | DO14: =IFERROR(VLOOKUP($T$4&$A14,dataset,DO$4, FALSE), "") -> 5.49941263 | DP14: =IFERROR(VLOOKUP($T$4&$A14,dataset,DP$4, FALSE), "") -> 1 | DQ14: =IFERROR(VLOOKUP($T$4&$A14,dataset,DQ$4, FALSE), "") -> 0.07450531689 | DR14: =IFERROR(VLOOKUP($T$4&$A14,dataset,DR$4, FALSE), "") -> 0.07450531689 | DS14: =IFERROR(VLOOKUP($T$4&$A14,dataset,DS$4, FALSE), "") -> 0.3455627236 | DT14: =IFERROR(VLOOKUP($T$4&$A14,dataset,DT$4, FALSE), "") -> 1 | DU14: =IFERROR(VLOOKUP($T$4&$A14,dataset,DU$4, FALSE), "") -> 82.3880423 | DV14: =IFERROR(VLOOKUP($T$4&$A14,dataset,DV$4, FALSE), "") -> 82.3880423 | DW14: =IFERROR(VLOOKUP($T$4&$A14,dataset,DW$4, FALSE), "") -> 0 | DX14: =IFERROR(VLOOKUP($T$4&$A14,dataset,DX$4, FALSE), "") -> 7.937619242 | DY14: =IFERROR(VLOOKUP($T$4&$A14,dataset,DY$4, FALSE), "") -> 5.303926629 | DZ14: =IFERROR(VLOOKUP($T$4&$A14,dataset,DZ$4, FALSE), "") -> 1 | EA14: =IFERROR(VLOOKUP($T$4&$A14,dataset,EA$4, FALSE), "") -> 0 | EB14: =IFERROR(VLOOKUP($T$4&$A14,dataset,EB$4, FALSE), "") -> 0 | EC14: =IFERROR(VLOOKUP($T$4&$A14,dataset,EC$4, FALSE), "") -> 0 | ED14: =IFERROR(VLOOKUP($T$4&$A14,dataset,ED$4, FALSE), "") -> 0 | EE14: =IFERROR(VLOOKUP($T$4&$A14,dataset,EE$4, FALSE), "") -> 0 | EF14: =IFERROR(VLOOKUP($T$4&$A14,dataset,EF$4, FALSE), "") -> 0 | EG14: =IFERROR(VLOOKUP($T$4&$A14,dataset,EG$4, FALSE), "") -> 0 | EH14: =IFERROR(VLOOKUP($T$4&$A14,dataset,EH$4, FALSE), "") -> 0 | EI14: =IFERROR(VLOOKUP($T$4&$A14,dataset,EI$4, FALSE), "") -> 0 | EJ14: =IFERROR(VLOOKUP($T$4&$A14,dataset,EJ$4, FALSE), "") -> 0 | EK14: =IFERROR(VLOOKUP($T$4&$A14,dataset,EK$4, FALSE), "") -> 6.177044273 | EL14: =IFERROR(VLOOKUP($T$4&$A14,dataset,EL$4, FALSE), "") -> 0.6927811545 | EM14: =IFERROR(VLOOKUP($T$4&$A14,dataset,EM$4, FALSE), "") -> 0.1887363535 | EN14: =IFERROR(VLOOKUP($T$4&$A14,dataset,EN$4, FALSE), "") -> 39.90289723 | EO14: =IFERROR(VLOOKUP($T$4&$A14,dataset,EO$4, FALSE), "") -> 100 | EP14: =IFERROR(VLOOKUP($T$4&$A14,dataset,EP$4, FALSE), "") -> 0 | EQ14: =IFERROR(VLOOKUP($T$4&$A14,dataset,EQ$4, FALSE), "") -> 0 | ER14: =IFERROR(VLOOKUP($T$4&$A14,dataset,ER$4, FALSE), "") -> 2.851564893 | ES14: =IFERROR(VLOOKUP($T$4&$A14,dataset,ES$4, FALSE), "") -> 481.831865 | ET14: =IFERROR(VLOOKUP($T$4&$A14,dataset,ET$4, FALSE), "") -> 1 | EU14: =IFERROR(VLOOKUP($T$4&$A14,dataset,EU$4, FALSE), "") -> 1.786860398 | EV14: =IFERROR(VLOOKUP($T$4&$A14,dataset,EV$4, FALSE), "") -> -0.2760573564 | EW14: =IFERROR(VLOOKUP($T$4&$A14,dataset,EW$4, FALSE), "") -> 0.1093925883 | EX14: =IFERROR(VLOOKUP($T$4&$A14,dataset,EX$4, FALSE), "") -> 8.124716858 | EY14: =IFERROR(VLOOKUP($T$4&$A14,dataset,EY$4, FALSE), "") -> 99.61081992 | EZ14: =IFERROR(VLOOKUP($T$4&$A14,dataset,EZ$4, FALSE), "") -> 0.2119816209 | FA14: =IFERROR(VLOOKUP($T$4&$A14,dataset,FA$4, FALSE), "") -> 0 | FB14: =IFERROR(VLOOKUP($T$4&$A14,dataset,FB$4, FALSE), "") -> 3.822968055 | FC14: =IFERROR(VLOOKUP($T$4&$A14,dataset,FC$4, FALSE), "") -> 86.00569744 | FD14: =IFERROR(VLOOKUP($T$4&$A14,dataset,FD$4, FALSE), "") -> 1 | FE14: =IFERROR(VLOOKUP($T$4&$A14,dataset,FE$4, FALSE), "") -> 0.2865618623 | FF14: =IFERROR(VLOOKUP($T$4&$A14,dataset,FF$4, FALSE), "") -> -0.06664178766 | FG14: =IFERROR(VLOOKUP($T$4&$A14,dataset,FG$4, FALSE), "") -> 0.05559028805 | FH14: =IFERROR(VLOOKUP($T$4&$A14,dataset,FH$4, FALSE), "") -> 6.089488177 | FI14: =IFERROR(VLOOKUP($T$4&$A14,dataset,FI$4, FALSE), "") -> 98.57464134 | FJ14: =IFERROR(VLOOKUP($T$4&$A14,dataset,FJ$4, FALSE), "") -> -0.4048252768 | FK14: =IFERROR(VLOOKUP($T$4&$A14,dataset,FK$4, FALSE), "") -> 0 | FL14: =IFERROR(VLOOKUP($T$4&$A14,dataset,FL$4, FALSE), "") -> 5.876501949 | FM14: =IFERROR(VLOOKUP($T$4&$A14,dataset,FM$4, FALSE), "") -> 23.83344655 | FN14: =IFERROR(VLOOKUP($T$4&$A14,dataset,FN$4, FALSE), "") -> 1
A15: 7 | C15: =IFERROR(VLOOKUP($T$4&$A15,dataset,C$4, FALSE), "") -> Sams | D15: =IFERROR(VLOOKUP($T$4&$A15,dataset,D$4, FALSE), "") -> 1 | E15: =IFERROR(VLOOKUP($T$4&$A15,dataset,E$3, FALSE)/VLOOKUP($T$4&$A15,dataset,E$4, FALSE)-1, "") -> -0.03927688951 | F15: =IFERROR(VLOOKUP($T$4&$A15,dataset,F$3, FALSE)/VLOOKUP($T$4&$A15,dataset,F$4, FALSE)-1, "") -> -0.03263773163 | G15: =IFERROR((VLOOKUP($T$4&$A15,dataset,E$3, FALSE)-VLOOKUP($T$4&$A15,dataset,F$3, FALSE))/(VLOOKUP($T$4&$A15,dataset,E$4, FALSE)-VLOOKUP($T$4&$A15,dataset,F$4, FALSE))-1, "") -> -0.04880468738 | H15: =IFERROR(VLOOKUP($T$4&$A15,dataset,H$4, FALSE),"") -> 59.34104516 | I15: =IFERROR(VLOOKUP($T$4&$A15,dataset,I$4, FALSE), "") -> 0.4072668335 | J15: =IFERROR(VLOOKUP($T$4&$A15,dataset,J$4, FALSE), "") -> 3.694141582 | K15: =IFERROR(VLOOKUP($T$4&$A15,dataset,K$4, FALSE), "") -> 3.045500247 | L15: =IFERROR(VLOOKUP($T$4&$A15,dataset,L$4, FALSE), "") -> 0.6486413354 | M15: =IFERROR(VLOOKUP($T$4&$A15,dataset,M$4, FALSE), "") -> 0.1580265696 | N15: =IFERROR(VLOOKUP($T$4&$A15,dataset,N$4, FALSE), "") -> 46.37448935 | O15: =IFERROR(VLOOKUP($T$4&$A15,dataset,O$4, FALSE), "") -> -0.726813988 | P15: =IFERROR(VLOOKUP($T$4&$A15,dataset,P$4, FALSE), "") -> 0 | Q15: =IFERROR(VLOOKUP($T$4&$A15,dataset,Q$4, FALSE), "") -> -1 | R15: =IFERROR(VLOOKUP($T$4&$A15,dataset,R$4, FALSE), "") -> 0 | S15: =IFERROR(VLOOKUP($T$4&$A15,dataset,S$4, FALSE), "") -> -48.20817928 | U15: =IFERROR(VLOOKUP($T$4&$A15,dataset,U$4, FALSE), "") -> 0.1847225583 | V15: =IFERROR(VLOOKUP($T$4&$A15,dataset,V$4, FALSE), "") -> -0.1344652465 | W15: =IFERROR(VLOOKUP($T$4&$A15,dataset,W$4, FALSE), "") -> 0.005711667176 | X15: =IFERROR(VLOOKUP($T$4&$A15,dataset,X$4, FALSE), "") -> 1.009593898 | Y15: =IFERROR(VLOOKUP($T$4&$A15,dataset,Y$4, FALSE), "") -> 10.38862287 | Z15: =IFERROR(VLOOKUP($T$4&$A15,dataset,Z$4, FALSE), "") -> -6.846788131 | AA15: =IFERROR(VLOOKUP($T$4&$A15,dataset,AA$4, FALSE), "") -> 0 | AB15: =IFERROR(VLOOKUP($T$4&$A15,dataset,AB$4, FALSE), "") -> 3.857829035 | AC15: =IFERROR(VLOOKUP($T$4&$A15,dataset,AC$4, FALSE), "") -> 44.26153846 | AD15: =IFERROR(VLOOKUP($T$4&$A15,dataset,AD$4, FALSE), "") -> 1 | AE15: =IFERROR(VLOOKUP($T$4&$A15,dataset,AE$4, FALSE), "") -> 5.180912794 | AF15: =IFERROR(VLOOKUP($T$4&$A15,dataset,AF$4, FALSE), "") -> -0.0006307971315 | AG15: =IFERROR(VLOOKUP($T$4&$A15,dataset,AG$4, FALSE), "") -> 0.193170885 | AH15: =IFERROR(VLOOKUP($T$4&$A15,dataset,AH$4, FALSE), "") -> 1.875265492 | AI15: =IFERROR(VLOOKUP($T$4&$A15,dataset,AI$4, FALSE), "") -> 100 | AJ15: =IFERROR(VLOOKUP($T$4&$A15,dataset,AJ$4, FALSE), "") -> 0 | AK15: =IFERROR(VLOOKUP($T$4&$A15,dataset,AK$4, FALSE), "") -> 0 | AL15: =IFERROR(VLOOKUP($T$4&$A15,dataset,AL$4, FALSE), "") -> 8.211056182 | AM15: =IFERROR(VLOOKUP($T$4&$A15,dataset,AM$4, FALSE), "") -> 217.2323391 | AN15: =IFERROR(VLOOKUP($T$4&$A15,dataset,AN$4, FALSE), "") -> 1 | AO15: =IFERROR(VLOOKUP($T$4&$A15,dataset,AO$4, FALSE), "") -> 4.767682529 | AP15: =IFERROR(VLOOKUP($T$4&$A15,dataset,AP$4, FALSE), "") -> 0.9078255755 | AQ15: =IFERROR(VLOOKUP($T$4&$A15,dataset,AQ$4, FALSE), "") -> 0.139103969 | AR15: =IFERROR(VLOOKUP($T$4&$A15,dataset,AR$4, FALSE), "") -> 4.854687049 | AS15: =IFERROR(VLOOKUP($T$4&$A15,dataset,AS$4, FALSE), "") -> 100 | AT15: =IFERROR(VLOOKUP($T$4&$A15,dataset,AT$4, FALSE), "") -> 0 | AU15: =IFERROR(VLOOKUP($T$4&$A15,dataset,AU$4, FALSE), "") -> 0 | AV15: =IFERROR(VLOOKUP($T$4&$A15,dataset,AV$4, FALSE), "") -> 4.819642129 | AW15: =IFERROR(VLOOKUP($T$4&$A15,dataset,AW$4, FALSE), "") -> 207.4756672 | AX15: =IFERROR(VLOOKUP($T$4&$A15,dataset,AX$4, FALSE), "") -> 1 | AY15: =IFERROR(VLOOKUP($T$4&$A15,dataset,AY$4, FALSE), "") -> 3.33314241 | AZ15: =IFERROR(VLOOKUP($T$4&$A15,dataset,AZ$4, FALSE), "") -> -0.2509217892 | BA15: =IFERROR(VLOOKUP($T$4&$A15,dataset,BA$4, FALSE), "") -> 0.1750992214 | BB15: =IFERROR(VLOOKUP($T$4&$A15,dataset,BB$4, FALSE), "") -> 1.002060838 | BC15: =IFERROR(VLOOKUP($T$4&$A15,dataset,BC$4, FALSE), "") -> 99.83650662 | BD15: =IFERROR(VLOOKUP($T$4&$A15,dataset,BD$4, FALSE), "") -> -0.1634933783 | BE15: =IFERROR(VLOOKUP($T$4&$A15,dataset,BE$4, FALSE), "") -> 0 | BF15: =IFERROR(VLOOKUP($T$4&$A15,dataset,BF$4, FALSE), "") -> 2.217484803 | BG15: =IFERROR(VLOOKUP($T$4&$A15,dataset,BG$4, FALSE), "") -> 233.2657233 | BH15: =IFERROR(VLOOKUP($T$4&$A15,dataset,BH$4, FALSE), "") -> 1 | BI15: =IFERROR(VLOOKUP($T$4&$A15,dataset,BI$4, FALSE), "") -> 0.04026784809 | BJ15: =IFERROR(VLOOKUP($T$4&$A15,dataset,BJ$4, FALSE), "") -> 0.005306938632 | BK15: =IFERROR(VLOOKUP($T$4&$A15,dataset,BK$4, FALSE), "") -> 0.006732374856 | BL15: =IFERROR(VLOOKUP($T$4&$A15,dataset,BL$4, FALSE), "") -> 1 | BM15: =IFERROR(VLOOKUP($T$4&$A15,dataset,BM$4, FALSE), "") -> 5.379747753 | BN15: =IFERROR(VLOOKUP($T$4&$A15,dataset,BN$4, FALSE), "") -> 1.160732331 | BO15: =IFERROR(VLOOKUP($T$4&$A15,dataset,BO$4, FALSE), "") -> 0 | BP15: =IFERROR(VLOOKUP($T$4&$A15,dataset,BP$4, FALSE), "") -> 5.152 | BQ15: =IFERROR(VLOOKUP($T$4&$A15,dataset,BQ$4, FALSE), "") -> 17.41935484 | BR15: =IFERROR(VLOOKUP($T$4&$A15,dataset,BR$4, FALSE), "") -> 1 | BS15: =IFERROR(VLOOKUP($T$4&$A15,dataset,BS$4, FALSE), "") -> 0 | BT15: =IFERROR(VLOOKUP($T$4&$A15,dataset,BT$4, FALSE), "") -> 0 | BU15: =IFERROR(VLOOKUP($T$4&$A15,dataset,BU$4, FALSE), "") -> 0 | BV15: =IFERROR(VLOOKUP($T$4&$A15,dataset,BV$4, FALSE), "") -> 0 | BW15: =IFERROR(VLOOKUP($T$4&$A15,dataset,BW$4, FALSE), "") -> 0 | BX15: =IFERROR(VLOOKUP($T$4&$A15,dataset,BX$4, FALSE), "") -> 0 | BY15: =IFERROR(VLOOKUP($T$4&$A15,dataset,BY$4, FALSE), "") -> 0 | BZ15: =IFERROR(VLOOKUP($T$4&$A15,dataset,BZ$4, FALSE), "") -> 0 | CA15: =IFERROR(VLOOKUP($T$4&$A15,dataset,CA$4, FALSE), "") -> 0 | CB15: =IFERROR(VLOOKUP($T$4&$A15,dataset,CB$4, FALSE), "") -> 0 | CC15: =IFERROR(VLOOKUP($T$4&$A15,dataset,CC$4, FALSE), "") -> 1.025803282 | CD15: =IFERROR(VLOOKUP($T$4&$A15,dataset,CD$4, FALSE), "") -> 1.025803282 | CE15: =IFERROR(VLOOKUP($T$4&$A15,dataset,CE$4, FALSE), "") -> 0.1018122959 | CF15: =IFERROR(VLOOKUP($T$4&$A15,dataset,CF$4, FALSE), "") -> 1 | CG15: =IFERROR(VLOOKUP($T$4&$A15,dataset,CG$4, FALSE), "") -> 96.73599913 | CH15: =IFERROR(VLOOKUP($T$4&$A15,dataset,CH$4, FALSE), "") -> 96.73599913 | CI15: =IFERROR(VLOOKUP($T$4&$A15,dataset,CI$4, FALSE), "") -> 0 | CJ15: =IFERROR(VLOOKUP($T$4&$A15,dataset,CJ$4, FALSE), "") -> 5.84514901 | CK15: =IFERROR(VLOOKUP($T$4&$A15,dataset,CK$4, FALSE), "") -> 48.22204214 | CL15: =IFERROR(VLOOKUP($T$4&$A15,dataset,CL$4, FALSE), "") -> 1 | CM15: =IFERROR(VLOOKUP($T$4&$A15,dataset,CM$4, FALSE), "") -> 1.548759322 | CN15: =IFERROR(VLOOKUP($T$4&$A15,dataset,CN$4, FALSE), "") -> 1.548759322 | CO15: =IFERROR(VLOOKUP($T$4&$A15,dataset,CO$4, FALSE), "") -> 0.7423047342 | CP15: =IFERROR(VLOOKUP($T$4&$A15,dataset,CP$4, FALSE), "") -> 1.992820432 | CQ15: =IFERROR(VLOOKUP($T$4&$A15,dataset,CQ$4, FALSE), "") -> 99.83650662 | CR15: =IFERROR(VLOOKUP($T$4&$A15,dataset,CR$4, FALSE), "") -> 99.83650662 | CS15: =IFERROR(VLOOKUP($T$4&$A15,dataset,CS$4, FALSE), "") -> 0 | CT15: =IFERROR(VLOOKUP($T$4&$A15,dataset,CT$4, FALSE), "") -> 8.452638497 | CU15: =IFERROR(VLOOKUP($T$4&$A15,dataset,CU$4, FALSE), "") -> 57.76572327 | CV15: =IFERROR(VLOOKUP($T$4&$A15,dataset,CV$4, FALSE), "") -> 1 | CW15: =IFERROR(VLOOKUP($T$4&$A15,dataset,CW$4, FALSE), "") -> 0.2007565169 | CX15: =IFERROR(VLOOKUP($T$4&$A15,dataset,CX$4, FALSE), "") -> 0.01729721967 | CY15: =IFERROR(VLOOKUP($T$4&$A15,dataset,CY$4, FALSE), "") -> 0.01770185756 | CZ15: =IFERROR(VLOOKUP($T$4&$A15,dataset,CZ$4, FALSE), "") -> 1.080229898 | DA15: =IFERROR(VLOOKUP($T$4&$A15,dataset,DA$4, FALSE), "") -> 22.06465637 | DB15: =IFERROR(VLOOKUP($T$4&$A15,dataset,DB$4, FALSE), "") -> 0.8157902464 | DC15: =IFERROR(VLOOKUP($T$4&$A15,dataset,DC$4, FALSE), "") -> 0 | DD15: =IFERROR(VLOOKUP($T$4&$A15,dataset,DD$4, FALSE), "") -> 8.447615567 | DE15: =IFERROR(VLOOKUP($T$4&$A15,dataset,DE$4, FALSE), "") -> 28.31724138 | DF15: =IFERROR(VLOOKUP($T$4&$A15,dataset,DF$4, FALSE), "") -> 1 | DG15: =IFERROR(VLOOKUP($T$4&$A15,dataset,DG$4, FALSE), "") -> 0 | DH15: =IFERROR(VLOOKUP($T$4&$A15,dataset,DH$4, FALSE), "") -> 0 | DI15: =IFERROR(VLOOKUP($T$4&$A15,dataset,DI$4, FALSE), "") -> 0 | DJ15: =IFERROR(VLOOKUP($T$4&$A15,dataset,DJ$4, FALSE), "") -> 0 | DK15: =IFERROR(VLOOKUP($T$4&$A15,dataset,DK$4, FALSE), "") -> 0 | DL15: =IFERROR(VLOOKUP($T$4&$A15,dataset,DL$4, FALSE), "") -> 0 | DM15: =IFERROR(VLOOKUP($T$4&$A15,dataset,DM$4, FALSE), "") -> 0 | DN15: =IFERROR(VLOOKUP($T$4&$A15,dataset,DN$4, FALSE), "") -> 0 | DO15: =IFERROR(VLOOKUP($T$4&$A15,dataset,DO$4, FALSE), "") -> 0 | DP15: =IFERROR(VLOOKUP($T$4&$A15,dataset,DP$4, FALSE), "") -> 0 | DQ15: =IFERROR(VLOOKUP($T$4&$A15,dataset,DQ$4, FALSE), "") -> 0 | DR15: =IFERROR(VLOOKUP($T$4&$A15,dataset,DR$4, FALSE), "") -> 0 | DS15: =IFERROR(VLOOKUP($T$4&$A15,dataset,DS$4, FALSE), "") -> 0 | DT15: =IFERROR(VLOOKUP($T$4&$A15,dataset,DT$4, FALSE), "") -> 0 | DU15: =IFERROR(VLOOKUP($T$4&$A15,dataset,DU$4, FALSE), "") -> 0 | DV15: =IFERROR(VLOOKUP($T$4&$A15,dataset,DV$4, FALSE), "") -> 0 | DW15: =IFERROR(VLOOKUP($T$4&$A15,dataset,DW$4, FALSE), "") -> 0 | DX15: =IFERROR(VLOOKUP($T$4&$A15,dataset,DX$4, FALSE), "") -> 0 | DY15: =IFERROR(VLOOKUP($T$4&$A15,dataset,DY$4, FALSE), "") -> 0 | DZ15: =IFERROR(VLOOKUP($T$4&$A15,dataset,DZ$4, FALSE), "") -> 0 | EA15: =IFERROR(VLOOKUP($T$4&$A15,dataset,EA$4, FALSE), "") -> 0.5401495981 | EB15: =IFERROR(VLOOKUP($T$4&$A15,dataset,EB$4, FALSE), "") -> 0.2427974249 | EC15: =IFERROR(VLOOKUP($T$4&$A15,dataset,EC$4, FALSE), "") -> 0.2287659445 | ED15: =IFERROR(VLOOKUP($T$4&$A15,dataset,ED$4, FALSE), "") -> 1.106075531 | EE15: =IFERROR(VLOOKUP($T$4&$A15,dataset,EE$4, FALSE), "") -> 37.59947726 | EF15: =IFERROR(VLOOKUP($T$4&$A15,dataset,EF$4, FALSE), "") -> 26.26013852 | EG15: =IFERROR(VLOOKUP($T$4&$A15,dataset,EG$4, FALSE), "") -> 0 | EH15: =IFERROR(VLOOKUP($T$4&$A15,dataset,EH$4, FALSE), "") -> 3.51204058 | EI15: =IFERROR(VLOOKUP($T$4&$A15,dataset,EI$4, FALSE), "") -> 79.50617284 | EJ15: =IFERROR(VLOOKUP($T$4&$A15,dataset,EJ$4, FALSE), "") -> 1 | EK15: =IFERROR(VLOOKUP($T$4&$A15,dataset,EK$4, FALSE), "") -> 6.12893901 | EL15: =IFERROR(VLOOKUP($T$4&$A15,dataset,EL$4, FALSE), "") -> 0.9716522241 | EM15: =IFERROR(VLOOKUP($T$4&$A15,dataset,EM$4, FALSE), "") -> 0.04402349653 | EN15: =IFERROR(VLOOKUP($T$4&$A15,dataset,EN$4, FALSE), "") -> 4.731427348 | EO15: =IFERROR(VLOOKUP($T$4&$A15,dataset,EO$4, FALSE), "") -> 100 | EP15: =IFERROR(VLOOKUP($T$4&$A15,dataset,EP$4, FALSE), "") -> 0 | EQ15: =IFERROR(VLOOKUP($T$4&$A15,dataset,EQ$4, FALSE), "") -> 0 | ER15: =IFERROR(VLOOKUP($T$4&$A15,dataset,ER$4, FALSE), "") -> 1.590927734 | ES15: =IFERROR(VLOOKUP($T$4&$A15,dataset,ES$4, FALSE), "") -> 308.6279435 | ET15: =IFERROR(VLOOKUP($T$4&$A15,dataset,ET$4, FALSE), "") -> 1 | EU15: =IFERROR(VLOOKUP($T$4&$A15,dataset,EU$4, FALSE), "") -> 4.365090545 | EV15: =IFERROR(VLOOKUP($T$4&$A15,dataset,EV$4, FALSE), "") -> -0.3627747852 | EW15: =IFERROR(VLOOKUP($T$4&$A15,dataset,EW$4, FALSE), "") -> 0.06282245713 | EX15: =IFERROR(VLOOKUP($T$4&$A15,dataset,EX$4, FALSE), "") -> 4.019905638 | EY15: =IFERROR(VLOOKUP($T$4&$A15,dataset,EY$4, FALSE), "") -> 98.4481051 | EZ15: =IFERROR(VLOOKUP($T$4&$A15,dataset,EZ$4, FALSE), "") -> -0.5546793529 | FA15: =IFERROR(VLOOKUP($T$4&$A15,dataset,FA$4, FALSE), "") -> 0 | FB15: =IFERROR(VLOOKUP($T$4&$A15,dataset,FB$4, FALSE), "") -> 2.756056822 | FC15: =IFERROR(VLOOKUP($T$4&$A15,dataset,FC$4, FALSE), "") -> 176.5254777 | FD15: =IFERROR(VLOOKUP($T$4&$A15,dataset,FD$4, FALSE), "") -> 1 | FE15: =IFERROR(VLOOKUP($T$4&$A15,dataset,FE$4, FALSE), "") -> 0.05992656151 | FF15: =IFERROR(VLOOKUP($T$4&$A15,dataset,FF$4, FALSE), "") -> 0.05984107041 | FG15: =IFERROR(VLOOKUP($T$4&$A15,dataset,FG$4, FALSE), "") -> 0.002732903397 | FH15: =IFERROR(VLOOKUP($T$4&$A15,dataset,FH$4, FALSE), "") -> 1 | FI15: =IFERROR(VLOOKUP($T$4&$A15,dataset,FI$4, FALSE), "") -> 21.41646548 | FJ15: =IFERROR(VLOOKUP($T$4&$A15,dataset,FJ$4, FALSE), "") -> 20.58287253 | FK15: =IFERROR(VLOOKUP($T$4&$A15,dataset,FK$4, FALSE), "") -> 0 | FL15: =IFERROR(VLOOKUP($T$4&$A15,dataset,FL$4, FALSE), "") -> 2.493023032 | FM15: =IFERROR(VLOOKUP($T$4&$A15,dataset,FM$4, FALSE), "") -> 17.5 | FN15: =IFERROR(VLOOKUP($T$4&$A15,dataset,FN$4, FALSE), "") -> 1
A16: 8 | C16: =IFERROR(VLOOKUP($T$4&$A16,dataset,C$4, FALSE), "") -> Ahold Corp | D16: =IFERROR(VLOOKUP($T$4&$A16,dataset,D$4, FALSE), "") -> 2 | E16: =IFERROR(VLOOKUP($T$4&$A16,dataset,E$3, FALSE)/VLOOKUP($T$4&$A16,dataset,E$4, FALSE)-1, "") -> 0.07559741551 | F16: =IFERROR(VLOOKUP($T$4&$A16,dataset,F$3, FALSE)/VLOOKUP($T$4&$A16,dataset,F$4, FALSE)-1, "") -> 0.09846108625 | G16: =IFERROR((VLOOKUP($T$4&$A16,dataset,E$3, FALSE)-VLOOKUP($T$4&$A16,dataset,F$3, FALSE))/(VLOOKUP($T$4&$A16,dataset,E$4, FALSE)-VLOOKUP($T$4&$A16,dataset,F$4, FALSE))-1, "") -> 0.06003229341 | H16: =IFERROR(VLOOKUP($T$4&$A16,dataset,H$4, FALSE),"") -> 41.36477972 | I16: =IFERROR(VLOOKUP($T$4&$A16,dataset,I$4, FALSE), "") -> 0.860977886 | J16: =IFERROR(VLOOKUP($T$4&$A16,dataset,J$4, FALSE), "") -> 5.285885258 | K16: =IFERROR(VLOOKUP($T$4&$A16,dataset,K$4, FALSE), "") -> 5.348742527 | L16: =IFERROR(VLOOKUP($T$4&$A16,dataset,L$4, FALSE), "") -> -0.06285726907 | M16: =IFERROR(VLOOKUP($T$4&$A16,dataset,M$4, FALSE), "") -> 0.03269117798 | N16: =IFERROR(VLOOKUP($T$4&$A16,dataset,N$4, FALSE), "") -> 24.8033763 | O16: =IFERROR(VLOOKUP($T$4&$A16,dataset,O$4, FALSE), "") -> 0.9013349286 | P16: =IFERROR(VLOOKUP($T$4&$A16,dataset,P$4, FALSE), "") -> 0 | Q16: =IFERROR(VLOOKUP($T$4&$A16,dataset,Q$4, FALSE), "") -> -1 | R16: =IFERROR(VLOOKUP($T$4&$A16,dataset,R$4, FALSE), "") -> 0 | S16: =IFERROR(VLOOKUP($T$4&$A16,dataset,S$4, FALSE), "") -> -41.32278038 | U16: =IFERROR(VLOOKUP($T$4&$A16,dataset,U$4, FALSE), "") -> 0.01471525787 | V16: =IFERROR(VLOOKUP($T$4&$A16,dataset,V$4, FALSE), "") -> 0.002647276829 | W16: =IFERROR(VLOOKUP($T$4&$A16,dataset,W$4, FALSE), "") -> 0.0002858160792 | X16: =IFERROR(VLOOKUP($T$4&$A16,dataset,X$4, FALSE), "") -> 2.793430954 | Y16: =IFERROR(VLOOKUP($T$4&$A16,dataset,Y$4, FALSE), "") -> 1.693131979 | Z16: =IFERROR(VLOOKUP($T$4&$A16,dataset,Z$4, FALSE), "") -> 0.02687057678 | AA16: =IFERROR(VLOOKUP($T$4&$A16,dataset,AA$4, FALSE), "") -> 0 | AB16: =IFERROR(VLOOKUP($T$4&$A16,dataset,AB$4, FALSE), "") -> 4.599343495 | AC16: =IFERROR(VLOOKUP($T$4&$A16,dataset,AC$4, FALSE), "") -> 46.56760741 | AD16: =IFERROR(VLOOKUP($T$4&$A16,dataset,AD$4, FALSE), "") -> 1 | AE16: =IFERROR(VLOOKUP($T$4&$A16,dataset,AE$4, FALSE), "") -> 1.136562346 | AF16: =IFERROR(VLOOKUP($T$4&$A16,dataset,AF$4, FALSE), "") -> 0.4611980408 | AG16: =IFERROR(VLOOKUP($T$4&$A16,dataset,AG$4, FALSE), "") -> 0.02661978068 | AH16: =IFERROR(VLOOKUP($T$4&$A16,dataset,AH$4, FALSE), "") -> 3.717986798 | AI16: =IFERROR(VLOOKUP($T$4&$A16,dataset,AI$4, FALSE), "") -> 92.76528544 | AJ16: =IFERROR(VLOOKUP($T$4&$A16,dataset,AJ$4, FALSE), "") -> -4.305123156 | AK16: =IFERROR(VLOOKUP($T$4&$A16,dataset,AK$4, FALSE), "") -> 0 | AL16: =IFERROR(VLOOKUP($T$4&$A16,dataset,AL$4, FALSE), "") -> 12.49952672 | AM16: =IFERROR(VLOOKUP($T$4&$A16,dataset,AM$4, FALSE), "") -> 38.72556377 | AN16: =IFERROR(VLOOKUP($T$4&$A16,dataset,AN$4, FALSE), "") -> 1 | AO16: =IFERROR(VLOOKUP($T$4&$A16,dataset,AO$4, FALSE), "") -> 1.113857399 | AP16: =IFERROR(VLOOKUP($T$4&$A16,dataset,AP$4, FALSE), "") -> -0.07771689189 | AQ16: =IFERROR(VLOOKUP($T$4&$A16,dataset,AQ$4, FALSE), "") -> 0.02041444649 | AR16: =IFERROR(VLOOKUP($T$4&$A16,dataset,AR$4, FALSE), "") -> 8.006154805 | AS16: =IFERROR(VLOOKUP($T$4&$A16,dataset,AS$4, FALSE), "") -> 98.06003629 | AT16: =IFERROR(VLOOKUP($T$4&$A16,dataset,AT$4, FALSE), "") -> -1.305813643 | AU16: =IFERROR(VLOOKUP($T$4&$A16,dataset,AU$4, FALSE), "") -> 0 | AV16: =IFERROR(VLOOKUP($T$4&$A16,dataset,AV$4, FALSE), "") -> 8.068896784 | AW16: =IFERROR(VLOOKUP($T$4&$A16,dataset,AW$4, FALSE), "") -> 30.25978902 | AX16: =IFERROR(VLOOKUP($T$4&$A16,dataset,AX$4, FALSE), "") -> 1 | AY16: =IFERROR(VLOOKUP($T$4&$A16,dataset,AY$4, FALSE), "") -> 0.7311396118 | AZ16: =IFERROR(VLOOKUP($T$4&$A16,dataset,AZ$4, FALSE), "") -> 0.116471103 | BA16: =IFERROR(VLOOKUP($T$4&$A16,dataset,BA$4, FALSE), "") -> 0.02412717539 | BB16: =IFERROR(VLOOKUP($T$4&$A16,dataset,BB$4, FALSE), "") -> 3.341390166 | BC16: =IFERROR(VLOOKUP($T$4&$A16,dataset,BC$4, FALSE), "") -> 98.57582142 | BD16: =IFERROR(VLOOKUP($T$4&$A16,dataset,BD$4, FALSE), "") -> 0.2492285202 | BE16: =IFERROR(VLOOKUP($T$4&$A16,dataset,BE$4, FALSE), "") -> 0 | BF16: =IFERROR(VLOOKUP($T$4&$A16,dataset,BF$4, FALSE), "") -> 3.829805804 | BG16: =IFERROR(VLOOKUP($T$4&$A16,dataset,BG$4, FALSE), "") -> 35.70867866 | BH16: =IFERROR(VLOOKUP($T$4&$A16,dataset,BH$4, FALSE), "") -> 1 | BI16: =IFERROR(VLOOKUP($T$4&$A16,dataset,BI$4, FALSE), "") -> 0.05367882747 | BJ16: =IFERROR(VLOOKUP($T$4&$A16,dataset,BJ$4, FALSE), "") -> 0.0006431169943 | BK16: =IFERROR(VLOOKUP($T$4&$A16,dataset,BK$4, FALSE), "") -> 0.005637527981 | BL16: =IFERROR(VLOOKUP($T$4&$A16,dataset,BL$4, FALSE), "") -> 2.914778403 | BM16: =IFERROR(VLOOKUP($T$4&$A16,dataset,BM$4, FALSE), "") -> 46.73994473 | BN16: =IFERROR(VLOOKUP($T$4&$A16,dataset,BN$4, FALSE), "") -> 0.5910979983 | BO16: =IFERROR(VLOOKUP($T$4&$A16,dataset,BO$4, FALSE), "") -> 0 | BP16: =IFERROR(VLOOKUP($T$4&$A16,dataset,BP$4, FALSE), "") -> 9.068982419 | BQ16: =IFERROR(VLOOKUP($T$4&$A16,dataset,BQ$4, FALSE), "") -> 10.40571814 | BR16: =IFERROR(VLOOKUP($T$4&$A16,dataset,BR$4, FALSE), "") -> 1 | BS16: =IFERROR(VLOOKUP($T$4&$A16,dataset,BS$4, FALSE), "") -> 0.0865704354 | BT16: =IFERROR(VLOOKUP($T$4&$A16,dataset,BT$4, FALSE), "") -> 0.01051501192 | BU16: =IFERROR(VLOOKUP($T$4&$A16,dataset,BU$4, FALSE), "") -> 0.008863146945 | BV16: =IFERROR(VLOOKUP($T$4&$A16,dataset,BV$4, FALSE), "") -> 2.113067708 | BW16: =IFERROR(VLOOKUP($T$4&$A16,dataset,BW$4, FALSE), "") -> 95.74902403 | BX16: =IFERROR(VLOOKUP($T$4&$A16,dataset,BX$4, FALSE), "") -> 2.68603084 | BY16: =IFERROR(VLOOKUP($T$4&$A16,dataset,BY$4, FALSE), "") -> 0 | BZ16: =IFERROR(VLOOKUP($T$4&$A16,dataset,BZ$4, FALSE), "") -> 7.463147464 | CA16: =IFERROR(VLOOKUP($T$4&$A16,dataset,CA$4, FALSE), "") -> 5.705201183 | CB16: =IFERROR(VLOOKUP($T$4&$A16,dataset,CB$4, FALSE), "") -> 1 | CC16: =IFERROR(VLOOKUP($T$4&$A16,dataset,CC$4, FALSE), "") -> 0.6381976737 | CD16: =IFERROR(VLOOKUP($T$4&$A16,dataset,CD$4, FALSE), "") -> 0.2539394331 | CE16: =IFERROR(VLOOKUP($T$4&$A16,dataset,CE$4, FALSE), "") -> 0.03978938122 | CF16: =IFERROR(VLOOKUP($T$4&$A16,dataset,CF$4, FALSE), "") -> 5.290519841 | CG16: =IFERROR(VLOOKUP($T$4&$A16,dataset,CG$4, FALSE), "") -> 99.33448029 | CH16: =IFERROR(VLOOKUP($T$4&$A16,dataset,CH$4, FALSE), "") -> 6.697038593 | CI16: =IFERROR(VLOOKUP($T$4&$A16,dataset,CI$4, FALSE), "") -> 0 | CJ16: =IFERROR(VLOOKUP($T$4&$A16,dataset,CJ$4, FALSE), "") -> 7.602681442 | CK16: =IFERROR(VLOOKUP($T$4&$A16,dataset,CK$4, FALSE), "") -> 58.10431516 | CL16: =IFERROR(VLOOKUP($T$4&$A16,dataset,CL$4, FALSE), "") -> 1 | CM16: =IFERROR(VLOOKUP($T$4&$A16,dataset,CM$4, FALSE), "") -> 0.07263842537 | CN16: =IFERROR(VLOOKUP($T$4&$A16,dataset,CN$4, FALSE), "") -> -0.002583479245 | CO16: =IFERROR(VLOOKUP($T$4&$A16,dataset,CO$4, FALSE), "") -> 0.02186958491 | CP16: =IFERROR(VLOOKUP($T$4&$A16,dataset,CP$4, FALSE), "") -> 1.304408035 | CQ16: =IFERROR(VLOOKUP($T$4&$A16,dataset,CQ$4, FALSE), "") -> 80.30692885 | CR16: =IFERROR(VLOOKUP($T$4&$A16,dataset,CR$4, FALSE), "") -> 4.796307538 | CS16: =IFERROR(VLOOKUP($T$4&$A16,dataset,CS$4, FALSE), "") -> 0 | CT16: =IFERROR(VLOOKUP($T$4&$A16,dataset,CT$4, FALSE), "") -> 7.447471442 | CU16: =IFERROR(VLOOKUP($T$4&$A16,dataset,CU$4, FALSE), "") -> 3.201142159 | CV16: =IFERROR(VLOOKUP($T$4&$A16,dataset,CV$4, FALSE), "") -> 1 | CW16: =IFERROR(VLOOKUP($T$4&$A16,dataset,CW$4, FALSE), "") -> 1.869482977 | CX16: =IFERROR(VLOOKUP($T$4&$A16,dataset,CX$4, FALSE), "") -> -0.04436841627 | CY16: =IFERROR(VLOOKUP($T$4&$A16,dataset,CY$4, FALSE), "") -> 0.1035491472 | CZ16: =IFERROR(VLOOKUP($T$4&$A16,dataset,CZ$4, FALSE), "") -> 5.326513697 | DA16: =IFERROR(VLOOKUP($T$4&$A16,dataset,DA$4, FALSE), "") -> 99.22159711 | DB16: =IFERROR(VLOOKUP($T$4&$A16,dataset,DB$4, FALSE), "") -> 0.2491705115 | DC16: =IFERROR(VLOOKUP($T$4&$A16,dataset,DC$4, FALSE), "") -> 0 | DD16: =IFERROR(VLOOKUP($T$4&$A16,dataset,DD$4, FALSE), "") -> 9.731021135 | DE16: =IFERROR(VLOOKUP($T$4&$A16,dataset,DE$4, FALSE), "") -> 70.67046901 | DF16: =IFERROR(VLOOKUP($T$4&$A16,dataset,DF$4, FALSE), "") -> 1 | DG16: =IFERROR(VLOOKUP($T$4&$A16,dataset,DG$4, FALSE), "") -> 0.1680598249 | DH16: =IFERROR(VLOOKUP($T$4&$A16,dataset,DH$4, FALSE), "") -> 0.09957496925 | DI16: =IFERROR(VLOOKUP($T$4&$A16,dataset,DI$4, FALSE), "") -> 0.06731947104 | DJ16: =IFERROR(VLOOKUP($T$4&$A16,dataset,DJ$4, FALSE), "") -> 2.403454758 | DK16: =IFERROR(VLOOKUP($T$4&$A16,dataset,DK$4, FALSE), "") -> 94.64200528 | DL16: =IFERROR(VLOOKUP($T$4&$A16,dataset,DL$4, FALSE), "") -> 63.61109783 | DM16: =IFERROR(VLOOKUP($T$4&$A16,dataset,DM$4, FALSE), "") -> 0 | DN16: =IFERROR(VLOOKUP($T$4&$A16,dataset,DN$4, FALSE), "") -> 9.389503965 | DO16: =IFERROR(VLOOKUP($T$4&$A16,dataset,DO$4, FALSE), "") -> 7.104656815 | DP16: =IFERROR(VLOOKUP($T$4&$A16,dataset,DP$4, FALSE), "") -> 1 | DQ16: =IFERROR(VLOOKUP($T$4&$A16,dataset,DQ$4, FALSE), "") -> 0.06356971513 | DR16: =IFERROR(VLOOKUP($T$4&$A16,dataset,DR$4, FALSE), "") -> 0.06356971513 | DS16: =IFERROR(VLOOKUP($T$4&$A16,dataset,DS$4, FALSE), "") -> 0.04354016764 | DT16: =IFERROR(VLOOKUP($T$4&$A16,dataset,DT$4, FALSE), "") -> 1 | DU16: =IFERROR(VLOOKUP($T$4&$A16,dataset,DU$4, FALSE), "") -> 62.90004033 | DV16: =IFERROR(VLOOKUP($T$4&$A16,dataset,DV$4, FALSE), "") -> 62.90004033 | DW16: =IFERROR(VLOOKUP($T$4&$A16,dataset,DW$4, FALSE), "") -> 0 | DX16: =IFERROR(VLOOKUP($T$4&$A16,dataset,DX$4, FALSE), "") -> 8.00950104 | DY16: =IFERROR(VLOOKUP($T$4&$A16,dataset,DY$4, FALSE), "") -> 4.835728701 | DZ16: =IFERROR(VLOOKUP($T$4&$A16,dataset,DZ$4, FALSE), "") -> 1 | EA16: =IFERROR(VLOOKUP($T$4&$A16,dataset,EA$4, FALSE), "") -> 0.002433287101 | EB16: =IFERROR(VLOOKUP($T$4&$A16,dataset,EB$4, FALSE), "") -> 0.002237596541 | EC16: =IFERROR(VLOOKUP($T$4&$A16,dataset,EC$4, FALSE), "") -> 0.0006473609401 | ED16: =IFERROR(VLOOKUP($T$4&$A16,dataset,ED$4, FALSE), "") -> 2.274539671 | EE16: =IFERROR(VLOOKUP($T$4&$A16,dataset,EE$4, FALSE), "") -> 2.057747754 | EF16: =IFERROR(VLOOKUP($T$4&$A16,dataset,EF$4, FALSE), "") -> 1.923613092 | EG16: =IFERROR(VLOOKUP($T$4&$A16,dataset,EG$4, FALSE), "") -> 0 | EH16: =IFERROR(VLOOKUP($T$4&$A16,dataset,EH$4, FALSE), "") -> 10.5337286 | EI16: =IFERROR(VLOOKUP($T$4&$A16,dataset,EI$4, FALSE), "") -> 3.6879092 | EJ16: =IFERROR(VLOOKUP($T$4&$A16,dataset,EJ$4, FALSE), "") -> 1 | EK16: =IFERROR(VLOOKUP($T$4&$A16,dataset,EK$4, FALSE), "") -> 5.707434821 | EL16: =IFERROR(VLOOKUP($T$4&$A16,dataset,EL$4, FALSE), "") -> -1.305064807 | EM16: =IFERROR(VLOOKUP($T$4&$A16,dataset,EM$4, FALSE), "") -> 0.02575229958 | EN16: =IFERROR(VLOOKUP($T$4&$A16,dataset,EN$4, FALSE), "") -> 42.55890211 | EO16: =IFERROR(VLOOKUP($T$4&$A16,dataset,EO$4, FALSE), "") -> 100 | EP16: =IFERROR(VLOOKUP($T$4&$A16,dataset,EP$4, FALSE), "") -> 0 | EQ16: =IFERROR(VLOOKUP($T$4&$A16,dataset,EQ$4, FALSE), "") -> 0 | ER16: =IFERROR(VLOOKUP($T$4&$A16,dataset,ER$4, FALSE), "") -> 4.835494076 | ES16: =IFERROR(VLOOKUP($T$4&$A16,dataset,ES$4, FALSE), "") -> 290.9743307 | ET16: =IFERROR(VLOOKUP($T$4&$A16,dataset,ET$4, FALSE), "") -> 1 | EU16: =IFERROR(VLOOKUP($T$4&$A16,dataset,EU$4, FALSE), "") -> 13.21927131 | EV16: =IFERROR(VLOOKUP($T$4&$A16,dataset,EV$4, FALSE), "") -> 1.463041485 | EW16: =IFERROR(VLOOKUP($T$4&$A16,dataset,EW$4, FALSE), "") -> 0.1195102073 | EX16: =IFERROR(VLOOKUP($T$4&$A16,dataset,EX$4, FALSE), "") -> 68.16510986 | EY16: =IFERROR(VLOOKUP($T$4&$A16,dataset,EY$4, FALSE), "") -> 100 | EZ16: =IFERROR(VLOOKUP($T$4&$A16,dataset,EZ$4, FALSE), "") -> 0 | FA16: =IFERROR(VLOOKUP($T$4&$A16,dataset,FA$4, FALSE), "") -> 0 | FB16: =IFERROR(VLOOKUP($T$4&$A16,dataset,FB$4, FALSE), "") -> 4.619033601 | FC16: =IFERROR(VLOOKUP($T$4&$A16,dataset,FC$4, FALSE), "") -> 726.0362783 | FD16: =IFERROR(VLOOKUP($T$4&$A16,dataset,FD$4, FALSE), "") -> 1 | FE16: =IFERROR(VLOOKUP($T$4&$A16,dataset,FE$4, FALSE), "") -> 0.8227530874 | FF16: =IFERROR(VLOOKUP($T$4&$A16,dataset,FF$4, FALSE), "") -> -0.09257047139 | FG16: =IFERROR(VLOOKUP($T$4&$A16,dataset,FG$4, FALSE), "") -> 0.02356949426 | FH16: =IFERROR(VLOOKUP($T$4&$A16,dataset,FH$4, FALSE), "") -> 10.14429846 | FI16: =IFERROR(VLOOKUP($T$4&$A16,dataset,FI$4, FALSE), "") -> 99.20622021 | FJ16: =IFERROR(VLOOKUP($T$4&$A16,dataset,FJ$4, FALSE), "") -> 0.3463776547 | FK16: =IFERROR(VLOOKUP($T$4&$A16,dataset,FK$4, FALSE), "") -> 0 | FL16: =IFERROR(VLOOKUP($T$4&$A16,dataset,FL$4, FALSE), "") -> 7.338292758 | FM16: =IFERROR(VLOOKUP($T$4&$A16,dataset,FM$4, FALSE), "") -> 33.34683598 | FN16: =IFERROR(VLOOKUP($T$4&$A16,dataset,FN$4, FALSE), "") -> 1
A17: 9 | C17: =IFERROR(VLOOKUP($T$4&$A17,dataset,C$4, FALSE), "") -> Albertsons-Safeway | D17: =IFERROR(VLOOKUP($T$4&$A17,dataset,D$4, FALSE), "") -> 2 | E17: =IFERROR(VLOOKUP($T$4&$A17,dataset,E$3, FALSE)/VLOOKUP($T$4&$A17,dataset,E$4, FALSE)-1, "") -> 0.02572668693 | F17: =IFERROR(VLOOKUP($T$4&$A17,dataset,F$3, FALSE)/VLOOKUP($T$4&$A17,dataset,F$4, FALSE)-1, "") -> 0.006334563382 | G17: =IFERROR((VLOOKUP($T$4&$A17,dataset,E$3, FALSE)-VLOOKUP($T$4&$A17,dataset,F$3, FALSE))/(VLOOKUP($T$4&$A17,dataset,E$4, FALSE)-VLOOKUP($T$4&$A17,dataset,F$4, FALSE))-1, "") -> 0.05470934847 | H17: =IFERROR(VLOOKUP($T$4&$A17,dataset,H$4, FALSE),"") -> 58.78004994 | I17: =IFERROR(VLOOKUP($T$4&$A17,dataset,I$4, FALSE), "") -> -1.132694863 | J17: =IFERROR(VLOOKUP($T$4&$A17,dataset,J$4, FALSE), "") -> 4.695739546 | K17: =IFERROR(VLOOKUP($T$4&$A17,dataset,K$4, FALSE), "") -> 4.69442222 | L17: =IFERROR(VLOOKUP($T$4&$A17,dataset,L$4, FALSE), "") -> 0.001317326158 | M17: =IFERROR(VLOOKUP($T$4&$A17,dataset,M$4, FALSE), "") -> -0.4149339368 | N17: =IFERROR(VLOOKUP($T$4&$A17,dataset,N$4, FALSE), "") -> 36.35555091 | O17: =IFERROR(VLOOKUP($T$4&$A17,dataset,O$4, FALSE), "") -> -1.316342886 | P17: =IFERROR(VLOOKUP($T$4&$A17,dataset,P$4, FALSE), "") -> 0 | Q17: =IFERROR(VLOOKUP($T$4&$A17,dataset,Q$4, FALSE), "") -> -1 | R17: =IFERROR(VLOOKUP($T$4&$A17,dataset,R$4, FALSE), "") -> 0 | S17: =IFERROR(VLOOKUP($T$4&$A17,dataset,S$4, FALSE), "") -> -52.92929089 | U17: =IFERROR(VLOOKUP($T$4&$A17,dataset,U$4, FALSE), "") -> 0.6522458576 | V17: =IFERROR(VLOOKUP($T$4&$A17,dataset,V$4, FALSE), "") -> 0.1087926823 | W17: =IFERROR(VLOOKUP($T$4&$A17,dataset,W$4, FALSE), "") -> 0.01133067267 | X17: =IFERROR(VLOOKUP($T$4&$A17,dataset,X$4, FALSE), "") -> 6.260837237 | Y17: =IFERROR(VLOOKUP($T$4&$A17,dataset,Y$4, FALSE), "") -> 47.99602526 | Z17: =IFERROR(VLOOKUP($T$4&$A17,dataset,Z$4, FALSE), "") -> 4.252443968 | AA17: =IFERROR(VLOOKUP($T$4&$A17,dataset,AA$4, FALSE), "") -> 0 | AB17: =IFERROR(VLOOKUP($T$4&$A17,dataset,AB$4, FALSE), "") -> 4.281652661 | AC17: =IFERROR(VLOOKUP($T$4&$A17,dataset,AC$4, FALSE), "") -> 57.54948538 | AD17: =IFERROR(VLOOKUP($T$4&$A17,dataset,AD$4, FALSE), "") -> 1 | AE17: =IFERROR(VLOOKUP($T$4&$A17,dataset,AE$4, FALSE), "") -> 1.643553503 | AF17: =IFERROR(VLOOKUP($T$4&$A17,dataset,AF$4, FALSE), "") -> 0.4719875315 | AG17: =IFERROR(VLOOKUP($T$4&$A17,dataset,AG$4, FALSE), "") -> 0.03442870119 | AH17: =IFERROR(VLOOKUP($T$4&$A17,dataset,AH$4, FALSE), "") -> 4.567380911 | AI17: =IFERROR(VLOOKUP($T$4&$A17,dataset,AI$4, FALSE), "") -> 78.27056844 | AJ17: =IFERROR(VLOOKUP($T$4&$A17,dataset,AJ$4, FALSE), "") -> 8.858042908 | AK17: =IFERROR(VLOOKUP($T$4&$A17,dataset,AK$4, FALSE), "") -> 0 | AL17: =IFERROR(VLOOKUP($T$4&$A17,dataset,AL$4, FALSE), "") -> 11.43254041 | AM17: =IFERROR(VLOOKUP($T$4&$A17,dataset,AM$4, FALSE), "") -> 69.05856945 | AN17: =IFERROR(VLOOKUP($T$4&$A17,dataset,AN$4, FALSE), "") -> 1 | AO17: =IFERROR(VLOOKUP($T$4&$A17,dataset,AO$4, FALSE), "") -> 1.684131994 | AP17: =IFERROR(VLOOKUP($T$4&$A17,dataset,AP$4, FALSE), "") -> 0.09550448664 | AQ17: =IFERROR(VLOOKUP($T$4&$A17,dataset,AQ$4, FALSE), "") -> 0.02760639674 | AR17: =IFERROR(VLOOKUP($T$4&$A17,dataset,AR$4, FALSE), "") -> 11.31463915 | AS17: =IFERROR(VLOOKUP($T$4&$A17,dataset,AS$4, FALSE), "") -> 95.72100551 | AT17: =IFERROR(VLOOKUP($T$4&$A17,dataset,AT$4, FALSE), "") -> 2.712862621 | AU17: =IFERROR(VLOOKUP($T$4&$A17,dataset,AU$4, FALSE), "") -> 0 | AV17: =IFERROR(VLOOKUP($T$4&$A17,dataset,AV$4, FALSE), "") -> 6.960168457 | AW17: =IFERROR(VLOOKUP($T$4&$A17,dataset,AW$4, FALSE), "") -> 45.9240672 | AX17: =IFERROR(VLOOKUP($T$4&$A17,dataset,AX$4, FALSE), "") -> 1 | AY17: =IFERROR(VLOOKUP($T$4&$A17,dataset,AY$4, FALSE), "") -> 0.6759200194 | AZ17: =IFERROR(VLOOKUP($T$4&$A17,dataset,AZ$4, FALSE), "") -> -0.2959200238 | BA17: =IFERROR(VLOOKUP($T$4&$A17,dataset,BA$4, FALSE), "") -> 0.01994927242 | BB17: =IFERROR(VLOOKUP($T$4&$A17,dataset,BB$4, FALSE), "") -> 3.191091438 | BC17: =IFERROR(VLOOKUP($T$4&$A17,dataset,BC$4, FALSE), "") -> 83.69952435 | BD17: =IFERROR(VLOOKUP($T$4&$A17,dataset,BD$4, FALSE), "") -> -5.796171563 | BE17: =IFERROR(VLOOKUP($T$4&$A17,dataset,BE$4, FALSE), "") -> 0 | BF17: =IFERROR(VLOOKUP($T$4&$A17,dataset,BF$4, FALSE), "") -> 3.660881587 | BG17: =IFERROR(VLOOKUP($T$4&$A17,dataset,BG$4, FALSE), "") -> 29.71071372 | BH17: =IFERROR(VLOOKUP($T$4&$A17,dataset,BH$4, FALSE), "") -> 1 | BI17: =IFERROR(VLOOKUP($T$4&$A17,dataset,BI$4, FALSE), "") -> 0.0134272933 | BJ17: =IFERROR(VLOOKUP($T$4&$A17,dataset,BJ$4, FALSE), "") -> -0.02287697954 | BK17: =IFERROR(VLOOKUP($T$4&$A17,dataset,BK$4, FALSE), "") -> 0.001261245847 | BL17: =IFERROR(VLOOKUP($T$4&$A17,dataset,BL$4, FALSE), "") -> 2.557433893 | BM17: =IFERROR(VLOOKUP($T$4&$A17,dataset,BM$4, FALSE), "") -> 6.125259481 | BN17: =IFERROR(VLOOKUP($T$4&$A17,dataset,BN$4, FALSE), "") -> -4.459919539 | BO17: =IFERROR(VLOOKUP($T$4&$A17,dataset,BO$4, FALSE), "") -> 0 | BP17: =IFERROR(VLOOKUP($T$4&$A17,dataset,BP$4, FALSE), "") -> 7.60308 | BQ17: =IFERROR(VLOOKUP($T$4&$A17,dataset,BQ$4, FALSE), "") -> 10.29478883 | BR17: =IFERROR(VLOOKUP($T$4&$A17,dataset,BR$4, FALSE), "") -> 1 | BS17: =IFERROR(VLOOKUP($T$4&$A17,dataset,BS$4, FALSE), "") -> 0.1291137387 | BT17: =IFERROR(VLOOKUP($T$4&$A17,dataset,BT$4, FALSE), "") -> 0.008613660743 | BU17: =IFERROR(VLOOKUP($T$4&$A17,dataset,BU$4, FALSE), "") -> 0.01182269236 | BV17: =IFERROR(VLOOKUP($T$4&$A17,dataset,BV$4, FALSE), "") -> 1.841395323 | BW17: =IFERROR(VLOOKUP($T$4&$A17,dataset,BW$4, FALSE), "") -> 84.80528271 | BX17: =IFERROR(VLOOKUP($T$4&$A17,dataset,BX$4, FALSE), "") -> -0.4812790298 | BY17: =IFERROR(VLOOKUP($T$4&$A17,dataset,BY$4, FALSE), "") -> 0 | BZ17: =IFERROR(VLOOKUP($T$4&$A17,dataset,BZ$4, FALSE), "") -> 7.93679115 | CA17: =IFERROR(VLOOKUP($T$4&$A17,dataset,CA$4, FALSE), "") -> 6.047489305 | CB17: =IFERROR(VLOOKUP($T$4&$A17,dataset,CB$4, FALSE), "") -> 1 | CC17: =IFERROR(VLOOKUP($T$4&$A17,dataset,CC$4, FALSE), "") -> 0.3643395213 | CD17: =IFERROR(VLOOKUP($T$4&$A17,dataset,CD$4, FALSE), "") -> 0.2157792134 | CE17: =IFERROR(VLOOKUP($T$4&$A17,dataset,CE$4, FALSE), "") -> 0.02031626344 | CF17: =IFERROR(VLOOKUP($T$4&$A17,dataset,CF$4, FALSE), "") -> 3.749105828 | CG17: =IFERROR(VLOOKUP($T$4&$A17,dataset,CG$4, FALSE), "") -> 87.34636572 | CH17: =IFERROR(VLOOKUP($T$4&$A17,dataset,CH$4, FALSE), "") -> 34.07077182 | CI17: =IFERROR(VLOOKUP($T$4&$A17,dataset,CI$4, FALSE), "") -> 0 | CJ17: =IFERROR(VLOOKUP($T$4&$A17,dataset,CJ$4, FALSE), "") -> 7.996145592 | CK17: =IFERROR(VLOOKUP($T$4&$A17,dataset,CK$4, FALSE), "") -> 24.59351808 | CL17: =IFERROR(VLOOKUP($T$4&$A17,dataset,CL$4, FALSE), "") -> 1 | CM17: =IFERROR(VLOOKUP($T$4&$A17,dataset,CM$4, FALSE), "") -> 0.03754225555 | CN17: =IFERROR(VLOOKUP($T$4&$A17,dataset,CN$4, FALSE), "") -> 0.01032002302 | CO17: =IFERROR(VLOOKUP($T$4&$A17,dataset,CO$4, FALSE), "") -> 0.01010927625 | CP17: =IFERROR(VLOOKUP($T$4&$A17,dataset,CP$4, FALSE), "") -> 1.274687797 | CQ17: =IFERROR(VLOOKUP($T$4&$A17,dataset,CQ$4, FALSE), "") -> 39.10834761 | CR17: =IFERROR(VLOOKUP($T$4&$A17,dataset,CR$4, FALSE), "") -> 5.716422872 | CS17: =IFERROR(VLOOKUP($T$4&$A17,dataset,CS$4, FALSE), "") -> 0 | CT17: =IFERROR(VLOOKUP($T$4&$A17,dataset,CT$4, FALSE), "") -> 8.041745319 | CU17: =IFERROR(VLOOKUP($T$4&$A17,dataset,CU$4, FALSE), "") -> 2.766400554 | CV17: =IFERROR(VLOOKUP($T$4&$A17,dataset,CV$4, FALSE), "") -> 1 | CW17: =IFERROR(VLOOKUP($T$4&$A17,dataset,CW$4, FALSE), "") -> 0.9078844286 | CX17: =IFERROR(VLOOKUP($T$4&$A17,dataset,CX$4, FALSE), "") -> 0.1489291354 | CY17: =IFERROR(VLOOKUP($T$4&$A17,dataset,CY$4, FALSE), "") -> 0.04497603466 | CZ17: =IFERROR(VLOOKUP($T$4&$A17,dataset,CZ$4, FALSE), "") -> 3.857938147 | DA17: =IFERROR(VLOOKUP($T$4&$A17,dataset,DA$4, FALSE), "") -> 85.40742636 | DB17: =IFERROR(VLOOKUP($T$4&$A17,dataset,DB$4, FALSE), "") -> -2.900258614 | DC17: =IFERROR(VLOOKUP($T$4&$A17,dataset,DC$4, FALSE), "") -> 0 | DD17: =IFERROR(VLOOKUP($T$4&$A17,dataset,DD$4, FALSE), "") -> 10.89012081 | DE17: =IFERROR(VLOOKUP($T$4&$A17,dataset,DE$4, FALSE), "") -> 25.75482005 | DF17: =IFERROR(VLOOKUP($T$4&$A17,dataset,DF$4, FALSE), "") -> 1 | DG17: =IFERROR(VLOOKUP($T$4&$A17,dataset,DG$4, FALSE), "") -> 0.02210344685 | DH17: =IFERROR(VLOOKUP($T$4&$A17,dataset,DH$4, FALSE), "") -> -0.03348702832 | DI17: =IFERROR(VLOOKUP($T$4&$A17,dataset,DI$4, FALSE), "") -> 0.007918854723 | DJ17: =IFERROR(VLOOKUP($T$4&$A17,dataset,DJ$4, FALSE), "") -> 1.73286222 | DK17: =IFERROR(VLOOKUP($T$4&$A17,dataset,DK$4, FALSE), "") -> 12.70762861 | DL17: =IFERROR(VLOOKUP($T$4&$A17,dataset,DL$4, FALSE), "") -> -16.39404422 | DM17: =IFERROR(VLOOKUP($T$4&$A17,dataset,DM$4, FALSE), "") -> 0 | DN17: =IFERROR(VLOOKUP($T$4&$A17,dataset,DN$4, FALSE), "") -> 10.80625025 | DO17: =IFERROR(VLOOKUP($T$4&$A17,dataset,DO$4, FALSE), "") -> 3.873093451 | DP17: =IFERROR(VLOOKUP($T$4&$A17,dataset,DP$4, FALSE), "") -> 1 | DQ17: =IFERROR(VLOOKUP($T$4&$A17,dataset,DQ$4, FALSE), "") -> 0.05244091768 | DR17: =IFERROR(VLOOKUP($T$4&$A17,dataset,DR$4, FALSE), "") -> 0.05244091768 | DS17: =IFERROR(VLOOKUP($T$4&$A17,dataset,DS$4, FALSE), "") -> 0.03212444981 | DT17: =IFERROR(VLOOKUP($T$4&$A17,dataset,DT$4, FALSE), "") -> 1 | DU17: =IFERROR(VLOOKUP($T$4&$A17,dataset,DU$4, FALSE), "") -> 45.99023249 | DV17: =IFERROR(VLOOKUP($T$4&$A17,dataset,DV$4, FALSE), "") -> 45.99023249 | DW17: =IFERROR(VLOOKUP($T$4&$A17,dataset,DW$4, FALSE), "") -> 0 | DX17: =IFERROR(VLOOKUP($T$4&$A17,dataset,DX$4, FALSE), "") -> 9.662471134 | DY17: =IFERROR(VLOOKUP($T$4&$A17,dataset,DY$4, FALSE), "") -> 3.264441977 | DZ17: =IFERROR(VLOOKUP($T$4&$A17,dataset,DZ$4, FALSE), "") -> 1 | EA17: =IFERROR(VLOOKUP($T$4&$A17,dataset,EA$4, FALSE), "") -> 0.3607377717 | EB17: =IFERROR(VLOOKUP($T$4&$A17,dataset,EB$4, FALSE), "") -> 0.2053672548 | EC17: =IFERROR(VLOOKUP($T$4&$A17,dataset,EC$4, FALSE), "") -> 0.08583617173 | ED17: =IFERROR(VLOOKUP($T$4&$A17,dataset,ED$4, FALSE), "") -> 2.97493661 | EE17: =IFERROR(VLOOKUP($T$4&$A17,dataset,EE$4, FALSE), "") -> 56.2555667 | EF17: =IFERROR(VLOOKUP($T$4&$A17,dataset,EF$4, FALSE), "") -> -4.845556994 | EG17: =IFERROR(VLOOKUP($T$4&$A17,dataset,EG$4, FALSE), "") -> 0 | EH17: =IFERROR(VLOOKUP($T$4&$A17,dataset,EH$4, FALSE), "") -> 4.707015793 | EI17: =IFERROR(VLOOKUP($T$4&$A17,dataset,EI$4, FALSE), "") -> 18.74792584 | EJ17: =IFERROR(VLOOKUP($T$4&$A17,dataset,EJ$4, FALSE), "") -> 1 | EK17: =IFERROR(VLOOKUP($T$4&$A17,dataset,EK$4, FALSE), "") -> 2.733830821 | EL17: =IFERROR(VLOOKUP($T$4&$A17,dataset,EL$4, FALSE), "") -> -0.3899177186 | EM17: =IFERROR(VLOOKUP($T$4&$A17,dataset,EM$4, FALSE), "") -> 0.01103245779 | EN17: =IFERROR(VLOOKUP($T$4&$A17,dataset,EN$4, FALSE), "") -> 25.10949981 | EO17: =IFERROR(VLOOKUP($T$4&$A17,dataset,EO$4, FALSE), "") -> 99.98900392 | EP17: =IFERROR(VLOOKUP($T$4&$A17,dataset,EP$4, FALSE), "") -> 0.1397753616 | EQ17: =IFERROR(VLOOKUP($T$4&$A17,dataset,EQ$4, FALSE), "") -> 0 | ER17: =IFERROR(VLOOKUP($T$4&$A17,dataset,ER$4, FALSE), "") -> 3.286972274 | ES17: =IFERROR(VLOOKUP($T$4&$A17,dataset,ES$4, FALSE), "") -> 138.7340652 | ET17: =IFERROR(VLOOKUP($T$4&$A17,dataset,ET$4, FALSE), "") -> 1 | EU17: =IFERROR(VLOOKUP($T$4&$A17,dataset,EU$4, FALSE), "") -> 3.511329068 | EV17: =IFERROR(VLOOKUP($T$4&$A17,dataset,EV$4, FALSE), "") -> 0.5820627359 | EW17: =IFERROR(VLOOKUP($T$4&$A17,dataset,EW$4, FALSE), "") -> 0.02839190933 | EX17: =IFERROR(VLOOKUP($T$4&$A17,dataset,EX$4, FALSE), "") -> 38.36657601 | EY17: =IFERROR(VLOOKUP($T$4&$A17,dataset,EY$4, FALSE), "") -> 43.98311226 | EZ17: =IFERROR(VLOOKUP($T$4&$A17,dataset,EZ$4, FALSE), "") -> -3.980325607 | FA17: =IFERROR(VLOOKUP($T$4&$A17,dataset,FA$4, FALSE), "") -> 0 | FB17: =IFERROR(VLOOKUP($T$4&$A17,dataset,FB$4, FALSE), "") -> 4.516806165 | FC17: =IFERROR(VLOOKUP($T$4&$A17,dataset,FC$4, FALSE), "") -> 258.6681058 | FD17: =IFERROR(VLOOKUP($T$4&$A17,dataset,FD$4, FALSE), "") -> 1 | FE17: =IFERROR(VLOOKUP($T$4&$A17,dataset,FE$4, FALSE), "") -> 0.9644389834 | FF17: =IFERROR(VLOOKUP($T$4&$A17,dataset,FF$4, FALSE), "") -> 0.129853259 | FG17: =IFERROR(VLOOKUP($T$4&$A17,dataset,FG$4, FALSE), "") -> 0.02471047442 | FH17: =IFERROR(VLOOKUP($T$4&$A17,dataset,FH$4, FALSE), "") -> 8.430222916 | FI17: =IFERROR(VLOOKUP($T$4&$A17,dataset,FI$4, FALSE), "") -> 94.86424967 | FJ17: =IFERROR(VLOOKUP($T$4&$A17,dataset,FJ$4, FALSE), "") -> 1.71622108 | FK17: =IFERROR(VLOOKUP($T$4&$A17,dataset,FK$4, FALSE), "") -> 0 | FL17: =IFERROR(VLOOKUP($T$4&$A17,dataset,FL$4, FALSE), "") -> 6.233900148 | FM17: =IFERROR(VLOOKUP($T$4&$A17,dataset,FM$4, FALSE), "") -> 32.58147744 | FN17: =IFERROR(VLOOKUP($T$4&$A17,dataset,FN$4, FALSE), "") -> 1
A18: 10 | C18: =IFERROR(VLOOKUP($T$4&$A18,dataset,C$4, FALSE), "") -> DH Delhaize | D18: =IFERROR(VLOOKUP($T$4&$A18,dataset,D$4, FALSE), "") -> 2 | E18: =IFERROR(VLOOKUP($T$4&$A18,dataset,E$3, FALSE)/VLOOKUP($T$4&$A18,dataset,E$4, FALSE)-1, "") -> -0.004354068369 | F18: =IFERROR(VLOOKUP($T$4&$A18,dataset,F$3, FALSE)/VLOOKUP($T$4&$A18,dataset,F$4, FALSE)-1, "") -> -0.07662956129 | G18: =IFERROR((VLOOKUP($T$4&$A18,dataset,E$3, FALSE)-VLOOKUP($T$4&$A18,dataset,F$3, FALSE))/(VLOOKUP($T$4&$A18,dataset,E$4, FALSE)-VLOOKUP($T$4&$A18,dataset,F$4, FALSE))-1, "") -> 0.08974157711 | H18: =IFERROR(VLOOKUP($T$4&$A18,dataset,H$4, FALSE),"") -> 52.45206379 | I18: =IFERROR(VLOOKUP($T$4&$A18,dataset,I$4, FALSE), "") -> -4.105609846 | J18: =IFERROR(VLOOKUP($T$4&$A18,dataset,J$4, FALSE), "") -> 4.873271409 | K18: =IFERROR(VLOOKUP($T$4&$A18,dataset,K$4, FALSE), "") -> 4.293289266 | L18: =IFERROR(VLOOKUP($T$4&$A18,dataset,L$4, FALSE), "") -> 0.5799821426 | M18: =IFERROR(VLOOKUP($T$4&$A18,dataset,M$4, FALSE), "") -> 0.1751993412 | N18: =IFERROR(VLOOKUP($T$4&$A18,dataset,N$4, FALSE), "") -> 33.79306736 | O18: =IFERROR(VLOOKUP($T$4&$A18,dataset,O$4, FALSE), "") -> -1.289546139 | P18: =IFERROR(VLOOKUP($T$4&$A18,dataset,P$4, FALSE), "") -> 0 | Q18: =IFERROR(VLOOKUP($T$4&$A18,dataset,Q$4, FALSE), "") -> -1 | R18: =IFERROR(VLOOKUP($T$4&$A18,dataset,R$4, FALSE), "") -> 0 | S18: =IFERROR(VLOOKUP($T$4&$A18,dataset,S$4, FALSE), "") -> -55.47556842 | U18: =IFERROR(VLOOKUP($T$4&$A18,dataset,U$4, FALSE), "") -> 0.6973124211 | V18: =IFERROR(VLOOKUP($T$4&$A18,dataset,V$4, FALSE), "") -> 0.4151387699 | W18: =IFERROR(VLOOKUP($T$4&$A18,dataset,W$4, FALSE), "") -> 0.01046652893 | X18: =IFERROR(VLOOKUP($T$4&$A18,dataset,X$4, FALSE), "") -> 4.424378199 | Y18: =IFERROR(VLOOKUP($T$4&$A18,dataset,Y$4, FALSE), "") -> 51.61536301 | Z18: =IFERROR(VLOOKUP($T$4&$A18,dataset,Z$4, FALSE), "") -> 34.80342855 | AA18: =IFERROR(VLOOKUP($T$4&$A18,dataset,AA$4, FALSE), "") -> 0 | AB18: =IFERROR(VLOOKUP($T$4&$A18,dataset,AB$4, FALSE), "") -> 4.441678918 | AC18: =IFERROR(VLOOKUP($T$4&$A18,dataset,AC$4, FALSE), "") -> 33.18903437 | AD18: =IFERROR(VLOOKUP($T$4&$A18,dataset,AD$4, FALSE), "") -> 1 | AE18: =IFERROR(VLOOKUP($T$4&$A18,dataset,AE$4, FALSE), "") -> 0.6038999857 | AF18: =IFERROR(VLOOKUP($T$4&$A18,dataset,AF$4, FALSE), "") -> 0.3407167754 | AG18: =IFERROR(VLOOKUP($T$4&$A18,dataset,AG$4, FALSE), "") -> 0.01093031619 | AH18: =IFERROR(VLOOKUP($T$4&$A18,dataset,AH$4, FALSE), "") -> 1.696498875 | AI18: =IFERROR(VLOOKUP($T$4&$A18,dataset,AI$4, FALSE), "") -> 89.03446763 | AJ18: =IFERROR(VLOOKUP($T$4&$A18,dataset,AJ$4, FALSE), "") -> 36.94028545 | AK18: =IFERROR(VLOOKUP($T$4&$A18,dataset,AK$4, FALSE), "") -> 0 | AL18: =IFERROR(VLOOKUP($T$4&$A18,dataset,AL$4, FALSE), "") -> 10.36833199 | AM18: =IFERROR(VLOOKUP($T$4&$A18,dataset,AM$4, FALSE), "") -> 16.35325169 | AN18: =IFERROR(VLOOKUP($T$4&$A18,dataset,AN$4, FALSE), "") -> 1 | AO18: =IFERROR(VLOOKUP($T$4&$A18,dataset,AO$4, FALSE), "") -> 0.5621013522 | AP18: =IFERROR(VLOOKUP($T$4&$A18,dataset,AP$4, FALSE), "") -> 0.004348645675 | AQ18: =IFERROR(VLOOKUP($T$4&$A18,dataset,AQ$4, FALSE), "") -> 0.007961211134 | AR18: =IFERROR(VLOOKUP($T$4&$A18,dataset,AR$4, FALSE), "") -> 6.471354302 | AS18: =IFERROR(VLOOKUP($T$4&$A18,dataset,AS$4, FALSE), "") -> 59.71991636 | AT18: =IFERROR(VLOOKUP($T$4&$A18,dataset,AT$4, FALSE), "") -> 8.258102489 | AU18: =IFERROR(VLOOKUP($T$4&$A18,dataset,AU$4, FALSE), "") -> 0 | AV18: =IFERROR(VLOOKUP($T$4&$A18,dataset,AV$4, FALSE), "") -> 7.670388254 | AW18: =IFERROR(VLOOKUP($T$4&$A18,dataset,AW$4, FALSE), "") -> 18.72466166 | AX18: =IFERROR(VLOOKUP($T$4&$A18,dataset,AX$4, FALSE), "") -> 1 | AY18: =IFERROR(VLOOKUP($T$4&$A18,dataset,AY$4, FALSE), "") -> 0.07395270524 | AZ18: =IFERROR(VLOOKUP($T$4&$A18,dataset,AZ$4, FALSE), "") -> -0.004504044357 | BA18: =IFERROR(VLOOKUP($T$4&$A18,dataset,BA$4, FALSE), "") -> 0.001885891615 | BB18: =IFERROR(VLOOKUP($T$4&$A18,dataset,BB$4, FALSE), "") -> 1.354431119 | BC18: =IFERROR(VLOOKUP($T$4&$A18,dataset,BC$4, FALSE), "") -> 26.28699927 | BD18: =IFERROR(VLOOKUP($T$4&$A18,dataset,BD$4, FALSE), "") -> 7.43922442 | BE18: =IFERROR(VLOOKUP($T$4&$A18,dataset,BE$4, FALSE), "") -> 0 | BF18: =IFERROR(VLOOKUP($T$4&$A18,dataset,BF$4, FALSE), "") -> 4.106742739 | BG18: =IFERROR(VLOOKUP($T$4&$A18,dataset,BG$4, FALSE), "") -> 6.784225747 | BH18: =IFERROR(VLOOKUP($T$4&$A18,dataset,BH$4, FALSE), "") -> 1 | BI18: =IFERROR(VLOOKUP($T$4&$A18,dataset,BI$4, FALSE), "") -> 0.1347335521 | BJ18: =IFERROR(VLOOKUP($T$4&$A18,dataset,BJ$4, FALSE), "") -> 0.01527714313 | BK18: =IFERROR(VLOOKUP($T$4&$A18,dataset,BK$4, FALSE), "") -> 0.01093497881 | BL18: =IFERROR(VLOOKUP($T$4&$A18,dataset,BL$4, FALSE), "") -> 1.259623797 | BM18: =IFERROR(VLOOKUP($T$4&$A18,dataset,BM$4, FALSE), "") -> 30.816707 | BN18: =IFERROR(VLOOKUP($T$4&$A18,dataset,BN$4, FALSE), "") -> 0.9833524728 | BO18: =IFERROR(VLOOKUP($T$4&$A18,dataset,BO$4, FALSE), "") -> 0 | BP18: =IFERROR(VLOOKUP($T$4&$A18,dataset,BP$4, FALSE), "") -> 7.59037636 | BQ18: =IFERROR(VLOOKUP($T$4&$A18,dataset,BQ$4, FALSE), "") -> 8.575196252 | BR18: =IFERROR(VLOOKUP($T$4&$A18,dataset,BR$4, FALSE), "") -> 1 | BS18: =IFERROR(VLOOKUP($T$4&$A18,dataset,BS$4, FALSE), "") -> 0.1243400004 | BT18: =IFERROR(VLOOKUP($T$4&$A18,dataset,BT$4, FALSE), "") -> 0.01908189211 | BU18: =IFERROR(VLOOKUP($T$4&$A18,dataset,BU$4, FALSE), "") -> 0.009837521828 | BV18: =IFERROR(VLOOKUP($T$4&$A18,dataset,BV$4, FALSE), "") -> 1.58757442 | BW18: =IFERROR(VLOOKUP($T$4&$A18,dataset,BW$4, FALSE), "") -> 90.25171743 | BX18: =IFERROR(VLOOKUP($T$4&$A18,dataset,BX$4, FALSE), "") -> 1.931037819 | BY18: =IFERROR(VLOOKUP($T$4&$A18,dataset,BY$4, FALSE), "") -> 0 | BZ18: =IFERROR(VLOOKUP($T$4&$A18,dataset,BZ$4, FALSE), "") -> 6.837150806 | CA18: =IFERROR(VLOOKUP($T$4&$A18,dataset,CA$4, FALSE), "") -> 4.322614583 | CB18: =IFERROR(VLOOKUP($T$4&$A18,dataset,CB$4, FALSE), "") -> 1 | CC18: =IFERROR(VLOOKUP($T$4&$A18,dataset,CC$4, FALSE), "") -> 0.1190885882 | CD18: =IFERROR(VLOOKUP($T$4&$A18,dataset,CD$4, FALSE), "") -> 0.01477629705 | CE18: =IFERROR(VLOOKUP($T$4&$A18,dataset,CE$4, FALSE), "") -> 0.005737710236 | CF18: =IFERROR(VLOOKUP($T$4&$A18,dataset,CF$4, FALSE), "") -> 1.234075183 | CG18: =IFERROR(VLOOKUP($T$4&$A18,dataset,CG$4, FALSE), "") -> 52.40144312 | CH18: =IFERROR(VLOOKUP($T$4&$A18,dataset,CH$4, FALSE), "") -> 21.95028342 | CI18: =IFERROR(VLOOKUP($T$4&$A18,dataset,CI$4, FALSE), "") -> 0 | CJ18: =IFERROR(VLOOKUP($T$4&$A18,dataset,CJ$4, FALSE), "") -> 9.476625999 | CK18: =IFERROR(VLOOKUP($T$4&$A18,dataset,CK$4, FALSE), "") -> 10.15206129 | CL18: =IFERROR(VLOOKUP($T$4&$A18,dataset,CL$4, FALSE), "") -> 1 | CM18: =IFERROR(VLOOKUP($T$4&$A18,dataset,CM$4, FALSE), "") -> 0.05614988773 | CN18: =IFERROR(VLOOKUP($T$4&$A18,dataset,CN$4, FALSE), "") -> -0.005695747813 | CO18: =IFERROR(VLOOKUP($T$4&$A18,dataset,CO$4, FALSE), "") -> 0.01306410035 | CP18: =IFERROR(VLOOKUP($T$4&$A18,dataset,CP$4, FALSE), "") -> 2.233118734 | CQ18: =IFERROR(VLOOKUP($T$4&$A18,dataset,CQ$4, FALSE), "") -> 34.61338897 | CR18: =IFERROR(VLOOKUP($T$4&$A18,dataset,CR$4, FALSE), "") -> -0.4751172127 | CS18: =IFERROR(VLOOKUP($T$4&$A18,dataset,CS$4, FALSE), "") -> 0 | CT18: =IFERROR(VLOOKUP($T$4&$A18,dataset,CT$4, FALSE), "") -> 7.0961677 | CU18: =IFERROR(VLOOKUP($T$4&$A18,dataset,CU$4, FALSE), "") -> 4.697782747 | CV18: =IFERROR(VLOOKUP($T$4&$A18,dataset,CV$4, FALSE), "") -> 1 | CW18: =IFERROR(VLOOKUP($T$4&$A18,dataset,CW$4, FALSE), "") -> 0.5575546776 | CX18: =IFERROR(VLOOKUP($T$4&$A18,dataset,CX$4, FALSE), "") -> -0.1350441238 | CY18: =IFERROR(VLOOKUP($T$4&$A18,dataset,CY$4, FALSE), "") -> 0.02386541397 | CZ18: =IFERROR(VLOOKUP($T$4&$A18,dataset,CZ$4, FALSE), "") -> 4.360418801 | DA18: =IFERROR(VLOOKUP($T$4&$A18,dataset,DA$4, FALSE), "") -> 62.83727136 | DB18: =IFERROR(VLOOKUP($T$4&$A18,dataset,DB$4, FALSE), "") -> 2.791569583 | DC18: =IFERROR(VLOOKUP($T$4&$A18,dataset,DC$4, FALSE), "") -> 0 | DD18: =IFERROR(VLOOKUP($T$4&$A18,dataset,DD$4, FALSE), "") -> 11.34364135 | DE18: =IFERROR(VLOOKUP($T$4&$A18,dataset,DE$4, FALSE), "") -> 21.15385709 | DF18: =IFERROR(VLOOKUP($T$4&$A18,dataset,DF$4, FALSE), "") -> 1 | DG18: =IFERROR(VLOOKUP($T$4&$A18,dataset,DG$4, FALSE), "") -> 0 | DH18: =IFERROR(VLOOKUP($T$4&$A18,dataset,DH$4, FALSE), "") -> 0 | DI18: =IFERROR(VLOOKUP($T$4&$A18,dataset,DI$4, FALSE), "") -> 0 | DJ18: =IFERROR(VLOOKUP($T$4&$A18,dataset,DJ$4, FALSE), "") -> 0 | DK18: =IFERROR(VLOOKUP($T$4&$A18,dataset,DK$4, FALSE), "") -> 0 | DL18: =IFERROR(VLOOKUP($T$4&$A18,dataset,DL$4, FALSE), "") -> 0 | DM18: =IFERROR(VLOOKUP($T$4&$A18,dataset,DM$4, FALSE), "") -> 0 | DN18: =IFERROR(VLOOKUP($T$4&$A18,dataset,DN$4, FALSE), "") -> 0 | DO18: =IFERROR(VLOOKUP($T$4&$A18,dataset,DO$4, FALSE), "") -> 0 | DP18: =IFERROR(VLOOKUP($T$4&$A18,dataset,DP$4, FALSE), "") -> 0 | DQ18: =IFERROR(VLOOKUP($T$4&$A18,dataset,DQ$4, FALSE), "") -> 0.02425114333 | DR18: =IFERROR(VLOOKUP($T$4&$A18,dataset,DR$4, FALSE), "") -> 0.02425114333 | DS18: =IFERROR(VLOOKUP($T$4&$A18,dataset,DS$4, FALSE), "") -> 0.01283596566 | DT18: =IFERROR(VLOOKUP($T$4&$A18,dataset,DT$4, FALSE), "") -> 1 | DU18: =IFERROR(VLOOKUP($T$4&$A18,dataset,DU$4, FALSE), "") -> 20.95726958 | DV18: =IFERROR(VLOOKUP($T$4&$A18,dataset,DV$4, FALSE), "") -> 20.95726958 | DW18: =IFERROR(VLOOKUP($T$4&$A18,dataset,DW$4, FALSE), "") -> 0 | DX18: =IFERROR(VLOOKUP($T$4&$A18,dataset,DX$4, FALSE), "") -> 9.545072071 | DY18: =IFERROR(VLOOKUP($T$4&$A18,dataset,DY$4, FALSE), "") -> 4.490419896 | DZ18: =IFERROR(VLOOKUP($T$4&$A18,dataset,DZ$4, FALSE), "") -> 1 | EA18: =IFERROR(VLOOKUP($T$4&$A18,dataset,EA$4, FALSE), "") -> 0.02689359611 | EB18: =IFERROR(VLOOKUP($T$4&$A18,dataset,EB$4, FALSE), "") -> 0.02689359611 | EC18: =IFERROR(VLOOKUP($T$4&$A18,dataset,EC$4, FALSE), "") -> 0.005529151794 | ED18: =IFERROR(VLOOKUP($T$4&$A18,dataset,ED$4, FALSE), "") -> 1.427266046 | EE18: =IFERROR(VLOOKUP($T$4&$A18,dataset,EE$4, FALSE), "") -> 21.40918731 | EF18: =IFERROR(VLOOKUP($T$4&$A18,dataset,EF$4, FALSE), "") -> 21.40918731 | EG18: =IFERROR(VLOOKUP($T$4&$A18,dataset,EG$4, FALSE), "") -> 0 | EH18: =IFERROR(VLOOKUP($T$4&$A18,dataset,EH$4, FALSE), "") -> 7.806573214 | EI18: =IFERROR(VLOOKUP($T$4&$A18,dataset,EI$4, FALSE), "") -> 2.205054921 | EJ18: =IFERROR(VLOOKUP($T$4&$A18,dataset,EJ$4, FALSE), "") -> 1 | EK18: =IFERROR(VLOOKUP($T$4&$A18,dataset,EK$4, FALSE), "") -> 8.191052743 | EL18: =IFERROR(VLOOKUP($T$4&$A18,dataset,EL$4, FALSE), "") -> 0.2750554181 | EM18: =IFERROR(VLOOKUP($T$4&$A18,dataset,EM$4, FALSE), "") -> 0.02856085961 | EN18: =IFERROR(VLOOKUP($T$4&$A18,dataset,EN$4, FALSE), "") -> 40.71360964 | EO18: =IFERROR(VLOOKUP($T$4&$A18,dataset,EO$4, FALSE), "") -> 100 | EP18: =IFERROR(VLOOKUP($T$4&$A18,dataset,EP$4, FALSE), "") -> 0 | EQ18: =IFERROR(VLOOKUP($T$4&$A18,dataset,EQ$4, FALSE), "") -> 0 | ER18: =IFERROR(VLOOKUP($T$4&$A18,dataset,ER$4, FALSE), "") -> 3.25982447 | ES18: =IFERROR(VLOOKUP($T$4&$A18,dataset,ES$4, FALSE), "") -> 263.2266503 | ET18: =IFERROR(VLOOKUP($T$4&$A18,dataset,ET$4, FALSE), "") -> 1 | EU18: =IFERROR(VLOOKUP($T$4&$A18,dataset,EU$4, FALSE), "") -> 11.82528536 | EV18: =IFERROR(VLOOKUP($T$4&$A18,dataset,EV$4, FALSE), "") -> 0.7249382952 | EW18: =IFERROR(VLOOKUP($T$4&$A18,dataset,EW$4, FALSE), "") -> 0.08261627514 | EX18: =IFERROR(VLOOKUP($T$4&$A18,dataset,EX$4, FALSE), "") -> 49.42317117 | EY18: =IFERROR(VLOOKUP($T$4&$A18,dataset,EY$4, FALSE), "") -> 98.21282304 | EZ18: =IFERROR(VLOOKUP($T$4&$A18,dataset,EZ$4, FALSE), "") -> 1.353712078 | FA18: =IFERROR(VLOOKUP($T$4&$A18,dataset,FA$4, FALSE), "") -> 0 | FB18: =IFERROR(VLOOKUP($T$4&$A18,dataset,FB$4, FALSE), "") -> 4.224995469 | FC18: =IFERROR(VLOOKUP($T$4&$A18,dataset,FC$4, FALSE), "") -> 380.9917975 | FD18: =IFERROR(VLOOKUP($T$4&$A18,dataset,FD$4, FALSE), "") -> 1 | FE18: =IFERROR(VLOOKUP($T$4&$A18,dataset,FE$4, FALSE), "") -> 0.3821307472 | FF18: =IFERROR(VLOOKUP($T$4&$A18,dataset,FF$4, FALSE), "") -> -0.00794823154 | FG18: =IFERROR(VLOOKUP($T$4&$A18,dataset,FG$4, FALSE), "") -> 0.008459588211 | FH18: =IFERROR(VLOOKUP($T$4&$A18,dataset,FH$4, FALSE), "") -> 5.82224018 | FI18: =IFERROR(VLOOKUP($T$4&$A18,dataset,FI$4, FALSE), "") -> 67.96327755 | FJ18: =IFERROR(VLOOKUP($T$4&$A18,dataset,FJ$4, FALSE), "") -> 5.404542193 | FK18: =IFERROR(VLOOKUP($T$4&$A18,dataset,FK$4, FALSE), "") -> 0 | FL18: =IFERROR(VLOOKUP($T$4&$A18,dataset,FL$4, FALSE), "") -> 6.154061654 | FM18: =IFERROR(VLOOKUP($T$4&$A18,dataset,FM$4, FALSE), "") -> 13.67320466 | FN18: =IFERROR(VLOOKUP($T$4&$A18,dataset,FN$4, FALSE), "") -> 1
A19: 11 | C19: =IFERROR(VLOOKUP($T$4&$A19,dataset,C$4, FALSE), "") -> Kroger/Harris Teeter | D19: =IFERROR(VLOOKUP($T$4&$A19,dataset,D$4, FALSE), "") -> 2 | E19: =IFERROR(VLOOKUP($T$4&$A19,dataset,E$3, FALSE)/VLOOKUP($T$4&$A19,dataset,E$4, FALSE)-1, "") -> 0.003912951128 | F19: =IFERROR(VLOOKUP($T$4&$A19,dataset,F$3, FALSE)/VLOOKUP($T$4&$A19,dataset,F$4, FALSE)-1, "") -> -0.03031960349 | G19: =IFERROR((VLOOKUP($T$4&$A19,dataset,E$3, FALSE)-VLOOKUP($T$4&$A19,dataset,F$3, FALSE))/(VLOOKUP($T$4&$A19,dataset,E$4, FALSE)-VLOOKUP($T$4&$A19,dataset,F$4, FALSE))-1, "") -> 0.05508455616 | H19: =IFERROR(VLOOKUP($T$4&$A19,dataset,H$4, FALSE),"") -> 57.87387665 | I19: =IFERROR(VLOOKUP($T$4&$A19,dataset,I$4, FALSE), "") -> -2.043117145 | J19: =IFERROR(VLOOKUP($T$4&$A19,dataset,J$4, FALSE), "") -> 4.544781992 | K19: =IFERROR(VLOOKUP($T$4&$A19,dataset,K$4, FALSE), "") -> 4.070445383 | L19: =IFERROR(VLOOKUP($T$4&$A19,dataset,L$4, FALSE), "") -> 0.4743366098 | M19: =IFERROR(VLOOKUP($T$4&$A19,dataset,M$4, FALSE), "") -> -0.1586547941 | N19: =IFERROR(VLOOKUP($T$4&$A19,dataset,N$4, FALSE), "") -> 32.17076609 | O19: =IFERROR(VLOOKUP($T$4&$A19,dataset,O$4, FALSE), "") -> -1.907986728 | P19: =IFERROR(VLOOKUP($T$4&$A19,dataset,P$4, FALSE), "") -> 0 | Q19: =IFERROR(VLOOKUP($T$4&$A19,dataset,Q$4, FALSE), "") -> -1 | R19: =IFERROR(VLOOKUP($T$4&$A19,dataset,R$4, FALSE), "") -> 0 | S19: =IFERROR(VLOOKUP($T$4&$A19,dataset,S$4, FALSE), "") -> -62.6675207 | U19: =IFERROR(VLOOKUP($T$4&$A19,dataset,U$4, FALSE), "") -> 0.8551628787 | V19: =IFERROR(VLOOKUP($T$4&$A19,dataset,V$4, FALSE), "") -> 0.2957312826 | W19: =IFERROR(VLOOKUP($T$4&$A19,dataset,W$4, FALSE), "") -> 0.05405563089 | X19: =IFERROR(VLOOKUP($T$4&$A19,dataset,X$4, FALSE), "") -> 4.325881156 | Y19: =IFERROR(VLOOKUP($T$4&$A19,dataset,Y$4, FALSE), "") -> 77.12348715 | Z19: =IFERROR(VLOOKUP($T$4&$A19,dataset,Z$4, FALSE), "") -> 37.1388249 | AA19: =IFERROR(VLOOKUP($T$4&$A19,dataset,AA$4, FALSE), "") -> 0 | AB19: =IFERROR(VLOOKUP($T$4&$A19,dataset,AB$4, FALSE), "") -> 4.050829909 | AC19: =IFERROR(VLOOKUP($T$4&$A19,dataset,AC$4, FALSE), "") -> 72.70503161 | AD19: =IFERROR(VLOOKUP($T$4&$A19,dataset,AD$4, FALSE), "") -> 1 | AE19: =IFERROR(VLOOKUP($T$4&$A19,dataset,AE$4, FALSE), "") -> 1.521243484 | AF19: =IFERROR(VLOOKUP($T$4&$A19,dataset,AF$4, FALSE), "") -> 0.3512650826 | AG19: =IFERROR(VLOOKUP($T$4&$A19,dataset,AG$4, FALSE), "") -> 0.1159533392 | AH19: =IFERROR(VLOOKUP($T$4&$A19,dataset,AH$4, FALSE), "") -> 6.91555183 | AI19: =IFERROR(VLOOKUP($T$4&$A19,dataset,AI$4, FALSE), "") -> 96.91145403 | AJ19: =IFERROR(VLOOKUP($T$4&$A19,dataset,AJ$4, FALSE), "") -> 3.674278489 | AK19: =IFERROR(VLOOKUP($T$4&$A19,dataset,AK$4, FALSE), "") -> 0 | AL19: =IFERROR(VLOOKUP($T$4&$A19,dataset,AL$4, FALSE), "") -> 9.939741687 | AM19: =IFERROR(VLOOKUP($T$4&$A19,dataset,AM$4, FALSE), "") -> 80.03341567 | AN19: =IFERROR(VLOOKUP($T$4&$A19,dataset,AN$4, FALSE), "") -> 1 | AO19: =IFERROR(VLOOKUP($T$4&$A19,dataset,AO$4, FALSE), "") -> 1.502775718 | AP19: =IFERROR(VLOOKUP($T$4&$A19,dataset,AP$4, FALSE), "") -> 0.1212533217 | AQ19: =IFERROR(VLOOKUP($T$4&$A19,dataset,AQ$4, FALSE), "") -> 0.08963456262 | AR19: =IFERROR(VLOOKUP($T$4&$A19,dataset,AR$4, FALSE), "") -> 13.92856216 | AS19: =IFERROR(VLOOKUP($T$4&$A19,dataset,AS$4, FALSE), "") -> 94.94177706 | AT19: =IFERROR(VLOOKUP($T$4&$A19,dataset,AT$4, FALSE), "") -> 0.5877257465 | AU19: =IFERROR(VLOOKUP($T$4&$A19,dataset,AU$4, FALSE), "") -> 0 | AV19: =IFERROR(VLOOKUP($T$4&$A19,dataset,AV$4, FALSE), "") -> 5.897942004 | AW19: =IFERROR(VLOOKUP($T$4&$A19,dataset,AW$4, FALSE), "") -> 64.77370102 | AX19: =IFERROR(VLOOKUP($T$4&$A19,dataset,AX$4, FALSE), "") -> 1 | AY19: =IFERROR(VLOOKUP($T$4&$A19,dataset,AY$4, FALSE), "") -> 0.8797426785 | AZ19: =IFERROR(VLOOKUP($T$4&$A19,dataset,AZ$4, FALSE), "") -> 0.01094523384 | BA19: =IFERROR(VLOOKUP($T$4&$A19,dataset,BA$4, FALSE), "") -> 0.09447896965 | BB19: =IFERROR(VLOOKUP($T$4&$A19,dataset,BB$4, FALSE), "") -> 4.528825722 | BC19: =IFERROR(VLOOKUP($T$4&$A19,dataset,BC$4, FALSE), "") -> 79.05354708 | BD19: =IFERROR(VLOOKUP($T$4&$A19,dataset,BD$4, FALSE), "") -> -0.7808177363 | BE19: =IFERROR(VLOOKUP($T$4&$A19,dataset,BE$4, FALSE), "") -> 0 | BF19: =IFERROR(VLOOKUP($T$4&$A19,dataset,BF$4, FALSE), "") -> 3.747632393 | BG19: =IFERROR(VLOOKUP($T$4&$A19,dataset,BG$4, FALSE), "") -> 56.97833475 | BH19: =IFERROR(VLOOKUP($T$4&$A19,dataset,BH$4, FALSE), "") -> 1 | BI19: =IFERROR(VLOOKUP($T$4&$A19,dataset,BI$4, FALSE), "") -> 0.01226492985 | BJ19: =IFERROR(VLOOKUP($T$4&$A19,dataset,BJ$4, FALSE), "") -> -0.007535857826 | BK19: =IFERROR(VLOOKUP($T$4&$A19,dataset,BK$4, FALSE), "") -> 0.004192027064 | BL19: =IFERROR(VLOOKUP($T$4&$A19,dataset,BL$4, FALSE), "") -> 2.062166741 | BM19: =IFERROR(VLOOKUP($T$4&$A19,dataset,BM$4, FALSE), "") -> 10.50446666 | BN19: =IFERROR(VLOOKUP($T$4&$A19,dataset,BN$4, FALSE), "") -> -0.9127613307 | BO19: =IFERROR(VLOOKUP($T$4&$A19,dataset,BO$4, FALSE), "") -> 0 | BP19: =IFERROR(VLOOKUP($T$4&$A19,dataset,BP$4, FALSE), "") -> 6.383119363 | BQ19: =IFERROR(VLOOKUP($T$4&$A19,dataset,BQ$4, FALSE), "") -> 11.58628617 | BR19: =IFERROR(VLOOKUP($T$4&$A19,dataset,BR$4, FALSE), "") -> 1 | BS19: =IFERROR(VLOOKUP($T$4&$A19,dataset,BS$4, FALSE), "") -> 0.4404058974 | BT19: =IFERROR(VLOOKUP($T$4&$A19,dataset,BT$4, FALSE), "") -> 0.3202772307 | BU19: =IFERROR(VLOOKUP($T$4&$A19,dataset,BU$4, FALSE), "") -> 0.1467387426 | BV19: =IFERROR(VLOOKUP($T$4&$A19,dataset,BV$4, FALSE), "") -> 2.033553355 | BW19: =IFERROR(VLOOKUP($T$4&$A19,dataset,BW$4, FALSE), "") -> 98.95733068 | BX19: =IFERROR(VLOOKUP($T$4&$A19,dataset,BX$4, FALSE), "") -> 3.687807638 | BY19: =IFERROR(VLOOKUP($T$4&$A19,dataset,BY$4, FALSE), "") -> 0 | BZ19: =IFERROR(VLOOKUP($T$4&$A19,dataset,BZ$4, FALSE), "") -> 3.345492469 | CA19: =IFERROR(VLOOKUP($T$4&$A19,dataset,CA$4, FALSE), "") -> 59.86075899 | CB19: =IFERROR(VLOOKUP($T$4&$A19,dataset,CB$4, FALSE), "") -> 1 | CC19: =IFERROR(VLOOKUP($T$4&$A19,dataset,CC$4, FALSE), "") -> 0.3200355176 | CD19: =IFERROR(VLOOKUP($T$4&$A19,dataset,CD$4, FALSE), "") -> 0.1201227572 | CE19: =IFERROR(VLOOKUP($T$4&$A19,dataset,CE$4, FALSE), "") -> 0.06493569114 | CF19: =IFERROR(VLOOKUP($T$4&$A19,dataset,CF$4, FALSE), "") -> 3.930093962 | CG19: =IFERROR(VLOOKUP($T$4&$A19,dataset,CG$4, FALSE), "") -> 85.73436764 | CH19: =IFERROR(VLOOKUP($T$4&$A19,dataset,CH$4, FALSE), "") -> 19.05420977 | CI19: =IFERROR(VLOOKUP($T$4&$A19,dataset,CI$4, FALSE), "") -> 0 | CJ19: =IFERROR(VLOOKUP($T$4&$A19,dataset,CJ$4, FALSE), "") -> 8.483119007 | CK19: =IFERROR(VLOOKUP($T$4&$A19,dataset,CK$4, FALSE), "") -> 31.62473973 | CL19: =IFERROR(VLOOKUP($T$4&$A19,dataset,CL$4, FALSE), "") -> 1 | CM19: =IFERROR(VLOOKUP($T$4&$A19,dataset,CM$4, FALSE), "") -> 0.03701153425 | CN19: =IFERROR(VLOOKUP($T$4&$A19,dataset,CN$4, FALSE), "") -> 0.02607706285 | CO19: =IFERROR(VLOOKUP($T$4&$A19,dataset,CO$4, FALSE), "") -> 0.03626473656 | CP19: =IFERROR(VLOOKUP($T$4&$A19,dataset,CP$4, FALSE), "") -> 1.083069459 | CQ19: =IFERROR(VLOOKUP($T$4&$A19,dataset,CQ$4, FALSE), "") -> 51.9347684 | CR19: =IFERROR(VLOOKUP($T$4&$A19,dataset,CR$4, FALSE), "") -> 44.68841291 | CS19: =IFERROR(VLOOKUP($T$4&$A19,dataset,CS$4, FALSE), "") -> 0 | CT19: =IFERROR(VLOOKUP($T$4&$A19,dataset,CT$4, FALSE), "") -> 8.417411698 | CU19: =IFERROR(VLOOKUP($T$4&$A19,dataset,CU$4, FALSE), "") -> 2.954525474 | CV19: =IFERROR(VLOOKUP($T$4&$A19,dataset,CV$4, FALSE), "") -> 1 | CW19: =IFERROR(VLOOKUP($T$4&$A19,dataset,CW$4, FALSE), "") -> 0.6165729125 | CX19: =IFERROR(VLOOKUP($T$4&$A19,dataset,CX$4, FALSE), "") -> 0.06830520806 | CY19: =IFERROR(VLOOKUP($T$4&$A19,dataset,CY$4, FALSE), "") -> 0.1111431682 | CZ19: =IFERROR(VLOOKUP($T$4&$A19,dataset,CZ$4, FALSE), "") -> 3.965903756 | DA19: =IFERROR(VLOOKUP($T$4&$A19,dataset,DA$4, FALSE), "") -> 94.7864707 | DB19: =IFERROR(VLOOKUP($T$4&$A19,dataset,DB$4, FALSE), "") -> -0.8074263259 | DC19: =IFERROR(VLOOKUP($T$4&$A19,dataset,DC$4, FALSE), "") -> 0 | DD19: =IFERROR(VLOOKUP($T$4&$A19,dataset,DD$4, FALSE), "") -> 10.31378604 | DE19: =IFERROR(VLOOKUP($T$4&$A19,dataset,DE$4, FALSE), "") -> 23.78950394 | DF19: =IFERROR(VLOOKUP($T$4&$A19,dataset,DF$4, FALSE), "") -> 1 | DG19: =IFERROR(VLOOKUP($T$4&$A19,dataset,DG$4, FALSE), "") -> 0.07808348316 | DH19: =IFERROR(VLOOKUP($T$4&$A19,dataset,DH$4, FALSE), "") -> 0.02275109833 | DI19: =IFERROR(VLOOKUP($T$4&$A19,dataset,DI$4, FALSE), "") -> 0.1017909778 | DJ19: =IFERROR(VLOOKUP($T$4&$A19,dataset,DJ$4, FALSE), "") -> 1.778741518 | DK19: =IFERROR(VLOOKUP($T$4&$A19,dataset,DK$4, FALSE), "") -> 74.27119678 | DL19: =IFERROR(VLOOKUP($T$4&$A19,dataset,DL$4, FALSE), "") -> 19.19317159 | DM19: =IFERROR(VLOOKUP($T$4&$A19,dataset,DM$4, FALSE), "") -> 0 | DN19: =IFERROR(VLOOKUP($T$4&$A19,dataset,DN$4, FALSE), "") -> 10.2647559 | DO19: =IFERROR(VLOOKUP($T$4&$A19,dataset,DO$4, FALSE), "") -> 4.036830469 | DP19: =IFERROR(VLOOKUP($T$4&$A19,dataset,DP$4, FALSE), "") -> 1 | DQ19: =IFERROR(VLOOKUP($T$4&$A19,dataset,DQ$4, FALSE), "") -> 0.0504073847 | DR19: =IFERROR(VLOOKUP($T$4&$A19,dataset,DR$4, FALSE), "") -> 0.0504073847 | DS19: =IFERROR(VLOOKUP($T$4&$A19,dataset,DS$4, FALSE), "") -> 0.112358858 | DT19: =IFERROR(VLOOKUP($T$4&$A19,dataset,DT$4, FALSE), "") -> 1 | DU19: =IFERROR(VLOOKUP($T$4&$A19,dataset,DU$4, FALSE), "") -> 69.1834067 | DV19: =IFERROR(VLOOKUP($T$4&$A19,dataset,DV$4, FALSE), "") -> 69.1834067 | DW19: =IFERROR(VLOOKUP($T$4&$A19,dataset,DW$4, FALSE), "") -> 0 | DX19: =IFERROR(VLOOKUP($T$4&$A19,dataset,DX$4, FALSE), "") -> 8.669917911 | DY19: =IFERROR(VLOOKUP($T$4&$A19,dataset,DY$4, FALSE), "") -> 3.391036262 | DZ19: =IFERROR(VLOOKUP($T$4&$A19,dataset,DZ$4, FALSE), "") -> 1 | EA19: =IFERROR(VLOOKUP($T$4&$A19,dataset,EA$4, FALSE), "") -> 0.03118247139 | EB19: =IFERROR(VLOOKUP($T$4&$A19,dataset,EB$4, FALSE), "") -> 0.007203255444 | EC19: =IFERROR(VLOOKUP($T$4&$A19,dataset,EC$4, FALSE), "") -> 0.02699833551 | ED19: =IFERROR(VLOOKUP($T$4&$A19,dataset,ED$4, FALSE), "") -> 1.922405648 | EE19: =IFERROR(VLOOKUP($T$4&$A19,dataset,EE$4, FALSE), "") -> 17.06341783 | EF19: =IFERROR(VLOOKUP($T$4&$A19,dataset,EF$4, FALSE), "") -> 9.784523889 | EG19: =IFERROR(VLOOKUP($T$4&$A19,dataset,EG$4, FALSE), "") -> 0 | EH19: =IFERROR(VLOOKUP($T$4&$A19,dataset,EH$4, FALSE), "") -> 9.08644398 | EI19: =IFERROR(VLOOKUP($T$4&$A19,dataset,EI$4, FALSE), "") -> 7.485366769 | EJ19: =IFERROR(VLOOKUP($T$4&$A19,dataset,EJ$4, FALSE), "") -> 1 | EK19: =IFERROR(VLOOKUP($T$4&$A19,dataset,EK$4, FALSE), "") -> 11.03033046 | EL19: =IFERROR(VLOOKUP($T$4&$A19,dataset,EL$4, FALSE), "") -> 0.0884316327 | EM19: =IFERROR(VLOOKUP($T$4&$A19,dataset,EM$4, FALSE), "") -> 0.161970864 | EN19: =IFERROR(VLOOKUP($T$4&$A19,dataset,EN$4, FALSE), "") -> 70.98491255 | EO19: =IFERROR(VLOOKUP($T$4&$A19,dataset,EO$4, FALSE), "") -> 99.96714209 | EP19: =IFERROR(VLOOKUP($T$4&$A19,dataset,EP$4, FALSE), "") -> -0.03285790588 | EQ19: =IFERROR(VLOOKUP($T$4&$A19,dataset,EQ$4, FALSE), "") -> 0 | ER19: =IFERROR(VLOOKUP($T$4&$A19,dataset,ER$4, FALSE), "") -> 2.821177814 | ES19: =IFERROR(VLOOKUP($T$4&$A19,dataset,ES$4, FALSE), "") -> 937.812165 | ET19: =IFERROR(VLOOKUP($T$4&$A19,dataset,ET$4, FALSE), "") -> 1 | EU19: =IFERROR(VLOOKUP($T$4&$A19,dataset,EU$4, FALSE), "") -> 0.9151233339 | EV19: =IFERROR(VLOOKUP($T$4&$A19,dataset,EV$4, FALSE), "") -> -0.09834796299 | EW19: =IFERROR(VLOOKUP($T$4&$A19,dataset,EW$4, FALSE), "") -> 0.0269246727 | EX19: =IFERROR(VLOOKUP($T$4&$A19,dataset,EX$4, FALSE), "") -> 8.47701199 | EY19: =IFERROR(VLOOKUP($T$4&$A19,dataset,EY$4, FALSE), "") -> 83.71046063 | EZ19: =IFERROR(VLOOKUP($T$4&$A19,dataset,EZ$4, FALSE), "") -> 0.1548682524 | FA19: =IFERROR(VLOOKUP($T$4&$A19,dataset,FA$4, FALSE), "") -> 0 | FB19: =IFERROR(VLOOKUP($T$4&$A19,dataset,FB$4, FALSE), "") -> 4.641899588 | FC19: =IFERROR(VLOOKUP($T$4&$A19,dataset,FC$4, FALSE), "") -> 73.19333047 | FD19: =IFERROR(VLOOKUP($T$4&$A19,dataset,FD$4, FALSE), "") -> 1 | FE19: =IFERROR(VLOOKUP($T$4&$A19,dataset,FE$4, FALSE), "") -> 2.809744518 | FF19: =IFERROR(VLOOKUP($T$4&$A19,dataset,FF$4, FALSE), "") -> 0.3850242611 | FG19: =IFERROR(VLOOKUP($T$4&$A19,dataset,FG$4, FALSE), "") -> 0.2619515034 | FH19: =IFERROR(VLOOKUP($T$4&$A19,dataset,FH$4, FALSE), "") -> 19.79717893 | FI19: =IFERROR(VLOOKUP($T$4&$A19,dataset,FI$4, FALSE), "") -> 98.54013783 | FJ19: =IFERROR(VLOOKUP($T$4&$A19,dataset,FJ$4, FALSE), "") -> 0.5317811044 | FK19: =IFERROR(VLOOKUP($T$4&$A19,dataset,FK$4, FALSE), "") -> 0 | FL19: =IFERROR(VLOOKUP($T$4&$A19,dataset,FL$4, FALSE), "") -> 4.419583172 | FM19: =IFERROR(VLOOKUP($T$4&$A19,dataset,FM$4, FALSE), "") -> 159.2455463 | FN19: =IFERROR(VLOOKUP($T$4&$A19,dataset,FN$4, FALSE), "") -> 1
A20: 12 | C20: =IFERROR(VLOOKUP($T$4&$A20,dataset,C$4, FALSE), "") -> Publix | D20: =IFERROR(VLOOKUP($T$4&$A20,dataset,D$4, FALSE), "") -> 2 | E20: =IFERROR(VLOOKUP($T$4&$A20,dataset,E$3, FALSE)/VLOOKUP($T$4&$A20,dataset,E$4, FALSE)-1, "") -> -0.02609910316 | F20: =IFERROR(VLOOKUP($T$4&$A20,dataset,F$3, FALSE)/VLOOKUP($T$4&$A20,dataset,F$4, FALSE)-1, "") -> -0.0310448069 | G20: =IFERROR((VLOOKUP($T$4&$A20,dataset,E$3, FALSE)-VLOOKUP($T$4&$A20,dataset,F$3, FALSE))/(VLOOKUP($T$4&$A20,dataset,E$4, FALSE)-VLOOKUP($T$4&$A20,dataset,F$4, FALSE))-1, "") -> -0.01950122908 | H20: =IFERROR(VLOOKUP($T$4&$A20,dataset,H$4, FALSE),"") -> 56.86597854 | I20: =IFERROR(VLOOKUP($T$4&$A20,dataset,I$4, FALSE), "") -> -0.290253135 | J20: =IFERROR(VLOOKUP($T$4&$A20,dataset,J$4, FALSE), "") -> 5.688812991 | K20: =IFERROR(VLOOKUP($T$4&$A20,dataset,K$4, FALSE), "") -> 5.610177373 | L20: =IFERROR(VLOOKUP($T$4&$A20,dataset,L$4, FALSE), "") -> 0.07863561813 | M20: =IFERROR(VLOOKUP($T$4&$A20,dataset,M$4, FALSE), "") -> 0.02621694625 | N20: =IFERROR(VLOOKUP($T$4&$A20,dataset,N$4, FALSE), "") -> 31.5194719 | O20: =IFERROR(VLOOKUP($T$4&$A20,dataset,O$4, FALSE), "") -> -1.759545951 | P20: =IFERROR(VLOOKUP($T$4&$A20,dataset,P$4, FALSE), "") -> 0 | Q20: =IFERROR(VLOOKUP($T$4&$A20,dataset,Q$4, FALSE), "") -> -1 | R20: =IFERROR(VLOOKUP($T$4&$A20,dataset,R$4, FALSE), "") -> 0 | S20: =IFERROR(VLOOKUP($T$4&$A20,dataset,S$4, FALSE), "") -> -50.81102528 | U20: =IFERROR(VLOOKUP($T$4&$A20,dataset,U$4, FALSE), "") -> 0.7558953068 | V20: =IFERROR(VLOOKUP($T$4&$A20,dataset,V$4, FALSE), "") -> 0.4426294305 | W20: =IFERROR(VLOOKUP($T$4&$A20,dataset,W$4, FALSE), "") -> 0.01692815572 | X20: =IFERROR(VLOOKUP($T$4&$A20,dataset,X$4, FALSE), "") -> 4.110655894 | Y20: =IFERROR(VLOOKUP($T$4&$A20,dataset,Y$4, FALSE), "") -> 82.64180335 | Z20: =IFERROR(VLOOKUP($T$4&$A20,dataset,Z$4, FALSE), "") -> 42.64975983 | AA20: =IFERROR(VLOOKUP($T$4&$A20,dataset,AA$4, FALSE), "") -> 0 | AB20: =IFERROR(VLOOKUP($T$4&$A20,dataset,AB$4, FALSE), "") -> 4.412724633 | AC20: =IFERROR(VLOOKUP($T$4&$A20,dataset,AC$4, FALSE), "") -> 42.89912754 | AD20: =IFERROR(VLOOKUP($T$4&$A20,dataset,AD$4, FALSE), "") -> 1 | AE20: =IFERROR(VLOOKUP($T$4&$A20,dataset,AE$4, FALSE), "") -> 1.30636579 | AF20: =IFERROR(VLOOKUP($T$4&$A20,dataset,AF$4, FALSE), "") -> 0.4435248941 | AG20: =IFERROR(VLOOKUP($T$4&$A20,dataset,AG$4, FALSE), "") -> 0.03527810304 | AH20: =IFERROR(VLOOKUP($T$4&$A20,dataset,AH$4, FALSE), "") -> 4.408294216 | AI20: =IFERROR(VLOOKUP($T$4&$A20,dataset,AI$4, FALSE), "") -> 98.35151965 | AJ20: =IFERROR(VLOOKUP($T$4&$A20,dataset,AJ$4, FALSE), "") -> 4.715193154 | AK20: =IFERROR(VLOOKUP($T$4&$A20,dataset,AK$4, FALSE), "") -> 0 | AL20: =IFERROR(VLOOKUP($T$4&$A20,dataset,AL$4, FALSE), "") -> 12.86102308 | AM20: =IFERROR(VLOOKUP($T$4&$A20,dataset,AM$4, FALSE), "") -> 42.82331336 | AN20: =IFERROR(VLOOKUP($T$4&$A20,dataset,AN$4, FALSE), "") -> 1 | AO20: =IFERROR(VLOOKUP($T$4&$A20,dataset,AO$4, FALSE), "") -> 3.37606472 | AP20: =IFERROR(VLOOKUP($T$4&$A20,dataset,AP$4, FALSE), "") -> 0.4049170499 | AQ20: =IFERROR(VLOOKUP($T$4&$A20,dataset,AQ$4, FALSE), "") -> 0.07134244594 | AR20: =IFERROR(VLOOKUP($T$4&$A20,dataset,AR$4, FALSE), "") -> 22.41722529 | AS20: =IFERROR(VLOOKUP($T$4&$A20,dataset,AS$4, FALSE), "") -> 100 | AT20: =IFERROR(VLOOKUP($T$4&$A20,dataset,AT$4, FALSE), "") -> 0.05729665764 | AU20: =IFERROR(VLOOKUP($T$4&$A20,dataset,AU$4, FALSE), "") -> 0 | AV20: =IFERROR(VLOOKUP($T$4&$A20,dataset,AV$4, FALSE), "") -> 8.812045366 | AW20: =IFERROR(VLOOKUP($T$4&$A20,dataset,AW$4, FALSE), "") -> 112.0838005 | AX20: =IFERROR(VLOOKUP($T$4&$A20,dataset,AX$4, FALSE), "") -> 1 | AY20: =IFERROR(VLOOKUP($T$4&$A20,dataset,AY$4, FALSE), "") -> 0.1442219722 | AZ20: =IFERROR(VLOOKUP($T$4&$A20,dataset,AZ$4, FALSE), "") -> 0.03056047945 | BA20: =IFERROR(VLOOKUP($T$4&$A20,dataset,BA$4, FALSE), "") -> 0.005487402464 | BB20: =IFERROR(VLOOKUP($T$4&$A20,dataset,BB$4, FALSE), "") -> 2.29346414 | BC20: =IFERROR(VLOOKUP($T$4&$A20,dataset,BC$4, FALSE), "") -> 16.52876737 | BD20: =IFERROR(VLOOKUP($T$4&$A20,dataset,BD$4, FALSE), "") -> 4.167504636 | BE20: =IFERROR(VLOOKUP($T$4&$A20,dataset,BE$4, FALSE), "") -> 0 | BF20: =IFERROR(VLOOKUP($T$4&$A20,dataset,BF$4, FALSE), "") -> 3.644759033 | BG20: =IFERROR(VLOOKUP($T$4&$A20,dataset,BG$4, FALSE), "") -> 33.76425748 | BH20: =IFERROR(VLOOKUP($T$4&$A20,dataset,BH$4, FALSE), "") -> 1 | BI20: =IFERROR(VLOOKUP($T$4&$A20,dataset,BI$4, FALSE), "") -> 0.07213416449 | BJ20: =IFERROR(VLOOKUP($T$4&$A20,dataset,BJ$4, FALSE), "") -> -0.007415480176 | BK20: =IFERROR(VLOOKUP($T$4&$A20,dataset,BK$4, FALSE), "") -> 0.008734859259 | BL20: =IFERROR(VLOOKUP($T$4&$A20,dataset,BL$4, FALSE), "") -> 1 | BM20: =IFERROR(VLOOKUP($T$4&$A20,dataset,BM$4, FALSE), "") -> 39.42751221 | BN20: =IFERROR(VLOOKUP($T$4&$A20,dataset,BN$4, FALSE), "") -> -1.877402722 | BO20: =IFERROR(VLOOKUP($T$4&$A20,dataset,BO$4, FALSE), "") -> 0 | BP20: =IFERROR(VLOOKUP($T$4&$A20,dataset,BP$4, FALSE), "") -> 8.578773641 | BQ20: =IFERROR(VLOOKUP($T$4&$A20,dataset,BQ$4, FALSE), "") -> 5.239576485 | BR20: =IFERROR(VLOOKUP($T$4&$A20,dataset,BR$4, FALSE), "") -> 1 | BS20: =IFERROR(VLOOKUP($T$4&$A20,dataset,BS$4, FALSE), "") -> 0.3157051229 | BT20: =IFERROR(VLOOKUP($T$4&$A20,dataset,BT$4, FALSE), "") -> -0.01878113478 | BU20: =IFERROR(VLOOKUP($T$4&$A20,dataset,BU$4, FALSE), "") -> 0.03726740846 | BV20: =IFERROR(VLOOKUP($T$4&$A20,dataset,BV$4, FALSE), "") -> 3.503524892 | BW20: =IFERROR(VLOOKUP($T$4&$A20,dataset,BW$4, FALSE), "") -> 99.56526974 | BX20: =IFERROR(VLOOKUP($T$4&$A20,dataset,BX$4, FALSE), "") -> -0.005158265551 | BY20: =IFERROR(VLOOKUP($T$4&$A20,dataset,BY$4, FALSE), "") -> 0 | BZ20: =IFERROR(VLOOKUP($T$4&$A20,dataset,BZ$4, FALSE), "") -> 7.863009608 | CA20: =IFERROR(VLOOKUP($T$4&$A20,dataset,CA$4, FALSE), "") -> 11.69753994 | CB20: =IFERROR(VLOOKUP($T$4&$A20,dataset,CB$4, FALSE), "") -> 1 | CC20: =IFERROR(VLOOKUP($T$4&$A20,dataset,CC$4, FALSE), "") -> 0.7844772546 | CD20: =IFERROR(VLOOKUP($T$4&$A20,dataset,CD$4, FALSE), "") -> -0.6779643831 | CE20: =IFERROR(VLOOKUP($T$4&$A20,dataset,CE$4, FALSE), "") -> 0.05639252501 | CF20: =IFERROR(VLOOKUP($T$4&$A20,dataset,CF$4, FALSE), "") -> 5.279306208 | CG20: =IFERROR(VLOOKUP($T$4&$A20,dataset,CG$4, FALSE), "") -> 99.71730111 | CH20: =IFERROR(VLOOKUP($T$4&$A20,dataset,CH$4, FALSE), "") -> 0.4783158181 | CI20: =IFERROR(VLOOKUP($T$4&$A20,dataset,CI$4, FALSE), "") -> 0 | CJ20: =IFERROR(VLOOKUP($T$4&$A20,dataset,CJ$4, FALSE), "") -> 12.31242698 | CK20: =IFERROR(VLOOKUP($T$4&$A20,dataset,CK$4, FALSE), "") -> 35.45336637 | CL20: =IFERROR(VLOOKUP($T$4&$A20,dataset,CL$4, FALSE), "") -> 1 | CM20: =IFERROR(VLOOKUP($T$4&$A20,dataset,CM$4, FALSE), "") -> 0.000788251343 | CN20: =IFERROR(VLOOKUP($T$4&$A20,dataset,CN$4, FALSE), "") -> -6.30517699e-05 | CO20: =IFERROR(VLOOKUP($T$4&$A20,dataset,CO$4, FALSE), "") -> 0.000273632737 | CP20: =IFERROR(VLOOKUP($T$4&$A20,dataset,CP$4, FALSE), "") -> 1 | CQ20: =IFERROR(VLOOKUP($T$4&$A20,dataset,CQ$4, FALSE), "") -> 0.9180097341 | CR20: =IFERROR(VLOOKUP($T$4&$A20,dataset,CR$4, FALSE), "") -> -0.6892902591 | CS20: =IFERROR(VLOOKUP($T$4&$A20,dataset,CS$4, FALSE), "") -> 0 | CT20: =IFERROR(VLOOKUP($T$4&$A20,dataset,CT$4, FALSE), "") -> 9.226666667 | CU20: =IFERROR(VLOOKUP($T$4&$A20,dataset,CU$4, FALSE), "") -> 3.166455967 | CV20: =IFERROR(VLOOKUP($T$4&$A20,dataset,CV$4, FALSE), "") -> 1 | CW20: =IFERROR(VLOOKUP($T$4&$A20,dataset,CW$4, FALSE), "") -> 0.6890187715 | CX20: =IFERROR(VLOOKUP($T$4&$A20,dataset,CX$4, FALSE), "") -> 0.1143039592 | CY20: =IFERROR(VLOOKUP($T$4&$A20,dataset,CY$4, FALSE), "") -> 0.0440033035 | CZ20: =IFERROR(VLOOKUP($T$4&$A20,dataset,CZ$4, FALSE), "") -> 3.339251768 | DA20: =IFERROR(VLOOKUP($T$4&$A20,dataset,DA$4, FALSE), "") -> 98.14316282 | DB20: =IFERROR(VLOOKUP($T$4&$A20,dataset,DB$4, FALSE), "") -> 2.175490003 | DC20: =IFERROR(VLOOKUP($T$4&$A20,dataset,DC$4, FALSE), "") -> 0 | DD20: =IFERROR(VLOOKUP($T$4&$A20,dataset,DD$4, FALSE), "") -> 12.82945439 | DE20: =IFERROR(VLOOKUP($T$4&$A20,dataset,DE$4, FALSE), "") -> 20.12375874 | DF20: =IFERROR(VLOOKUP($T$4&$A20,dataset,DF$4, FALSE), "") -> 1 | DG20: =IFERROR(VLOOKUP($T$4&$A20,dataset,DG$4, FALSE), "") -> 0.04629139541 | DH20: =IFERROR(VLOOKUP($T$4&$A20,dataset,DH$4, FALSE), "") -> -0.01566910979 | DI20: =IFERROR(VLOOKUP($T$4&$A20,dataset,DI$4, FALSE), "") -> 0.0213799299 | DJ20: =IFERROR(VLOOKUP($T$4&$A20,dataset,DJ$4, FALSE), "") -> 1.363928521 | DK20: =IFERROR(VLOOKUP($T$4&$A20,dataset,DK$4, FALSE), "") -> 61.90760123 | DL20: =IFERROR(VLOOKUP($T$4&$A20,dataset,DL$4, FALSE), "") -> -5.399836208 | DM20: =IFERROR(VLOOKUP($T$4&$A20,dataset,DM$4, FALSE), "") -> 0 | DN20: =IFERROR(VLOOKUP($T$4&$A20,dataset,DN$4, FALSE), "") -> 9.63119828 | DO20: =IFERROR(VLOOKUP($T$4&$A20,dataset,DO$4, FALSE), "") -> 2.419824304 | DP20: =IFERROR(VLOOKUP($T$4&$A20,dataset,DP$4, FALSE), "") -> 1 | DQ20: =IFERROR(VLOOKUP($T$4&$A20,dataset,DQ$4, FALSE), "") -> 0 | DR20: =IFERROR(VLOOKUP($T$4&$A20,dataset,DR$4, FALSE), "") -> 0 | DS20: =IFERROR(VLOOKUP($T$4&$A20,dataset,DS$4, FALSE), "") -> 0 | DT20: =IFERROR(VLOOKUP($T$4&$A20,dataset,DT$4, FALSE), "") -> 0 | DU20: =IFERROR(VLOOKUP($T$4&$A20,dataset,DU$4, FALSE), "") -> 0 | DV20: =IFERROR(VLOOKUP($T$4&$A20,dataset,DV$4, FALSE), "") -> 0 | DW20: =IFERROR(VLOOKUP($T$4&$A20,dataset,DW$4, FALSE), "") -> 0 | DX20: =IFERROR(VLOOKUP($T$4&$A20,dataset,DX$4, FALSE), "") -> 0 | DY20: =IFERROR(VLOOKUP($T$4&$A20,dataset,DY$4, FALSE), "") -> 0 | DZ20: =IFERROR(VLOOKUP($T$4&$A20,dataset,DZ$4, FALSE), "") -> 0 | EA20: =IFERROR(VLOOKUP($T$4&$A20,dataset,EA$4, FALSE), "") -> 0.2828398426 | EB20: =IFERROR(VLOOKUP($T$4&$A20,dataset,EB$4, FALSE), "") -> -0.04557754455 | EC20: =IFERROR(VLOOKUP($T$4&$A20,dataset,EC$4, FALSE), "") -> 0.08676067876 | ED20: =IFERROR(VLOOKUP($T$4&$A20,dataset,ED$4, FALSE), "") -> 3.353960354 | EE20: =IFERROR(VLOOKUP($T$4&$A20,dataset,EE$4, FALSE), "") -> 89.59092443 | EF20: =IFERROR(VLOOKUP($T$4&$A20,dataset,EF$4, FALSE), "") -> -2.501997442 | EG20: =IFERROR(VLOOKUP($T$4&$A20,dataset,EG$4, FALSE), "") -> 0 | EH20: =IFERROR(VLOOKUP($T$4&$A20,dataset,EH$4, FALSE), "") -> 9.333059978 | EI20: =IFERROR(VLOOKUP($T$4&$A20,dataset,EI$4, FALSE), "") -> 8.85803589 | EJ20: =IFERROR(VLOOKUP($T$4&$A20,dataset,EJ$4, FALSE), "") -> 1 | EK20: =IFERROR(VLOOKUP($T$4&$A20,dataset,EK$4, FALSE), "") -> 3.233568572 | EL20: =IFERROR(VLOOKUP($T$4&$A20,dataset,EL$4, FALSE), "") -> -0.4361598072 | EM20: =IFERROR(VLOOKUP($T$4&$A20,dataset,EM$4, FALSE), "") -> 0.0168223377 | EN20: =IFERROR(VLOOKUP($T$4&$A20,dataset,EN$4, FALSE), "") -> 24.49209988 | EO20: =IFERROR(VLOOKUP($T$4&$A20,dataset,EO$4, FALSE), "") -> 100 | EP20: =IFERROR(VLOOKUP($T$4&$A20,dataset,EP$4, FALSE), "") -> 0 | EQ20: =IFERROR(VLOOKUP($T$4&$A20,dataset,EQ$4, FALSE), "") -> 0 | ER20: =IFERROR(VLOOKUP($T$4&$A20,dataset,ER$4, FALSE), "") -> 4.157684117 | ES20: =IFERROR(VLOOKUP($T$4&$A20,dataset,ES$4, FALSE), "") -> 117.1969497 | ET20: =IFERROR(VLOOKUP($T$4&$A20,dataset,ET$4, FALSE), "") -> 1 | EU20: =IFERROR(VLOOKUP($T$4&$A20,dataset,EU$4, FALSE), "") -> 0.6891520199 | EV20: =IFERROR(VLOOKUP($T$4&$A20,dataset,EV$4, FALSE), "") -> 0.03654622131 | EW20: =IFERROR(VLOOKUP($T$4&$A20,dataset,EW$4, FALSE), "") -> 0.007183593248 | EX20: =IFERROR(VLOOKUP($T$4&$A20,dataset,EX$4, FALSE), "") -> 8.733199929 | EY20: =IFERROR(VLOOKUP($T$4&$A20,dataset,EY$4, FALSE), "") -> 100 | EZ20: =IFERROR(VLOOKUP($T$4&$A20,dataset,EZ$4, FALSE), "") -> 0 | FA20: =IFERROR(VLOOKUP($T$4&$A20,dataset,FA$4, FALSE), "") -> 0 | FB20: =IFERROR(VLOOKUP($T$4&$A20,dataset,FB$4, FALSE), "") -> 7.999898472 | FC20: =IFERROR(VLOOKUP($T$4&$A20,dataset,FC$4, FALSE), "") -> 62.34262176 | FD20: =IFERROR(VLOOKUP($T$4&$A20,dataset,FD$4, FALSE), "") -> 1 | FE20: =IFERROR(VLOOKUP($T$4&$A20,dataset,FE$4, FALSE), "") -> 1.168044588 | FF20: =IFERROR(VLOOKUP($T$4&$A20,dataset,FF$4, FALSE), "") -> -0.2985020581 | FG20: =IFERROR(VLOOKUP($T$4&$A20,dataset,FG$4, FALSE), "") -> 0.03858063584 | FH20: =IFERROR(VLOOKUP($T$4&$A20,dataset,FH$4, FALSE), "") -> 8.439091363 | FI20: =IFERROR(VLOOKUP($T$4&$A20,dataset,FI$4, FALSE), "") -> 99.74683979 | FJ20: =IFERROR(VLOOKUP($T$4&$A20,dataset,FJ$4, FALSE), "") -> 0.6867678455 | FK20: =IFERROR(VLOOKUP($T$4&$A20,dataset,FK$4, FALSE), "") -> 0 | FL20: =IFERROR(VLOOKUP($T$4&$A20,dataset,FL$4, FALSE), "") -> 5.671057125 | FM20: =IFERROR(VLOOKUP($T$4&$A20,dataset,FM$4, FALSE), "") -> 43.98041655 | FN20: =IFERROR(VLOOKUP($T$4&$A20,dataset,FN$4, FALSE), "") -> 1
A21: 13 | C21: =IFERROR(VLOOKUP($T$4&$A21,dataset,C$4, FALSE), "") -> Kmart | D21: =IFERROR(VLOOKUP($T$4&$A21,dataset,D$4, FALSE), "") -> 1 | E21: =IFERROR(VLOOKUP($T$4&$A21,dataset,E$3, FALSE)/VLOOKUP($T$4&$A21,dataset,E$4, FALSE)-1, "") -> -0.1093983306 | F21: =IFERROR(VLOOKUP($T$4&$A21,dataset,F$3, FALSE)/VLOOKUP($T$4&$A21,dataset,F$4, FALSE)-1, "") -> -0.1563785612 | G21: =IFERROR((VLOOKUP($T$4&$A21,dataset,E$3, FALSE)-VLOOKUP($T$4&$A21,dataset,F$3, FALSE))/(VLOOKUP($T$4&$A21,dataset,E$4, FALSE)-VLOOKUP($T$4&$A21,dataset,F$4, FALSE))-1, "") -> -0.05890554137 | H21: =IFERROR(VLOOKUP($T$4&$A21,dataset,H$4, FALSE),"") -> 49.06920751 | I21: =IFERROR(VLOOKUP($T$4&$A21,dataset,I$4, FALSE), "") -> -2.732603246 | J21: =IFERROR(VLOOKUP($T$4&$A21,dataset,J$4, FALSE), "") -> 6.408003481 | K21: =IFERROR(VLOOKUP($T$4&$A21,dataset,K$4, FALSE), "") -> 4.054375559 | L21: =IFERROR(VLOOKUP($T$4&$A21,dataset,L$4, FALSE), "") -> 2.353627922 | M21: =IFERROR(VLOOKUP($T$4&$A21,dataset,M$4, FALSE), "") -> 0.07273720477 | N21: =IFERROR(VLOOKUP($T$4&$A21,dataset,N$4, FALSE), "") -> 40.82299906 | O21: =IFERROR(VLOOKUP($T$4&$A21,dataset,O$4, FALSE), "") -> -0.2096433262 | P21: =IFERROR(VLOOKUP($T$4&$A21,dataset,P$4, FALSE), "") -> 0 | Q21: =IFERROR(VLOOKUP($T$4&$A21,dataset,Q$4, FALSE), "") -> -1 | R21: =IFERROR(VLOOKUP($T$4&$A21,dataset,R$4, FALSE), "") -> 0 | S21: =IFERROR(VLOOKUP($T$4&$A21,dataset,S$4, FALSE), "") -> -41.71160328 | U21: =IFERROR(VLOOKUP($T$4&$A21,dataset,U$4, FALSE), "") -> 0.3878895092 | V21: =IFERROR(VLOOKUP($T$4&$A21,dataset,V$4, FALSE), "") -> 0.248771884 | W21: =IFERROR(VLOOKUP($T$4&$A21,dataset,W$4, FALSE), "") -> 0.000378081712 | X21: =IFERROR(VLOOKUP($T$4&$A21,dataset,X$4, FALSE), "") -> 5.486768833 | Y21: =IFERROR(VLOOKUP($T$4&$A21,dataset,Y$4, FALSE), "") -> 6.130678381 | Z21: =IFERROR(VLOOKUP($T$4&$A21,dataset,Z$4, FALSE), "") -> 3.01238602 | AA21: =IFERROR(VLOOKUP($T$4&$A21,dataset,AA$4, FALSE), "") -> 0 | AB21: =IFERROR(VLOOKUP($T$4&$A21,dataset,AB$4, FALSE), "") -> 4.508246762 | AC21: =IFERROR(VLOOKUP($T$4&$A21,dataset,AC$4, FALSE), "") -> 30 | AD21: =IFERROR(VLOOKUP($T$4&$A21,dataset,AD$4, FALSE), "") -> 1 | AE21: =IFERROR(VLOOKUP($T$4&$A21,dataset,AE$4, FALSE), "") -> 0.0007879005655 | AF21: =IFERROR(VLOOKUP($T$4&$A21,dataset,AF$4, FALSE), "") -> -0.006930860582 | AG21: =IFERROR(VLOOKUP($T$4&$A21,dataset,AG$4, FALSE), "") -> 9.260650161e-07 | AH21: =IFERROR(VLOOKUP($T$4&$A21,dataset,AH$4, FALSE), "") -> 1 | AI21: =IFERROR(VLOOKUP($T$4&$A21,dataset,AI$4, FALSE), "") -> 0.266370304 | AJ21: =IFERROR(VLOOKUP($T$4&$A21,dataset,AJ$4, FALSE), "") -> -0.2636735695 | AK21: =IFERROR(VLOOKUP($T$4&$A21,dataset,AK$4, FALSE), "") -> 0 | AL21: =IFERROR(VLOOKUP($T$4&$A21,dataset,AL$4, FALSE), "") -> 15.6 | AM21: =IFERROR(VLOOKUP($T$4&$A21,dataset,AM$4, FALSE), "") -> 1 | AN21: =IFERROR(VLOOKUP($T$4&$A21,dataset,AN$4, FALSE), "") -> 1 | AO21: =IFERROR(VLOOKUP($T$4&$A21,dataset,AO$4, FALSE), "") -> 0.04174403719 | AP21: =IFERROR(VLOOKUP($T$4&$A21,dataset,AP$4, FALSE), "") -> 0.03272164124 | AQ21: =IFERROR(VLOOKUP($T$4&$A21,dataset,AQ$4, FALSE), "") -> 3.839381964e-05 | AR21: =IFERROR(VLOOKUP($T$4&$A21,dataset,AR$4, FALSE), "") -> 2.483340502 | AS21: =IFERROR(VLOOKUP($T$4&$A21,dataset,AS$4, FALSE), "") -> 1.756923951 | AT21: =IFERROR(VLOOKUP($T$4&$A21,dataset,AT$4, FALSE), "") -> 1.226880077 | AU21: =IFERROR(VLOOKUP($T$4&$A21,dataset,AU$4, FALSE), "") -> 0 | AV21: =IFERROR(VLOOKUP($T$4&$A21,dataset,AV$4, FALSE), "") -> 7.879838444 | AW21: =IFERROR(VLOOKUP($T$4&$A21,dataset,AW$4, FALSE), "") -> 8.3 | AX21: =IFERROR(VLOOKUP($T$4&$A21,dataset,AX$4, FALSE), "") -> 1 | AY21: =IFERROR(VLOOKUP($T$4&$A21,dataset,AY$4, FALSE), "") -> 0.009901100113 | AZ21: =IFERROR(VLOOKUP($T$4&$A21,dataset,AZ$4, FALSE), "") -> 0.001887917052 | BA21: =IFERROR(VLOOKUP($T$4&$A21,dataset,BA$4, FALSE), "") -> 1.639639893e-05 | BB21: =IFERROR(VLOOKUP($T$4&$A21,dataset,BB$4, FALSE), "") -> 4 | BC21: =IFERROR(VLOOKUP($T$4&$A21,dataset,BC$4, FALSE), "") -> 0.266370304 | BD21: =IFERROR(VLOOKUP($T$4&$A21,dataset,BD$4, FALSE), "") -> 0.009076184201 | BE21: =IFERROR(VLOOKUP($T$4&$A21,dataset,BE$4, FALSE), "") -> 0 | BF21: =IFERROR(VLOOKUP($T$4&$A21,dataset,BF$4, FALSE), "") -> 4.238607416 | BG21: =IFERROR(VLOOKUP($T$4&$A21,dataset,BG$4, FALSE), "") -> 19 | BH21: =IFERROR(VLOOKUP($T$4&$A21,dataset,BH$4, FALSE), "") -> 1 | BI21: =IFERROR(VLOOKUP($T$4&$A21,dataset,BI$4, FALSE), "") -> 0.0002736531102 | BJ21: =IFERROR(VLOOKUP($T$4&$A21,dataset,BJ$4, FALSE), "") -> -0.004283343829 | BK21: =IFERROR(VLOOKUP($T$4&$A21,dataset,BK$4, FALSE), "") -> 1.44226457e-06 | BL21: =IFERROR(VLOOKUP($T$4&$A21,dataset,BL$4, FALSE), "") -> 1 | BM21: =IFERROR(VLOOKUP($T$4&$A21,dataset,BM$4, FALSE), "") -> 0.1507106038 | BN21: =IFERROR(VLOOKUP($T$4&$A21,dataset,BN$4, FALSE), "") -> -0.3308431885 | BO21: =IFERROR(VLOOKUP($T$4&$A21,dataset,BO$4, FALSE), "") -> 0 | BP21: =IFERROR(VLOOKUP($T$4&$A21,dataset,BP$4, FALSE), "") -> 9.532949456 | BQ21: =IFERROR(VLOOKUP($T$4&$A21,dataset,BQ$4, FALSE), "") -> 1 | BR21: =IFERROR(VLOOKUP($T$4&$A21,dataset,BR$4, FALSE), "") -> 1 | BS21: =IFERROR(VLOOKUP($T$4&$A21,dataset,BS$4, FALSE), "") -> 0.3407715861 | BT21: =IFERROR(VLOOKUP($T$4&$A21,dataset,BT$4, FALSE), "") -> -0.2063651881 | BU21: =IFERROR(VLOOKUP($T$4&$A21,dataset,BU$4, FALSE), "") -> 0.001750816296 | BV21: =IFERROR(VLOOKUP($T$4&$A21,dataset,BV$4, FALSE), "") -> 1.228023361 | BW21: =IFERROR(VLOOKUP($T$4&$A21,dataset,BW$4, FALSE), "") -> 45.94723152 | BX21: =IFERROR(VLOOKUP($T$4&$A21,dataset,BX$4, FALSE), "") -> -19.53601665 | BY21: =IFERROR(VLOOKUP($T$4&$A21,dataset,BY$4, FALSE), "") -> 0 | BZ21: =IFERROR(VLOOKUP($T$4&$A21,dataset,BZ$4, FALSE), "") -> 9.262776911 | CA21: =IFERROR(VLOOKUP($T$4&$A21,dataset,CA$4, FALSE), "") -> 1.770718232 | CB21: =IFERROR(VLOOKUP($T$4&$A21,dataset,CB$4, FALSE), "") -> 1 | CC21: =IFERROR(VLOOKUP($T$4&$A21,dataset,CC$4, FALSE), "") -> 0.005847728206 | CD21: =IFERROR(VLOOKUP($T$4&$A21,dataset,CD$4, FALSE), "") -> 0.002592730392 | CE21: =IFERROR(VLOOKUP($T$4&$A21,dataset,CE$4, FALSE), "") -> 1.829607806e-05 | CF21: =IFERROR(VLOOKUP($T$4&$A21,dataset,CF$4, FALSE), "") -> 2.443217227 | CG21: =IFERROR(VLOOKUP($T$4&$A21,dataset,CG$4, FALSE), "") -> 0.7441640142 | CH21: =IFERROR(VLOOKUP($T$4&$A21,dataset,CH$4, FALSE), "") -> -0.07218458418 | CI21: =IFERROR(VLOOKUP($T$4&$A21,dataset,CI$4, FALSE), "") -> 0 | CJ21: =IFERROR(VLOOKUP($T$4&$A21,dataset,CJ$4, FALSE), "") -> 9.646146389 | CK21: =IFERROR(VLOOKUP($T$4&$A21,dataset,CK$4, FALSE), "") -> 5.333333333 | CL21: =IFERROR(VLOOKUP($T$4&$A21,dataset,CL$4, FALSE), "") -> 1 | CM21: =IFERROR(VLOOKUP($T$4&$A21,dataset,CM$4, FALSE), "") -> 0 | CN21: =IFERROR(VLOOKUP($T$4&$A21,dataset,CN$4, FALSE), "") -> 0 | CO21: =IFERROR(VLOOKUP($T$4&$A21,dataset,CO$4, FALSE), "") -> 0 | CP21: =IFERROR(VLOOKUP($T$4&$A21,dataset,CP$4, FALSE), "") -> 0 | CQ21: =IFERROR(VLOOKUP($T$4&$A21,dataset,CQ$4, FALSE), "") -> 0 | CR21: =IFERROR(VLOOKUP($T$4&$A21,dataset,CR$4, FALSE), "") -> 0 | CS21: =IFERROR(VLOOKUP($T$4&$A21,dataset,CS$4, FALSE), "") -> 0 | CT21: =IFERROR(VLOOKUP($T$4&$A21,dataset,CT$4, FALSE), "") -> 0 | CU21: =IFERROR(VLOOKUP($T$4&$A21,dataset,CU$4, FALSE), "") -> 0 | CV21: =IFERROR(VLOOKUP($T$4&$A21,dataset,CV$4, FALSE), "") -> 0 | CW21: =IFERROR(VLOOKUP($T$4&$A21,dataset,CW$4, FALSE), "") -> 0.03024876996 | CX21: =IFERROR(VLOOKUP($T$4&$A21,dataset,CX$4, FALSE), "") -> 0.0297269889 | CY21: =IFERROR(VLOOKUP($T$4&$A21,dataset,CY$4, FALSE), "") -> 8.407978408e-05 | CZ21: =IFERROR(VLOOKUP($T$4&$A21,dataset,CZ$4, FALSE), "") -> 1.426297022 | DA21: =IFERROR(VLOOKUP($T$4&$A21,dataset,DA$4, FALSE), "") -> 1.817305499 | DB21: =IFERROR(VLOOKUP($T$4&$A21,dataset,DB$4, FALSE), "") -> 1.544555745 | DC21: =IFERROR(VLOOKUP($T$4&$A21,dataset,DC$4, FALSE), "") -> 0 | DD21: =IFERROR(VLOOKUP($T$4&$A21,dataset,DD$4, FALSE), "") -> 7.180162349 | DE21: =IFERROR(VLOOKUP($T$4&$A21,dataset,DE$4, FALSE), "") -> 6.428571429 | DF21: =IFERROR(VLOOKUP($T$4&$A21,dataset,DF$4, FALSE), "") -> 1 | DG21: =IFERROR(VLOOKUP($T$4&$A21,dataset,DG$4, FALSE), "") -> 0 | DH21: =IFERROR(VLOOKUP($T$4&$A21,dataset,DH$4, FALSE), "") -> 0 | DI21: =IFERROR(VLOOKUP($T$4&$A21,dataset,DI$4, FALSE), "") -> 0 | DJ21: =IFERROR(VLOOKUP($T$4&$A21,dataset,DJ$4, FALSE), "") -> 0 | DK21: =IFERROR(VLOOKUP($T$4&$A21,dataset,DK$4, FALSE), "") -> 0 | DL21: =IFERROR(VLOOKUP($T$4&$A21,dataset,DL$4, FALSE), "") -> 0 | DM21: =IFERROR(VLOOKUP($T$4&$A21,dataset,DM$4, FALSE), "") -> 0 | DN21: =IFERROR(VLOOKUP($T$4&$A21,dataset,DN$4, FALSE), "") -> 0 | DO21: =IFERROR(VLOOKUP($T$4&$A21,dataset,DO$4, FALSE), "") -> 0 | DP21: =IFERROR(VLOOKUP($T$4&$A21,dataset,DP$4, FALSE), "") -> 0 | DQ21: =IFERROR(VLOOKUP($T$4&$A21,dataset,DQ$4, FALSE), "") -> 0 | DR21: =IFERROR(VLOOKUP($T$4&$A21,dataset,DR$4, FALSE), "") -> 0 | DS21: =IFERROR(VLOOKUP($T$4&$A21,dataset,DS$4, FALSE), "") -> 0 | DT21: =IFERROR(VLOOKUP($T$4&$A21,dataset,DT$4, FALSE), "") -> 0 | DU21: =IFERROR(VLOOKUP($T$4&$A21,dataset,DU$4, FALSE), "") -> 0 | DV21: =IFERROR(VLOOKUP($T$4&$A21,dataset,DV$4, FALSE), "") -> 0 | DW21: =IFERROR(VLOOKUP($T$4&$A21,dataset,DW$4, FALSE), "") -> 0 | DX21: =IFERROR(VLOOKUP($T$4&$A21,dataset,DX$4, FALSE), "") -> 0 | DY21: =IFERROR(VLOOKUP($T$4&$A21,dataset,DY$4, FALSE), "") -> 0 | DZ21: =IFERROR(VLOOKUP($T$4&$A21,dataset,DZ$4, FALSE), "") -> 0 | EA21: =IFERROR(VLOOKUP($T$4&$A21,dataset,EA$4, FALSE), "") -> 0 | EB21: =IFERROR(VLOOKUP($T$4&$A21,dataset,EB$4, FALSE), "") -> 0 | EC21: =IFERROR(VLOOKUP($T$4&$A21,dataset,EC$4, FALSE), "") -> 0 | ED21: =IFERROR(VLOOKUP($T$4&$A21,dataset,ED$4, FALSE), "") -> 0 | EE21: =IFERROR(VLOOKUP($T$4&$A21,dataset,EE$4, FALSE), "") -> 0 | EF21: =IFERROR(VLOOKUP($T$4&$A21,dataset,EF$4, FALSE), "") -> 0 | EG21: =IFERROR(VLOOKUP($T$4&$A21,dataset,EG$4, FALSE), "") -> 0 | EH21: =IFERROR(VLOOKUP($T$4&$A21,dataset,EH$4, FALSE), "") -> 0 | EI21: =IFERROR(VLOOKUP($T$4&$A21,dataset,EI$4, FALSE), "") -> 0 | EJ21: =IFERROR(VLOOKUP($T$4&$A21,dataset,EJ$4, FALSE), "") -> 0 | EK21: =IFERROR(VLOOKUP($T$4&$A21,dataset,EK$4, FALSE), "") -> 12.42842984 | EL21: =IFERROR(VLOOKUP($T$4&$A21,dataset,EL$4, FALSE), "") -> -2.022748395 | EM21: =IFERROR(VLOOKUP($T$4&$A21,dataset,EM$4, FALSE), "") -> 0.002814169017 | EN21: =IFERROR(VLOOKUP($T$4&$A21,dataset,EN$4, FALSE), "") -> 14.3953158 | EO21: =IFERROR(VLOOKUP($T$4&$A21,dataset,EO$4, FALSE), "") -> 99.2109406 | EP21: =IFERROR(VLOOKUP($T$4&$A21,dataset,EP$4, FALSE), "") -> -0.7890593977 | EQ21: =IFERROR(VLOOKUP($T$4&$A21,dataset,EQ$4, FALSE), "") -> 0 | ER21: =IFERROR(VLOOKUP($T$4&$A21,dataset,ER$4, FALSE), "") -> 2.596668352 | ES21: =IFERROR(VLOOKUP($T$4&$A21,dataset,ES$4, FALSE), "") -> 37.20509849 | ET21: =IFERROR(VLOOKUP($T$4&$A21,dataset,ET$4, FALSE), "") -> 1 | EU21: =IFERROR(VLOOKUP($T$4&$A21,dataset,EU$4, FALSE), "") -> 4.433343842 | EV21: =IFERROR(VLOOKUP($T$4&$A21,dataset,EV$4, FALSE), "") -> 0.2248934302 | EW21: =IFERROR(VLOOKUP($T$4&$A21,dataset,EW$4, FALSE), "") -> 0.002011350493 | EX21: =IFERROR(VLOOKUP($T$4&$A21,dataset,EX$4, FALSE), "") -> 15.96432396 | EY21: =IFERROR(VLOOKUP($T$4&$A21,dataset,EY$4, FALSE), "") -> 36.90644825 | EZ21: =IFERROR(VLOOKUP($T$4&$A21,dataset,EZ$4, FALSE), "") -> 2.743346519 | FA21: =IFERROR(VLOOKUP($T$4&$A21,dataset,FA$4, FALSE), "") -> 0 | FB21: =IFERROR(VLOOKUP($T$4&$A21,dataset,FB$4, FALSE), "") -> 4.471208594 | FC21: =IFERROR(VLOOKUP($T$4&$A21,dataset,FC$4, FALSE), "") -> 57.76271186 | FD21: =IFERROR(VLOOKUP($T$4&$A21,dataset,FD$4, FALSE), "") -> 1 | FE21: =IFERROR(VLOOKUP($T$4&$A21,dataset,FE$4, FALSE), "") -> 0.02164614467 | FF21: =IFERROR(VLOOKUP($T$4&$A21,dataset,FF$4, FALSE), "") -> 0.01810490333 | FG21: =IFERROR(VLOOKUP($T$4&$A21,dataset,FG$4, FALSE), "") -> 3.111860763e-05 | FH21: =IFERROR(VLOOKUP($T$4&$A21,dataset,FH$4, FALSE), "") -> 1.605415538 | FI21: =IFERROR(VLOOKUP($T$4&$A21,dataset,FI$4, FALSE), "") -> 1.921806051 | FJ21: =IFERROR(VLOOKUP($T$4&$A21,dataset,FJ$4, FALSE), "") -> 1.429979408 | FK21: =IFERROR(VLOOKUP($T$4&$A21,dataset,FK$4, FALSE), "") -> 0 | FL21: =IFERROR(VLOOKUP($T$4&$A21,dataset,FL$4, FALSE), "") -> 5.688031775 | FM21: =IFERROR(VLOOKUP($T$4&$A21,dataset,FM$4, FALSE), "") -> 2.785714286 | FN21: =IFERROR(VLOOKUP($T$4&$A21,dataset,FN$4, FALSE), "") -> 1
A22: 14 | C22: =IFERROR(VLOOKUP($T$4&$A22,dataset,C$4, FALSE), "") -> BJs Club | D22: =IFERROR(VLOOKUP($T$4&$A22,dataset,D$4, FALSE), "") -> 1 | E22: =IFERROR(VLOOKUP($T$4&$A22,dataset,E$3, FALSE)/VLOOKUP($T$4&$A22,dataset,E$4, FALSE)-1, "") -> -0.01094983264 | F22: =IFERROR(VLOOKUP($T$4&$A22,dataset,F$3, FALSE)/VLOOKUP($T$4&$A22,dataset,F$4, FALSE)-1, "") -> -0.09064955045 | G22: =IFERROR((VLOOKUP($T$4&$A22,dataset,E$3, FALSE)-VLOOKUP($T$4&$A22,dataset,F$3, FALSE))/(VLOOKUP($T$4&$A22,dataset,E$4, FALSE)-VLOOKUP($T$4&$A22,dataset,F$4, FALSE))-1, "") -> 0.08802924611 | H22: =IFERROR(VLOOKUP($T$4&$A22,dataset,H$4, FALSE),"") -> 50.93113489 | I22: =IFERROR(VLOOKUP($T$4&$A22,dataset,I$4, FALSE), "") -> -4.463842384 | J22: =IFERROR(VLOOKUP($T$4&$A22,dataset,J$4, FALSE), "") -> 3.90807398 | K22: =IFERROR(VLOOKUP($T$4&$A22,dataset,K$4, FALSE), "") -> 3.931659087 | L22: =IFERROR(VLOOKUP($T$4&$A22,dataset,L$4, FALSE), "") -> -0.02358510718 | M22: =IFERROR(VLOOKUP($T$4&$A22,dataset,M$4, FALSE), "") -> 0.06780466112 | N22: =IFERROR(VLOOKUP($T$4&$A22,dataset,N$4, FALSE), "") -> 26.86316949 | O22: =IFERROR(VLOOKUP($T$4&$A22,dataset,O$4, FALSE), "") -> -0.3310445679 | P22: =IFERROR(VLOOKUP($T$4&$A22,dataset,P$4, FALSE), "") -> 0 | Q22: =IFERROR(VLOOKUP($T$4&$A22,dataset,Q$4, FALSE), "") -> -1 | R22: =IFERROR(VLOOKUP($T$4&$A22,dataset,R$4, FALSE), "") -> 0 | S22: =IFERROR(VLOOKUP($T$4&$A22,dataset,S$4, FALSE), "") -> -65.70872205 | U22: =IFERROR(VLOOKUP($T$4&$A22,dataset,U$4, FALSE), "") -> 0 | V22: =IFERROR(VLOOKUP($T$4&$A22,dataset,V$4, FALSE), "") -> 0 | W22: =IFERROR(VLOOKUP($T$4&$A22,dataset,W$4, FALSE), "") -> 0 | X22: =IFERROR(VLOOKUP($T$4&$A22,dataset,X$4, FALSE), "") -> 0 | Y22: =IFERROR(VLOOKUP($T$4&$A22,dataset,Y$4, FALSE), "") -> 0 | Z22: =IFERROR(VLOOKUP($T$4&$A22,dataset,Z$4, FALSE), "") -> 0 | AA22: =IFERROR(VLOOKUP($T$4&$A22,dataset,AA$4, FALSE), "") -> 0 | AB22: =IFERROR(VLOOKUP($T$4&$A22,dataset,AB$4, FALSE), "") -> 0 | AC22: =IFERROR(VLOOKUP($T$4&$A22,dataset,AC$4, FALSE), "") -> 0 | AD22: =IFERROR(VLOOKUP($T$4&$A22,dataset,AD$4, FALSE), "") -> 0 | AE22: =IFERROR(VLOOKUP($T$4&$A22,dataset,AE$4, FALSE), "") -> 5.088180343 | AF22: =IFERROR(VLOOKUP($T$4&$A22,dataset,AF$4, FALSE), "") -> 0.2333497138 | AG22: =IFERROR(VLOOKUP($T$4&$A22,dataset,AG$4, FALSE), "") -> 0.03987216316 | AH22: =IFERROR(VLOOKUP($T$4&$A22,dataset,AH$4, FALSE), "") -> 2.061351581 | AI22: =IFERROR(VLOOKUP($T$4&$A22,dataset,AI$4, FALSE), "") -> 100 | AJ22: =IFERROR(VLOOKUP($T$4&$A22,dataset,AJ$4, FALSE), "") -> 0 | AK22: =IFERROR(VLOOKUP($T$4&$A22,dataset,AK$4, FALSE), "") -> 0 | AL22: =IFERROR(VLOOKUP($T$4&$A22,dataset,AL$4, FALSE), "") -> 8.840218148 | AM22: =IFERROR(VLOOKUP($T$4&$A22,dataset,AM$4, FALSE), "") -> 121.2769953 | AN22: =IFERROR(VLOOKUP($T$4&$A22,dataset,AN$4, FALSE), "") -> 1 | AO22: =IFERROR(VLOOKUP($T$4&$A22,dataset,AO$4, FALSE), "") -> 4.24396364 | AP22: =IFERROR(VLOOKUP($T$4&$A22,dataset,AP$4, FALSE), "") -> 0.1112072768 | AQ22: =IFERROR(VLOOKUP($T$4&$A22,dataset,AQ$4, FALSE), "") -> 0.02602410258 | AR22: =IFERROR(VLOOKUP($T$4&$A22,dataset,AR$4, FALSE), "") -> 1.991302931 | AS22: =IFERROR(VLOOKUP($T$4&$A22,dataset,AS$4, FALSE), "") -> 100 | AT22: =IFERROR(VLOOKUP($T$4&$A22,dataset,AT$4, FALSE), "") -> 0 | AU22: =IFERROR(VLOOKUP($T$4&$A22,dataset,AU$4, FALSE), "") -> 0 | AV22: =IFERROR(VLOOKUP($T$4&$A22,dataset,AV$4, FALSE), "") -> 4.811271665 | AW22: =IFERROR(VLOOKUP($T$4&$A22,dataset,AW$4, FALSE), "") -> 102.6901408 | AX22: =IFERROR(VLOOKUP($T$4&$A22,dataset,AX$4, FALSE), "") -> 1 | AY22: =IFERROR(VLOOKUP($T$4&$A22,dataset,AY$4, FALSE), "") -> 0 | AZ22: =IFERROR(VLOOKUP($T$4&$A22,dataset,AZ$4, FALSE), "") -> 0 | BA22: =IFERROR(VLOOKUP($T$4&$A22,dataset,BA$4, FALSE), "") -> 0 | BB22: =IFERROR(VLOOKUP($T$4&$A22,dataset,BB$4, FALSE), "") -> 0 | BC22: =IFERROR(VLOOKUP($T$4&$A22,dataset,BC$4, FALSE), "") -> 0 | BD22: =IFERROR(VLOOKUP($T$4&$A22,dataset,BD$4, FALSE), "") -> 0 | BE22: =IFERROR(VLOOKUP($T$4&$A22,dataset,BE$4, FALSE), "") -> 0 | BF22: =IFERROR(VLOOKUP($T$4&$A22,dataset,BF$4, FALSE), "") -> 0 | BG22: =IFERROR(VLOOKUP($T$4&$A22,dataset,BG$4, FALSE), "") -> 0 | BH22: =IFERROR(VLOOKUP($T$4&$A22,dataset,BH$4, FALSE), "") -> 0 | BI22: =IFERROR(VLOOKUP($T$4&$A22,dataset,BI$4, FALSE), "") -> 0 | BJ22: =IFERROR(VLOOKUP($T$4&$A22,dataset,BJ$4, FALSE), "") -> 0 | BK22: =IFERROR(VLOOKUP($T$4&$A22,dataset,BK$4, FALSE), "") -> 0 | BL22: =IFERROR(VLOOKUP($T$4&$A22,dataset,BL$4, FALSE), "") -> 0 | BM22: =IFERROR(VLOOKUP($T$4&$A22,dataset,BM$4, FALSE), "") -> 0 | BN22: =IFERROR(VLOOKUP($T$4&$A22,dataset,BN$4, FALSE), "") -> 0 | BO22: =IFERROR(VLOOKUP($T$4&$A22,dataset,BO$4, FALSE), "") -> 0 | BP22: =IFERROR(VLOOKUP($T$4&$A22,dataset,BP$4, FALSE), "") -> 0 | BQ22: =IFERROR(VLOOKUP($T$4&$A22,dataset,BQ$4, FALSE), "") -> 0 | BR22: =IFERROR(VLOOKUP($T$4&$A22,dataset,BR$4, FALSE), "") -> 0 | BS22: =IFERROR(VLOOKUP($T$4&$A22,dataset,BS$4, FALSE), "") -> 0 | BT22: =IFERROR(VLOOKUP($T$4&$A22,dataset,BT$4, FALSE), "") -> 0 | BU22: =IFERROR(VLOOKUP($T$4&$A22,dataset,BU$4, FALSE), "") -> 0 | BV22: =IFERROR(VLOOKUP($T$4&$A22,dataset,BV$4, FALSE), "") -> 0 | BW22: =IFERROR(VLOOKUP($T$4&$A22,dataset,BW$4, FALSE), "") -> 0 | BX22: =IFERROR(VLOOKUP($T$4&$A22,dataset,BX$4, FALSE), "") -> 0 | BY22: =IFERROR(VLOOKUP($T$4&$A22,dataset,BY$4, FALSE), "") -> 0 | BZ22: =IFERROR(VLOOKUP($T$4&$A22,dataset,BZ$4, FALSE), "") -> 0 | CA22: =IFERROR(VLOOKUP($T$4&$A22,dataset,CA$4, FALSE), "") -> 0 | CB22: =IFERROR(VLOOKUP($T$4&$A22,dataset,CB$4, FALSE), "") -> 0 | CC22: =IFERROR(VLOOKUP($T$4&$A22,dataset,CC$4, FALSE), "") -> 0.6861932273 | CD22: =IFERROR(VLOOKUP($T$4&$A22,dataset,CD$4, FALSE), "") -> -0.1054095011 | CE22: =IFERROR(VLOOKUP($T$4&$A22,dataset,CE$4, FALSE), "") -> 0.01431378497 | CF22: =IFERROR(VLOOKUP($T$4&$A22,dataset,CF$4, FALSE), "") -> 1.004517791 | CG22: =IFERROR(VLOOKUP($T$4&$A22,dataset,CG$4, FALSE), "") -> 99.15557227 | CH22: =IFERROR(VLOOKUP($T$4&$A22,dataset,CH$4, FALSE), "") -> 0.7948322465 | CI22: =IFERROR(VLOOKUP($T$4&$A22,dataset,CI$4, FALSE), "") -> 0 | CJ22: =IFERROR(VLOOKUP($T$4&$A22,dataset,CJ$4, FALSE), "") -> 7.460622524 | CK22: =IFERROR(VLOOKUP($T$4&$A22,dataset,CK$4, FALSE), "") -> 42.19905213 | CL22: =IFERROR(VLOOKUP($T$4&$A22,dataset,CL$4, FALSE), "") -> 1 | CM22: =IFERROR(VLOOKUP($T$4&$A22,dataset,CM$4, FALSE), "") -> 0 | CN22: =IFERROR(VLOOKUP($T$4&$A22,dataset,CN$4, FALSE), "") -> 0 | CO22: =IFERROR(VLOOKUP($T$4&$A22,dataset,CO$4, FALSE), "") -> 0 | CP22: =IFERROR(VLOOKUP($T$4&$A22,dataset,CP$4, FALSE), "") -> 0 | CQ22: =IFERROR(VLOOKUP($T$4&$A22,dataset,CQ$4, FALSE), "") -> 0 | CR22: =IFERROR(VLOOKUP($T$4&$A22,dataset,CR$4, FALSE), "") -> 0 | CS22: =IFERROR(VLOOKUP($T$4&$A22,dataset,CS$4, FALSE), "") -> 0 | CT22: =IFERROR(VLOOKUP($T$4&$A22,dataset,CT$4, FALSE), "") -> 0 | CU22: =IFERROR(VLOOKUP($T$4&$A22,dataset,CU$4, FALSE), "") -> 0 | CV22: =IFERROR(VLOOKUP($T$4&$A22,dataset,CV$4, FALSE), "") -> 0 | CW22: =IFERROR(VLOOKUP($T$4&$A22,dataset,CW$4, FALSE), "") -> 4.188755819 | CX22: =IFERROR(VLOOKUP($T$4&$A22,dataset,CX$4, FALSE), "") -> 0.9116642542 | CY22: =IFERROR(VLOOKUP($T$4&$A22,dataset,CY$4, FALSE), "") -> 0.07762581066 | CZ22: =IFERROR(VLOOKUP($T$4&$A22,dataset,CZ$4, FALSE), "") -> 1.998567388 | DA22: =IFERROR(VLOOKUP($T$4&$A22,dataset,DA$4, FALSE), "") -> 100 | DB22: =IFERROR(VLOOKUP($T$4&$A22,dataset,DB$4, FALSE), "") -> 0 | DC22: =IFERROR(VLOOKUP($T$4&$A22,dataset,DC$4, FALSE), "") -> 0 | DD22: =IFERROR(VLOOKUP($T$4&$A22,dataset,DD$4, FALSE), "") -> 7.091825803 | DE22: =IFERROR(VLOOKUP($T$4&$A22,dataset,DE$4, FALSE), "") -> 110.3380282 | DF22: =IFERROR(VLOOKUP($T$4&$A22,dataset,DF$4, FALSE), "") -> 1 | DG22: =IFERROR(VLOOKUP($T$4&$A22,dataset,DG$4, FALSE), "") -> 0 | DH22: =IFERROR(VLOOKUP($T$4&$A22,dataset,DH$4, FALSE), "") -> 0 | DI22: =IFERROR(VLOOKUP($T$4&$A22,dataset,DI$4, FALSE), "") -> 0 | DJ22: =IFERROR(VLOOKUP($T$4&$A22,dataset,DJ$4, FALSE), "") -> 0 | DK22: =IFERROR(VLOOKUP($T$4&$A22,dataset,DK$4, FALSE), "") -> 0 | DL22: =IFERROR(VLOOKUP($T$4&$A22,dataset,DL$4, FALSE), "") -> 0 | DM22: =IFERROR(VLOOKUP($T$4&$A22,dataset,DM$4, FALSE), "") -> 0 | DN22: =IFERROR(VLOOKUP($T$4&$A22,dataset,DN$4, FALSE), "") -> 0 | DO22: =IFERROR(VLOOKUP($T$4&$A22,dataset,DO$4, FALSE), "") -> 0 | DP22: =IFERROR(VLOOKUP($T$4&$A22,dataset,DP$4, FALSE), "") -> 0 | DQ22: =IFERROR(VLOOKUP($T$4&$A22,dataset,DQ$4, FALSE), "") -> 0 | DR22: =IFERROR(VLOOKUP($T$4&$A22,dataset,DR$4, FALSE), "") -> 0 | DS22: =IFERROR(VLOOKUP($T$4&$A22,dataset,DS$4, FALSE), "") -> 0 | DT22: =IFERROR(VLOOKUP($T$4&$A22,dataset,DT$4, FALSE), "") -> 0 | DU22: =IFERROR(VLOOKUP($T$4&$A22,dataset,DU$4, FALSE), "") -> 0 | DV22: =IFERROR(VLOOKUP($T$4&$A22,dataset,DV$4, FALSE), "") -> 0 | DW22: =IFERROR(VLOOKUP($T$4&$A22,dataset,DW$4, FALSE), "") -> 0 | DX22: =IFERROR(VLOOKUP($T$4&$A22,dataset,DX$4, FALSE), "") -> 0 | DY22: =IFERROR(VLOOKUP($T$4&$A22,dataset,DY$4, FALSE), "") -> 0 | DZ22: =IFERROR(VLOOKUP($T$4&$A22,dataset,DZ$4, FALSE), "") -> 0 | EA22: =IFERROR(VLOOKUP($T$4&$A22,dataset,EA$4, FALSE), "") -> 0.05215587075 | EB22: =IFERROR(VLOOKUP($T$4&$A22,dataset,EB$4, FALSE), "") -> 0.05215587075 | EC22: =IFERROR(VLOOKUP($T$4&$A22,dataset,EC$4, FALSE), "") -> 0.004642505544 | ED22: =IFERROR(VLOOKUP($T$4&$A22,dataset,ED$4, FALSE), "") -> 1 | EE22: =IFERROR(VLOOKUP($T$4&$A22,dataset,EE$4, FALSE), "") -> 15.56585568 | EF22: =IFERROR(VLOOKUP($T$4&$A22,dataset,EF$4, FALSE), "") -> 15.56585568 | EG22: =IFERROR(VLOOKUP($T$4&$A22,dataset,EG$4, FALSE), "") -> 0 | EH22: =IFERROR(VLOOKUP($T$4&$A22,dataset,EH$4, FALSE), "") -> 4.210909091 | EI22: =IFERROR(VLOOKUP($T$4&$A22,dataset,EI$4, FALSE), "") -> 8.384615385 | EJ22: =IFERROR(VLOOKUP($T$4&$A22,dataset,EJ$4, FALSE), "") -> 1 | EK22: =IFERROR(VLOOKUP($T$4&$A22,dataset,EK$4, FALSE), "") -> 8.724452733 | EL22: =IFERROR(VLOOKUP($T$4&$A22,dataset,EL$4, FALSE), "") -> 3.448178256 | EM22: =IFERROR(VLOOKUP($T$4&$A22,dataset,EM$4, FALSE), "") -> 0.0131707147 | EN22: =IFERROR(VLOOKUP($T$4&$A22,dataset,EN$4, FALSE), "") -> 7.683475465 | EO22: =IFERROR(VLOOKUP($T$4&$A22,dataset,EO$4, FALSE), "") -> 100 | EP22: =IFERROR(VLOOKUP($T$4&$A22,dataset,EP$4, FALSE), "") -> 0 | EQ22: =IFERROR(VLOOKUP($T$4&$A22,dataset,EQ$4, FALSE), "") -> 0 | ER22: =IFERROR(VLOOKUP($T$4&$A22,dataset,ER$4, FALSE), "") -> 2.3243673 | ES22: =IFERROR(VLOOKUP($T$4&$A22,dataset,ES$4, FALSE), "") -> 277.7934272 | ET22: =IFERROR(VLOOKUP($T$4&$A22,dataset,ET$4, FALSE), "") -> 1 | EU22: =IFERROR(VLOOKUP($T$4&$A22,dataset,EU$4, FALSE), "") -> 2.336732756 | EV22: =IFERROR(VLOOKUP($T$4&$A22,dataset,EV$4, FALSE), "") -> -0.1085790273 | EW22: =IFERROR(VLOOKUP($T$4&$A22,dataset,EW$4, FALSE), "") -> 0.007068098988 | EX22: =IFERROR(VLOOKUP($T$4&$A22,dataset,EX$4, FALSE), "") -> 3.257196501 | EY22: =IFERROR(VLOOKUP($T$4&$A22,dataset,EY$4, FALSE), "") -> 62.01421263 | EZ22: =IFERROR(VLOOKUP($T$4&$A22,dataset,EZ$4, FALSE), "") -> -0.7617614062 | FA22: =IFERROR(VLOOKUP($T$4&$A22,dataset,FA$4, FALSE), "") -> 0 | FB22: =IFERROR(VLOOKUP($T$4&$A22,dataset,FB$4, FALSE), "") -> 3.129395458 | FC22: =IFERROR(VLOOKUP($T$4&$A22,dataset,FC$4, FALSE), "") -> 115.4529915 | FD22: =IFERROR(VLOOKUP($T$4&$A22,dataset,FD$4, FALSE), "") -> 1 | FE22: =IFERROR(VLOOKUP($T$4&$A22,dataset,FE$4, FALSE), "") -> 0 | FF22: =IFERROR(VLOOKUP($T$4&$A22,dataset,FF$4, FALSE), "") -> 0 | FG22: =IFERROR(VLOOKUP($T$4&$A22,dataset,FG$4, FALSE), "") -> 0 | FH22: =IFERROR(VLOOKUP($T$4&$A22,dataset,FH$4, FALSE), "") -> 0 | FI22: =IFERROR(VLOOKUP($T$4&$A22,dataset,FI$4, FALSE), "") -> 0 | FJ22: =IFERROR(VLOOKUP($T$4&$A22,dataset,FJ$4, FALSE), "") -> 0 | FK22: =IFERROR(VLOOKUP($T$4&$A22,dataset,FK$4, FALSE), "") -> 0 | FL22: =IFERROR(VLOOKUP($T$4&$A22,dataset,FL$4, FALSE), "") -> 0 | FM22: =IFERROR(VLOOKUP($T$4&$A22,dataset,FM$4, FALSE), "") -> 0 | FN22: =IFERROR(VLOOKUP($T$4&$A22,dataset,FN$4, FALSE), "") -> 0
A23: 15 | C23: =IFERROR(VLOOKUP($T$4&$A23,dataset,C$4, FALSE), "") -> Target | D23: =IFERROR(VLOOKUP($T$4&$A23,dataset,D$4, FALSE), "") -> 1 | E23: =IFERROR(VLOOKUP($T$4&$A23,dataset,E$3, FALSE)/VLOOKUP($T$4&$A23,dataset,E$4, FALSE)-1, "") -> -0.03444195991 | F23: =IFERROR(VLOOKUP($T$4&$A23,dataset,F$3, FALSE)/VLOOKUP($T$4&$A23,dataset,F$4, FALSE)-1, "") -> -0.08759112783 | G23: =IFERROR((VLOOKUP($T$4&$A23,dataset,E$3, FALSE)-VLOOKUP($T$4&$A23,dataset,F$3, FALSE))/(VLOOKUP($T$4&$A23,dataset,E$4, FALSE)-VLOOKUP($T$4&$A23,dataset,F$4, FALSE))-1, "") -> 0.03539504027 | H23: =IFERROR(VLOOKUP($T$4&$A23,dataset,H$4, FALSE),"") -> 53.65873388 | I23: =IFERROR(VLOOKUP($T$4&$A23,dataset,I$4, FALSE), "") -> -3.125700708 | J23: =IFERROR(VLOOKUP($T$4&$A23,dataset,J$4, FALSE), "") -> 5.363480717 | K23: =IFERROR(VLOOKUP($T$4&$A23,dataset,K$4, FALSE), "") -> 5.510051327 | L23: =IFERROR(VLOOKUP($T$4&$A23,dataset,L$4, FALSE), "") -> -0.1465706095 | M23: =IFERROR(VLOOKUP($T$4&$A23,dataset,M$4, FALSE), "") -> -0.2201141649 | N23: =IFERROR(VLOOKUP($T$4&$A23,dataset,N$4, FALSE), "") -> 41.05384889 | O23: =IFERROR(VLOOKUP($T$4&$A23,dataset,O$4, FALSE), "") -> -0.9591131375 | P23: =IFERROR(VLOOKUP($T$4&$A23,dataset,P$4, FALSE), "") -> 0 | Q23: =IFERROR(VLOOKUP($T$4&$A23,dataset,Q$4, FALSE), "") -> -1 | R23: =IFERROR(VLOOKUP($T$4&$A23,dataset,R$4, FALSE), "") -> 0 | S23: =IFERROR(VLOOKUP($T$4&$A23,dataset,S$4, FALSE), "") -> -57.90246003 | U23: =IFERROR(VLOOKUP($T$4&$A23,dataset,U$4, FALSE), "") -> 0.8906972471 | V23: =IFERROR(VLOOKUP($T$4&$A23,dataset,V$4, FALSE), "") -> 0.06599324526 | W23: =IFERROR(VLOOKUP($T$4&$A23,dataset,W$4, FALSE), "") -> 0.01651610934 | X23: =IFERROR(VLOOKUP($T$4&$A23,dataset,X$4, FALSE), "") -> 4.652474347 | Y23: =IFERROR(VLOOKUP($T$4&$A23,dataset,Y$4, FALSE), "") -> 50.57994229 | Z23: =IFERROR(VLOOKUP($T$4&$A23,dataset,Z$4, FALSE), "") -> -6.123670316 | AA23: =IFERROR(VLOOKUP($T$4&$A23,dataset,AA$4, FALSE), "") -> 0 | AB23: =IFERROR(VLOOKUP($T$4&$A23,dataset,AB$4, FALSE), "") -> 4.501626817 | AC23: =IFERROR(VLOOKUP($T$4&$A23,dataset,AC$4, FALSE), "") -> 38.3923445 | AD23: =IFERROR(VLOOKUP($T$4&$A23,dataset,AD$4, FALSE), "") -> 1 | AE23: =IFERROR(VLOOKUP($T$4&$A23,dataset,AE$4, FALSE), "") -> 2.869620415 | AF23: =IFERROR(VLOOKUP($T$4&$A23,dataset,AF$4, FALSE), "") -> 1.317386073 | AG23: =IFERROR(VLOOKUP($T$4&$A23,dataset,AG$4, FALSE), "") -> 0.06416445673 | AH23: =IFERROR(VLOOKUP($T$4&$A23,dataset,AH$4, FALSE), "") -> 2.999532365 | AI23: =IFERROR(VLOOKUP($T$4&$A23,dataset,AI$4, FALSE), "") -> 99.77452666 | AJ23: =IFERROR(VLOOKUP($T$4&$A23,dataset,AJ$4, FALSE), "") -> 3.271052711 | AK23: =IFERROR(VLOOKUP($T$4&$A23,dataset,AK$4, FALSE), "") -> 0 | AL23: =IFERROR(VLOOKUP($T$4&$A23,dataset,AL$4, FALSE), "") -> 13.24762641 | AM23: =IFERROR(VLOOKUP($T$4&$A23,dataset,AM$4, FALSE), "") -> 47.68672666 | AN23: =IFERROR(VLOOKUP($T$4&$A23,dataset,AN$4, FALSE), "") -> 1 | AO23: =IFERROR(VLOOKUP($T$4&$A23,dataset,AO$4, FALSE), "") -> 3.535223296 | AP23: =IFERROR(VLOOKUP($T$4&$A23,dataset,AP$4, FALSE), "") -> 1.548742416 | AQ23: =IFERROR(VLOOKUP($T$4&$A23,dataset,AQ$4, FALSE), "") -> 0.06185626948 | AR23: =IFERROR(VLOOKUP($T$4&$A23,dataset,AR$4, FALSE), "") -> 8.448732457 | AS23: =IFERROR(VLOOKUP($T$4&$A23,dataset,AS$4, FALSE), "") -> 99.87065967 | AT23: =IFERROR(VLOOKUP($T$4&$A23,dataset,AT$4, FALSE), "") -> 1.809631777 | AU23: =IFERROR(VLOOKUP($T$4&$A23,dataset,AU$4, FALSE), "") -> 0 | AV23: =IFERROR(VLOOKUP($T$4&$A23,dataset,AV$4, FALSE), "") -> 7.463886191 | AW23: =IFERROR(VLOOKUP($T$4&$A23,dataset,AW$4, FALSE), "") -> 67.59921304 | AX23: =IFERROR(VLOOKUP($T$4&$A23,dataset,AX$4, FALSE), "") -> 1 | AY23: =IFERROR(VLOOKUP($T$4&$A23,dataset,AY$4, FALSE), "") -> 0.2057916623 | AZ23: =IFERROR(VLOOKUP($T$4&$A23,dataset,AZ$4, FALSE), "") -> 0.06798737877 | BA23: =IFERROR(VLOOKUP($T$4&$A23,dataset,BA$4, FALSE), "") -> 0.006483250493 | BB23: =IFERROR(VLOOKUP($T$4&$A23,dataset,BB$4, FALSE), "") -> 3.087065482 | BC23: =IFERROR(VLOOKUP($T$4&$A23,dataset,BC$4, FALSE), "") -> 22.27756205 | BD23: =IFERROR(VLOOKUP($T$4&$A23,dataset,BD$4, FALSE), "") -> 4.249676524 | BE23: =IFERROR(VLOOKUP($T$4&$A23,dataset,BE$4, FALSE), "") -> 0 | BF23: =IFERROR(VLOOKUP($T$4&$A23,dataset,BF$4, FALSE), "") -> 3.052808044 | BG23: =IFERROR(VLOOKUP($T$4&$A23,dataset,BG$4, FALSE), "") -> 21.17410714 | BH23: =IFERROR(VLOOKUP($T$4&$A23,dataset,BH$4, FALSE), "") -> 1 | BI23: =IFERROR(VLOOKUP($T$4&$A23,dataset,BI$4, FALSE), "") -> 0 | BJ23: =IFERROR(VLOOKUP($T$4&$A23,dataset,BJ$4, FALSE), "") -> 0 | BK23: =IFERROR(VLOOKUP($T$4&$A23,dataset,BK$4, FALSE), "") -> 0 | BL23: =IFERROR(VLOOKUP($T$4&$A23,dataset,BL$4, FALSE), "") -> 0 | BM23: =IFERROR(VLOOKUP($T$4&$A23,dataset,BM$4, FALSE), "") -> 0 | BN23: =IFERROR(VLOOKUP($T$4&$A23,dataset,BN$4, FALSE), "") -> 0 | BO23: =IFERROR(VLOOKUP($T$4&$A23,dataset,BO$4, FALSE), "") -> 0 | BP23: =IFERROR(VLOOKUP($T$4&$A23,dataset,BP$4, FALSE), "") -> 0 | BQ23: =IFERROR(VLOOKUP($T$4&$A23,dataset,BQ$4, FALSE), "") -> 0 | BR23: =IFERROR(VLOOKUP($T$4&$A23,dataset,BR$4, FALSE), "") -> 0 | BS23: =IFERROR(VLOOKUP($T$4&$A23,dataset,BS$4, FALSE), "") -> 0.2055312898 | BT23: =IFERROR(VLOOKUP($T$4&$A23,dataset,BT$4, FALSE), "") -> -0.01847918245 | BU23: =IFERROR(VLOOKUP($T$4&$A23,dataset,BU$4, FALSE), "") -> 0.02008885363 | BV23: =IFERROR(VLOOKUP($T$4&$A23,dataset,BV$4, FALSE), "") -> 1.617295306 | BW23: =IFERROR(VLOOKUP($T$4&$A23,dataset,BW$4, FALSE), "") -> 82.7430787 | BX23: =IFERROR(VLOOKUP($T$4&$A23,dataset,BX$4, FALSE), "") -> 24.26763116 | BY23: =IFERROR(VLOOKUP($T$4&$A23,dataset,BY$4, FALSE), "") -> 0 | BZ23: =IFERROR(VLOOKUP($T$4&$A23,dataset,BZ$4, FALSE), "") -> 6.125607963 | CA23: =IFERROR(VLOOKUP($T$4&$A23,dataset,CA$4, FALSE), "") -> 4.853037231 | CB23: =IFERROR(VLOOKUP($T$4&$A23,dataset,CB$4, FALSE), "") -> 1 | CC23: =IFERROR(VLOOKUP($T$4&$A23,dataset,CC$4, FALSE), "") -> 0.9927052342 | CD23: =IFERROR(VLOOKUP($T$4&$A23,dataset,CD$4, FALSE), "") -> -0.2194288413 | CE23: =IFERROR(VLOOKUP($T$4&$A23,dataset,CE$4, FALSE), "") -> 0.05908689102 | CF23: =IFERROR(VLOOKUP($T$4&$A23,dataset,CF$4, FALSE), "") -> 4.29652972 | CG23: =IFERROR(VLOOKUP($T$4&$A23,dataset,CG$4, FALSE), "") -> 90.12256286 | CH23: =IFERROR(VLOOKUP($T$4&$A23,dataset,CH$4, FALSE), "") -> 6.312109004 | CI23: =IFERROR(VLOOKUP($T$4&$A23,dataset,CI$4, FALSE), "") -> 0 | CJ23: =IFERROR(VLOOKUP($T$4&$A23,dataset,CJ$4, FALSE), "") -> 9.443208096 | CK23: =IFERROR(VLOOKUP($T$4&$A23,dataset,CK$4, FALSE), "") -> 42.75382568 | CL23: =IFERROR(VLOOKUP($T$4&$A23,dataset,CL$4, FALSE), "") -> 1 | CM23: =IFERROR(VLOOKUP($T$4&$A23,dataset,CM$4, FALSE), "") -> 0.2385541845 | CN23: =IFERROR(VLOOKUP($T$4&$A23,dataset,CN$4, FALSE), "") -> -0.07087992452 | CO23: =IFERROR(VLOOKUP($T$4&$A23,dataset,CO$4, FALSE), "") -> 0.06856776866 | CP23: =IFERROR(VLOOKUP($T$4&$A23,dataset,CP$4, FALSE), "") -> 1.695037936 | CQ23: =IFERROR(VLOOKUP($T$4&$A23,dataset,CQ$4, FALSE), "") -> 92.87346691 | CR23: =IFERROR(VLOOKUP($T$4&$A23,dataset,CR$4, FALSE), "") -> 10.69941983 | CS23: =IFERROR(VLOOKUP($T$4&$A23,dataset,CS$4, FALSE), "") -> 0 | CT23: =IFERROR(VLOOKUP($T$4&$A23,dataset,CT$4, FALSE), "") -> 7.597141373 | CU23: =IFERROR(VLOOKUP($T$4&$A23,dataset,CU$4, FALSE), "") -> 5.435323383 | CV23: =IFERROR(VLOOKUP($T$4&$A23,dataset,CV$4, FALSE), "") -> 1 | CW23: =IFERROR(VLOOKUP($T$4&$A23,dataset,CW$4, FALSE), "") -> 2.872618126 | CX23: =IFERROR(VLOOKUP($T$4&$A23,dataset,CX$4, FALSE), "") -> 0.4687063009 | CY23: =IFERROR(VLOOKUP($T$4&$A23,dataset,CY$4, FALSE), "") -> 0.1519013967 | CZ23: =IFERROR(VLOOKUP($T$4&$A23,dataset,CZ$4, FALSE), "") -> 3.893302589 | DA23: =IFERROR(VLOOKUP($T$4&$A23,dataset,DA$4, FALSE), "") -> 99.86290892 | DB23: =IFERROR(VLOOKUP($T$4&$A23,dataset,DB$4, FALSE), "") -> 1.367679737 | DC23: =IFERROR(VLOOKUP($T$4&$A23,dataset,DC$4, FALSE), "") -> 0 | DD23: =IFERROR(VLOOKUP($T$4&$A23,dataset,DD$4, FALSE), "") -> 11.00523331 | DE23: =IFERROR(VLOOKUP($T$4&$A23,dataset,DE$4, FALSE), "") -> 40.31946007 | DF23: =IFERROR(VLOOKUP($T$4&$A23,dataset,DF$4, FALSE), "") -> 1 | DG23: =IFERROR(VLOOKUP($T$4&$A23,dataset,DG$4, FALSE), "") -> 0.4120240366 | DH23: =IFERROR(VLOOKUP($T$4&$A23,dataset,DH$4, FALSE), "") -> 0.2930455584 | DI23: =IFERROR(VLOOKUP($T$4&$A23,dataset,DI$4, FALSE), "") -> 0.1575644362 | DJ23: =IFERROR(VLOOKUP($T$4&$A23,dataset,DJ$4, FALSE), "") -> 2.096763205 | DK23: =IFERROR(VLOOKUP($T$4&$A23,dataset,DK$4, FALSE), "") -> 88.86018415 | DL23: =IFERROR(VLOOKUP($T$4&$A23,dataset,DL$4, FALSE), "") -> 27.92701867 | DM23: =IFERROR(VLOOKUP($T$4&$A23,dataset,DM$4, FALSE), "") -> 0 | DN23: =IFERROR(VLOOKUP($T$4&$A23,dataset,DN$4, FALSE), "") -> 9.796775989 | DO23: =IFERROR(VLOOKUP($T$4&$A23,dataset,DO$4, FALSE), "") -> 7.577951729 | DP23: =IFERROR(VLOOKUP($T$4&$A23,dataset,DP$4, FALSE), "") -> 1 | DQ23: =IFERROR(VLOOKUP($T$4&$A23,dataset,DQ$4, FALSE), "") -> 0.1988166342 | DR23: =IFERROR(VLOOKUP($T$4&$A23,dataset,DR$4, FALSE), "") -> 0.1988166342 | DS23: =IFERROR(VLOOKUP($T$4&$A23,dataset,DS$4, FALSE), "") -> 0.1300024114 | DT23: =IFERROR(VLOOKUP($T$4&$A23,dataset,DT$4, FALSE), "") -> 1 | DU23: =IFERROR(VLOOKUP($T$4&$A23,dataset,DU$4, FALSE), "") -> 79.67864625 | DV23: =IFERROR(VLOOKUP($T$4&$A23,dataset,DV$4, FALSE), "") -> 79.67864625 | DW23: =IFERROR(VLOOKUP($T$4&$A23,dataset,DW$4, FALSE), "") -> 0 | DX23: =IFERROR(VLOOKUP($T$4&$A23,dataset,DX$4, FALSE), "") -> 7.287296532 | DY23: =IFERROR(VLOOKUP($T$4&$A23,dataset,DY$4, FALSE), "") -> 5.678975132 | DZ23: =IFERROR(VLOOKUP($T$4&$A23,dataset,DZ$4, FALSE), "") -> 1 | EA23: =IFERROR(VLOOKUP($T$4&$A23,dataset,EA$4, FALSE), "") -> 0.33650067 | EB23: =IFERROR(VLOOKUP($T$4&$A23,dataset,EB$4, FALSE), "") -> 0.3352703994 | EC23: =IFERROR(VLOOKUP($T$4&$A23,dataset,EC$4, FALSE), "") -> 0.08546689573 | ED23: =IFERROR(VLOOKUP($T$4&$A23,dataset,ED$4, FALSE), "") -> 1.099289416 | EE23: =IFERROR(VLOOKUP($T$4&$A23,dataset,EE$4, FALSE), "") -> 90.61648878 | EF23: =IFERROR(VLOOKUP($T$4&$A23,dataset,EF$4, FALSE), "") -> 90.11736828 | EG23: =IFERROR(VLOOKUP($T$4&$A23,dataset,EG$4, FALSE), "") -> 0 | EH23: =IFERROR(VLOOKUP($T$4&$A23,dataset,EH$4, FALSE), "") -> 7.905998488 | EI23: =IFERROR(VLOOKUP($T$4&$A23,dataset,EI$4, FALSE), "") -> 6.919230769 | EJ23: =IFERROR(VLOOKUP($T$4&$A23,dataset,EJ$4, FALSE), "") -> 1 | EK23: =IFERROR(VLOOKUP($T$4&$A23,dataset,EK$4, FALSE), "") -> 5.339711776 | EL23: =IFERROR(VLOOKUP($T$4&$A23,dataset,EL$4, FALSE), "") -> -1.951335972 | EM23: =IFERROR(VLOOKUP($T$4&$A23,dataset,EM$4, FALSE), "") -> 0.02300126544 | EN23: =IFERROR(VLOOKUP($T$4&$A23,dataset,EN$4, FALSE), "") -> 18.91127028 | EO23: =IFERROR(VLOOKUP($T$4&$A23,dataset,EO$4, FALSE), "") -> 100 | EP23: =IFERROR(VLOOKUP($T$4&$A23,dataset,EP$4, FALSE), "") -> 0 | EQ23: =IFERROR(VLOOKUP($T$4&$A23,dataset,EQ$4, FALSE), "") -> 0 | ER23: =IFERROR(VLOOKUP($T$4&$A23,dataset,ER$4, FALSE), "") -> 4.286176184 | ES23: =IFERROR(VLOOKUP($T$4&$A23,dataset,ES$4, FALSE), "") -> 101.6451794 | ET23: =IFERROR(VLOOKUP($T$4&$A23,dataset,ET$4, FALSE), "") -> 1 | EU23: =IFERROR(VLOOKUP($T$4&$A23,dataset,EU$4, FALSE), "") -> 1.544865268 | EV23: =IFERROR(VLOOKUP($T$4&$A23,dataset,EV$4, FALSE), "") -> 0.1508134417 | EW23: =IFERROR(VLOOKUP($T$4&$A23,dataset,EW$4, FALSE), "") -> 0.01333358556 | EX23: =IFERROR(VLOOKUP($T$4&$A23,dataset,EX$4, FALSE), "") -> 6.468224957 | EY23: =IFERROR(VLOOKUP($T$4&$A23,dataset,EY$4, FALSE), "") -> 94.53962261 | EZ23: =IFERROR(VLOOKUP($T$4&$A23,dataset,EZ$4, FALSE), "") -> 66.37523979 | FA23: =IFERROR(VLOOKUP($T$4&$A23,dataset,FA$4, FALSE), "") -> 0 | FB23: =IFERROR(VLOOKUP($T$4&$A23,dataset,FB$4, FALSE), "") -> 4.541745029 | FC23: =IFERROR(VLOOKUP($T$4&$A23,dataset,FC$4, FALSE), "") -> 33.07439024 | FD23: =IFERROR(VLOOKUP($T$4&$A23,dataset,FD$4, FALSE), "") -> 1 | FE23: =IFERROR(VLOOKUP($T$4&$A23,dataset,FE$4, FALSE), "") -> 1.337272527 | FF23: =IFERROR(VLOOKUP($T$4&$A23,dataset,FF$4, FALSE), "") -> 0.9652602659 | FG23: =IFERROR(VLOOKUP($T$4&$A23,dataset,FG$4, FALSE), "") -> 0.03657291062 | FH23: =IFERROR(VLOOKUP($T$4&$A23,dataset,FH$4, FALSE), "") -> 4.571997611 | FI23: =IFERROR(VLOOKUP($T$4&$A23,dataset,FI$4, FALSE), "") -> 98.86276441 | FJ23: =IFERROR(VLOOKUP($T$4&$A23,dataset,FJ$4, FALSE), "") -> 24.43883407 | FK23: =IFERROR(VLOOKUP($T$4&$A23,dataset,FK$4, FALSE), "") -> 0 | FL23: =IFERROR(VLOOKUP($T$4&$A23,dataset,FL$4, FALSE), "") -> 5.567249066 | FM23: =IFERROR(VLOOKUP($T$4&$A23,dataset,FM$4, FALSE), "") -> 27.32990868 | FN23: =IFERROR(VLOOKUP($T$4&$A23,dataset,FN$4, FALSE), "") -> 1
A24: 16 | C24: =IFERROR(VLOOKUP($T$4&$A24,dataset,C$4, FALSE), "") -> RX-Walgreens w/ DR | D24: =IFERROR(VLOOKUP($T$4&$A24,dataset,D$4, FALSE), "") -> 2 | E24: =IFERROR(VLOOKUP($T$4&$A24,dataset,E$3, FALSE)/VLOOKUP($T$4&$A24,dataset,E$4, FALSE)-1, "") -> -0.004996514709 | F24: =IFERROR(VLOOKUP($T$4&$A24,dataset,F$3, FALSE)/VLOOKUP($T$4&$A24,dataset,F$4, FALSE)-1, "") -> 0.06494130753 | G24: =IFERROR((VLOOKUP($T$4&$A24,dataset,E$3, FALSE)-VLOOKUP($T$4&$A24,dataset,F$3, FALSE))/(VLOOKUP($T$4&$A24,dataset,E$4, FALSE)-VLOOKUP($T$4&$A24,dataset,F$4, FALSE))-1, "") -> -0.0761967571 | H24: =IFERROR(VLOOKUP($T$4&$A24,dataset,H$4, FALSE),"") -> 53.9931152 | I24: =IFERROR(VLOOKUP($T$4&$A24,dataset,I$4, FALSE), "") -> 3.545886394 | J24: =IFERROR(VLOOKUP($T$4&$A24,dataset,J$4, FALSE), "") -> 6.061477999 | K24: =IFERROR(VLOOKUP($T$4&$A24,dataset,K$4, FALSE), "") -> 5.917559425 | L24: =IFERROR(VLOOKUP($T$4&$A24,dataset,L$4, FALSE), "") -> 0.1439185742 | M24: =IFERROR(VLOOKUP($T$4&$A24,dataset,M$4, FALSE), "") -> -0.32619668 | N24: =IFERROR(VLOOKUP($T$4&$A24,dataset,N$4, FALSE), "") -> 45.56151724 | O24: =IFERROR(VLOOKUP($T$4&$A24,dataset,O$4, FALSE), "") -> 2.06727791 | P24: =IFERROR(VLOOKUP($T$4&$A24,dataset,P$4, FALSE), "") -> 0 | Q24: =IFERROR(VLOOKUP($T$4&$A24,dataset,Q$4, FALSE), "") -> - | R24: =IFERROR(VLOOKUP($T$4&$A24,dataset,R$4, FALSE), "") -> 0 | S24: =IFERROR(VLOOKUP($T$4&$A24,dataset,S$4, FALSE), "") -> 0 | U24: =IFERROR(VLOOKUP($T$4&$A24,dataset,U$4, FALSE), "") -> 2.874407199 | V24: =IFERROR(VLOOKUP($T$4&$A24,dataset,V$4, FALSE), "") -> 1.040596031 | W24: =IFERROR(VLOOKUP($T$4&$A24,dataset,W$4, FALSE), "") -> 0.0348414468 | X24: =IFERROR(VLOOKUP($T$4&$A24,dataset,X$4, FALSE), "") -> 2.27116802 | Y24: =IFERROR(VLOOKUP($T$4&$A24,dataset,Y$4, FALSE), "") -> 92.32828464 | Z24: =IFERROR(VLOOKUP($T$4&$A24,dataset,Z$4, FALSE), "") -> 16.7637083 | AA24: =IFERROR(VLOOKUP($T$4&$A24,dataset,AA$4, FALSE), "") -> 0 | AB24: =IFERROR(VLOOKUP($T$4&$A24,dataset,AB$4, FALSE), "") -> 5.160590018 | AC24: =IFERROR(VLOOKUP($T$4&$A24,dataset,AC$4, FALSE), "") -> 11.24077838 | AD24: =IFERROR(VLOOKUP($T$4&$A24,dataset,AD$4, FALSE), "") -> 1 | AE24: =IFERROR(VLOOKUP($T$4&$A24,dataset,AE$4, FALSE), "") -> 4.899093043 | AF24: =IFERROR(VLOOKUP($T$4&$A24,dataset,AF$4, FALSE), "") -> -0.6264306832 | AG24: =IFERROR(VLOOKUP($T$4&$A24,dataset,AG$4, FALSE), "") -> 0.07160708681 | AH24: =IFERROR(VLOOKUP($T$4&$A24,dataset,AH$4, FALSE), "") -> 3.210433999 | AI24: =IFERROR(VLOOKUP($T$4&$A24,dataset,AI$4, FALSE), "") -> 98.3150375 | AJ24: =IFERROR(VLOOKUP($T$4&$A24,dataset,AJ$4, FALSE), "") -> -0.4709114812 | AK24: =IFERROR(VLOOKUP($T$4&$A24,dataset,AK$4, FALSE), "") -> 0 | AL24: =IFERROR(VLOOKUP($T$4&$A24,dataset,AL$4, FALSE), "") -> 14.45896157 | AM24: =IFERROR(VLOOKUP($T$4&$A24,dataset,AM$4, FALSE), "") -> 10.91982788 | AN24: =IFERROR(VLOOKUP($T$4&$A24,dataset,AN$4, FALSE), "") -> 1 | AO24: =IFERROR(VLOOKUP($T$4&$A24,dataset,AO$4, FALSE), "") -> 0.1202650017 | AP24: =IFERROR(VLOOKUP($T$4&$A24,dataset,AP$4, FALSE), "") -> -0.04973735161 | AQ24: =IFERROR(VLOOKUP($T$4&$A24,dataset,AQ$4, FALSE), "") -> 0.001375550014 | AR24: =IFERROR(VLOOKUP($T$4&$A24,dataset,AR$4, FALSE), "") -> 3.335136547 | AS24: =IFERROR(VLOOKUP($T$4&$A24,dataset,AS$4, FALSE), "") -> 5.111151207 | AT24: =IFERROR(VLOOKUP($T$4&$A24,dataset,AT$4, FALSE), "") -> 0.1377031738 | AU24: =IFERROR(VLOOKUP($T$4&$A24,dataset,AU$4, FALSE), "") -> 0 | AV24: =IFERROR(VLOOKUP($T$4&$A24,dataset,AV$4, FALSE), "") -> 14.63924619 | AW24: =IFERROR(VLOOKUP($T$4&$A24,dataset,AW$4, FALSE), "") -> 9.788585675 | AX24: =IFERROR(VLOOKUP($T$4&$A24,dataset,AX$4, FALSE), "") -> 1 | AY24: =IFERROR(VLOOKUP($T$4&$A24,dataset,AY$4, FALSE), "") -> 0.0001826511516 | AZ24: =IFERROR(VLOOKUP($T$4&$A24,dataset,AZ$4, FALSE), "") -> -0.001859212439 | BA24: =IFERROR(VLOOKUP($T$4&$A24,dataset,BA$4, FALSE), "") -> 3.761470769e-06 | BB24: =IFERROR(VLOOKUP($T$4&$A24,dataset,BB$4, FALSE), "") -> 1 | BC24: =IFERROR(VLOOKUP($T$4&$A24,dataset,BC$4, FALSE), "") -> 0.04102379681 | BD24: =IFERROR(VLOOKUP($T$4&$A24,dataset,BD$4, FALSE), "") -> -0.06616596948 | BE24: =IFERROR(VLOOKUP($T$4&$A24,dataset,BE$4, FALSE), "") -> 0 | BF24: =IFERROR(VLOOKUP($T$4&$A24,dataset,BF$4, FALSE), "") -> 4.12 | BG24: =IFERROR(VLOOKUP($T$4&$A24,dataset,BG$4, FALSE), "") -> 1.991650651 | BH24: =IFERROR(VLOOKUP($T$4&$A24,dataset,BH$4, FALSE), "") -> 1 | BI24: =IFERROR(VLOOKUP($T$4&$A24,dataset,BI$4, FALSE), "") -> 0.009090906763 | BJ24: =IFERROR(VLOOKUP($T$4&$A24,dataset,BJ$4, FALSE), "") -> -0.001802422997 | BK24: =IFERROR(VLOOKUP($T$4&$A24,dataset,BK$4, FALSE), "") -> 0.0005958295006 | BL24: =IFERROR(VLOOKUP($T$4&$A24,dataset,BL$4, FALSE), "") -> 4.706822151 | BM24: =IFERROR(VLOOKUP($T$4&$A24,dataset,BM$4, FALSE), "") -> 0.2928446238 | BN24: =IFERROR(VLOOKUP($T$4&$A24,dataset,BN$4, FALSE), "") -> -0.05342770489 | BO24: =IFERROR(VLOOKUP($T$4&$A24,dataset,BO$4, FALSE), "") -> 0 | BP24: =IFERROR(VLOOKUP($T$4&$A24,dataset,BP$4, FALSE), "") -> 8.676684099 | BQ24: =IFERROR(VLOOKUP($T$4&$A24,dataset,BQ$4, FALSE), "") -> 24.53998124 | BR24: =IFERROR(VLOOKUP($T$4&$A24,dataset,BR$4, FALSE), "") -> 1 | BS24: =IFERROR(VLOOKUP($T$4&$A24,dataset,BS$4, FALSE), "") -> 0.575095824 | BT24: =IFERROR(VLOOKUP($T$4&$A24,dataset,BT$4, FALSE), "") -> 0.06404692061 | BU24: =IFERROR(VLOOKUP($T$4&$A24,dataset,BU$4, FALSE), "") -> 0.03674410476 | BV24: =IFERROR(VLOOKUP($T$4&$A24,dataset,BV$4, FALSE), "") -> 1.394511881 | BW24: =IFERROR(VLOOKUP($T$4&$A24,dataset,BW$4, FALSE), "") -> 68.59397418 | BX24: =IFERROR(VLOOKUP($T$4&$A24,dataset,BX$4, FALSE), "") -> 4.328914056 | BY24: =IFERROR(VLOOKUP($T$4&$A24,dataset,BY$4, FALSE), "") -> 0 | BZ24: =IFERROR(VLOOKUP($T$4&$A24,dataset,BZ$4, FALSE), "") -> 6.998625169 | CA24: =IFERROR(VLOOKUP($T$4&$A24,dataset,CA$4, FALSE), "") -> 2.279553161 | CB24: =IFERROR(VLOOKUP($T$4&$A24,dataset,CB$4, FALSE), "") -> 1 | CC24: =IFERROR(VLOOKUP($T$4&$A24,dataset,CC$4, FALSE), "") -> 0.6189965898 | CD24: =IFERROR(VLOOKUP($T$4&$A24,dataset,CD$4, FALSE), "") -> 0.5185985045 | CE24: =IFERROR(VLOOKUP($T$4&$A24,dataset,CE$4, FALSE), "") -> 0.02408403966 | CF24: =IFERROR(VLOOKUP($T$4&$A24,dataset,CF$4, FALSE), "") -> 1.372362746 | CG24: =IFERROR(VLOOKUP($T$4&$A24,dataset,CG$4, FALSE), "") -> 75.14882328 | CH24: =IFERROR(VLOOKUP($T$4&$A24,dataset,CH$4, FALSE), "") -> 72.95344603 | CI24: =IFERROR(VLOOKUP($T$4&$A24,dataset,CI$4, FALSE), "") -> 0 | CJ24: =IFERROR(VLOOKUP($T$4&$A24,dataset,CJ$4, FALSE), "") -> 9.40095383 | CK24: =IFERROR(VLOOKUP($T$4&$A24,dataset,CK$4, FALSE), "") -> 3.799192056 | CL24: =IFERROR(VLOOKUP($T$4&$A24,dataset,CL$4, FALSE), "") -> 1 | CM24: =IFERROR(VLOOKUP($T$4&$A24,dataset,CM$4, FALSE), "") -> 0 | CN24: =IFERROR(VLOOKUP($T$4&$A24,dataset,CN$4, FALSE), "") -> -0.0001685788154 | CO24: =IFERROR(VLOOKUP($T$4&$A24,dataset,CO$4, FALSE), "") -> 0 | CP24: =IFERROR(VLOOKUP($T$4&$A24,dataset,CP$4, FALSE), "") -> 0 | CQ24: =IFERROR(VLOOKUP($T$4&$A24,dataset,CQ$4, FALSE), "") -> 0 | CR24: =IFERROR(VLOOKUP($T$4&$A24,dataset,CR$4, FALSE), "") -> -0.05529717213 | CS24: =IFERROR(VLOOKUP($T$4&$A24,dataset,CS$4, FALSE), "") -> 0 | CT24: =IFERROR(VLOOKUP($T$4&$A24,dataset,CT$4, FALSE), "") -> 0 | CU24: =IFERROR(VLOOKUP($T$4&$A24,dataset,CU$4, FALSE), "") -> 0 | CV24: =IFERROR(VLOOKUP($T$4&$A24,dataset,CV$4, FALSE), "") -> 0 | CW24: =IFERROR(VLOOKUP($T$4&$A24,dataset,CW$4, FALSE), "") -> 0.3924914141 | CX24: =IFERROR(VLOOKUP($T$4&$A24,dataset,CX$4, FALSE), "") -> 0.126164808 | CY24: =IFERROR(VLOOKUP($T$4&$A24,dataset,CY$4, FALSE), "") -> 0.01356701426 | CZ24: =IFERROR(VLOOKUP($T$4&$A24,dataset,CZ$4, FALSE), "") -> 1.001396254 | DA24: =IFERROR(VLOOKUP($T$4&$A24,dataset,DA$4, FALSE), "") -> 54.82722935 | DB24: =IFERROR(VLOOKUP($T$4&$A24,dataset,DB$4, FALSE), "") -> 11.79554883 | DC24: =IFERROR(VLOOKUP($T$4&$A24,dataset,DC$4, FALSE), "") -> 0 | DD24: =IFERROR(VLOOKUP($T$4&$A24,dataset,DD$4, FALSE), "") -> 9.965776334 | DE24: =IFERROR(VLOOKUP($T$4&$A24,dataset,DE$4, FALSE), "") -> 2.655333739 | DF24: =IFERROR(VLOOKUP($T$4&$A24,dataset,DF$4, FALSE), "") -> 1 | DG24: =IFERROR(VLOOKUP($T$4&$A24,dataset,DG$4, FALSE), "") -> 0.2694585268 | DH24: =IFERROR(VLOOKUP($T$4&$A24,dataset,DH$4, FALSE), "") -> 0.009614379623 | DI24: =IFERROR(VLOOKUP($T$4&$A24,dataset,DI$4, FALSE), "") -> 0.06735934076 | DJ24: =IFERROR(VLOOKUP($T$4&$A24,dataset,DJ$4, FALSE), "") -> 1.223561579 | DK24: =IFERROR(VLOOKUP($T$4&$A24,dataset,DK$4, FALSE), "") -> 41.86135598 | DL24: =IFERROR(VLOOKUP($T$4&$A24,dataset,DL$4, FALSE), "") -> 12.05895447 | DM24: =IFERROR(VLOOKUP($T$4&$A24,dataset,DM$4, FALSE), "") -> 0 | DN24: =IFERROR(VLOOKUP($T$4&$A24,dataset,DN$4, FALSE), "") -> 8.205969825 | DO24: =IFERROR(VLOOKUP($T$4&$A24,dataset,DO$4, FALSE), "") -> 1.832891386 | DP24: =IFERROR(VLOOKUP($T$4&$A24,dataset,DP$4, FALSE), "") -> 1 | DQ24: =IFERROR(VLOOKUP($T$4&$A24,dataset,DQ$4, FALSE), "") -> 0 | DR24: =IFERROR(VLOOKUP($T$4&$A24,dataset,DR$4, FALSE), "") -> 0 | DS24: =IFERROR(VLOOKUP($T$4&$A24,dataset,DS$4, FALSE), "") -> 0 | DT24: =IFERROR(VLOOKUP($T$4&$A24,dataset,DT$4, FALSE), "") -> 0 | DU24: =IFERROR(VLOOKUP($T$4&$A24,dataset,DU$4, FALSE), "") -> 0 | DV24: =IFERROR(VLOOKUP($T$4&$A24,dataset,DV$4, FALSE), "") -> 0 | DW24: =IFERROR(VLOOKUP($T$4&$A24,dataset,DW$4, FALSE), "") -> 0 | DX24: =IFERROR(VLOOKUP($T$4&$A24,dataset,DX$4, FALSE), "") -> 0 | DY24: =IFERROR(VLOOKUP($T$4&$A24,dataset,DY$4, FALSE), "") -> 0 | DZ24: =IFERROR(VLOOKUP($T$4&$A24,dataset,DZ$4, FALSE), "") -> 0 | EA24: =IFERROR(VLOOKUP($T$4&$A24,dataset,EA$4, FALSE), "") -> 0.1116856598 | EB24: =IFERROR(VLOOKUP($T$4&$A24,dataset,EB$4, FALSE), "") -> 0.1116856598 | EC24: =IFERROR(VLOOKUP($T$4&$A24,dataset,EC$4, FALSE), "") -> 0.01854298559 | ED24: =IFERROR(VLOOKUP($T$4&$A24,dataset,ED$4, FALSE), "") -> 1 | EE24: =IFERROR(VLOOKUP($T$4&$A24,dataset,EE$4, FALSE), "") -> 18.02950052 | EF24: =IFERROR(VLOOKUP($T$4&$A24,dataset,EF$4, FALSE), "") -> 18.02950052 | EG24: =IFERROR(VLOOKUP($T$4&$A24,dataset,EG$4, FALSE), "") -> 0 | EH24: =IFERROR(VLOOKUP($T$4&$A24,dataset,EH$4, FALSE), "") -> 9.244952723 | EI24: =IFERROR(VLOOKUP($T$4&$A24,dataset,EI$4, FALSE), "") -> 1.448665414 | EJ24: =IFERROR(VLOOKUP($T$4&$A24,dataset,EJ$4, FALSE), "") -> 1 | EK24: =IFERROR(VLOOKUP($T$4&$A24,dataset,EK$4, FALSE), "") -> 6.64307922 | EL24: =IFERROR(VLOOKUP($T$4&$A24,dataset,EL$4, FALSE), "") -> -1.396612658 | EM24: =IFERROR(VLOOKUP($T$4&$A24,dataset,EM$4, FALSE), "") -> 0.0187056841 | EN24: =IFERROR(VLOOKUP($T$4&$A24,dataset,EN$4, FALSE), "") -> 11.91720319 | EO24: =IFERROR(VLOOKUP($T$4&$A24,dataset,EO$4, FALSE), "") -> 99.98890283 | EP24: =IFERROR(VLOOKUP($T$4&$A24,dataset,EP$4, FALSE), "") -> 0.004478252186 | EQ24: =IFERROR(VLOOKUP($T$4&$A24,dataset,EQ$4, FALSE), "") -> 0 | ER24: =IFERROR(VLOOKUP($T$4&$A24,dataset,ER$4, FALSE), "") -> 4.460816484 | ES24: =IFERROR(VLOOKUP($T$4&$A24,dataset,ES$4, FALSE), "") -> 24.45301953 | ET24: =IFERROR(VLOOKUP($T$4&$A24,dataset,ET$4, FALSE), "") -> 1 | EU24: =IFERROR(VLOOKUP($T$4&$A24,dataset,EU$4, FALSE), "") -> 1.631745062 | EV24: =IFERROR(VLOOKUP($T$4&$A24,dataset,EV$4, FALSE), "") -> 0.006772045687 | EW24: =IFERROR(VLOOKUP($T$4&$A24,dataset,EW$4, FALSE), "") -> 0.009206168082 | EX24: =IFERROR(VLOOKUP($T$4&$A24,dataset,EX$4, FALSE), "") -> 13.92617804 | EY24: =IFERROR(VLOOKUP($T$4&$A24,dataset,EY$4, FALSE), "") -> 19.5103361 | EZ24: =IFERROR(VLOOKUP($T$4&$A24,dataset,EZ$4, FALSE), "") -> 0.893173751 | FA24: =IFERROR(VLOOKUP($T$4&$A24,dataset,FA$4, FALSE), "") -> 0 | FB24: =IFERROR(VLOOKUP($T$4&$A24,dataset,FB$4, FALSE), "") -> 4.87532217 | FC24: =IFERROR(VLOOKUP($T$4&$A24,dataset,FC$4, FALSE), "") -> 47.67187409 | FD24: =IFERROR(VLOOKUP($T$4&$A24,dataset,FD$4, FALSE), "") -> 1 | FE24: =IFERROR(VLOOKUP($T$4&$A24,dataset,FE$4, FALSE), "") -> 1.246965125 | FF24: =IFERROR(VLOOKUP($T$4&$A24,dataset,FF$4, FALSE), "") -> -0.00750165651 | FG24: =IFERROR(VLOOKUP($T$4&$A24,dataset,FG$4, FALSE), "") -> 0.02229277636 | FH24: =IFERROR(VLOOKUP($T$4&$A24,dataset,FH$4, FALSE), "") -> 2.188082998 | FI24: =IFERROR(VLOOKUP($T$4&$A24,dataset,FI$4, FALSE), "") -> 81.54884414 | FJ24: =IFERROR(VLOOKUP($T$4&$A24,dataset,FJ$4, FALSE), "") -> -0.2852756706 | FK24: =IFERROR(VLOOKUP($T$4&$A24,dataset,FK$4, FALSE), "") -> 0 | FL24: =IFERROR(VLOOKUP($T$4&$A24,dataset,FL$4, FALSE), "") -> 7.46424891 | FM24: =IFERROR(VLOOKUP($T$4&$A24,dataset,FM$4, FALSE), "") -> 3.866347091 | FN24: =IFERROR(VLOOKUP($T$4&$A24,dataset,FN$4, FALSE), "") -> 1
A25: 17 | C25: =IFERROR(VLOOKUP($T$4&$A25,dataset,C$4, FALSE), "") -> RX-Rite Aid | D25: =IFERROR(VLOOKUP($T$4&$A25,dataset,D$4, FALSE), "") -> 2 | E25: =IFERROR(VLOOKUP($T$4&$A25,dataset,E$3, FALSE)/VLOOKUP($T$4&$A25,dataset,E$4, FALSE)-1, "") -> 0.01582249686 | F25: =IFERROR(VLOOKUP($T$4&$A25,dataset,F$3, FALSE)/VLOOKUP($T$4&$A25,dataset,F$4, FALSE)-1, "") -> 0.00820191009 | G25: =IFERROR((VLOOKUP($T$4&$A25,dataset,E$3, FALSE)-VLOOKUP($T$4&$A25,dataset,F$3, FALSE))/(VLOOKUP($T$4&$A25,dataset,E$4, FALSE)-VLOOKUP($T$4&$A25,dataset,F$4, FALSE))-1, "") -> 0.02361848775 | H25: =IFERROR(VLOOKUP($T$4&$A25,dataset,H$4, FALSE),"") -> 50.18951944 | I25: =IFERROR(VLOOKUP($T$4&$A25,dataset,I$4, FALSE), "") -> -0.379362094 | J25: =IFERROR(VLOOKUP($T$4&$A25,dataset,J$4, FALSE), "") -> 6.082904862 | K25: =IFERROR(VLOOKUP($T$4&$A25,dataset,K$4, FALSE), "") -> 5.556085464 | L25: =IFERROR(VLOOKUP($T$4&$A25,dataset,L$4, FALSE), "") -> 0.5268193984 | M25: =IFERROR(VLOOKUP($T$4&$A25,dataset,M$4, FALSE), "") -> -0.2243432353 | N25: =IFERROR(VLOOKUP($T$4&$A25,dataset,N$4, FALSE), "") -> 41.97761441 | O25: =IFERROR(VLOOKUP($T$4&$A25,dataset,O$4, FALSE), "") -> -0.7982866712 | P25: =IFERROR(VLOOKUP($T$4&$A25,dataset,P$4, FALSE), "") -> 0 | Q25: =IFERROR(VLOOKUP($T$4&$A25,dataset,Q$4, FALSE), "") -> - | R25: =IFERROR(VLOOKUP($T$4&$A25,dataset,R$4, FALSE), "") -> 0 | S25: =IFERROR(VLOOKUP($T$4&$A25,dataset,S$4, FALSE), "") -> 0 | U25: =IFERROR(VLOOKUP($T$4&$A25,dataset,U$4, FALSE), "") -> 0.3334628168 | V25: =IFERROR(VLOOKUP($T$4&$A25,dataset,V$4, FALSE), "") -> -0.003022047551 | W25: =IFERROR(VLOOKUP($T$4&$A25,dataset,W$4, FALSE), "") -> 0.001009331378 | X25: =IFERROR(VLOOKUP($T$4&$A25,dataset,X$4, FALSE), "") -> 1.725984334 | Y25: =IFERROR(VLOOKUP($T$4&$A25,dataset,Y$4, FALSE), "") -> 8.92074905 | Z25: =IFERROR(VLOOKUP($T$4&$A25,dataset,Z$4, FALSE), "") -> -0.3109228283 | AA25: =IFERROR(VLOOKUP($T$4&$A25,dataset,AA$4, FALSE), "") -> 0 | AB25: =IFERROR(VLOOKUP($T$4&$A25,dataset,AB$4, FALSE), "") -> 4.726847817 | AC25: =IFERROR(VLOOKUP($T$4&$A25,dataset,AC$4, FALSE), "") -> 15.94954968 | AD25: =IFERROR(VLOOKUP($T$4&$A25,dataset,AD$4, FALSE), "") -> 1 | AE25: =IFERROR(VLOOKUP($T$4&$A25,dataset,AE$4, FALSE), "") -> 0 | AF25: =IFERROR(VLOOKUP($T$4&$A25,dataset,AF$4, FALSE), "") -> 0 | AG25: =IFERROR(VLOOKUP($T$4&$A25,dataset,AG$4, FALSE), "") -> 0 | AH25: =IFERROR(VLOOKUP($T$4&$A25,dataset,AH$4, FALSE), "") -> 0 | AI25: =IFERROR(VLOOKUP($T$4&$A25,dataset,AI$4, FALSE), "") -> 0 | AJ25: =IFERROR(VLOOKUP($T$4&$A25,dataset,AJ$4, FALSE), "") -> 0 | AK25: =IFERROR(VLOOKUP($T$4&$A25,dataset,AK$4, FALSE), "") -> 0 | AL25: =IFERROR(VLOOKUP($T$4&$A25,dataset,AL$4, FALSE), "") -> 0 | AM25: =IFERROR(VLOOKUP($T$4&$A25,dataset,AM$4, FALSE), "") -> 0 | AN25: =IFERROR(VLOOKUP($T$4&$A25,dataset,AN$4, FALSE), "") -> 0 | AO25: =IFERROR(VLOOKUP($T$4&$A25,dataset,AO$4, FALSE), "") -> 1.829722772 | AP25: =IFERROR(VLOOKUP($T$4&$A25,dataset,AP$4, FALSE), "") -> 0.0003273652117 | AQ25: =IFERROR(VLOOKUP($T$4&$A25,dataset,AQ$4, FALSE), "") -> 0.005225897512 | AR25: =IFERROR(VLOOKUP($T$4&$A25,dataset,AR$4, FALSE), "") -> 2.319934406 | AS25: =IFERROR(VLOOKUP($T$4&$A25,dataset,AS$4, FALSE), "") -> 77.50921948 | AT25: =IFERROR(VLOOKUP($T$4&$A25,dataset,AT$4, FALSE), "") -> 3.871184196 | AU25: =IFERROR(VLOOKUP($T$4&$A25,dataset,AU$4, FALSE), "") -> 0 | AV25: =IFERROR(VLOOKUP($T$4&$A25,dataset,AV$4, FALSE), "") -> 8.060470631 | AW25: =IFERROR(VLOOKUP($T$4&$A25,dataset,AW$4, FALSE), "") -> 3.101990976 | AX25: =IFERROR(VLOOKUP($T$4&$A25,dataset,AX$4, FALSE), "") -> 1 | AY25: =IFERROR(VLOOKUP($T$4&$A25,dataset,AY$4, FALSE), "") -> 0 | AZ25: =IFERROR(VLOOKUP($T$4&$A25,dataset,AZ$4, FALSE), "") -> 0 | BA25: =IFERROR(VLOOKUP($T$4&$A25,dataset,BA$4, FALSE), "") -> 0 | BB25: =IFERROR(VLOOKUP($T$4&$A25,dataset,BB$4, FALSE), "") -> 0 | BC25: =IFERROR(VLOOKUP($T$4&$A25,dataset,BC$4, FALSE), "") -> 0 | BD25: =IFERROR(VLOOKUP($T$4&$A25,dataset,BD$4, FALSE), "") -> 0 | BE25: =IFERROR(VLOOKUP($T$4&$A25,dataset,BE$4, FALSE), "") -> 0 | BF25: =IFERROR(VLOOKUP($T$4&$A25,dataset,BF$4, FALSE), "") -> 0 | BG25: =IFERROR(VLOOKUP($T$4&$A25,dataset,BG$4, FALSE), "") -> 0 | BH25: =IFERROR(VLOOKUP($T$4&$A25,dataset,BH$4, FALSE), "") -> 0 | BI25: =IFERROR(VLOOKUP($T$4&$A25,dataset,BI$4, FALSE), "") -> 0 | BJ25: =IFERROR(VLOOKUP($T$4&$A25,dataset,BJ$4, FALSE), "") -> 0 | BK25: =IFERROR(VLOOKUP($T$4&$A25,dataset,BK$4, FALSE), "") -> 0 | BL25: =IFERROR(VLOOKUP($T$4&$A25,dataset,BL$4, FALSE), "") -> 0 | BM25: =IFERROR(VLOOKUP($T$4&$A25,dataset,BM$4, FALSE), "") -> 0 | BN25: =IFERROR(VLOOKUP($T$4&$A25,dataset,BN$4, FALSE), "") -> 0 | BO25: =IFERROR(VLOOKUP($T$4&$A25,dataset,BO$4, FALSE), "") -> 0 | BP25: =IFERROR(VLOOKUP($T$4&$A25,dataset,BP$4, FALSE), "") -> 0 | BQ25: =IFERROR(VLOOKUP($T$4&$A25,dataset,BQ$4, FALSE), "") -> 0 | BR25: =IFERROR(VLOOKUP($T$4&$A25,dataset,BR$4, FALSE), "") -> 0 | BS25: =IFERROR(VLOOKUP($T$4&$A25,dataset,BS$4, FALSE), "") -> 0 | BT25: =IFERROR(VLOOKUP($T$4&$A25,dataset,BT$4, FALSE), "") -> 0 | BU25: =IFERROR(VLOOKUP($T$4&$A25,dataset,BU$4, FALSE), "") -> 0 | BV25: =IFERROR(VLOOKUP($T$4&$A25,dataset,BV$4, FALSE), "") -> 0 | BW25: =IFERROR(VLOOKUP($T$4&$A25,dataset,BW$4, FALSE), "") -> 0 | BX25: =IFERROR(VLOOKUP($T$4&$A25,dataset,BX$4, FALSE), "") -> 0 | BY25: =IFERROR(VLOOKUP($T$4&$A25,dataset,BY$4, FALSE), "") -> 0 | BZ25: =IFERROR(VLOOKUP($T$4&$A25,dataset,BZ$4, FALSE), "") -> 0 | CA25: =IFERROR(VLOOKUP($T$4&$A25,dataset,CA$4, FALSE), "") -> 0 | CB25: =IFERROR(VLOOKUP($T$4&$A25,dataset,CB$4, FALSE), "") -> 0 | CC25: =IFERROR(VLOOKUP($T$4&$A25,dataset,CC$4, FALSE), "") -> 0 | CD25: =IFERROR(VLOOKUP($T$4&$A25,dataset,CD$4, FALSE), "") -> 0 | CE25: =IFERROR(VLOOKUP($T$4&$A25,dataset,CE$4, FALSE), "") -> 0 | CF25: =IFERROR(VLOOKUP($T$4&$A25,dataset,CF$4, FALSE), "") -> 0 | CG25: =IFERROR(VLOOKUP($T$4&$A25,dataset,CG$4, FALSE), "") -> 0 | CH25: =IFERROR(VLOOKUP($T$4&$A25,dataset,CH$4, FALSE), "") -> 0 | CI25: =IFERROR(VLOOKUP($T$4&$A25,dataset,CI$4, FALSE), "") -> 0 | CJ25: =IFERROR(VLOOKUP($T$4&$A25,dataset,CJ$4, FALSE), "") -> 0 | CK25: =IFERROR(VLOOKUP($T$4&$A25,dataset,CK$4, FALSE), "") -> 0 | CL25: =IFERROR(VLOOKUP($T$4&$A25,dataset,CL$4, FALSE), "") -> 0 | CM25: =IFERROR(VLOOKUP($T$4&$A25,dataset,CM$4, FALSE), "") -> 0 | CN25: =IFERROR(VLOOKUP($T$4&$A25,dataset,CN$4, FALSE), "") -> 0 | CO25: =IFERROR(VLOOKUP($T$4&$A25,dataset,CO$4, FALSE), "") -> 0 | CP25: =IFERROR(VLOOKUP($T$4&$A25,dataset,CP$4, FALSE), "") -> 0 | CQ25: =IFERROR(VLOOKUP($T$4&$A25,dataset,CQ$4, FALSE), "") -> 0 | CR25: =IFERROR(VLOOKUP($T$4&$A25,dataset,CR$4, FALSE), "") -> 0 | CS25: =IFERROR(VLOOKUP($T$4&$A25,dataset,CS$4, FALSE), "") -> 0 | CT25: =IFERROR(VLOOKUP($T$4&$A25,dataset,CT$4, FALSE), "") -> 0 | CU25: =IFERROR(VLOOKUP($T$4&$A25,dataset,CU$4, FALSE), "") -> 0 | CV25: =IFERROR(VLOOKUP($T$4&$A25,dataset,CV$4, FALSE), "") -> 0 | CW25: =IFERROR(VLOOKUP($T$4&$A25,dataset,CW$4, FALSE), "") -> 0.6547061453 | CX25: =IFERROR(VLOOKUP($T$4&$A25,dataset,CX$4, FALSE), "") -> -0.4700941781 | CY25: =IFERROR(VLOOKUP($T$4&$A25,dataset,CY$4, FALSE), "") -> 0.005651178292 | CZ25: =IFERROR(VLOOKUP($T$4&$A25,dataset,CZ$4, FALSE), "") -> 1.240885776 | DA25: =IFERROR(VLOOKUP($T$4&$A25,dataset,DA$4, FALSE), "") -> 48.55679037 | DB25: =IFERROR(VLOOKUP($T$4&$A25,dataset,DB$4, FALSE), "") -> -10.64217944 | DC25: =IFERROR(VLOOKUP($T$4&$A25,dataset,DC$4, FALSE), "") -> 0 | DD25: =IFERROR(VLOOKUP($T$4&$A25,dataset,DD$4, FALSE), "") -> 12.26197695 | DE25: =IFERROR(VLOOKUP($T$4&$A25,dataset,DE$4, FALSE), "") -> 2.105090393 | DF25: =IFERROR(VLOOKUP($T$4&$A25,dataset,DF$4, FALSE), "") -> 1 | DG25: =IFERROR(VLOOKUP($T$4&$A25,dataset,DG$4, FALSE), "") -> 0 | DH25: =IFERROR(VLOOKUP($T$4&$A25,dataset,DH$4, FALSE), "") -> 0 | DI25: =IFERROR(VLOOKUP($T$4&$A25,dataset,DI$4, FALSE), "") -> 0 | DJ25: =IFERROR(VLOOKUP($T$4&$A25,dataset,DJ$4, FALSE), "") -> 0 | DK25: =IFERROR(VLOOKUP($T$4&$A25,dataset,DK$4, FALSE), "") -> 0 | DL25: =IFERROR(VLOOKUP($T$4&$A25,dataset,DL$4, FALSE), "") -> 0 | DM25: =IFERROR(VLOOKUP($T$4&$A25,dataset,DM$4, FALSE), "") -> 0 | DN25: =IFERROR(VLOOKUP($T$4&$A25,dataset,DN$4, FALSE), "") -> 0 | DO25: =IFERROR(VLOOKUP($T$4&$A25,dataset,DO$4, FALSE), "") -> 0 | DP25: =IFERROR(VLOOKUP($T$4&$A25,dataset,DP$4, FALSE), "") -> 0 | DQ25: =IFERROR(VLOOKUP($T$4&$A25,dataset,DQ$4, FALSE), "") -> 0 | DR25: =IFERROR(VLOOKUP($T$4&$A25,dataset,DR$4, FALSE), "") -> 0 | DS25: =IFERROR(VLOOKUP($T$4&$A25,dataset,DS$4, FALSE), "") -> 0 | DT25: =IFERROR(VLOOKUP($T$4&$A25,dataset,DT$4, FALSE), "") -> 0 | DU25: =IFERROR(VLOOKUP($T$4&$A25,dataset,DU$4, FALSE), "") -> 0 | DV25: =IFERROR(VLOOKUP($T$4&$A25,dataset,DV$4, FALSE), "") -> 0 | DW25: =IFERROR(VLOOKUP($T$4&$A25,dataset,DW$4, FALSE), "") -> 0 | DX25: =IFERROR(VLOOKUP($T$4&$A25,dataset,DX$4, FALSE), "") -> 0 | DY25: =IFERROR(VLOOKUP($T$4&$A25,dataset,DY$4, FALSE), "") -> 0 | DZ25: =IFERROR(VLOOKUP($T$4&$A25,dataset,DZ$4, FALSE), "") -> 0 | EA25: =IFERROR(VLOOKUP($T$4&$A25,dataset,EA$4, FALSE), "") -> 0.6392952874 | EB25: =IFERROR(VLOOKUP($T$4&$A25,dataset,EB$4, FALSE), "") -> 0.3586557924 | EC25: =IFERROR(VLOOKUP($T$4&$A25,dataset,EC$4, FALSE), "") -> 0.026504659 | ED25: =IFERROR(VLOOKUP($T$4&$A25,dataset,ED$4, FALSE), "") -> 2.022572847 | EE25: =IFERROR(VLOOKUP($T$4&$A25,dataset,EE$4, FALSE), "") -> 42.64942432 | EF25: =IFERROR(VLOOKUP($T$4&$A25,dataset,EF$4, FALSE), "") -> 16.63787499 | EG25: =IFERROR(VLOOKUP($T$4&$A25,dataset,EG$4, FALSE), "") -> 0 | EH25: =IFERROR(VLOOKUP($T$4&$A25,dataset,EH$4, FALSE), "") -> 7.419646093 | EI25: =IFERROR(VLOOKUP($T$4&$A25,dataset,EI$4, FALSE), "") -> 2.550478605 | EJ25: =IFERROR(VLOOKUP($T$4&$A25,dataset,EJ$4, FALSE), "") -> 1 | EK25: =IFERROR(VLOOKUP($T$4&$A25,dataset,EK$4, FALSE), "") -> 4.938122682 | EL25: =IFERROR(VLOOKUP($T$4&$A25,dataset,EL$4, FALSE), "") -> 1.322987007 | EM25: =IFERROR(VLOOKUP($T$4&$A25,dataset,EM$4, FALSE), "") -> 0.003472198226 | EN25: =IFERROR(VLOOKUP($T$4&$A25,dataset,EN$4, FALSE), "") -> 5.446564631 | EO25: =IFERROR(VLOOKUP($T$4&$A25,dataset,EO$4, FALSE), "") -> 97.11154574 | EP25: =IFERROR(VLOOKUP($T$4&$A25,dataset,EP$4, FALSE), "") -> 0.7443771943 | EQ25: =IFERROR(VLOOKUP($T$4&$A25,dataset,EQ$4, FALSE), "") -> 0 | ER25: =IFERROR(VLOOKUP($T$4&$A25,dataset,ER$4, FALSE), "") -> 5.555703657 | ES25: =IFERROR(VLOOKUP($T$4&$A25,dataset,ES$4, FALSE), "") -> 6.693211727 | ET25: =IFERROR(VLOOKUP($T$4&$A25,dataset,ET$4, FALSE), "") -> 1 | EU25: =IFERROR(VLOOKUP($T$4&$A25,dataset,EU$4, FALSE), "") -> 10.23071062 | EV25: =IFERROR(VLOOKUP($T$4&$A25,dataset,EV$4, FALSE), "") -> 0.5694774493 | EW25: =IFERROR(VLOOKUP($T$4&$A25,dataset,EW$4, FALSE), "") -> 0.01441354687 | EX25: =IFERROR(VLOOKUP($T$4&$A25,dataset,EX$4, FALSE), "") -> 16.15334757 | EY25: =IFERROR(VLOOKUP($T$4&$A25,dataset,EY$4, FALSE), "") -> 50.1197442 | EZ25: =IFERROR(VLOOKUP($T$4&$A25,dataset,EZ$4, FALSE), "") -> 1.604825218 | FA25: =IFERROR(VLOOKUP($T$4&$A25,dataset,FA$4, FALSE), "") -> 0 | FB25: =IFERROR(VLOOKUP($T$4&$A25,dataset,FB$4, FALSE), "") -> 4.413365568 | FC25: =IFERROR(VLOOKUP($T$4&$A25,dataset,FC$4, FALSE), "") -> 48.08279627 | FD25: =IFERROR(VLOOKUP($T$4&$A25,dataset,FD$4, FALSE), "") -> 1 | FE25: =IFERROR(VLOOKUP($T$4&$A25,dataset,FE$4, FALSE), "") -> 0 | FF25: =IFERROR(VLOOKUP($T$4&$A25,dataset,FF$4, FALSE), "") -> -0.003881108118 | FG25: =IFERROR(VLOOKUP($T$4&$A25,dataset,FG$4, FALSE), "") -> 0 | FH25: =IFERROR(VLOOKUP($T$4&$A25,dataset,FH$4, FALSE), "") -> 0 | FI25: =IFERROR(VLOOKUP($T$4&$A25,dataset,FI$4, FALSE), "") -> 0 | FJ25: =IFERROR(VLOOKUP($T$4&$A25,dataset,FJ$4, FALSE), "") -> -0.1724694434 | FK25: =IFERROR(VLOOKUP($T$4&$A25,dataset,FK$4, FALSE), "") -> 0 | FL25: =IFERROR(VLOOKUP($T$4&$A25,dataset,FL$4, FALSE), "") -> 0 | FM25: =IFERROR(VLOOKUP($T$4&$A25,dataset,FM$4, FALSE), "") -> 0 | FN25: =IFERROR(VLOOKUP($T$4&$A25,dataset,FN$4, FALSE), "") -> 0
A26: 18 | C26: =IFERROR(VLOOKUP($T$4&$A26,dataset,C$4, FALSE), "") -> RX-CVS Total | D26: =IFERROR(VLOOKUP($T$4&$A26,dataset,D$4, FALSE), "") -> 2 | E26: =IFERROR(VLOOKUP($T$4&$A26,dataset,E$3, FALSE)/VLOOKUP($T$4&$A26,dataset,E$4, FALSE)-1, "") -> 0.02064979922 | F26: =IFERROR(VLOOKUP($T$4&$A26,dataset,F$3, FALSE)/VLOOKUP($T$4&$A26,dataset,F$4, FALSE)-1, "") -> -0.03851965248 | G26: =IFERROR((VLOOKUP($T$4&$A26,dataset,E$3, FALSE)-VLOOKUP($T$4&$A26,dataset,F$3, FALSE))/(VLOOKUP($T$4&$A26,dataset,E$4, FALSE)-VLOOKUP($T$4&$A26,dataset,F$4, FALSE))-1, "") -> 0.1054307389 | H26: =IFERROR(VLOOKUP($T$4&$A26,dataset,H$4, FALSE),"") -> 55.48160717 | I26: =IFERROR(VLOOKUP($T$4&$A26,dataset,I$4, FALSE), "") -> -3.414335284 | J26: =IFERROR(VLOOKUP($T$4&$A26,dataset,J$4, FALSE), "") -> 6.76792987 | K26: =IFERROR(VLOOKUP($T$4&$A26,dataset,K$4, FALSE), "") -> 5.549506625 | L26: =IFERROR(VLOOKUP($T$4&$A26,dataset,L$4, FALSE), "") -> 1.218423245 | M26: =IFERROR(VLOOKUP($T$4&$A26,dataset,M$4, FALSE), "") -> 1.057794246 | N26: =IFERROR(VLOOKUP($T$4&$A26,dataset,N$4, FALSE), "") -> 46.31109151 | O26: =IFERROR(VLOOKUP($T$4&$A26,dataset,O$4, FALSE), "") -> -3.154491911 | P26: =IFERROR(VLOOKUP($T$4&$A26,dataset,P$4, FALSE), "") -> 0 | Q26: =IFERROR(VLOOKUP($T$4&$A26,dataset,Q$4, FALSE), "") -> - | R26: =IFERROR(VLOOKUP($T$4&$A26,dataset,R$4, FALSE), "") -> 0 | S26: =IFERROR(VLOOKUP($T$4&$A26,dataset,S$4, FALSE), "") -> 0 | U26: =IFERROR(VLOOKUP($T$4&$A26,dataset,U$4, FALSE), "") -> 1.166036054 | V26: =IFERROR(VLOOKUP($T$4&$A26,dataset,V$4, FALSE), "") -> 0.3641422371 | W26: =IFERROR(VLOOKUP($T$4&$A26,dataset,W$4, FALSE), "") -> 0.008178077414 | X26: =IFERROR(VLOOKUP($T$4&$A26,dataset,X$4, FALSE), "") -> 1.516811241 | Y26: =IFERROR(VLOOKUP($T$4&$A26,dataset,Y$4, FALSE), "") -> 52.09846246 | Z26: =IFERROR(VLOOKUP($T$4&$A26,dataset,Z$4, FALSE), "") -> 12.76991947 | AA26: =IFERROR(VLOOKUP($T$4&$A26,dataset,AA$4, FALSE), "") -> 0 | AB26: =IFERROR(VLOOKUP($T$4&$A26,dataset,AB$4, FALSE), "") -> 4.947149438 | AC26: =IFERROR(VLOOKUP($T$4&$A26,dataset,AC$4, FALSE), "") -> 5.775927602 | AD26: =IFERROR(VLOOKUP($T$4&$A26,dataset,AD$4, FALSE), "") -> 1 | AE26: =IFERROR(VLOOKUP($T$4&$A26,dataset,AE$4, FALSE), "") -> 1.338577122 | AF26: =IFERROR(VLOOKUP($T$4&$A26,dataset,AF$4, FALSE), "") -> 0.9249227428 | AG26: =IFERROR(VLOOKUP($T$4&$A26,dataset,AG$4, FALSE), "") -> 0.01132074649 | AH26: =IFERROR(VLOOKUP($T$4&$A26,dataset,AH$4, FALSE), "") -> 1.215370634 | AI26: =IFERROR(VLOOKUP($T$4&$A26,dataset,AI$4, FALSE), "") -> 69.53094531 | AJ26: =IFERROR(VLOOKUP($T$4&$A26,dataset,AJ$4, FALSE), "") -> 32.76943162 | AK26: =IFERROR(VLOOKUP($T$4&$A26,dataset,AK$4, FALSE), "") -> 0 | AL26: =IFERROR(VLOOKUP($T$4&$A26,dataset,AL$4, FALSE), "") -> 14.45376113 | AM26: =IFERROR(VLOOKUP($T$4&$A26,dataset,AM$4, FALSE), "") -> 2.895695731 | AN26: =IFERROR(VLOOKUP($T$4&$A26,dataset,AN$4, FALSE), "") -> 1 | AO26: =IFERROR(VLOOKUP($T$4&$A26,dataset,AO$4, FALSE), "") -> 0.4886200745 | AP26: =IFERROR(VLOOKUP($T$4&$A26,dataset,AP$4, FALSE), "") -> 0.4254722674 | AQ26: =IFERROR(VLOOKUP($T$4&$A26,dataset,AQ$4, FALSE), "") -> 0.003233700385 | AR26: =IFERROR(VLOOKUP($T$4&$A26,dataset,AR$4, FALSE), "") -> 1.930218733 | AS26: =IFERROR(VLOOKUP($T$4&$A26,dataset,AS$4, FALSE), "") -> 26.20863601 | AT26: =IFERROR(VLOOKUP($T$4&$A26,dataset,AT$4, FALSE), "") -> 23.0065948 | AU26: =IFERROR(VLOOKUP($T$4&$A26,dataset,AU$4, FALSE), "") -> 0 | AV26: =IFERROR(VLOOKUP($T$4&$A26,dataset,AV$4, FALSE), "") -> 11.50269762 | AW26: =IFERROR(VLOOKUP($T$4&$A26,dataset,AW$4, FALSE), "") -> 3.195899473 | AX26: =IFERROR(VLOOKUP($T$4&$A26,dataset,AX$4, FALSE), "") -> 1 | AY26: =IFERROR(VLOOKUP($T$4&$A26,dataset,AY$4, FALSE), "") -> 0 | AZ26: =IFERROR(VLOOKUP($T$4&$A26,dataset,AZ$4, FALSE), "") -> 0 | BA26: =IFERROR(VLOOKUP($T$4&$A26,dataset,BA$4, FALSE), "") -> 0 | BB26: =IFERROR(VLOOKUP($T$4&$A26,dataset,BB$4, FALSE), "") -> 0 | BC26: =IFERROR(VLOOKUP($T$4&$A26,dataset,BC$4, FALSE), "") -> 0 | BD26: =IFERROR(VLOOKUP($T$4&$A26,dataset,BD$4, FALSE), "") -> 0 | BE26: =IFERROR(VLOOKUP($T$4&$A26,dataset,BE$4, FALSE), "") -> 0 | BF26: =IFERROR(VLOOKUP($T$4&$A26,dataset,BF$4, FALSE), "") -> 0 | BG26: =IFERROR(VLOOKUP($T$4&$A26,dataset,BG$4, FALSE), "") -> 0 | BH26: =IFERROR(VLOOKUP($T$4&$A26,dataset,BH$4, FALSE), "") -> 0 | BI26: =IFERROR(VLOOKUP($T$4&$A26,dataset,BI$4, FALSE), "") -> 0.001025819029 | BJ26: =IFERROR(VLOOKUP($T$4&$A26,dataset,BJ$4, FALSE), "") -> 0.0006331823152 | BK26: =IFERROR(VLOOKUP($T$4&$A26,dataset,BK$4, FALSE), "") -> 3.89024451e-05 | BL26: =IFERROR(VLOOKUP($T$4&$A26,dataset,BL$4, FALSE), "") -> 1.539609102 | BM26: =IFERROR(VLOOKUP($T$4&$A26,dataset,BM$4, FALSE), "") -> 0.105705482 | BN26: =IFERROR(VLOOKUP($T$4&$A26,dataset,BN$4, FALSE), "") -> 0.03669376939 | BO26: =IFERROR(VLOOKUP($T$4&$A26,dataset,BO$4, FALSE), "") -> 0 | BP26: =IFERROR(VLOOKUP($T$4&$A26,dataset,BP$4, FALSE), "") -> 10.68458093 | BQ26: =IFERROR(VLOOKUP($T$4&$A26,dataset,BQ$4, FALSE), "") -> 3.999792435 | BR26: =IFERROR(VLOOKUP($T$4&$A26,dataset,BR$4, FALSE), "") -> 1 | BS26: =IFERROR(VLOOKUP($T$4&$A26,dataset,BS$4, FALSE), "") -> 0 | BT26: =IFERROR(VLOOKUP($T$4&$A26,dataset,BT$4, FALSE), "") -> -2.624300459e-05 | BU26: =IFERROR(VLOOKUP($T$4&$A26,dataset,BU$4, FALSE), "") -> 0 | BV26: =IFERROR(VLOOKUP($T$4&$A26,dataset,BV$4, FALSE), "") -> 0 | BW26: =IFERROR(VLOOKUP($T$4&$A26,dataset,BW$4, FALSE), "") -> 0 | BX26: =IFERROR(VLOOKUP($T$4&$A26,dataset,BX$4, FALSE), "") -> -0.00933977064 | BY26: =IFERROR(VLOOKUP($T$4&$A26,dataset,BY$4, FALSE), "") -> 0 | BZ26: =IFERROR(VLOOKUP($T$4&$A26,dataset,BZ$4, FALSE), "") -> 0 | CA26: =IFERROR(VLOOKUP($T$4&$A26,dataset,CA$4, FALSE), "") -> 0 | CB26: =IFERROR(VLOOKUP($T$4&$A26,dataset,CB$4, FALSE), "") -> 0 | CC26: =IFERROR(VLOOKUP($T$4&$A26,dataset,CC$4, FALSE), "") -> 0.005020700396 | CD26: =IFERROR(VLOOKUP($T$4&$A26,dataset,CD$4, FALSE), "") -> 0.004416127441 | CE26: =IFERROR(VLOOKUP($T$4&$A26,dataset,CE$4, FALSE), "") -> 0.0001130307821 | CF26: =IFERROR(VLOOKUP($T$4&$A26,dataset,CF$4, FALSE), "") -> 2.533459623 | CG26: =IFERROR(VLOOKUP($T$4&$A26,dataset,CG$4, FALSE), "") -> 0.1976692406 | CH26: =IFERROR(VLOOKUP($T$4&$A26,dataset,CH$4, FALSE), "") -> 0.1252993406 | CI26: =IFERROR(VLOOKUP($T$4&$A26,dataset,CI$4, FALSE), "") -> 0 | CJ26: =IFERROR(VLOOKUP($T$4&$A26,dataset,CJ$4, FALSE), "") -> 10.59611971 | CK26: =IFERROR(VLOOKUP($T$4&$A26,dataset,CK$4, FALSE), "") -> 8.917121397 | CL26: =IFERROR(VLOOKUP($T$4&$A26,dataset,CL$4, FALSE), "") -> 1 | CM26: =IFERROR(VLOOKUP($T$4&$A26,dataset,CM$4, FALSE), "") -> 0 | CN26: =IFERROR(VLOOKUP($T$4&$A26,dataset,CN$4, FALSE), "") -> 0 | CO26: =IFERROR(VLOOKUP($T$4&$A26,dataset,CO$4, FALSE), "") -> 0 | CP26: =IFERROR(VLOOKUP($T$4&$A26,dataset,CP$4, FALSE), "") -> 0 | CQ26: =IFERROR(VLOOKUP($T$4&$A26,dataset,CQ$4, FALSE), "") -> 0 | CR26: =IFERROR(VLOOKUP($T$4&$A26,dataset,CR$4, FALSE), "") -> 0 | CS26: =IFERROR(VLOOKUP($T$4&$A26,dataset,CS$4, FALSE), "") -> 0 | CT26: =IFERROR(VLOOKUP($T$4&$A26,dataset,CT$4, FALSE), "") -> 0 | CU26: =IFERROR(VLOOKUP($T$4&$A26,dataset,CU$4, FALSE), "") -> 0 | CV26: =IFERROR(VLOOKUP($T$4&$A26,dataset,CV$4, FALSE), "") -> 0 | CW26: =IFERROR(VLOOKUP($T$4&$A26,dataset,CW$4, FALSE), "") -> 0.7876842669 | CX26: =IFERROR(VLOOKUP($T$4&$A26,dataset,CX$4, FALSE), "") -> 0.04926205207 | CY26: =IFERROR(VLOOKUP($T$4&$A26,dataset,CY$4, FALSE), "") -> 0.01575424665 | CZ26: =IFERROR(VLOOKUP($T$4&$A26,dataset,CZ$4, FALSE), "") -> 1.064524953 | DA26: =IFERROR(VLOOKUP($T$4&$A26,dataset,DA$4, FALSE), "") -> 63.41908962 | DB26: =IFERROR(VLOOKUP($T$4&$A26,dataset,DB$4, FALSE), "") -> 4.394391991 | DC26: =IFERROR(VLOOKUP($T$4&$A26,dataset,DC$4, FALSE), "") -> 0 | DD26: =IFERROR(VLOOKUP($T$4&$A26,dataset,DD$4, FALSE), "") -> 11.09518585 | DE26: =IFERROR(VLOOKUP($T$4&$A26,dataset,DE$4, FALSE), "") -> 2.908776773 | DF26: =IFERROR(VLOOKUP($T$4&$A26,dataset,DF$4, FALSE), "") -> 1 | DG26: =IFERROR(VLOOKUP($T$4&$A26,dataset,DG$4, FALSE), "") -> 0.502903776 | DH26: =IFERROR(VLOOKUP($T$4&$A26,dataset,DH$4, FALSE), "") -> 0.342663184 | DI26: =IFERROR(VLOOKUP($T$4&$A26,dataset,DI$4, FALSE), "") -> 0.0727414816 | DJ26: =IFERROR(VLOOKUP($T$4&$A26,dataset,DJ$4, FALSE), "") -> 1 | DK26: =IFERROR(VLOOKUP($T$4&$A26,dataset,DK$4, FALSE), "") -> 46.73801528 | DL26: =IFERROR(VLOOKUP($T$4&$A26,dataset,DL$4, FALSE), "") -> 30.9776448 | DM26: =IFERROR(VLOOKUP($T$4&$A26,dataset,DM$4, FALSE), "") -> 0 | DN26: =IFERROR(VLOOKUP($T$4&$A26,dataset,DN$4, FALSE), "") -> 7.832178792 | DO26: =IFERROR(VLOOKUP($T$4&$A26,dataset,DO$4, FALSE), "") -> 2.347146042 | DP26: =IFERROR(VLOOKUP($T$4&$A26,dataset,DP$4, FALSE), "") -> 1 | DQ26: =IFERROR(VLOOKUP($T$4&$A26,dataset,DQ$4, FALSE), "") -> 0.01053235553 | DR26: =IFERROR(VLOOKUP($T$4&$A26,dataset,DR$4, FALSE), "") -> 0.01053235553 | DS26: =IFERROR(VLOOKUP($T$4&$A26,dataset,DS$4, FALSE), "") -> 0.002604868476 | DT26: =IFERROR(VLOOKUP($T$4&$A26,dataset,DT$4, FALSE), "") -> 1 | DU26: =IFERROR(VLOOKUP($T$4&$A26,dataset,DU$4, FALSE), "") -> 1.178757502 | DV26: =IFERROR(VLOOKUP($T$4&$A26,dataset,DV$4, FALSE), "") -> 1.178757502 | DW26: =IFERROR(VLOOKUP($T$4&$A26,dataset,DW$4, FALSE), "") -> 0 | DX26: =IFERROR(VLOOKUP($T$4&$A26,dataset,DX$4, FALSE), "") -> 10.90632575 | DY26: =IFERROR(VLOOKUP($T$4&$A26,dataset,DY$4, FALSE), "") -> 1.540750027 | DZ26: =IFERROR(VLOOKUP($T$4&$A26,dataset,DZ$4, FALSE), "") -> 1 | EA26: =IFERROR(VLOOKUP($T$4&$A26,dataset,EA$4, FALSE), "") -> 0 | EB26: =IFERROR(VLOOKUP($T$4&$A26,dataset,EB$4, FALSE), "") -> 0 | EC26: =IFERROR(VLOOKUP($T$4&$A26,dataset,EC$4, FALSE), "") -> 0 | ED26: =IFERROR(VLOOKUP($T$4&$A26,dataset,ED$4, FALSE), "") -> 0 | EE26: =IFERROR(VLOOKUP($T$4&$A26,dataset,EE$4, FALSE), "") -> 0 | EF26: =IFERROR(VLOOKUP($T$4&$A26,dataset,EF$4, FALSE), "") -> 0 | EG26: =IFERROR(VLOOKUP($T$4&$A26,dataset,EG$4, FALSE), "") -> 0 | EH26: =IFERROR(VLOOKUP($T$4&$A26,dataset,EH$4, FALSE), "") -> 0 | EI26: =IFERROR(VLOOKUP($T$4&$A26,dataset,EI$4, FALSE), "") -> 0 | EJ26: =IFERROR(VLOOKUP($T$4&$A26,dataset,EJ$4, FALSE), "") -> 0 | EK26: =IFERROR(VLOOKUP($T$4&$A26,dataset,EK$4, FALSE), "") -> 0 | EL26: =IFERROR(VLOOKUP($T$4&$A26,dataset,EL$4, FALSE), "") -> 0 | EM26: =IFERROR(VLOOKUP($T$4&$A26,dataset,EM$4, FALSE), "") -> 0 | EN26: =IFERROR(VLOOKUP($T$4&$A26,dataset,EN$4, FALSE), "") -> 0 | EO26: =IFERROR(VLOOKUP($T$4&$A26,dataset,EO$4, FALSE), "") -> 0 | EP26: =IFERROR(VLOOKUP($T$4&$A26,dataset,EP$4, FALSE), "") -> 0 | EQ26: =IFERROR(VLOOKUP($T$4&$A26,dataset,EQ$4, FALSE), "") -> 0 | ER26: =IFERROR(VLOOKUP($T$4&$A26,dataset,ER$4, FALSE), "") -> 0 | ES26: =IFERROR(VLOOKUP($T$4&$A26,dataset,ES$4, FALSE), "") -> 0 | ET26: =IFERROR(VLOOKUP($T$4&$A26,dataset,ET$4, FALSE), "") -> 0 | EU26: =IFERROR(VLOOKUP($T$4&$A26,dataset,EU$4, FALSE), "") -> 2.229463629 | EV26: =IFERROR(VLOOKUP($T$4&$A26,dataset,EV$4, FALSE), "") -> -0.1877861358 | EW26: =IFERROR(VLOOKUP($T$4&$A26,dataset,EW$4, FALSE), "") -> 0.00727810528 | EX26: =IFERROR(VLOOKUP($T$4&$A26,dataset,EX$4, FALSE), "") -> 15.74157142 | EY26: =IFERROR(VLOOKUP($T$4&$A26,dataset,EY$4, FALSE), "") -> 16.25594434 | EZ26: =IFERROR(VLOOKUP($T$4&$A26,dataset,EZ$4, FALSE), "") -> 0.712793637 | FA26: =IFERROR(VLOOKUP($T$4&$A26,dataset,FA$4, FALSE), "") -> 0 | FB26: =IFERROR(VLOOKUP($T$4&$A26,dataset,FB$4, FALSE), "") -> 5.822312573 | FC26: =IFERROR(VLOOKUP($T$4&$A26,dataset,FC$4, FALSE), "") -> 50.74618653 | FD26: =IFERROR(VLOOKUP($T$4&$A26,dataset,FD$4, FALSE), "") -> 1 | FE26: =IFERROR(VLOOKUP($T$4&$A26,dataset,FE$4, FALSE), "") -> 0.07962452789 | FF26: =IFERROR(VLOOKUP($T$4&$A26,dataset,FF$4, FALSE), "") -> 0.01378758245 | FG26: =IFERROR(VLOOKUP($T$4&$A26,dataset,FG$4, FALSE), "") -> 0.0008236601816 | FH26: =IFERROR(VLOOKUP($T$4&$A26,dataset,FH$4, FALSE), "") -> 8.681054913 | FI26: =IFERROR(VLOOKUP($T$4&$A26,dataset,FI$4, FALSE), "") -> 1.318069945 | FJ26: =IFERROR(VLOOKUP($T$4&$A26,dataset,FJ$4, FALSE), "") -> -0.1174452537 | FK26: =IFERROR(VLOOKUP($T$4&$A26,dataset,FK$4, FALSE), "") -> 0 | FL26: =IFERROR(VLOOKUP($T$4&$A26,dataset,FL$4, FALSE), "") -> 11.30761742 | FM26: =IFERROR(VLOOKUP($T$4&$A26,dataset,FM$4, FALSE), "") -> 32.47050334 | FN26: =IFERROR(VLOOKUP($T$4&$A26,dataset,FN$4, FALSE), "") -> 1
A27: 19 | C27: =IFERROR(VLOOKUP($T$4&$A27,dataset,C$4, FALSE), "") -> DeCA CONUS | D27: =IFERROR(VLOOKUP($T$4&$A27,dataset,D$4, FALSE), "") -> 1 | E27: =IFERROR(VLOOKUP($T$4&$A27,dataset,E$3, FALSE)/VLOOKUP($T$4&$A27,dataset,E$4, FALSE)-1, "") -> -0.09887491034 | F27: =IFERROR(VLOOKUP($T$4&$A27,dataset,F$3, FALSE)/VLOOKUP($T$4&$A27,dataset,F$4, FALSE)-1, "") -> -0.133333739 | G27: =IFERROR((VLOOKUP($T$4&$A27,dataset,E$3, FALSE)-VLOOKUP($T$4&$A27,dataset,F$3, FALSE))/(VLOOKUP($T$4&$A27,dataset,E$4, FALSE)-VLOOKUP($T$4&$A27,dataset,F$4, FALSE))-1, "") -> -0.04394574905 | H27: =IFERROR(VLOOKUP($T$4&$A27,dataset,H$4, FALSE),"") -> 59.10042509 | I27: =IFERROR(VLOOKUP($T$4&$A27,dataset,I$4, FALSE), "") -> -2.349845048 | J27: =IFERROR(VLOOKUP($T$4&$A27,dataset,J$4, FALSE), "") -> 3.949064234 | K27: =IFERROR(VLOOKUP($T$4&$A27,dataset,K$4, FALSE), "") -> 3.848116869 | L27: =IFERROR(VLOOKUP($T$4&$A27,dataset,L$4, FALSE), "") -> 0.1009473649 | M27: =IFERROR(VLOOKUP($T$4&$A27,dataset,M$4, FALSE), "") -> -0.2275526808 | N27: =IFERROR(VLOOKUP($T$4&$A27,dataset,N$4, FALSE), "") -> 31.63996199 | O27: =IFERROR(VLOOKUP($T$4&$A27,dataset,O$4, FALSE), "") -> -0.7616790284 | P27: =IFERROR(VLOOKUP($T$4&$A27,dataset,P$4, FALSE), "") -> 0 | Q27: =IFERROR(VLOOKUP($T$4&$A27,dataset,Q$4, FALSE), "") -> - | R27: =IFERROR(VLOOKUP($T$4&$A27,dataset,R$4, FALSE), "") -> 0 | S27: =IFERROR(VLOOKUP($T$4&$A27,dataset,S$4, FALSE), "") -> 0 | U27: =IFERROR(VLOOKUP($T$4&$A27,dataset,U$4, FALSE), "") -> 0.2427312498 | V27: =IFERROR(VLOOKUP($T$4&$A27,dataset,V$4, FALSE), "") -> 0.01783902104 | W27: =IFERROR(VLOOKUP($T$4&$A27,dataset,W$4, FALSE), "") -> 0.0007382564574 | X27: =IFERROR(VLOOKUP($T$4&$A27,dataset,X$4, FALSE), "") -> 3.534996872 | Y27: =IFERROR(VLOOKUP($T$4&$A27,dataset,Y$4, FALSE), "") -> 25.810173 | Z27: =IFERROR(VLOOKUP($T$4&$A27,dataset,Z$4, FALSE), "") -> -6.46309311 | AA27: =IFERROR(VLOOKUP($T$4&$A27,dataset,AA$4, FALSE), "") -> 0 | AB27: =IFERROR(VLOOKUP($T$4&$A27,dataset,AB$4, FALSE), "") -> 3.389640627 | AC27: =IFERROR(VLOOKUP($T$4&$A27,dataset,AC$4, FALSE), "") -> 63.68571429 | AD27: =IFERROR(VLOOKUP($T$4&$A27,dataset,AD$4, FALSE), "") -> 1 | AE27: =IFERROR(VLOOKUP($T$4&$A27,dataset,AE$4, FALSE), "") -> 1.27382037 | AF27: =IFERROR(VLOOKUP($T$4&$A27,dataset,AF$4, FALSE), "") -> 0.9113853006 | AG27: =IFERROR(VLOOKUP($T$4&$A27,dataset,AG$4, FALSE), "") -> 0.004671777823 | AH27: =IFERROR(VLOOKUP($T$4&$A27,dataset,AH$4, FALSE), "") -> 4.60488781 | AI27: =IFERROR(VLOOKUP($T$4&$A27,dataset,AI$4, FALSE), "") -> 94.77290977 | AJ27: =IFERROR(VLOOKUP($T$4&$A27,dataset,AJ$4, FALSE), "") -> 3.345978757 | AK27: =IFERROR(VLOOKUP($T$4&$A27,dataset,AK$4, FALSE), "") -> 0 | AL27: =IFERROR(VLOOKUP($T$4&$A27,dataset,AL$4, FALSE), "") -> 10.21364719 | AM27: =IFERROR(VLOOKUP($T$4&$A27,dataset,AM$4, FALSE), "") -> 51.10322581 | AN27: =IFERROR(VLOOKUP($T$4&$A27,dataset,AN$4, FALSE), "") -> 1 | AO27: =IFERROR(VLOOKUP($T$4&$A27,dataset,AO$4, FALSE), "") -> 1.099485209 | AP27: =IFERROR(VLOOKUP($T$4&$A27,dataset,AP$4, FALSE), "") -> 0.189186506 | AQ27: =IFERROR(VLOOKUP($T$4&$A27,dataset,AQ$4, FALSE), "") -> 0.003155441904 | AR27: =IFERROR(VLOOKUP($T$4&$A27,dataset,AR$4, FALSE), "") -> 4.718100188 | AS27: =IFERROR(VLOOKUP($T$4&$A27,dataset,AS$4, FALSE), "") -> 96.45856568 | AT27: =IFERROR(VLOOKUP($T$4&$A27,dataset,AT$4, FALSE), "") -> 1.17452703 | AU27: =IFERROR(VLOOKUP($T$4&$A27,dataset,AU$4, FALSE), "") -> 0 | AV27: =IFERROR(VLOOKUP($T$4&$A27,dataset,AV$4, FALSE), "") -> 6.341154456 | AW27: =IFERROR(VLOOKUP($T$4&$A27,dataset,AW$4, FALSE), "") -> 51.77124183 | AX27: =IFERROR(VLOOKUP($T$4&$A27,dataset,AX$4, FALSE), "") -> 1 | AY27: =IFERROR(VLOOKUP($T$4&$A27,dataset,AY$4, FALSE), "") -> 0.3955635844 | AZ27: =IFERROR(VLOOKUP($T$4&$A27,dataset,AZ$4, FALSE), "") -> -0.04060894567 | BA27: =IFERROR(VLOOKUP($T$4&$A27,dataset,BA$4, FALSE), "") -> 0.002044020529 | BB27: =IFERROR(VLOOKUP($T$4&$A27,dataset,BB$4, FALSE), "") -> 3.054513884 | BC27: =IFERROR(VLOOKUP($T$4&$A27,dataset,BC$4, FALSE), "") -> 42.67369135 | BD27: =IFERROR(VLOOKUP($T$4&$A27,dataset,BD$4, FALSE), "") -> -4.860444963 | BE27: =IFERROR(VLOOKUP($T$4&$A27,dataset,BE$4, FALSE), "") -> 0 | BF27: =IFERROR(VLOOKUP($T$4&$A27,dataset,BF$4, FALSE), "") -> 2.929475715 | BG27: =IFERROR(VLOOKUP($T$4&$A27,dataset,BG$4, FALSE), "") -> 44.76923077 | BH27: =IFERROR(VLOOKUP($T$4&$A27,dataset,BH$4, FALSE), "") -> 1 | BI27: =IFERROR(VLOOKUP($T$4&$A27,dataset,BI$4, FALSE), "") -> 0.07798474999 | BJ27: =IFERROR(VLOOKUP($T$4&$A27,dataset,BJ$4, FALSE), "") -> 0.01858956318 | BK27: =IFERROR(VLOOKUP($T$4&$A27,dataset,BK$4, FALSE), "") -> 0.00128250231 | BL27: =IFERROR(VLOOKUP($T$4&$A27,dataset,BL$4, FALSE), "") -> 4.473456186 | BM27: =IFERROR(VLOOKUP($T$4&$A27,dataset,BM$4, FALSE), "") -> 21.59244207 | BN27: =IFERROR(VLOOKUP($T$4&$A27,dataset,BN$4, FALSE), "") -> 1.033900087 | BO27: =IFERROR(VLOOKUP($T$4&$A27,dataset,BO$4, FALSE), "") -> 0 | BP27: =IFERROR(VLOOKUP($T$4&$A27,dataset,BP$4, FALSE), "") -> 8.346005042 | BQ27: =IFERROR(VLOOKUP($T$4&$A27,dataset,BQ$4, FALSE), "") -> 31.19354839 | BR27: =IFERROR(VLOOKUP($T$4&$A27,dataset,BR$4, FALSE), "") -> 1 | BS27: =IFERROR(VLOOKUP($T$4&$A27,dataset,BS$4, FALSE), "") -> 0.07228546825 | BT27: =IFERROR(VLOOKUP($T$4&$A27,dataset,BT$4, FALSE), "") -> 0.003610579086 | BU27: =IFERROR(VLOOKUP($T$4&$A27,dataset,BU$4, FALSE), "") -> 0.001158863084 | BV27: =IFERROR(VLOOKUP($T$4&$A27,dataset,BV$4, FALSE), "") -> 1.672683021 | BW27: =IFERROR(VLOOKUP($T$4&$A27,dataset,BW$4, FALSE), "") -> 60.7983735 | BX27: =IFERROR(VLOOKUP($T$4&$A27,dataset,BX$4, FALSE), "") -> -3.501726584 | BY27: =IFERROR(VLOOKUP($T$4&$A27,dataset,BY$4, FALSE), "") -> 0 | BZ27: =IFERROR(VLOOKUP($T$4&$A27,dataset,BZ$4, FALSE), "") -> 5.954521212 | CA27: =IFERROR(VLOOKUP($T$4&$A27,dataset,CA$4, FALSE), "") -> 8.25 | CB27: =IFERROR(VLOOKUP($T$4&$A27,dataset,CB$4, FALSE), "") -> 1 | CC27: =IFERROR(VLOOKUP($T$4&$A27,dataset,CC$4, FALSE), "") -> 0.9112841317 | CD27: =IFERROR(VLOOKUP($T$4&$A27,dataset,CD$4, FALSE), "") -> 0.7409785746 | CE27: =IFERROR(VLOOKUP($T$4&$A27,dataset,CE$4, FALSE), "") -> 0.008896692058 | CF27: =IFERROR(VLOOKUP($T$4&$A27,dataset,CF$4, FALSE), "") -> 5.758699645 | CG27: =IFERROR(VLOOKUP($T$4&$A27,dataset,CG$4, FALSE), "") -> 93.46044379 | CH27: =IFERROR(VLOOKUP($T$4&$A27,dataset,CH$4, FALSE), "") -> 23.14514799 | CI27: =IFERROR(VLOOKUP($T$4&$A27,dataset,CI$4, FALSE), "") -> 0 | CJ27: =IFERROR(VLOOKUP($T$4&$A27,dataset,CJ$4, FALSE), "") -> 6.364239647 | CK27: =IFERROR(VLOOKUP($T$4&$A27,dataset,CK$4, FALSE), "") -> 80.48366013 | CL27: =IFERROR(VLOOKUP($T$4&$A27,dataset,CL$4, FALSE), "") -> 1 | CM27: =IFERROR(VLOOKUP($T$4&$A27,dataset,CM$4, FALSE), "") -> 0.01963170951 | CN27: =IFERROR(VLOOKUP($T$4&$A27,dataset,CN$4, FALSE), "") -> -0.01474869666 | CO27: =IFERROR(VLOOKUP($T$4&$A27,dataset,CO$4, FALSE), "") -> 0.0009255396319 | CP27: =IFERROR(VLOOKUP($T$4&$A27,dataset,CP$4, FALSE), "") -> 1 | CQ27: =IFERROR(VLOOKUP($T$4&$A27,dataset,CQ$4, FALSE), "") -> 38.98575584 | CR27: =IFERROR(VLOOKUP($T$4&$A27,dataset,CR$4, FALSE), "") -> -13.3010646 | CS27: =IFERROR(VLOOKUP($T$4&$A27,dataset,CS$4, FALSE), "") -> 0 | CT27: =IFERROR(VLOOKUP($T$4&$A27,dataset,CT$4, FALSE), "") -> 4.860327869 | CU27: =IFERROR(VLOOKUP($T$4&$A27,dataset,CU$4, FALSE), "") -> 2.178571429 | CV27: =IFERROR(VLOOKUP($T$4&$A27,dataset,CV$4, FALSE), "") -> 1 | CW27: =IFERROR(VLOOKUP($T$4&$A27,dataset,CW$4, FALSE), "") -> 0.351444328 | CX27: =IFERROR(VLOOKUP($T$4&$A27,dataset,CX$4, FALSE), "") -> 0.01074463861 | CY27: =IFERROR(VLOOKUP($T$4&$A27,dataset,CY$4, FALSE), "") -> 0.003048206132 | CZ27: =IFERROR(VLOOKUP($T$4&$A27,dataset,CZ$4, FALSE), "") -> 2.979385019 | DA27: =IFERROR(VLOOKUP($T$4&$A27,dataset,DA$4, FALSE), "") -> 93.7548291 | DB27: =IFERROR(VLOOKUP($T$4&$A27,dataset,DB$4, FALSE), "") -> -1.554764645 | DC27: =IFERROR(VLOOKUP($T$4&$A27,dataset,DC$4, FALSE), "") -> 0 | DD27: =IFERROR(VLOOKUP($T$4&$A27,dataset,DD$4, FALSE), "") -> 8.83623053 | DE27: =IFERROR(VLOOKUP($T$4&$A27,dataset,DE$4, FALSE), "") -> 16.40939597 | DF27: =IFERROR(VLOOKUP($T$4&$A27,dataset,DF$4, FALSE), "") -> 1 | DG27: =IFERROR(VLOOKUP($T$4&$A27,dataset,DG$4, FALSE), "") -> 0 | DH27: =IFERROR(VLOOKUP($T$4&$A27,dataset,DH$4, FALSE), "") -> 0 | DI27: =IFERROR(VLOOKUP($T$4&$A27,dataset,DI$4, FALSE), "") -> 0 | DJ27: =IFERROR(VLOOKUP($T$4&$A27,dataset,DJ$4, FALSE), "") -> 0 | DK27: =IFERROR(VLOOKUP($T$4&$A27,dataset,DK$4, FALSE), "") -> 0 | DL27: =IFERROR(VLOOKUP($T$4&$A27,dataset,DL$4, FALSE), "") -> 0 | DM27: =IFERROR(VLOOKUP($T$4&$A27,dataset,DM$4, FALSE), "") -> 0 | DN27: =IFERROR(VLOOKUP($T$4&$A27,dataset,DN$4, FALSE), "") -> 0 | DO27: =IFERROR(VLOOKUP($T$4&$A27,dataset,DO$4, FALSE), "") -> 0 | DP27: =IFERROR(VLOOKUP($T$4&$A27,dataset,DP$4, FALSE), "") -> 0 | DQ27: =IFERROR(VLOOKUP($T$4&$A27,dataset,DQ$4, FALSE), "") -> 0.1044093347 | DR27: =IFERROR(VLOOKUP($T$4&$A27,dataset,DR$4, FALSE), "") -> 0.1044093347 | DS27: =IFERROR(VLOOKUP($T$4&$A27,dataset,DS$4, FALSE), "") -> 0.01119803813 | DT27: =IFERROR(VLOOKUP($T$4&$A27,dataset,DT$4, FALSE), "") -> 1 | DU27: =IFERROR(VLOOKUP($T$4&$A27,dataset,DU$4, FALSE), "") -> 55.73908602 | DV27: =IFERROR(VLOOKUP($T$4&$A27,dataset,DV$4, FALSE), "") -> 55.73908602 | DW27: =IFERROR(VLOOKUP($T$4&$A27,dataset,DW$4, FALSE), "") -> 0 | DX27: =IFERROR(VLOOKUP($T$4&$A27,dataset,DX$4, FALSE), "") -> 7.2 | DY27: =IFERROR(VLOOKUP($T$4&$A27,dataset,DY$4, FALSE), "") -> 9 | DZ27: =IFERROR(VLOOKUP($T$4&$A27,dataset,DZ$4, FALSE), "") -> 1 | EA27: =IFERROR(VLOOKUP($T$4&$A27,dataset,EA$4, FALSE), "") -> 0 | EB27: =IFERROR(VLOOKUP($T$4&$A27,dataset,EB$4, FALSE), "") -> 0 | EC27: =IFERROR(VLOOKUP($T$4&$A27,dataset,EC$4, FALSE), "") -> 0 | ED27: =IFERROR(VLOOKUP($T$4&$A27,dataset,ED$4, FALSE), "") -> 0 | EE27: =IFERROR(VLOOKUP($T$4&$A27,dataset,EE$4, FALSE), "") -> 0 | EF27: =IFERROR(VLOOKUP($T$4&$A27,dataset,EF$4, FALSE), "") -> 0 | EG27: =IFERROR(VLOOKUP($T$4&$A27,dataset,EG$4, FALSE), "") -> 0 | EH27: =IFERROR(VLOOKUP($T$4&$A27,dataset,EH$4, FALSE), "") -> 0 | EI27: =IFERROR(VLOOKUP($T$4&$A27,dataset,EI$4, FALSE), "") -> 0 | EJ27: =IFERROR(VLOOKUP($T$4&$A27,dataset,EJ$4, FALSE), "") -> 0 | EK27: =IFERROR(VLOOKUP($T$4&$A27,dataset,EK$4, FALSE), "") -> 0.1454290954 | EL27: =IFERROR(VLOOKUP($T$4&$A27,dataset,EL$4, FALSE), "") -> 0.03150027597 | EM27: =IFERROR(VLOOKUP($T$4&$A27,dataset,EM$4, FALSE), "") -> 0.0001027517294 | EN27: =IFERROR(VLOOKUP($T$4&$A27,dataset,EN$4, FALSE), "") -> 1.650445847 | EO27: =IFERROR(VLOOKUP($T$4&$A27,dataset,EO$4, FALSE), "") -> 37.20661843 | EP27: =IFERROR(VLOOKUP($T$4&$A27,dataset,EP$4, FALSE), "") -> -2.299481584 | EQ27: =IFERROR(VLOOKUP($T$4&$A27,dataset,EQ$4, FALSE), "") -> 0 | ER27: =IFERROR(VLOOKUP($T$4&$A27,dataset,ER$4, FALSE), "") -> 4.058841889 | ES27: =IFERROR(VLOOKUP($T$4&$A27,dataset,ES$4, FALSE), "") -> 18.38596491 | ET27: =IFERROR(VLOOKUP($T$4&$A27,dataset,ET$4, FALSE), "") -> 1 | EU27: =IFERROR(VLOOKUP($T$4&$A27,dataset,EU$4, FALSE), "") -> 3.058967489 | EV27: =IFERROR(VLOOKUP($T$4&$A27,dataset,EV$4, FALSE), "") -> -0.04665547673 | EW27: =IFERROR(VLOOKUP($T$4&$A27,dataset,EW$4, FALSE), "") -> 0.004330470928 | EX27: =IFERROR(VLOOKUP($T$4&$A27,dataset,EX$4, FALSE), "") -> 17.13152496 | EY27: =IFERROR(VLOOKUP($T$4&$A27,dataset,EY$4, FALSE), "") -> 97.23925108 | EZ27: =IFERROR(VLOOKUP($T$4&$A27,dataset,EZ$4, FALSE), "") -> 3.738282348 | FA27: =IFERROR(VLOOKUP($T$4&$A27,dataset,FA$4, FALSE), "") -> 0 | FB27: =IFERROR(VLOOKUP($T$4&$A27,dataset,FB$4, FALSE), "") -> 3.933998511 | FC27: =IFERROR(VLOOKUP($T$4&$A27,dataset,FC$4, FALSE), "") -> 165.2298137 | FD27: =IFERROR(VLOOKUP($T$4&$A27,dataset,FD$4, FALSE), "") -> 1 | FE27: =IFERROR(VLOOKUP($T$4&$A27,dataset,FE$4, FALSE), "") -> 1.279618534 | FF27: =IFERROR(VLOOKUP($T$4&$A27,dataset,FF$4, FALSE), "") -> 0.3153600797 | FG27: =IFERROR(VLOOKUP($T$4&$A27,dataset,FG$4, FALSE), "") -> 0.005740160647 | FH27: =IFERROR(VLOOKUP($T$4&$A27,dataset,FH$4, FALSE), "") -> 8.051408549 | FI27: =IFERROR(VLOOKUP($T$4&$A27,dataset,FI$4, FALSE), "") -> 97.17157681 | FJ27: =IFERROR(VLOOKUP($T$4&$A27,dataset,FJ$4, FALSE), "") -> -0.3702710635 | FK27: =IFERROR(VLOOKUP($T$4&$A27,dataset,FK$4, FALSE), "") -> 0 | FL27: =IFERROR(VLOOKUP($T$4&$A27,dataset,FL$4, FALSE), "") -> 5.787708145 | FM27: =IFERROR(VLOOKUP($T$4&$A27,dataset,FM$4, FALSE), "") -> 48.9125 | FN27: =IFERROR(VLOOKUP($T$4&$A27,dataset,FN$4, FALSE), "") -> 1
A28: 20 | C28: =IFERROR(VLOOKUP($T$4&$A28,dataset,C$4, FALSE), "") -> Family Dollar | D28: =IFERROR(VLOOKUP($T$4&$A28,dataset,D$4, FALSE), "") -> 1 | E28: =IFERROR(VLOOKUP($T$4&$A28,dataset,E$3, FALSE)/VLOOKUP($T$4&$A28,dataset,E$4, FALSE)-1, "") -> 0.02689241856 | F28: =IFERROR(VLOOKUP($T$4&$A28,dataset,F$3, FALSE)/VLOOKUP($T$4&$A28,dataset,F$4, FALSE)-1, "") -> 0.04526346418 | G28: =IFERROR((VLOOKUP($T$4&$A28,dataset,E$3, FALSE)-VLOOKUP($T$4&$A28,dataset,F$3, FALSE))/(VLOOKUP($T$4&$A28,dataset,E$4, FALSE)-VLOOKUP($T$4&$A28,dataset,F$4, FALSE))-1, "") -> -0.01505030823 | H28: =IFERROR(VLOOKUP($T$4&$A28,dataset,H$4, FALSE),"") -> 70.7849601 | I28: =IFERROR(VLOOKUP($T$4&$A28,dataset,I$4, FALSE), "") -> 1.244082258 | J28: =IFERROR(VLOOKUP($T$4&$A28,dataset,J$4, FALSE), "") -> 5.48030349 | K28: =IFERROR(VLOOKUP($T$4&$A28,dataset,K$4, FALSE), "") -> 3.812403044 | L28: =IFERROR(VLOOKUP($T$4&$A28,dataset,L$4, FALSE), "") -> 1.667900446 | M28: =IFERROR(VLOOKUP($T$4&$A28,dataset,M$4, FALSE), "") -> -0.03989551555 | N28: =IFERROR(VLOOKUP($T$4&$A28,dataset,N$4, FALSE), "") -> 54.68208453 | O28: =IFERROR(VLOOKUP($T$4&$A28,dataset,O$4, FALSE), "") -> 0.2965734937 | P28: =IFERROR(VLOOKUP($T$4&$A28,dataset,P$4, FALSE), "") -> 0 | Q28: =IFERROR(VLOOKUP($T$4&$A28,dataset,Q$4, FALSE), "") -> - | R28: =IFERROR(VLOOKUP($T$4&$A28,dataset,R$4, FALSE), "") -> 0 | S28: =IFERROR(VLOOKUP($T$4&$A28,dataset,S$4, FALSE), "") -> 0 | U28: =IFERROR(VLOOKUP($T$4&$A28,dataset,U$4, FALSE), "") -> 1.383964437 | V28: =IFERROR(VLOOKUP($T$4&$A28,dataset,V$4, FALSE), "") -> 1.306696902 | W28: =IFERROR(VLOOKUP($T$4&$A28,dataset,W$4, FALSE), "") -> 0.01496239476 | X28: =IFERROR(VLOOKUP($T$4&$A28,dataset,X$4, FALSE), "") -> 1.507632341 | Y28: =IFERROR(VLOOKUP($T$4&$A28,dataset,Y$4, FALSE), "") -> 90.76482109 | Z28: =IFERROR(VLOOKUP($T$4&$A28,dataset,Z$4, FALSE), "") -> 89.67089039 | AA28: =IFERROR(VLOOKUP($T$4&$A28,dataset,AA$4, FALSE), "") -> 0 | AB28: =IFERROR(VLOOKUP($T$4&$A28,dataset,AB$4, FALSE), "") -> 3.996653006 | AC28: =IFERROR(VLOOKUP($T$4&$A28,dataset,AC$4, FALSE), "") -> 11.14913197 | AD28: =IFERROR(VLOOKUP($T$4&$A28,dataset,AD$4, FALSE), "") -> 1 | AE28: =IFERROR(VLOOKUP($T$4&$A28,dataset,AE$4, FALSE), "") -> 0 | AF28: =IFERROR(VLOOKUP($T$4&$A28,dataset,AF$4, FALSE), "") -> 0 | AG28: =IFERROR(VLOOKUP($T$4&$A28,dataset,AG$4, FALSE), "") -> 0 | AH28: =IFERROR(VLOOKUP($T$4&$A28,dataset,AH$4, FALSE), "") -> 0 | AI28: =IFERROR(VLOOKUP($T$4&$A28,dataset,AI$4, FALSE), "") -> 0 | AJ28: =IFERROR(VLOOKUP($T$4&$A28,dataset,AJ$4, FALSE), "") -> 0 | AK28: =IFERROR(VLOOKUP($T$4&$A28,dataset,AK$4, FALSE), "") -> 0 | AL28: =IFERROR(VLOOKUP($T$4&$A28,dataset,AL$4, FALSE), "") -> 0 | AM28: =IFERROR(VLOOKUP($T$4&$A28,dataset,AM$4, FALSE), "") -> 0 | AN28: =IFERROR(VLOOKUP($T$4&$A28,dataset,AN$4, FALSE), "") -> 0 | AO28: =IFERROR(VLOOKUP($T$4&$A28,dataset,AO$4, FALSE), "") -> 0 | AP28: =IFERROR(VLOOKUP($T$4&$A28,dataset,AP$4, FALSE), "") -> 0 | AQ28: =IFERROR(VLOOKUP($T$4&$A28,dataset,AQ$4, FALSE), "") -> 0 | AR28: =IFERROR(VLOOKUP($T$4&$A28,dataset,AR$4, FALSE), "") -> 0 | AS28: =IFERROR(VLOOKUP($T$4&$A28,dataset,AS$4, FALSE), "") -> 0 | AT28: =IFERROR(VLOOKUP($T$4&$A28,dataset,AT$4, FALSE), "") -> 0 | AU28: =IFERROR(VLOOKUP($T$4&$A28,dataset,AU$4, FALSE), "") -> 0 | AV28: =IFERROR(VLOOKUP($T$4&$A28,dataset,AV$4, FALSE), "") -> 0 | AW28: =IFERROR(VLOOKUP($T$4&$A28,dataset,AW$4, FALSE), "") -> 0 | AX28: =IFERROR(VLOOKUP($T$4&$A28,dataset,AX$4, FALSE), "") -> 0 | AY28: =IFERROR(VLOOKUP($T$4&$A28,dataset,AY$4, FALSE), "") -> 0 | AZ28: =IFERROR(VLOOKUP($T$4&$A28,dataset,AZ$4, FALSE), "") -> 0 | BA28: =IFERROR(VLOOKUP($T$4&$A28,dataset,BA$4, FALSE), "") -> 0 | BB28: =IFERROR(VLOOKUP($T$4&$A28,dataset,BB$4, FALSE), "") -> 0 | BC28: =IFERROR(VLOOKUP($T$4&$A28,dataset,BC$4, FALSE), "") -> 0 | BD28: =IFERROR(VLOOKUP($T$4&$A28,dataset,BD$4, FALSE), "") -> 0 | BE28: =IFERROR(VLOOKUP($T$4&$A28,dataset,BE$4, FALSE), "") -> 0 | BF28: =IFERROR(VLOOKUP($T$4&$A28,dataset,BF$4, FALSE), "") -> 0 | BG28: =IFERROR(VLOOKUP($T$4&$A28,dataset,BG$4, FALSE), "") -> 0 | BH28: =IFERROR(VLOOKUP($T$4&$A28,dataset,BH$4, FALSE), "") -> 0 | BI28: =IFERROR(VLOOKUP($T$4&$A28,dataset,BI$4, FALSE), "") -> 2.63451228 | BJ28: =IFERROR(VLOOKUP($T$4&$A28,dataset,BJ$4, FALSE), "") -> -0.06979125812 | BK28: =IFERROR(VLOOKUP($T$4&$A28,dataset,BK$4, FALSE), "") -> 0.154008012 | BL28: =IFERROR(VLOOKUP($T$4&$A28,dataset,BL$4, FALSE), "") -> 4.033883329 | BM28: =IFERROR(VLOOKUP($T$4&$A28,dataset,BM$4, FALSE), "") -> 99.64774518 | BN28: =IFERROR(VLOOKUP($T$4&$A28,dataset,BN$4, FALSE), "") -> 0.122730639 | BO28: =IFERROR(VLOOKUP($T$4&$A28,dataset,BO$4, FALSE), "") -> 0 | BP28: =IFERROR(VLOOKUP($T$4&$A28,dataset,BP$4, FALSE), "") -> 6.162367365 | BQ28: =IFERROR(VLOOKUP($T$4&$A28,dataset,BQ$4, FALSE), "") -> 16.08504098 | BR28: =IFERROR(VLOOKUP($T$4&$A28,dataset,BR$4, FALSE), "") -> 1 | BS28: =IFERROR(VLOOKUP($T$4&$A28,dataset,BS$4, FALSE), "") -> 0.9131660145 | BT28: =IFERROR(VLOOKUP($T$4&$A28,dataset,BT$4, FALSE), "") -> 0.1913793171 | BU28: =IFERROR(VLOOKUP($T$4&$A28,dataset,BU$4, FALSE), "") -> 0.05203858581 | BV28: =IFERROR(VLOOKUP($T$4&$A28,dataset,BV$4, FALSE), "") -> 1.599438731 | BW28: =IFERROR(VLOOKUP($T$4&$A28,dataset,BW$4, FALSE), "") -> 89.01504027 | BX28: =IFERROR(VLOOKUP($T$4&$A28,dataset,BX$4, FALSE), "") -> 3.647260224 | BY28: =IFERROR(VLOOKUP($T$4&$A28,dataset,BY$4, FALSE), "") -> 0 | BZ28: =IFERROR(VLOOKUP($T$4&$A28,dataset,BZ$4, FALSE), "") -> 6.432888019 | CA28: =IFERROR(VLOOKUP($T$4&$A28,dataset,CA$4, FALSE), "") -> 3.796280803 | CB28: =IFERROR(VLOOKUP($T$4&$A28,dataset,CB$4, FALSE), "") -> 1 | CC28: =IFERROR(VLOOKUP($T$4&$A28,dataset,CC$4, FALSE), "") -> 0 | CD28: =IFERROR(VLOOKUP($T$4&$A28,dataset,CD$4, FALSE), "") -> 0 | CE28: =IFERROR(VLOOKUP($T$4&$A28,dataset,CE$4, FALSE), "") -> 0 | CF28: =IFERROR(VLOOKUP($T$4&$A28,dataset,CF$4, FALSE), "") -> 0 | CG28: =IFERROR(VLOOKUP($T$4&$A28,dataset,CG$4, FALSE), "") -> 0 | CH28: =IFERROR(VLOOKUP($T$4&$A28,dataset,CH$4, FALSE), "") -> 0 | CI28: =IFERROR(VLOOKUP($T$4&$A28,dataset,CI$4, FALSE), "") -> 0 | CJ28: =IFERROR(VLOOKUP($T$4&$A28,dataset,CJ$4, FALSE), "") -> 0 | CK28: =IFERROR(VLOOKUP($T$4&$A28,dataset,CK$4, FALSE), "") -> 0 | CL28: =IFERROR(VLOOKUP($T$4&$A28,dataset,CL$4, FALSE), "") -> 0 | CM28: =IFERROR(VLOOKUP($T$4&$A28,dataset,CM$4, FALSE), "") -> 0 | CN28: =IFERROR(VLOOKUP($T$4&$A28,dataset,CN$4, FALSE), "") -> 0 | CO28: =IFERROR(VLOOKUP($T$4&$A28,dataset,CO$4, FALSE), "") -> 0 | CP28: =IFERROR(VLOOKUP($T$4&$A28,dataset,CP$4, FALSE), "") -> 0 | CQ28: =IFERROR(VLOOKUP($T$4&$A28,dataset,CQ$4, FALSE), "") -> 0 | CR28: =IFERROR(VLOOKUP($T$4&$A28,dataset,CR$4, FALSE), "") -> 0 | CS28: =IFERROR(VLOOKUP($T$4&$A28,dataset,CS$4, FALSE), "") -> 0 | CT28: =IFERROR(VLOOKUP($T$4&$A28,dataset,CT$4, FALSE), "") -> 0 | CU28: =IFERROR(VLOOKUP($T$4&$A28,dataset,CU$4, FALSE), "") -> 0 | CV28: =IFERROR(VLOOKUP($T$4&$A28,dataset,CV$4, FALSE), "") -> 0 | CW28: =IFERROR(VLOOKUP($T$4&$A28,dataset,CW$4, FALSE), "") -> 0 | CX28: =IFERROR(VLOOKUP($T$4&$A28,dataset,CX$4, FALSE), "") -> 0 | CY28: =IFERROR(VLOOKUP($T$4&$A28,dataset,CY$4, FALSE), "") -> 0 | CZ28: =IFERROR(VLOOKUP($T$4&$A28,dataset,CZ$4, FALSE), "") -> 0 | DA28: =IFERROR(VLOOKUP($T$4&$A28,dataset,DA$4, FALSE), "") -> 0 | DB28: =IFERROR(VLOOKUP($T$4&$A28,dataset,DB$4, FALSE), "") -> 0 | DC28: =IFERROR(VLOOKUP($T$4&$A28,dataset,DC$4, FALSE), "") -> 0 | DD28: =IFERROR(VLOOKUP($T$4&$A28,dataset,DD$4, FALSE), "") -> 0 | DE28: =IFERROR(VLOOKUP($T$4&$A28,dataset,DE$4, FALSE), "") -> 0 | DF28: =IFERROR(VLOOKUP($T$4&$A28,dataset,DF$4, FALSE), "") -> 0 | DG28: =IFERROR(VLOOKUP($T$4&$A28,dataset,DG$4, FALSE), "") -> 0 | DH28: =IFERROR(VLOOKUP($T$4&$A28,dataset,DH$4, FALSE), "") -> 0 | DI28: =IFERROR(VLOOKUP($T$4&$A28,dataset,DI$4, FALSE), "") -> 0 | DJ28: =IFERROR(VLOOKUP($T$4&$A28,dataset,DJ$4, FALSE), "") -> 0 | DK28: =IFERROR(VLOOKUP($T$4&$A28,dataset,DK$4, FALSE), "") -> 0 | DL28: =IFERROR(VLOOKUP($T$4&$A28,dataset,DL$4, FALSE), "") -> 0 | DM28: =IFERROR(VLOOKUP($T$4&$A28,dataset,DM$4, FALSE), "") -> 0 | DN28: =IFERROR(VLOOKUP($T$4&$A28,dataset,DN$4, FALSE), "") -> 0 | DO28: =IFERROR(VLOOKUP($T$4&$A28,dataset,DO$4, FALSE), "") -> 0 | DP28: =IFERROR(VLOOKUP($T$4&$A28,dataset,DP$4, FALSE), "") -> 0 | DQ28: =IFERROR(VLOOKUP($T$4&$A28,dataset,DQ$4, FALSE), "") -> 0 | DR28: =IFERROR(VLOOKUP($T$4&$A28,dataset,DR$4, FALSE), "") -> 0 | DS28: =IFERROR(VLOOKUP($T$4&$A28,dataset,DS$4, FALSE), "") -> 0 | DT28: =IFERROR(VLOOKUP($T$4&$A28,dataset,DT$4, FALSE), "") -> 0 | DU28: =IFERROR(VLOOKUP($T$4&$A28,dataset,DU$4, FALSE), "") -> 0 | DV28: =IFERROR(VLOOKUP($T$4&$A28,dataset,DV$4, FALSE), "") -> 0 | DW28: =IFERROR(VLOOKUP($T$4&$A28,dataset,DW$4, FALSE), "") -> 0 | DX28: =IFERROR(VLOOKUP($T$4&$A28,dataset,DX$4, FALSE), "") -> 0 | DY28: =IFERROR(VLOOKUP($T$4&$A28,dataset,DY$4, FALSE), "") -> 0 | DZ28: =IFERROR(VLOOKUP($T$4&$A28,dataset,DZ$4, FALSE), "") -> 0 | EA28: =IFERROR(VLOOKUP($T$4&$A28,dataset,EA$4, FALSE), "") -> 0 | EB28: =IFERROR(VLOOKUP($T$4&$A28,dataset,EB$4, FALSE), "") -> 0 | EC28: =IFERROR(VLOOKUP($T$4&$A28,dataset,EC$4, FALSE), "") -> 0 | ED28: =IFERROR(VLOOKUP($T$4&$A28,dataset,ED$4, FALSE), "") -> 0 | EE28: =IFERROR(VLOOKUP($T$4&$A28,dataset,EE$4, FALSE), "") -> 0 | EF28: =IFERROR(VLOOKUP($T$4&$A28,dataset,EF$4, FALSE), "") -> 0 | EG28: =IFERROR(VLOOKUP($T$4&$A28,dataset,EG$4, FALSE), "") -> 0 | EH28: =IFERROR(VLOOKUP($T$4&$A28,dataset,EH$4, FALSE), "") -> 0 | EI28: =IFERROR(VLOOKUP($T$4&$A28,dataset,EI$4, FALSE), "") -> 0 | EJ28: =IFERROR(VLOOKUP($T$4&$A28,dataset,EJ$4, FALSE), "") -> 0 | EK28: =IFERROR(VLOOKUP($T$4&$A28,dataset,EK$4, FALSE), "") -> 2.382131611 | EL28: =IFERROR(VLOOKUP($T$4&$A28,dataset,EL$4, FALSE), "") -> 1.089763176 | EM28: =IFERROR(VLOOKUP($T$4&$A28,dataset,EM$4, FALSE), "") -> 0.005982713496 | EN28: =IFERROR(VLOOKUP($T$4&$A28,dataset,EN$4, FALSE), "") -> 4.83745411 | EO28: =IFERROR(VLOOKUP($T$4&$A28,dataset,EO$4, FALSE), "") -> 95.8731036 | EP28: =IFERROR(VLOOKUP($T$4&$A28,dataset,EP$4, FALSE), "") -> -1.865269537 | EQ28: =IFERROR(VLOOKUP($T$4&$A28,dataset,EQ$4, FALSE), "") -> 0 | ER28: =IFERROR(VLOOKUP($T$4&$A28,dataset,ER$4, FALSE), "") -> 3.057147506 | ES28: =IFERROR(VLOOKUP($T$4&$A28,dataset,ES$4, FALSE), "") -> 11.61410934 | ET28: =IFERROR(VLOOKUP($T$4&$A28,dataset,ET$4, FALSE), "") -> 1 | EU28: =IFERROR(VLOOKUP($T$4&$A28,dataset,EU$4, FALSE), "") -> 0 | EV28: =IFERROR(VLOOKUP($T$4&$A28,dataset,EV$4, FALSE), "") -> 0 | EW28: =IFERROR(VLOOKUP($T$4&$A28,dataset,EW$4, FALSE), "") -> 0 | EX28: =IFERROR(VLOOKUP($T$4&$A28,dataset,EX$4, FALSE), "") -> 0 | EY28: =IFERROR(VLOOKUP($T$4&$A28,dataset,EY$4, FALSE), "") -> 0 | EZ28: =IFERROR(VLOOKUP($T$4&$A28,dataset,EZ$4, FALSE), "") -> 0 | FA28: =IFERROR(VLOOKUP($T$4&$A28,dataset,FA$4, FALSE), "") -> 0 | FB28: =IFERROR(VLOOKUP($T$4&$A28,dataset,FB$4, FALSE), "") -> 0 | FC28: =IFERROR(VLOOKUP($T$4&$A28,dataset,FC$4, FALSE), "") -> 0 | FD28: =IFERROR(VLOOKUP($T$4&$A28,dataset,FD$4, FALSE), "") -> 0 | FE28: =IFERROR(VLOOKUP($T$4&$A28,dataset,FE$4, FALSE), "") -> 0 | FF28: =IFERROR(VLOOKUP($T$4&$A28,dataset,FF$4, FALSE), "") -> 0 | FG28: =IFERROR(VLOOKUP($T$4&$A28,dataset,FG$4, FALSE), "") -> 0 | FH28: =IFERROR(VLOOKUP($T$4&$A28,dataset,FH$4, FALSE), "") -> 0 | FI28: =IFERROR(VLOOKUP($T$4&$A28,dataset,FI$4, FALSE), "") -> 0 | FJ28: =IFERROR(VLOOKUP($T$4&$A28,dataset,FJ$4, FALSE), "") -> 0 | FK28: =IFERROR(VLOOKUP($T$4&$A28,dataset,FK$4, FALSE), "") -> 0 | FL28: =IFERROR(VLOOKUP($T$4&$A28,dataset,FL$4, FALSE), "") -> 0 | FM28: =IFERROR(VLOOKUP($T$4&$A28,dataset,FM$4, FALSE), "") -> 0 | FN28: =IFERROR(VLOOKUP($T$4&$A28,dataset,FN$4, FALSE), "") -> 0
A29: 21 | C29: =IFERROR(VLOOKUP($T$4&$A29,dataset,C$4, FALSE), "") -> Schnucks | D29: =IFERROR(VLOOKUP($T$4&$A29,dataset,D$4, FALSE), "") -> 2 | E29: =IFERROR(VLOOKUP($T$4&$A29,dataset,E$3, FALSE)/VLOOKUP($T$4&$A29,dataset,E$4, FALSE)-1, "") -> -0.023827901 | F29: =IFERROR(VLOOKUP($T$4&$A29,dataset,F$3, FALSE)/VLOOKUP($T$4&$A29,dataset,F$4, FALSE)-1, "") -> -0.02988243116 | G29: =IFERROR((VLOOKUP($T$4&$A29,dataset,E$3, FALSE)-VLOOKUP($T$4&$A29,dataset,F$3, FALSE))/(VLOOKUP($T$4&$A29,dataset,E$4, FALSE)-VLOOKUP($T$4&$A29,dataset,F$4, FALSE))-1, "") -> -0.01663885925 | H29: =IFERROR(VLOOKUP($T$4&$A29,dataset,H$4, FALSE),"") -> 53.94657171 | I29: =IFERROR(VLOOKUP($T$4&$A29,dataset,I$4, FALSE), "") -> -0.3366820232 | J29: =IFERROR(VLOOKUP($T$4&$A29,dataset,J$4, FALSE), "") -> 4.89930764 | K29: =IFERROR(VLOOKUP($T$4&$A29,dataset,K$4, FALSE), "") -> 4.190323971 | L29: =IFERROR(VLOOKUP($T$4&$A29,dataset,L$4, FALSE), "") -> 0.7089836691 | M29: =IFERROR(VLOOKUP($T$4&$A29,dataset,M$4, FALSE), "") -> 0.07486071244 | N29: =IFERROR(VLOOKUP($T$4&$A29,dataset,N$4, FALSE), "") -> 35.35304621 | O29: =IFERROR(VLOOKUP($T$4&$A29,dataset,O$4, FALSE), "") -> -0.4253531339 | P29: =IFERROR(VLOOKUP($T$4&$A29,dataset,P$4, FALSE), "") -> 0 | Q29: =IFERROR(VLOOKUP($T$4&$A29,dataset,Q$4, FALSE), "") -> -1 | R29: =IFERROR(VLOOKUP($T$4&$A29,dataset,R$4, FALSE), "") -> 0 | S29: =IFERROR(VLOOKUP($T$4&$A29,dataset,S$4, FALSE), "") -> -37.52058656 | U29: =IFERROR(VLOOKUP($T$4&$A29,dataset,U$4, FALSE), "") -> 0.1162885238 | V29: =IFERROR(VLOOKUP($T$4&$A29,dataset,V$4, FALSE), "") -> 0.001716262676 | W29: =IFERROR(VLOOKUP($T$4&$A29,dataset,W$4, FALSE), "") -> 0.0002346899264 | X29: =IFERROR(VLOOKUP($T$4&$A29,dataset,X$4, FALSE), "") -> 7.622329201 | Y29: =IFERROR(VLOOKUP($T$4&$A29,dataset,Y$4, FALSE), "") -> 7.34123424 | Z29: =IFERROR(VLOOKUP($T$4&$A29,dataset,Z$4, FALSE), "") -> -1.257485723 | AA29: =IFERROR(VLOOKUP($T$4&$A29,dataset,AA$4, FALSE), "") -> 0 | AB29: =IFERROR(VLOOKUP($T$4&$A29,dataset,AB$4, FALSE), "") -> 5.283955155 | AC29: =IFERROR(VLOOKUP($T$4&$A29,dataset,AC$4, FALSE), "") -> 57.875 | AD29: =IFERROR(VLOOKUP($T$4&$A29,dataset,AD$4, FALSE), "") -> 1 | AE29: =IFERROR(VLOOKUP($T$4&$A29,dataset,AE$4, FALSE), "") -> 2.379118612 | AF29: =IFERROR(VLOOKUP($T$4&$A29,dataset,AF$4, FALSE), "") -> -0.2466849009 | AG29: =IFERROR(VLOOKUP($T$4&$A29,dataset,AG$4, FALSE), "") -> 0.005789834034 | AH29: =IFERROR(VLOOKUP($T$4&$A29,dataset,AH$4, FALSE), "") -> 5.796268236 | AI29: =IFERROR(VLOOKUP($T$4&$A29,dataset,AI$4, FALSE), "") -> 100 | AJ29: =IFERROR(VLOOKUP($T$4&$A29,dataset,AJ$4, FALSE), "") -> 0 | AK29: =IFERROR(VLOOKUP($T$4&$A29,dataset,AK$4, FALSE), "") -> 0 | AL29: =IFERROR(VLOOKUP($T$4&$A29,dataset,AL$4, FALSE), "") -> 15.01238484 | AM29: =IFERROR(VLOOKUP($T$4&$A29,dataset,AM$4, FALSE), "") -> 66.55555556 | AN29: =IFERROR(VLOOKUP($T$4&$A29,dataset,AN$4, FALSE), "") -> 1 | AO29: =IFERROR(VLOOKUP($T$4&$A29,dataset,AO$4, FALSE), "") -> 0.7892788616 | AP29: =IFERROR(VLOOKUP($T$4&$A29,dataset,AP$4, FALSE), "") -> 0.05277555371 | AQ29: =IFERROR(VLOOKUP($T$4&$A29,dataset,AQ$4, FALSE), "") -> 0.001503063393 | AR29: =IFERROR(VLOOKUP($T$4&$A29,dataset,AR$4, FALSE), "") -> 7.78475623 | AS29: =IFERROR(VLOOKUP($T$4&$A29,dataset,AS$4, FALSE), "") -> 82.32571409 | AT29: =IFERROR(VLOOKUP($T$4&$A29,dataset,AT$4, FALSE), "") -> -3.977052264 | AU29: =IFERROR(VLOOKUP($T$4&$A29,dataset,AU$4, FALSE), "") -> 0 | AV29: =IFERROR(VLOOKUP($T$4&$A29,dataset,AV$4, FALSE), "") -> 6.9870658 | AW29: =IFERROR(VLOOKUP($T$4&$A29,dataset,AW$4, FALSE), "") -> 31.78481013 | AX29: =IFERROR(VLOOKUP($T$4&$A29,dataset,AX$4, FALSE), "") -> 1 | AY29: =IFERROR(VLOOKUP($T$4&$A29,dataset,AY$4, FALSE), "") -> 2.814179614 | AZ29: =IFERROR(VLOOKUP($T$4&$A29,dataset,AZ$4, FALSE), "") -> -0.1087690207 | BA29: =IFERROR(VLOOKUP($T$4&$A29,dataset,BA$4, FALSE), "") -> 0.009649321827 | BB29: =IFERROR(VLOOKUP($T$4&$A29,dataset,BB$4, FALSE), "") -> 5.662247722 | BC29: =IFERROR(VLOOKUP($T$4&$A29,dataset,BC$4, FALSE), "") -> 100 | BD29: =IFERROR(VLOOKUP($T$4&$A29,dataset,BD$4, FALSE), "") -> 0.9200069843 | BE29: =IFERROR(VLOOKUP($T$4&$A29,dataset,BE$4, FALSE), "") -> 0 | BF29: =IFERROR(VLOOKUP($T$4&$A29,dataset,BF$4, FALSE), "") -> 3.459083377 | BG29: =IFERROR(VLOOKUP($T$4&$A29,dataset,BG$4, FALSE), "") -> 129.2020202 | BH29: =IFERROR(VLOOKUP($T$4&$A29,dataset,BH$4, FALSE), "") -> 1 | BI29: =IFERROR(VLOOKUP($T$4&$A29,dataset,BI$4, FALSE), "") -> 0 | BJ29: =IFERROR(VLOOKUP($T$4&$A29,dataset,BJ$4, FALSE), "") -> 0 | BK29: =IFERROR(VLOOKUP($T$4&$A29,dataset,BK$4, FALSE), "") -> 0 | BL29: =IFERROR(VLOOKUP($T$4&$A29,dataset,BL$4, FALSE), "") -> 0 | BM29: =IFERROR(VLOOKUP($T$4&$A29,dataset,BM$4, FALSE), "") -> 0 | BN29: =IFERROR(VLOOKUP($T$4&$A29,dataset,BN$4, FALSE), "") -> 0 | BO29: =IFERROR(VLOOKUP($T$4&$A29,dataset,BO$4, FALSE), "") -> 0 | BP29: =IFERROR(VLOOKUP($T$4&$A29,dataset,BP$4, FALSE), "") -> 0 | BQ29: =IFERROR(VLOOKUP($T$4&$A29,dataset,BQ$4, FALSE), "") -> 0 | BR29: =IFERROR(VLOOKUP($T$4&$A29,dataset,BR$4, FALSE), "") -> 0 | BS29: =IFERROR(VLOOKUP($T$4&$A29,dataset,BS$4, FALSE), "") -> 0.04846863094 | BT29: =IFERROR(VLOOKUP($T$4&$A29,dataset,BT$4, FALSE), "") -> -0.02162048524 | BU29: =IFERROR(VLOOKUP($T$4&$A29,dataset,BU$4, FALSE), "") -> 0.0005156059396 | BV29: =IFERROR(VLOOKUP($T$4&$A29,dataset,BV$4, FALSE), "") -> 1.018491664 | BW29: =IFERROR(VLOOKUP($T$4&$A29,dataset,BW$4, FALSE), "") -> 78.37372983 | BX29: =IFERROR(VLOOKUP($T$4&$A29,dataset,BX$4, FALSE), "") -> -14.45268027 | BY29: =IFERROR(VLOOKUP($T$4&$A29,dataset,BY$4, FALSE), "") -> 0 | BZ29: =IFERROR(VLOOKUP($T$4&$A29,dataset,BZ$4, FALSE), "") -> 8.571294118 | CA29: =IFERROR(VLOOKUP($T$4&$A29,dataset,CA$4, FALSE), "") -> 2.794520548 | CB29: =IFERROR(VLOOKUP($T$4&$A29,dataset,CB$4, FALSE), "") -> 1 | CC29: =IFERROR(VLOOKUP($T$4&$A29,dataset,CC$4, FALSE), "") -> 0.3042022628 | CD29: =IFERROR(VLOOKUP($T$4&$A29,dataset,CD$4, FALSE), "") -> 0.08140381672 | CE29: =IFERROR(VLOOKUP($T$4&$A29,dataset,CE$4, FALSE), "") -> 0.00197066689 | CF29: =IFERROR(VLOOKUP($T$4&$A29,dataset,CF$4, FALSE), "") -> 4.992649082 | CG29: =IFERROR(VLOOKUP($T$4&$A29,dataset,CG$4, FALSE), "") -> 98.03412759 | CH29: =IFERROR(VLOOKUP($T$4&$A29,dataset,CH$4, FALSE), "") -> 2.773075221 | CI29: =IFERROR(VLOOKUP($T$4&$A29,dataset,CI$4, FALSE), "") -> 0 | CJ29: =IFERROR(VLOOKUP($T$4&$A29,dataset,CJ$4, FALSE), "") -> 9.32440049 | CK29: =IFERROR(VLOOKUP($T$4&$A29,dataset,CK$4, FALSE), "") -> 20.38541667 | CL29: =IFERROR(VLOOKUP($T$4&$A29,dataset,CL$4, FALSE), "") -> 1 | CM29: =IFERROR(VLOOKUP($T$4&$A29,dataset,CM$4, FALSE), "") -> 0.03827143132 | CN29: =IFERROR(VLOOKUP($T$4&$A29,dataset,CN$4, FALSE), "") -> 0.03696654161 | CO29: =IFERROR(VLOOKUP($T$4&$A29,dataset,CO$4, FALSE), "") -> 0.001197257689 | CP29: =IFERROR(VLOOKUP($T$4&$A29,dataset,CP$4, FALSE), "") -> 1 | CQ29: =IFERROR(VLOOKUP($T$4&$A29,dataset,CQ$4, FALSE), "") -> 45.97844266 | CR29: =IFERROR(VLOOKUP($T$4&$A29,dataset,CR$4, FALSE), "") -> 44.35409879 | CS29: =IFERROR(VLOOKUP($T$4&$A29,dataset,CS$4, FALSE), "") -> 0 | CT29: =IFERROR(VLOOKUP($T$4&$A29,dataset,CT$4, FALSE), "") -> 8.16 | CU29: =IFERROR(VLOOKUP($T$4&$A29,dataset,CU$4, FALSE), "") -> 2.292682927 | CV29: =IFERROR(VLOOKUP($T$4&$A29,dataset,CV$4, FALSE), "") -> 1 | CW29: =IFERROR(VLOOKUP($T$4&$A29,dataset,CW$4, FALSE), "") -> 0.2352265809 | CX29: =IFERROR(VLOOKUP($T$4&$A29,dataset,CX$4, FALSE), "") -> -0.2165094407 | CY29: =IFERROR(VLOOKUP($T$4&$A29,dataset,CY$4, FALSE), "") -> 0.001353786624 | CZ29: =IFERROR(VLOOKUP($T$4&$A29,dataset,CZ$4, FALSE), "") -> 1.917605364 | DA29: =IFERROR(VLOOKUP($T$4&$A29,dataset,DA$4, FALSE), "") -> 84.94901802 | DB29: =IFERROR(VLOOKUP($T$4&$A29,dataset,DB$4, FALSE), "") -> 3.064147141 | DC29: =IFERROR(VLOOKUP($T$4&$A29,dataset,DC$4, FALSE), "") -> 0 | DD29: =IFERROR(VLOOKUP($T$4&$A29,dataset,DD$4, FALSE), "") -> 12.51057342 | DE29: =IFERROR(VLOOKUP($T$4&$A29,dataset,DE$4, FALSE), "") -> 9.139240506 | DF29: =IFERROR(VLOOKUP($T$4&$A29,dataset,DF$4, FALSE), "") -> 1 | DG29: =IFERROR(VLOOKUP($T$4&$A29,dataset,DG$4, FALSE), "") -> 0.02083879702 | DH29: =IFERROR(VLOOKUP($T$4&$A29,dataset,DH$4, FALSE), "") -> 0.02083879702 | DI29: =IFERROR(VLOOKUP($T$4&$A29,dataset,DI$4, FALSE), "") -> 0.0008673377394 | DJ29: =IFERROR(VLOOKUP($T$4&$A29,dataset,DJ$4, FALSE), "") -> 1.565151045 | DK29: =IFERROR(VLOOKUP($T$4&$A29,dataset,DK$4, FALSE), "") -> 21.55282436 | DL29: =IFERROR(VLOOKUP($T$4&$A29,dataset,DL$4, FALSE), "") -> 21.55282436 | DM29: =IFERROR(VLOOKUP($T$4&$A29,dataset,DM$4, FALSE), "") -> 0 | DN29: =IFERROR(VLOOKUP($T$4&$A29,dataset,DN$4, FALSE), "") -> 10.44133333 | DO29: =IFERROR(VLOOKUP($T$4&$A29,dataset,DO$4, FALSE), "") -> 2.608695652 | DP29: =IFERROR(VLOOKUP($T$4&$A29,dataset,DP$4, FALSE), "") -> 1 | DQ29: =IFERROR(VLOOKUP($T$4&$A29,dataset,DQ$4, FALSE), "") -> 0.03670761235 | DR29: =IFERROR(VLOOKUP($T$4&$A29,dataset,DR$4, FALSE), "") -> 0.03670761235 | DS29: =IFERROR(VLOOKUP($T$4&$A29,dataset,DS$4, FALSE), "") -> 0.002612370551 | DT29: =IFERROR(VLOOKUP($T$4&$A29,dataset,DT$4, FALSE), "") -> 1 | DU29: =IFERROR(VLOOKUP($T$4&$A29,dataset,DU$4, FALSE), "") -> 38.88253379 | DV29: =IFERROR(VLOOKUP($T$4&$A29,dataset,DV$4, FALSE), "") -> 38.88253379 | DW29: =IFERROR(VLOOKUP($T$4&$A29,dataset,DW$4, FALSE), "") -> 0 | DX29: =IFERROR(VLOOKUP($T$4&$A29,dataset,DX$4, FALSE), "") -> 5.808140351 | DY29: =IFERROR(VLOOKUP($T$4&$A29,dataset,DY$4, FALSE), "") -> 5.135135135 | DZ29: =IFERROR(VLOOKUP($T$4&$A29,dataset,DZ$4, FALSE), "") -> 1 | EA29: =IFERROR(VLOOKUP($T$4&$A29,dataset,EA$4, FALSE), "") -> 0.09742689776 | EB29: =IFERROR(VLOOKUP($T$4&$A29,dataset,EB$4, FALSE), "") -> 0.02962631743 | EC29: =IFERROR(VLOOKUP($T$4&$A29,dataset,EC$4, FALSE), "") -> 0.00269321375 | ED29: =IFERROR(VLOOKUP($T$4&$A29,dataset,ED$4, FALSE), "") -> 1.360194661 | EE29: =IFERROR(VLOOKUP($T$4&$A29,dataset,EE$4, FALSE), "") -> 68.78198659 | EF29: =IFERROR(VLOOKUP($T$4&$A29,dataset,EF$4, FALSE), "") -> 35.28745116 | EG29: =IFERROR(VLOOKUP($T$4&$A29,dataset,EG$4, FALSE), "") -> 0 | EH29: =IFERROR(VLOOKUP($T$4&$A29,dataset,EH$4, FALSE), "") -> 7.964012721 | EI29: =IFERROR(VLOOKUP($T$4&$A29,dataset,EI$4, FALSE), "") -> 5.435483871 | EJ29: =IFERROR(VLOOKUP($T$4&$A29,dataset,EJ$4, FALSE), "") -> 1 | EK29: =IFERROR(VLOOKUP($T$4&$A29,dataset,EK$4, FALSE), "") -> 8.124007634 | EL29: =IFERROR(VLOOKUP($T$4&$A29,dataset,EL$4, FALSE), "") -> 1.579484359 | EM29: =IFERROR(VLOOKUP($T$4&$A29,dataset,EM$4, FALSE), "") -> 0.003808765103 | EN29: =IFERROR(VLOOKUP($T$4&$A29,dataset,EN$4, FALSE), "") -> 36.12604812 | EO29: =IFERROR(VLOOKUP($T$4&$A29,dataset,EO$4, FALSE), "") -> 100 | EP29: =IFERROR(VLOOKUP($T$4&$A29,dataset,EP$4, FALSE), "") -> 0 | EQ29: =IFERROR(VLOOKUP($T$4&$A29,dataset,EQ$4, FALSE), "") -> 0 | ER29: =IFERROR(VLOOKUP($T$4&$A29,dataset,ER$4, FALSE), "") -> 2.767678384 | ES29: =IFERROR(VLOOKUP($T$4&$A29,dataset,ES$4, FALSE), "") -> 579.979798 | ET29: =IFERROR(VLOOKUP($T$4&$A29,dataset,ET$4, FALSE), "") -> 1 | EU29: =IFERROR(VLOOKUP($T$4&$A29,dataset,EU$4, FALSE), "") -> 0.01273851632 | EV29: =IFERROR(VLOOKUP($T$4&$A29,dataset,EV$4, FALSE), "") -> -0.02245887059 | EW29: =IFERROR(VLOOKUP($T$4&$A29,dataset,EW$4, FALSE), "") -> 1.19661693e-05 | EX29: =IFERROR(VLOOKUP($T$4&$A29,dataset,EX$4, FALSE), "") -> 1.244993092 | EY29: =IFERROR(VLOOKUP($T$4&$A29,dataset,EY$4, FALSE), "") -> 8.366400816 | EZ29: =IFERROR(VLOOKUP($T$4&$A29,dataset,EZ$4, FALSE), "") -> -11.51341419 | FA29: =IFERROR(VLOOKUP($T$4&$A29,dataset,FA$4, FALSE), "") -> 0 | FB29: =IFERROR(VLOOKUP($T$4&$A29,dataset,FB$4, FALSE), "") -> 8.727915839 | FC29: =IFERROR(VLOOKUP($T$4&$A29,dataset,FC$4, FALSE), "") -> 5.571428571 | FD29: =IFERROR(VLOOKUP($T$4&$A29,dataset,FD$4, FALSE), "") -> 1 | FE29: =IFERROR(VLOOKUP($T$4&$A29,dataset,FE$4, FALSE), "") -> 0.06620817469 | FF29: =IFERROR(VLOOKUP($T$4&$A29,dataset,FF$4, FALSE), "") -> -0.09836552074 | FG29: =IFERROR(VLOOKUP($T$4&$A29,dataset,FG$4, FALSE), "") -> 0.0001970748339 | FH29: =IFERROR(VLOOKUP($T$4&$A29,dataset,FH$4, FALSE), "") -> 2.169180796 | FI29: =IFERROR(VLOOKUP($T$4&$A29,dataset,FI$4, FALSE), "") -> 36.88163158 | FJ29: =IFERROR(VLOOKUP($T$4&$A29,dataset,FJ$4, FALSE), "") -> -32.45354208 | FK29: =IFERROR(VLOOKUP($T$4&$A29,dataset,FK$4, FALSE), "") -> 0 | FL29: =IFERROR(VLOOKUP($T$4&$A29,dataset,FL$4, FALSE), "") -> 8.527145067 | FM29: =IFERROR(VLOOKUP($T$4&$A29,dataset,FM$4, FALSE), "") -> 7.96875 | FN29: =IFERROR(VLOOKUP($T$4&$A29,dataset,FN$4, FALSE), "") -> 1
A30: 22 | C30: =IFERROR(VLOOKUP($T$4&$A30,dataset,C$4, FALSE), "") -> Price Chopper | D30: =IFERROR(VLOOKUP($T$4&$A30,dataset,D$4, FALSE), "") -> 2 | E30: =IFERROR(VLOOKUP($T$4&$A30,dataset,E$3, FALSE)/VLOOKUP($T$4&$A30,dataset,E$4, FALSE)-1, "") -> -0.03998203379 | F30: =IFERROR(VLOOKUP($T$4&$A30,dataset,F$3, FALSE)/VLOOKUP($T$4&$A30,dataset,F$4, FALSE)-1, "") -> -0.02604202409 | G30: =IFERROR((VLOOKUP($T$4&$A30,dataset,E$3, FALSE)-VLOOKUP($T$4&$A30,dataset,F$3, FALSE))/(VLOOKUP($T$4&$A30,dataset,E$4, FALSE)-VLOOKUP($T$4&$A30,dataset,F$4, FALSE))-1, "") -> -0.05508475361 | H30: =IFERROR(VLOOKUP($T$4&$A30,dataset,H$4, FALSE),"") -> 52.75681799 | I30: =IFERROR(VLOOKUP($T$4&$A30,dataset,I$4, FALSE), "") -> 0.75509475 | J30: =IFERROR(VLOOKUP($T$4&$A30,dataset,J$4, FALSE), "") -> 5.473073751 | K30: =IFERROR(VLOOKUP($T$4&$A30,dataset,K$4, FALSE), "") -> 5.095870475 | L30: =IFERROR(VLOOKUP($T$4&$A30,dataset,L$4, FALSE), "") -> 0.377203276 | M30: =IFERROR(VLOOKUP($T$4&$A30,dataset,M$4, FALSE), "") -> -0.6556167996 | N30: =IFERROR(VLOOKUP($T$4&$A30,dataset,N$4, FALSE), "") -> 32.53933125 | O30: =IFERROR(VLOOKUP($T$4&$A30,dataset,O$4, FALSE), "") -> 0.2041461227 | P30: =IFERROR(VLOOKUP($T$4&$A30,dataset,P$4, FALSE), "") -> 0 | Q30: =IFERROR(VLOOKUP($T$4&$A30,dataset,Q$4, FALSE), "") -> -1 | R30: =IFERROR(VLOOKUP($T$4&$A30,dataset,R$4, FALSE), "") -> 0 | S30: =IFERROR(VLOOKUP($T$4&$A30,dataset,S$4, FALSE), "") -> -61.46045035 | U30: =IFERROR(VLOOKUP($T$4&$A30,dataset,U$4, FALSE), "") -> 0 | V30: =IFERROR(VLOOKUP($T$4&$A30,dataset,V$4, FALSE), "") -> 0 | W30: =IFERROR(VLOOKUP($T$4&$A30,dataset,W$4, FALSE), "") -> 0 | X30: =IFERROR(VLOOKUP($T$4&$A30,dataset,X$4, FALSE), "") -> 0 | Y30: =IFERROR(VLOOKUP($T$4&$A30,dataset,Y$4, FALSE), "") -> 0 | Z30: =IFERROR(VLOOKUP($T$4&$A30,dataset,Z$4, FALSE), "") -> 0 | AA30: =IFERROR(VLOOKUP($T$4&$A30,dataset,AA$4, FALSE), "") -> 0 | AB30: =IFERROR(VLOOKUP($T$4&$A30,dataset,AB$4, FALSE), "") -> 0 | AC30: =IFERROR(VLOOKUP($T$4&$A30,dataset,AC$4, FALSE), "") -> 0 | AD30: =IFERROR(VLOOKUP($T$4&$A30,dataset,AD$4, FALSE), "") -> 0 | AE30: =IFERROR(VLOOKUP($T$4&$A30,dataset,AE$4, FALSE), "") -> 0.7814387176 | AF30: =IFERROR(VLOOKUP($T$4&$A30,dataset,AF$4, FALSE), "") -> 0.07614550841 | AG30: =IFERROR(VLOOKUP($T$4&$A30,dataset,AG$4, FALSE), "") -> 0.002267353716 | AH30: =IFERROR(VLOOKUP($T$4&$A30,dataset,AH$4, FALSE), "") -> 3.695310658 | AI30: =IFERROR(VLOOKUP($T$4&$A30,dataset,AI$4, FALSE), "") -> 95.8478959 | AJ30: =IFERROR(VLOOKUP($T$4&$A30,dataset,AJ$4, FALSE), "") -> 11.20696934 | AK30: =IFERROR(VLOOKUP($T$4&$A30,dataset,AK$4, FALSE), "") -> 0 | AL30: =IFERROR(VLOOKUP($T$4&$A30,dataset,AL$4, FALSE), "") -> 13.4864107 | AM30: =IFERROR(VLOOKUP($T$4&$A30,dataset,AM$4, FALSE), "") -> 29.08047704 | AN30: =IFERROR(VLOOKUP($T$4&$A30,dataset,AN$4, FALSE), "") -> 1 | AO30: =IFERROR(VLOOKUP($T$4&$A30,dataset,AO$4, FALSE), "") -> 1.294602003 | AP30: =IFERROR(VLOOKUP($T$4&$A30,dataset,AP$4, FALSE), "") -> -0.1539665497 | AQ30: =IFERROR(VLOOKUP($T$4&$A30,dataset,AQ$4, FALSE), "") -> 0.002939391487 | AR30: =IFERROR(VLOOKUP($T$4&$A30,dataset,AR$4, FALSE), "") -> 7.553052524 | AS30: =IFERROR(VLOOKUP($T$4&$A30,dataset,AS$4, FALSE), "") -> 91.31151001 | AT30: =IFERROR(VLOOKUP($T$4&$A30,dataset,AT$4, FALSE), "") -> 0.5833511697 | AU30: =IFERROR(VLOOKUP($T$4&$A30,dataset,AU$4, FALSE), "") -> 0 | AV30: =IFERROR(VLOOKUP($T$4&$A30,dataset,AV$4, FALSE), "") -> 9.21581278 | AW30: =IFERROR(VLOOKUP($T$4&$A30,dataset,AW$4, FALSE), "") -> 34.63978042 | AX30: =IFERROR(VLOOKUP($T$4&$A30,dataset,AX$4, FALSE), "") -> 1 | AY30: =IFERROR(VLOOKUP($T$4&$A30,dataset,AY$4, FALSE), "") -> 0.03178897842 | AZ30: =IFERROR(VLOOKUP($T$4&$A30,dataset,AZ$4, FALSE), "") -> 0.03178897842 | BA30: =IFERROR(VLOOKUP($T$4&$A30,dataset,BA$4, FALSE), "") -> 0.0001299558642 | BB30: =IFERROR(VLOOKUP($T$4&$A30,dataset,BB$4, FALSE), "") -> 3.429984979 | BC30: =IFERROR(VLOOKUP($T$4&$A30,dataset,BC$4, FALSE), "") -> 8.891562032 | BD30: =IFERROR(VLOOKUP($T$4&$A30,dataset,BD$4, FALSE), "") -> 8.891562032 | BE30: =IFERROR(VLOOKUP($T$4&$A30,dataset,BE$4, FALSE), "") -> 0 | BF30: =IFERROR(VLOOKUP($T$4&$A30,dataset,BF$4, FALSE), "") -> 4.232961919 | BG30: =IFERROR(VLOOKUP($T$4&$A30,dataset,BG$4, FALSE), "") -> 14.90184036 | BH30: =IFERROR(VLOOKUP($T$4&$A30,dataset,BH$4, FALSE), "") -> 1 | BI30: =IFERROR(VLOOKUP($T$4&$A30,dataset,BI$4, FALSE), "") -> 0 | BJ30: =IFERROR(VLOOKUP($T$4&$A30,dataset,BJ$4, FALSE), "") -> 0 | BK30: =IFERROR(VLOOKUP($T$4&$A30,dataset,BK$4, FALSE), "") -> 0 | BL30: =IFERROR(VLOOKUP($T$4&$A30,dataset,BL$4, FALSE), "") -> 0 | BM30: =IFERROR(VLOOKUP($T$4&$A30,dataset,BM$4, FALSE), "") -> 0 | BN30: =IFERROR(VLOOKUP($T$4&$A30,dataset,BN$4, FALSE), "") -> 0 | BO30: =IFERROR(VLOOKUP($T$4&$A30,dataset,BO$4, FALSE), "") -> 0 | BP30: =IFERROR(VLOOKUP($T$4&$A30,dataset,BP$4, FALSE), "") -> 0 | BQ30: =IFERROR(VLOOKUP($T$4&$A30,dataset,BQ$4, FALSE), "") -> 0 | BR30: =IFERROR(VLOOKUP($T$4&$A30,dataset,BR$4, FALSE), "") -> 0 | BS30: =IFERROR(VLOOKUP($T$4&$A30,dataset,BS$4, FALSE), "") -> 0.1154521934 | BT30: =IFERROR(VLOOKUP($T$4&$A30,dataset,BT$4, FALSE), "") -> 0.03420403842 | BU30: =IFERROR(VLOOKUP($T$4&$A30,dataset,BU$4, FALSE), "") -> 0.001464312193 | BV30: =IFERROR(VLOOKUP($T$4&$A30,dataset,BV$4, FALSE), "") -> 1.75318024 | BW30: =IFERROR(VLOOKUP($T$4&$A30,dataset,BW$4, FALSE), "") -> 80.25703261 | BX30: =IFERROR(VLOOKUP($T$4&$A30,dataset,BX$4, FALSE), "") -> -7.103322604 | BY30: =IFERROR(VLOOKUP($T$4&$A30,dataset,BY$4, FALSE), "") -> 0 | BZ30: =IFERROR(VLOOKUP($T$4&$A30,dataset,BZ$4, FALSE), "") -> 8.865860229 | CA30: =IFERROR(VLOOKUP($T$4&$A30,dataset,CA$4, FALSE), "") -> 5.110786175 | CB30: =IFERROR(VLOOKUP($T$4&$A30,dataset,CB$4, FALSE), "") -> 1 | CC30: =IFERROR(VLOOKUP($T$4&$A30,dataset,CC$4, FALSE), "") -> 0.4304714186 | CD30: =IFERROR(VLOOKUP($T$4&$A30,dataset,CD$4, FALSE), "") -> 0.2590600671 | CE30: =IFERROR(VLOOKUP($T$4&$A30,dataset,CE$4, FALSE), "") -> 0.003324829909 | CF30: =IFERROR(VLOOKUP($T$4&$A30,dataset,CF$4, FALSE), "") -> 3.289757016 | CG30: =IFERROR(VLOOKUP($T$4&$A30,dataset,CG$4, FALSE), "") -> 95.98051844 | CH30: =IFERROR(VLOOKUP($T$4&$A30,dataset,CH$4, FALSE), "") -> 31.01021954 | CI30: =IFERROR(VLOOKUP($T$4&$A30,dataset,CI$4, FALSE), "") -> 0 | CJ30: =IFERROR(VLOOKUP($T$4&$A30,dataset,CJ$4, FALSE), "") -> 9.680324285 | CK30: =IFERROR(VLOOKUP($T$4&$A30,dataset,CK$4, FALSE), "") -> 23.46804407 | CL30: =IFERROR(VLOOKUP($T$4&$A30,dataset,CL$4, FALSE), "") -> 1 | CM30: =IFERROR(VLOOKUP($T$4&$A30,dataset,CM$4, FALSE), "") -> 0.0474424245 | CN30: =IFERROR(VLOOKUP($T$4&$A30,dataset,CN$4, FALSE), "") -> -0.01721769643 | CO30: =IFERROR(VLOOKUP($T$4&$A30,dataset,CO$4, FALSE), "") -> 0.001769514544 | CP30: =IFERROR(VLOOKUP($T$4&$A30,dataset,CP$4, FALSE), "") -> 1.379173051 | CQ30: =IFERROR(VLOOKUP($T$4&$A30,dataset,CQ$4, FALSE), "") -> 45.6928103 | CR30: =IFERROR(VLOOKUP($T$4&$A30,dataset,CR$4, FALSE), "") -> -10.90679995 | CS30: =IFERROR(VLOOKUP($T$4&$A30,dataset,CS$4, FALSE), "") -> 0 | CT30: =IFERROR(VLOOKUP($T$4&$A30,dataset,CT$4, FALSE), "") -> 8.108731421 | CU30: =IFERROR(VLOOKUP($T$4&$A30,dataset,CU$4, FALSE), "") -> 2.89338056 | CV30: =IFERROR(VLOOKUP($T$4&$A30,dataset,CV$4, FALSE), "") -> 1 | CW30: =IFERROR(VLOOKUP($T$4&$A30,dataset,CW$4, FALSE), "") -> 0.6166034653 | CX30: =IFERROR(VLOOKUP($T$4&$A30,dataset,CX$4, FALSE), "") -> -0.1421771364 | CY30: =IFERROR(VLOOKUP($T$4&$A30,dataset,CY$4, FALSE), "") -> 0.00423101062 | CZ30: =IFERROR(VLOOKUP($T$4&$A30,dataset,CZ$4, FALSE), "") -> 3.599702572 | DA30: =IFERROR(VLOOKUP($T$4&$A30,dataset,DA$4, FALSE), "") -> 90.42900089 | DB30: =IFERROR(VLOOKUP($T$4&$A30,dataset,DB$4, FALSE), "") -> -3.565411015 | DC30: =IFERROR(VLOOKUP($T$4&$A30,dataset,DC$4, FALSE), "") -> 0 | DD30: =IFERROR(VLOOKUP($T$4&$A30,dataset,DD$4, FALSE), "") -> 13.53438625 | DE30: =IFERROR(VLOOKUP($T$4&$A30,dataset,DE$4, FALSE), "") -> 17.76737136 | DF30: =IFERROR(VLOOKUP($T$4&$A30,dataset,DF$4, FALSE), "") -> 1 | DG30: =IFERROR(VLOOKUP($T$4&$A30,dataset,DG$4, FALSE), "") -> 0.06441039969 | DH30: =IFERROR(VLOOKUP($T$4&$A30,dataset,DH$4, FALSE), "") -> 0.06441039969 | DI30: =IFERROR(VLOOKUP($T$4&$A30,dataset,DI$4, FALSE), "") -> 0.003196288152 | DJ30: =IFERROR(VLOOKUP($T$4&$A30,dataset,DJ$4, FALSE), "") -> 1.383555519 | DK30: =IFERROR(VLOOKUP($T$4&$A30,dataset,DK$4, FALSE), "") -> 69.3689328 | DL30: =IFERROR(VLOOKUP($T$4&$A30,dataset,DL$4, FALSE), "") -> 69.3689328 | DM30: =IFERROR(VLOOKUP($T$4&$A30,dataset,DM$4, FALSE), "") -> 0 | DN30: =IFERROR(VLOOKUP($T$4&$A30,dataset,DN$4, FALSE), "") -> 13.30666667 | DO30: =IFERROR(VLOOKUP($T$4&$A30,dataset,DO$4, FALSE), "") -> 2.025877605 | DP30: =IFERROR(VLOOKUP($T$4&$A30,dataset,DP$4, FALSE), "") -> 1 | DQ30: =IFERROR(VLOOKUP($T$4&$A30,dataset,DQ$4, FALSE), "") -> 0.06824520693 | DR30: =IFERROR(VLOOKUP($T$4&$A30,dataset,DR$4, FALSE), "") -> 0.06824520693 | DS30: =IFERROR(VLOOKUP($T$4&$A30,dataset,DS$4, FALSE), "") -> 0.005790620841 | DT30: =IFERROR(VLOOKUP($T$4&$A30,dataset,DT$4, FALSE), "") -> 1 | DU30: =IFERROR(VLOOKUP($T$4&$A30,dataset,DU$4, FALSE), "") -> 76.89514986 | DV30: =IFERROR(VLOOKUP($T$4&$A30,dataset,DV$4, FALSE), "") -> 76.89514986 | DW30: =IFERROR(VLOOKUP($T$4&$A30,dataset,DW$4, FALSE), "") -> 0 | DX30: =IFERROR(VLOOKUP($T$4&$A30,dataset,DX$4, FALSE), "") -> 9.306666667 | DY30: =IFERROR(VLOOKUP($T$4&$A30,dataset,DY$4, FALSE), "") -> 2.837579799 | DZ30: =IFERROR(VLOOKUP($T$4&$A30,dataset,DZ$4, FALSE), "") -> 1 | EA30: =IFERROR(VLOOKUP($T$4&$A30,dataset,EA$4, FALSE), "") -> 0.0005951820449 | EB30: =IFERROR(VLOOKUP($T$4&$A30,dataset,EB$4, FALSE), "") -> 0.0005951820449 | EC30: =IFERROR(VLOOKUP($T$4&$A30,dataset,EC$4, FALSE), "") -> 1.961625514e-05 | ED30: =IFERROR(VLOOKUP($T$4&$A30,dataset,ED$4, FALSE), "") -> 2 | EE30: =IFERROR(VLOOKUP($T$4&$A30,dataset,EE$4, FALSE), "") -> 0.7871666574 | EF30: =IFERROR(VLOOKUP($T$4&$A30,dataset,EF$4, FALSE), "") -> 0.7871666574 | EG30: =IFERROR(VLOOKUP($T$4&$A30,dataset,EG$4, FALSE), "") -> 0 | EH30: =IFERROR(VLOOKUP($T$4&$A30,dataset,EH$4, FALSE), "") -> 4.92247108 | EI30: =IFERROR(VLOOKUP($T$4&$A30,dataset,EI$4, FALSE), "") -> 4.000484269 | EJ30: =IFERROR(VLOOKUP($T$4&$A30,dataset,EJ$4, FALSE), "") -> 1 | EK30: =IFERROR(VLOOKUP($T$4&$A30,dataset,EK$4, FALSE), "") -> 10.83619067 | EL30: =IFERROR(VLOOKUP($T$4&$A30,dataset,EL$4, FALSE), "") -> 1.755010906 | EM30: =IFERROR(VLOOKUP($T$4&$A30,dataset,EM$4, FALSE), "") -> 0.006057101287 | EN30: =IFERROR(VLOOKUP($T$4&$A30,dataset,EN$4, FALSE), "") -> 42.34811681 | EO30: =IFERROR(VLOOKUP($T$4&$A30,dataset,EO$4, FALSE), "") -> 100 | EP30: =IFERROR(VLOOKUP($T$4&$A30,dataset,EP$4, FALSE), "") -> 0 | EQ30: =IFERROR(VLOOKUP($T$4&$A30,dataset,EQ$4, FALSE), "") -> 0 | ER30: =IFERROR(VLOOKUP($T$4&$A30,dataset,ER$4, FALSE), "") -> 3.714513262 | ES30: =IFERROR(VLOOKUP($T$4&$A30,dataset,ES$4, FALSE), "") -> 416.6118155 | ET30: =IFERROR(VLOOKUP($T$4&$A30,dataset,ET$4, FALSE), "") -> 1 | EU30: =IFERROR(VLOOKUP($T$4&$A30,dataset,EU$4, FALSE), "") -> 5.442232665 | EV30: =IFERROR(VLOOKUP($T$4&$A30,dataset,EV$4, FALSE), "") -> 0.1180672682 | EW30: =IFERROR(VLOOKUP($T$4&$A30,dataset,EW$4, FALSE), "") -> 0.00609519678 | EX30: =IFERROR(VLOOKUP($T$4&$A30,dataset,EX$4, FALSE), "") -> 25.55811527 | EY30: =IFERROR(VLOOKUP($T$4&$A30,dataset,EY$4, FALSE), "") -> 100 | EZ30: =IFERROR(VLOOKUP($T$4&$A30,dataset,EZ$4, FALSE), "") -> 0 | FA30: =IFERROR(VLOOKUP($T$4&$A30,dataset,FA$4, FALSE), "") -> 0 | FB30: =IFERROR(VLOOKUP($T$4&$A30,dataset,FB$4, FALSE), "") -> 5.882774832 | FC30: =IFERROR(VLOOKUP($T$4&$A30,dataset,FC$4, FALSE), "") -> 145.9506967 | FD30: =IFERROR(VLOOKUP($T$4&$A30,dataset,FD$4, FALSE), "") -> 1 | FE30: =IFERROR(VLOOKUP($T$4&$A30,dataset,FE$4, FALSE), "") -> 0.5254449517 | FF30: =IFERROR(VLOOKUP($T$4&$A30,dataset,FF$4, FALSE), "") -> 0.08550314842 | FG30: =IFERROR(VLOOKUP($T$4&$A30,dataset,FG$4, FALSE), "") -> 0.00186475212 | FH30: =IFERROR(VLOOKUP($T$4&$A30,dataset,FH$4, FALSE), "") -> 6.265818036 | FI30: =IFERROR(VLOOKUP($T$4&$A30,dataset,FI$4, FALSE), "") -> 94.24689579 | FJ30: =IFERROR(VLOOKUP($T$4&$A30,dataset,FJ$4, FALSE), "") -> 2.224721283 | FK30: =IFERROR(VLOOKUP($T$4&$A30,dataset,FK$4, FALSE), "") -> 0 | FL30: =IFERROR(VLOOKUP($T$4&$A30,dataset,FL$4, FALSE), "") -> 7.403351117 | FM30: =IFERROR(VLOOKUP($T$4&$A30,dataset,FM$4, FALSE), "") -> 15.0547711 | FN30: =IFERROR(VLOOKUP($T$4&$A30,dataset,FN$4, FALSE), "") -> 1
